Workbook

Sheet INGRESO DE DATOS
A9: COTIZACION DE SEGURO MEDICO: Para nuevos negocios emitidos a partir del 1 de enero de 2022
A11: BUPA ESSENTIAL OPTIONS
A13: 1. INGRESE LOS DATOS DEL PROPUESTO ASEGURADO :
C15: Nombre del Asegurado principal: | D15: NOMBRE EL AGENTE
F17: Número de adultos en la póliza: | G17: 1 | I17: Número de hijos en la póliza: | J17: 0
F19: Edad del titular: | G19: 68 | I19: Edad de cónyuge: | J19: 46
F21: Zona de cotización: | G21: Guayaquil/Santa Elena
A24: 2. INGRESE EL NOMBRE DE LA AGENCIA ASESORA :
B26: Nombre de la Agencia : | D26: NOMBRE DE LA AGENCIA
A29: 3. ESCOJA EL PRODUCTO PARA VISUALIZAR LA COTIZACION RESPECTIVA :

Sheet Essential Care
H10: Cotización de Seguro Médico Internacional: BUPA ESSENTIAL CARE
A12: RESUMEN DE BENEFICIOS | G12: Nombre del asegurado : | H12: =+'INGRESO DE DATOS'!$D$15 -> NOMBRE EL AGENTE
G14: Broker / Agente : | H14: =+'INGRESO DE DATOS'!$D$26 -> NOMBRE DE LA AGENCIA
I16: Número de adultos en la póliza: | J16: =+'INGRESO DE DATOS'!$G$17 -> 1 | L16: Edad de Titular : | M16: =+'INGRESO DE DATOS'!$G$19 -> 68
I18: Número hijos (menos 24 años): | J18: =+'INGRESO DE DATOS'!$J$17 -> 0 | L18: Edad de Cónyuge: | M18: =+'INGRESO DE DATOS'!$J$19 -> 46
I20: Fecha cotización: | J20: =+TODAY() -> 2022-01-03 | L20: Zona de cotización: | M20: ='INGRESO DE DATOS'!G21 -> Guayaquil/Santa Elena
I22: FALSE | K22: COMPLICACIONES DE MATERNIDAD
I24: FALSE | K24: TRASPLANTE DE ORGANOS
H26: Solo Renovación
F27: Deducibles | H27: PLAN 1 | I27: PLAN 2 | J27: PLAN 3 | K27: PLAN 4 | L27: PLAN 5 | M27: PLAN 6
F28: Deducible en Ecuador | H28: 0 | I28: 1000 | J28: 2000 | K28: 5000 | L28: 10000 | M28: 20000
F29: Deducible fuera de Ecuador | H29: 1000 | I29: 2000 | J29: 3000 | K29: 5000 | L29: 10000 | M29: 20000
F31: Tarifas Anuales
F32: Prima de Titular : | H32: =VLOOKUP($M$16,'Tablas-Care'!$A$475:$H$501,3,TRUE)+75 -> 21857 | I32: =VLOOKUP($M$16,'Tablas-Care'!$A$475:$H$501,4,TRUE)+75 -> 17569 | J32: =VLOOKUP($M$16,'Tablas-Care'!$A$475:$H$501,5,TRUE)+75 -> 16166 | K32: =VLOOKUP($M$16,'Tablas-Care'!$A$475:$H$501,6,TRUE)+75 -> 10979 | L32: =VLOOKUP($M$16,'Tablas-Care'!$A$475:$H$501,7,TRUE)+75 -> 8797 | M32: =VLOOKUP($M$16,'Tablas-Care'!$A$475:$H$501,8,TRUE)+75 -> 6578
F33: Prima de Cónyuge | H33: =IF($J$16=1,0,(VLOOKUP($M$18,'Tablas-Care'!$A$475:$H$501,3,TRUE))) -> 0 | I33: =IF($J$16=1,0,(VLOOKUP($M$18,'Tablas-Care'!$A$475:$H$501,4,TRUE))) -> 0 | J33: =IF($J$16=1,0,(VLOOKUP($M$18,'Tablas-Care'!$A$475:$H$501,5,TRUE))) -> 0 | K33: =IF($J$16=1,0,(VLOOKUP($M$18,'Tablas-Care'!$A$475:$H$501,6,TRUE))) -> 0 | L33: =IF($J$16=1,0,(VLOOKUP($M$18,'Tablas-Care'!$A$475:$H$501,7,TRUE))) -> 0 | M33: =IF($J$16=1,0,(VLOOKUP($M$18,'Tablas-Care'!$A$475:$H$501,8,TRUE))) -> 0
F34: Primas Hijos : | H34: =IF($J$18=0,0,(VLOOKUP($J$18,'Tablas-Care'!$A$499:$H$501,3,TRUE))) -> 0 | I34: =IF($J$18=0,0,(VLOOKUP($J$18,'Tablas-Care'!$A$499:$H$501,4,TRUE))) -> 0 | J34: =IF($J$18=0,0,(VLOOKUP($J$18,'Tablas-Care'!$A$499:$H$501,5,TRUE))) -> 0 | K34: =IF($J$18=0,0,(VLOOKUP($J$18,'Tablas-Care'!$A$499:$H$501,6,TRUE))) -> 0 | L34: =IF($J$18=0,0,(VLOOKUP($J$18,'Tablas-Care'!$A$499:$H$501,7,TRUE))) -> 0 | M34: =IF($J$18=0,0,(VLOOKUP($J$18,'Tablas-Care'!$A$499:$H$501,8,TRUE))) -> 0
F35: Prima Rider Complic. Maternidad | H35: =+IF($I$22=FALSE,0,'Tablas-Care'!C502) -> 0 | I35: =+IF($I$22=FALSE,0,'Tablas-Care'!D502) -> 0 | J35: =+IF($I$22=FALSE,0,'Tablas-Care'!E502) -> 0 | K35: =+IF($I$22=FALSE,0,'Tablas-Care'!F502) -> 0 | L35: =+IF($I$22=FALSE,0,'Tablas-Care'!G502) -> 0 | M35: =+IF($I$22=FALSE,0,'Tablas-Care'!H502) -> 0
F36: Prima Rider Trasplante Organos | H36: =IF($I$24=FALSE,0,'Tablas-Care'!C503) -> 0 | I36: =IF($I$24=FALSE,0,'Tablas-Care'!D503) -> 0 | J36: =IF($I$24=FALSE,0,'Tablas-Care'!E503) -> 0 | K36: =IF($I$24=FALSE,0,'Tablas-Care'!F503) -> 0 | L36: =IF($I$24=FALSE,0,'Tablas-Care'!G503) -> 0 | M36: =IF($I$24=FALSE,0,'Tablas-Care'!H503) -> 0
F37: TOTAL PRIMA NETA : | H37: =SUM(H32:H36) -> 21857 | I37: 17569 | J37: 16166 | K37: 10979 | L37: 8797 | M37: 6578
F38: Costo Administrativo Anual : | H38: 0 | I38: 0 | J38: 0 | K38: 0 | L38: 0 | M38: 0
F39: Contrib. 3.5% Super. Bancos : | H39: =+H37*3.5% -> 764.995 | I39: 614.915 | J39: 565.81 | K39: 384.265 | L39: 307.895 | M39: 230.23
F40: Contrib 0.5% Seg.Soc.Campes.: | H40: =+H37*0.5% -> 109.285 | I40: 87.845 | J40: 80.83 | K40: 54.895 | L40: 43.985 | M40: 32.89
F42: GRAN TOTAL : | H42: =SUM(H37:H41) -> 22731.28 | I42: 18271.76 | J42: 16812.64 | K42: 11418.16 | L42: 9148.88 | M42: 6841.12
F46: Tarifas Semestrales
F47: Prima de Titular : | H47: =VLOOKUP($M$16,'Tablas-Care'!$A$508:$H$531,3,TRUE)+75 -> 11619.46 | I47: =VLOOKUP($M$16,'Tablas-Care'!$A$508:$H$531,4,TRUE)+75 -> 9346.82 | J47: =VLOOKUP($M$16,'Tablas-Care'!$A$508:$H$531,5,TRUE)+75 -> 8603.23 | K47: =VLOOKUP($M$16,'Tablas-Care'!$A$508:$H$531,6,TRUE)+75 -> 5854.12 | L47: =VLOOKUP($M$16,'Tablas-Care'!$A$508:$H$531,7,TRUE)+75 -> 4697.66 | M47: =VLOOKUP($M$16,'Tablas-Care'!$A$508:$H$531,8,TRUE)+75 -> 3521.59
F48: Prima de Cónyuge | H48: =IF($J$16=1,0,(VLOOKUP($M$18,'Tablas-Care'!$A$508:$H$531,3,TRUE))) -> 0 | I48: =IF($J$16=1,0,(VLOOKUP($M$18,'Tablas-Care'!$A$508:$H$531,4,TRUE))) -> 0 | J48: =IF($J$16=1,0,(VLOOKUP($M$18,'Tablas-Care'!$A$508:$H$531,5,TRUE))) -> 0 | K48: =IF($J$16=1,0,(VLOOKUP($M$18,'Tablas-Care'!$A$508:$H$531,6,TRUE))) -> 0 | L48: =IF($J$16=1,0,(VLOOKUP($M$18,'Tablas-Care'!$A$508:$H$531,7,TRUE))) -> 0 | M48: =IF($J$16=1,0,(VLOOKUP($M$18,'Tablas-Care'!$A$508:$H$531,8,TRUE))) -> 0
F49: Primas Hijos : | H49: =IF($J$18=0,0,(VLOOKUP($J$18,'Tablas-Care'!$A$532:$H$534,3,TRUE))) -> 0 | I49: =IF($J$18=0,0,(VLOOKUP($J$18,'Tablas-Care'!$A$532:$H$534,4,TRUE))) -> 0 | J49: =IF($J$18=0,0,(VLOOKUP($J$18,'Tablas-Care'!$A$532:$H$534,5,TRUE))) -> 0 | K49: =IF($J$18=0,0,(VLOOKUP($J$18,'Tablas-Care'!$A$532:$H$534,6,TRUE))) -> 0 | L49: =IF($J$18=0,0,(VLOOKUP($J$18,'Tablas-Care'!$A$532:$H$534,7,TRUE))) -> 0 | M49: =IF($J$18=0,0,(VLOOKUP($J$18,'Tablas-Care'!$A$532:$H$534,8,TRUE))) -> 0
F50: Prima Rider Complic. Maternidad | H50: =+IF($I$22=FALSE,0,'Tablas-Care'!C535) -> 0 | I50: =+IF($I$22=FALSE,0,'Tablas-Care'!D535) -> 0 | J50: =+IF($I$22=FALSE,0,'Tablas-Care'!E535) -> 0 | K50: =+IF($I$22=FALSE,0,'Tablas-Care'!F535) -> 0 | L50: =+IF($I$22=FALSE,0,'Tablas-Care'!G535) -> 0 | M50: =+IF($I$22=FALSE,0,'Tablas-Care'!H535) -> 0
F51: Prima Rider Trasplante Organos | H51: =IF($I$24=FALSE,0,'Tablas-Care'!C536) -> 0 | I51: =IF($I$24=FALSE,0,'Tablas-Care'!D536) -> 0 | J51: =IF($I$24=FALSE,0,'Tablas-Care'!E536) -> 0 | K51: =IF($I$24=FALSE,0,'Tablas-Care'!F536) -> 0 | L51: =IF($I$24=FALSE,0,'Tablas-Care'!G536) -> 0 | M51: =IF($I$24=FALSE,0,'Tablas-Care'!H536) -> 0
F52: TOTAL PRIMA NETA : | H52: =SUM(H47:H51) -> 11619.46 | I52: 9346.82 | J52: 8603.23 | K52: 5854.12 | L52: 4697.66 | M52: 3521.59
F53: Costo Administrativo Anual : | H53: 0 | I53: 0 | J53: 0 | K53: 0 | L53: 0 | M53: 0
F54: Contrib. 3.5% Super. Bancos : | H54: =+H52*3.5% -> 406.6811 | I54: 327.1387 | J54: 301.11305 | K54: 204.8942 | L54: 164.4181 | M54: 123.25565
F55: Contrib 0.5% Seg.Soc.Campes.: | H55: =+H52*0.5% -> 58.0973 | I55: 46.7341 | J55: 43.01615 | K55: 29.2706 | L55: 23.4883 | M55: 17.60795
F57: GRAN TOTAL (1ra Cuota) : | H57: =SUM(H52:H56) -> 12084.2384 | I57: 9720.6928 | J57: 8947.3592 | K57: 6088.2848 | L57: 4885.5664 | M57: 3662.4536
F58: Valor 2da Cuota: | H58: =+(H52+H54+H55)*1-(78) -> 12006.2384 | I58: =+(I52+I54+I55)*1-78 -> 9642.6928 | J58: =+(J52+J54+J55)*1-78 -> 8869.3592 | K58: =+(K52+K54+K55)*1-78 -> 6010.2848 | L58: =+(L52+L54+L55)*1-78 -> 4807.5664 | M58: =+(M52+M54+M55)*1-78 -> 3584.4536
F60: Tarifas en US $ - Válidas desde el 1ro. de enero de 2022
F61: Este presupuesto solamente tiene carácter informativo y en ningún momento expresa compromiso legal para suministrarle cobertura de seguro. La emisión de una póliza de seguro Bupa está sujeta a todas las evaluaciones de riesgo por parte de Bupa y a la recepción de todos los pagos de prima requeridos.

Sheet Essential 1000
C11: Cotización de Seguro Médico | H11: Cotización de Seguro Médico Internacional: BUPA ESSENTIAL 1000
A13: RESUMEN DE BENEFICIOS | G13: Nombre del asegurado : | H13: =+'INGRESO DE DATOS'!$D$15 -> NOMBRE EL AGENTE
G15: Broker / Agente : | H15: =+'INGRESO DE DATOS'!$D$26 -> NOMBRE DE LA AGENCIA
I17: Número de adultos en la póliza: | J17: =+'INGRESO DE DATOS'!$G$17 -> 1 | K17: Edad de Titular : | L17: =+'INGRESO DE DATOS'!$G$19 -> 68
I19: Número hijos (menos 24 años): | J19: =+'INGRESO DE DATOS'!$J$17 -> 0 | K19: Edad de Cónyuge: | L19: =+'INGRESO DE DATOS'!$J$19 -> 46
I21: Fecha cotización: | J21: =+TODAY() -> 2022-01-03 | K21: Zona de cotización: | L21: ='INGRESO DE DATOS'!G21 -> Guayaquil/Santa Elena
F23: Deducibles | H23: PLAN 1 | I23: PLAN 2 | J23: PLAN 3 | K23: PLAN 4 | L23: PLAN 5 | M23: PLAN 6 | N23: PLAN 7
F24: Dentro del pais de residencia | H24: 250 | I24: 500 | J24: 1000 | K24: 2000 | L24: 5000 | M24: 10000 | N24: 20000
F25: Fuera del pais de residencia | H25: 500 | I25: 1000 | J25: 2000 | K25: 4000 | L25: 5000 | M25: 10000 | N25: 20000
F27: Tarifas Mensuales
F28: Prima de Titular : | H28: =VLOOKUP($L$17,Tablas!$A$991:$I$1053,3,TRUE)+(60/12)+50 -> 1166.586667 | I28: =VLOOKUP($L$17,Tablas!$A$991:$I$1053,4,TRUE)+(60/12)+50 -> 1024.811667 | J28: =VLOOKUP($L$17,Tablas!$A$991:$I$1053,5,TRUE)+(60/12)+50 -> 913.1583333 | K28: =VLOOKUP($L$17,Tablas!$A$991:$I$1053,6,TRUE)+(60/12)+50 -> 844.435 | L28: =VLOOKUP($L$17,Tablas!$A$991:$I$1053,7,TRUE)+(60/12)+50 -> 597.0133333 | M28: =VLOOKUP($L$17,Tablas!$A$991:$I$1053,8,TRUE)+(60/12)+50 -> 555.1433333 | N28: =VLOOKUP($L$17,Tablas!$A$991:$I$1053,9,TRUE)+(60/12)+50 -> 511.6833333
F29: Prima de Cónyuge | H29: =IF($J$17=1,0,(VLOOKUP($L$19,Tablas!$A$991:$I$1053,3,TRUE))) -> 0 | I29: =IF($J$17=1,0,(VLOOKUP($L$19,Tablas!$A$991:$I$1053,4,TRUE))) -> 0 | J29: =IF($J$17=1,0,(VLOOKUP($L$19,Tablas!$A$991:$I$1053,5,TRUE))) -> 0 | K29: =IF($J$17=1,0,(VLOOKUP($L$19,Tablas!$A$991:$I$1053,6,TRUE))) -> 0 | L29: =IF($J$17=1,0,(VLOOKUP($L$19,Tablas!$A$991:$I$1053,7,TRUE))) -> 0 | M29: =IF($J$17=1,0,(VLOOKUP($L$19,Tablas!$A$991:$I$1053,8,TRUE))) -> 0 | N29: =IF($J$17=1,0,(VLOOKUP($L$19,Tablas!$A$991:$I$1053,9,TRUE))) -> 0
F30: Primas Hijos : | H30: =IF($J$19=0,0,(VLOOKUP($J$19,Tablas!$A$1054:$I$1056,3,TRUE))) -> 0 | I30: =IF($J$19=0,0,(VLOOKUP($J$19,Tablas!$A$1054:$I$1056,4,TRUE))) -> 0 | J30: =IF($J$19=0,0,(VLOOKUP($J$19,Tablas!$A$1054:$I$1056,5,TRUE))) -> 0 | K30: =IF($J$19=0,0,(VLOOKUP($J$19,Tablas!$A$1054:$I$1056,6,TRUE))) -> 0 | L30: =IF($J$19=0,0,(VLOOKUP($J$19,Tablas!$A$1054:$I$1056,7,TRUE))) -> 0 | M30: =IF($J$19=0,0,(VLOOKUP($J$19,Tablas!$A$1054:$I$1056,8,TRUE))) -> 0 | N30: =IF($J$19=0,0,(VLOOKUP($J$19,Tablas!$A$1054:$I$1056,9,TRUE))) -> 0
F31: TOTAL PRIMA NETA : | H31: =SUM(H28:H30) -> 1166.586667 | I31: =SUM(I28:I30) -> 1024.811667 | J31: =SUM(J28:J30) -> 913.1583333 | K31: =SUM(K28:K30) -> 844.435 | L31: =SUM(L28:L30) -> 597.0133333 | M31: =SUM(M28:M30) -> 555.1433333 | N31: 511.6833333
F32: Costo Administrativo Anual : | H32: 0 | I32: 0 | J32: 0 | K32: 0 | L32: 0 | M32: 0 | N32: 0
F33: Contrib. 3.5% Super. Bancos : | H33: =+H31*3.5% -> 40.83053333 | I33: =+I31*3.5% -> 35.86840833 | J33: 31.96054167 | K33: 29.555225 | L33: 20.89546667 | M33: 19.43001667 | N33: 17.90891667
F34: Contrib 0.5% Seg.Soc.Campes.: | H34: =+H31*0.5% -> 5.832933333 | I34: =+I31*0.5% -> 5.124058333 | J34: 4.565791667 | K34: 4.222175 | L34: 2.985066667 | M34: 2.775716667 | N34: 2.558416667
F35: TOTAL Primer Cuota : | H35: =SUM(H31:H34) -> 1213.250133 | I35: =SUM(I31:I34) -> 1065.804133 | J35: =SUM(J31:J34) -> 949.6846667 | K35: =SUM(K31:K34) -> 878.2124 | L35: =SUM(L31:L34) -> 620.8938667 | M35: =SUM(M31:M34) -> 577.3490667 | N35: 532.1506667
F36: Valor Cuota Mensual 2 a 12 : | H36: =(H31 + H33 + H34)-52 -> 1161.250133 | I36: =(I31 + I33 + I34)-52 -> 1013.804133 | J36: =(J31 + J33 + J34)-52 -> 897.6846667 | K36: =(K31 + K33 + K34)-52 -> 826.2124 | L36: =(L31 + L33 + L34)-52 -> 568.8938667 | M36: =(M31 + M33 + M34)-52 -> 525.3490667 | N36: 480.1506667
F38: Tarifas Anuales
F39: Prima de Titular : | H39: =VLOOKUP($L$17,Tablas!$A$920:$I$982,3,TRUE)+(60)+50 -> 12694 | I39: =VLOOKUP($L$17,Tablas!$A$920:$I$982,4,TRUE)+(60)+50 -> 11089 | J39: =VLOOKUP($L$17,Tablas!$A$920:$I$982,5,TRUE)+(60)+50 -> 9825 | K39: =VLOOKUP($L$17,Tablas!$A$920:$I$982,6,TRUE)+(60)+50 -> 9047 | L39: =VLOOKUP($L$17,Tablas!$A$920:$I$982,7,TRUE)+(60)+50 -> 6246 | M39: =VLOOKUP($L$17,Tablas!$A$920:$I$982,8,TRUE)+(60)+50 -> 5772 | N39: =VLOOKUP($L$17,Tablas!$A$920:$I$982,9,TRUE)+(60)+50 -> 5280
F40: Prima de Cónyuge | H40: =IF($J$17=1,0,(VLOOKUP($L$19,Tablas!$A$920:$I$982,3,TRUE))) -> 0 | I40: =IF($J$17=1,0,(VLOOKUP($L$19,Tablas!$A$920:$I$982,4,TRUE))) -> 0 | J40: =IF($J$17=1,0,(VLOOKUP($L$19,Tablas!$A$920:$I$982,5,TRUE))) -> 0 | K40: =IF($J$17=1,0,(VLOOKUP($L$19,Tablas!$A$920:$I$982,6,TRUE))) -> 0 | L40: =IF($J$17=1,0,(VLOOKUP($L$19,Tablas!$A$920:$I$982,7,TRUE))) -> 0 | M40: =IF($J$17=1,0,(VLOOKUP($L$19,Tablas!$A$920:$I$982,8,TRUE))) -> 0 | N40: =IF($J$17=1,0,(VLOOKUP($L$19,Tablas!$A$920:$I$982,9,TRUE))) -> 0
F41: Primas Hijos : | H41: =IF($J$19=0,0,(VLOOKUP($J$19,Tablas!$A$983:$I$985,3,TRUE))) -> 0 | I41: =IF($J$19=0,0,(VLOOKUP($J$19,Tablas!$A$983:$I$985,4,TRUE))) -> 0 | J41: =IF($J$19=0,0,(VLOOKUP($J$19,Tablas!$A$983:$I$985,5,TRUE))) -> 0 | K41: =IF($J$19=0,0,(VLOOKUP($J$19,Tablas!$A$983:$I$985,6,TRUE))) -> 0 | L41: =IF($J$19=0,0,(VLOOKUP($J$19,Tablas!$A$983:$I$985,7,TRUE))) -> 0 | M41: =IF($J$19=0,0,(VLOOKUP($J$19,Tablas!$A$983:$I$985,8,TRUE))) -> 0 | N41: =IF($J$19=0,0,(VLOOKUP($J$19,Tablas!$A$983:$I$985,9,TRUE))) -> 0
F42: TOTAL PRIMA NETA : | H42: =SUM(H39:H41) -> 12694 | I42: =SUM(I39:I41) -> 11089 | J42: 9825 | K42: 9047 | L42: 6246 | M42: 5772 | N42: 5280
F43: Costo Administrativo Anual : | H43: 0 | I43: 0 | J43: 0 | K43: 0 | L43: 0 | M43: - | N43: -
F44: Contrib. 3.5% Super. Bancos : | H44: =+H42*3.5% -> 444.29 | I44: =+I42*3.5% -> 388.115 | J44: 343.875 | K44: 316.645 | L44: 218.61 | M44: 202.02 | N44: 184.8
F45: Contrib 0.5% Seg.Soc.Campes.: | H45: =+H42*0.5% -> 63.47 | I45: =+I42*0.5% -> 55.445 | J45: 49.125 | K45: 45.235 | L45: 31.23 | M45: 28.86 | N45: 26.4
F46: GRAN TOTAL ANUAL : | H46: =SUM(H42:H45) -> 13201.76 | I46: =SUM(I42:I45) -> 11532.56 | J46: =SUM(J42:J45) -> 10218 | K46: =SUM(K42:K45) -> 9408.88 | L46: =SUM(L42:L45) -> 6495.84 | M46: =SUM(M42:M45) -> 6002.88 | N46: 5491.2
F48: Tarifas Semestrales
F49: Prima de Titular : | H49: =VLOOKUP($L$17,Tablas!$A$1133:$I$1195,3,TRUE)+(60/2)+50 -> 6560.76 | I49: =VLOOKUP($L$17,Tablas!$A$1133:$I$1195,4,TRUE)+(60/2)+50 -> 5734.185 | J49: =VLOOKUP($L$17,Tablas!$A$1133:$I$1195,5,TRUE)+(60/2)+50 -> 5083.225 | K49: =VLOOKUP($L$17,Tablas!$A$1133:$I$1195,6,TRUE)+(60/2)+50 -> 4682.555 | L49: =VLOOKUP($L$17,Tablas!$A$1133:$I$1195,7,TRUE)+(60/2)+50 -> 3240.04 | M49: =VLOOKUP($L$17,Tablas!$A$1133:$I$1195,8,TRUE)+(60/2)+50 -> 2995.93 | N49: =VLOOKUP($L$17,Tablas!$A$1133:$I$1195,9,TRUE)+(60/2)+50 -> 2742.55
F50: Prima de Cónyuge | H50: =IF($J$17=1,0,(VLOOKUP($L$19,Tablas!$A$1133:$I$1195,3,TRUE))) -> 0 | I50: =IF($J$17=1,0,(VLOOKUP($L$19,Tablas!$A$1133:$I$1195,4,TRUE))) -> 0 | J50: =IF($J$17=1,0,(VLOOKUP($L$19,Tablas!$A$1133:$I$1195,5,TRUE))) -> 0 | K50: =IF($J$17=1,0,(VLOOKUP($L$19,Tablas!$A$1133:$I$1195,6,TRUE))) -> 0 | L50: =IF($J$17=1,0,(VLOOKUP($L$19,Tablas!$A$1133:$I$1195,7,TRUE))) -> 0 | M50: =IF($J$17=1,0,(VLOOKUP($L$19,Tablas!$A$1133:$I$1195,8,TRUE))) -> 0 | N50: =IF($J$17=1,0,(VLOOKUP($L$19,Tablas!$A$1133:$I$1195,9,TRUE))) -> 0
F51: Primas Hijos : | H51: =IF($J$19=0,0,(VLOOKUP($J$19,Tablas!$A$1196:$I$1198,3,TRUE))) -> 0 | I51: =IF($J$19=0,0,(VLOOKUP($J$19,Tablas!$A$1196:$I$1198,4,TRUE))) -> 0 | J51: =IF($J$19=0,0,(VLOOKUP($J$19,Tablas!$A$1196:$I$1198,5,TRUE))) -> 0 | K51: =IF($J$19=0,0,(VLOOKUP($J$19,Tablas!$A$1196:$I$1198,6,TRUE))) -> 0 | L51: =IF($J$19=0,0,(VLOOKUP($J$19,Tablas!$A$1196:$I$1198,7,TRUE))) -> 0 | M51: =IF($J$19=0,0,(VLOOKUP($J$19,Tablas!$A$1196:$I$1198,8,TRUE))) -> 0 | N51: =IF($J$19=0,0,(VLOOKUP($J$19,Tablas!$A$1196:$I$1198,9,TRUE))) -> 0
F52: TOTAL PRIMA NETA : | H52: =SUM(H49:H51) -> 6560.76 | I52: =SUM(I49:I51) -> 5734.185 | J52: =SUM(J49:J51) -> 5083.225 | K52: =SUM(K49:K51) -> 4682.555 | L52: =SUM(L49:L51) -> 3240.04 | M52: =SUM(M49:M51) -> 2995.93 | N52: 2742.55
F53: Costo Administrativo Anual : | H53: 0 | I53: 0 | J53: 0 | K53: 0 | L53: 0 | M53: - | N53: -
F54: Contrib. 3.5% Super. Bancos : | H54: =+H52*3.5% -> 229.6266 | I54: =+I52*3.5% -> 200.696475 | J54: 177.912875 | K54: 163.889425 | L54: 113.4014 | M54: 104.85755 | N54: 95.98925
F55: Contrib 0.5% Seg.Soc.Campes.: | H55: =+H52*0.5% -> 32.8038 | I55: =+I52*0.5% -> 28.670925 | J55: 25.416125 | K55: 23.412775 | L55: 16.2002 | M55: 14.97965 | N55: 13.71275
F56: TOTAL Primer Cuota : | H56: =SUM(H52:H55) -> 6823.1904 | I56: =SUM(I52:I55) -> 5963.5524 | J56: =SUM(J52:J55) -> 5286.554 | K56: =SUM(K52:K55) -> 4869.8572 | L56: =SUM(L52:L55) -> 3369.6416 | M56: =SUM(M52:M55) -> 3115.7672 | N56: 2852.252
F57: Valor Segunda Cuota : | H57: =(H52 + H54 + H55)-52 -> 6771.1904 | I57: =(I52 + I54 + I55)-52 -> 5911.5524 | J57: =(J52 + J54 + J55)-52 -> 5234.554 | K57: =(K52 + K54 + K55)-52 -> 4817.8572 | L57: =(L52 + L54 + L55)-52 -> 3317.6416 | M57: =(M52 + M54 + M55)-52 -> 3063.7672 | N57: 2800.252
F59: Tarifas Trimestrales
F60: Prima de Titular : | H60: =VLOOKUP($L$17,Tablas!$A$1062:$I$1124,3,TRUE)+(60/4)+50 -> 3352.57 | I60: =VLOOKUP($L$17,Tablas!$A$1062:$I$1124,4,TRUE)+(60/4)+50 -> 2933.26375 | J60: =VLOOKUP($L$17,Tablas!$A$1062:$I$1124,5,TRUE)+(60/4)+50 -> 2603.04375 | K60: =VLOOKUP($L$17,Tablas!$A$1062:$I$1124,6,TRUE)+(60/4)+50 -> 2399.79125 | L60: =VLOOKUP($L$17,Tablas!$A$1062:$I$1124,7,TRUE)+(60/4)+50 -> 1668.03 | M60: =VLOOKUP($L$17,Tablas!$A$1062:$I$1124,8,TRUE)+(60/4)+50 -> 1544.1975 | N60: =VLOOKUP($L$17,Tablas!$A$1062:$I$1124,9,TRUE)+(60/4)+50 -> 1415.6625
F61: Prima de Cónyuge | H61: =IF($J$17=1,0,(VLOOKUP($L$19,Tablas!$A$1062:$I$1124,3,TRUE))) -> 0 | I61: =IF($J$17=1,0,(VLOOKUP($L$19,Tablas!$A$1062:$I$1124,4,TRUE))) -> 0 | J61: =IF($J$17=1,0,(VLOOKUP($L$19,Tablas!$A$1062:$I$1124,5,TRUE))) -> 0 | K61: =IF($J$17=1,0,(VLOOKUP($L$19,Tablas!$A$1062:$I$1124,6,TRUE))) -> 0 | L61: =IF($J$17=1,0,(VLOOKUP($L$19,Tablas!$A$1062:$I$1124,7,TRUE))) -> 0 | M61: =IF($J$17=1,0,(VLOOKUP($L$19,Tablas!$A$1062:$I$1124,8,TRUE))) -> 0 | N61: =IF($J$17=1,0,(VLOOKUP($L$19,Tablas!$A$1062:$I$1124,9,TRUE))) -> 0
F62: Primas Hijos : | H62: =IF($J$19=0,0,(VLOOKUP($J$19,Tablas!$A$1125:$I$1127,3,TRUE))) -> 0 | I62: =IF($J$19=0,0,(VLOOKUP($J$19,Tablas!$A$1125:$I$1127,4,TRUE))) -> 0 | J62: =IF($J$19=0,0,(VLOOKUP($J$19,Tablas!$A$1125:$I$1127,5,TRUE))) -> 0 | K62: =IF($J$19=0,0,(VLOOKUP($J$19,Tablas!$A$1125:$I$1127,6,TRUE))) -> 0 | L62: =IF($J$19=0,0,(VLOOKUP($J$19,Tablas!$A$1125:$I$1127,7,TRUE))) -> 0 | M62: =IF($J$19=0,0,(VLOOKUP($J$19,Tablas!$A$1125:$I$1127,8,TRUE))) -> 0 | N62: =IF($J$19=0,0,(VLOOKUP($J$19,Tablas!$A$1125:$I$1127,9,TRUE))) -> 0
F63: TOTAL PRIMA NETA : | H63: =SUM(H60:H62) -> 3352.57 | I63: =SUM(I60:I62) -> 2933.26375 | J63: =SUM(J60:J62) -> 2603.04375 | K63: =SUM(K60:K62) -> 2399.79125 | L63: =SUM(L60:L62) -> 1668.03 | M63: =SUM(M60:M62) -> 1544.1975 | N63: 1415.6625
F64: Costo Administrativo Anual : | H64: 0 | I64: 0 | J64: 0 | K64: 0 | L64: 0 | M64: - | N64: -
F65: Contrib. 3.5% Super. Bancos : | H65: =+H63*3.5% -> 117.33995 | I65: =+I63*3.5% -> 102.6642313 | J65: 91.10653125 | K65: 83.99269375 | L65: 58.38105 | M65: 54.0469125 | N65: 49.5481875
F66: Contrib 0.5% Seg.Soc.Campes.: | H66: =+H63*0.5% -> 16.76285 | I66: =+I63*0.5% -> 14.66631875 | J66: 13.01521875 | K66: 11.99895625 | L66: 8.34015 | M66: 7.7209875 | N66: 7.0783125
F67: TOTAL Primer Cuota : | H67: =SUM(H63:H66) -> 3486.6728 | I67: =SUM(I63:I66) -> 3050.5943 | J67: =SUM(J63:J66) -> 2707.1655 | K67: =SUM(K63:K66) -> 2495.7829 | L67: =SUM(L63:L66) -> 1734.7512 | M67: =SUM(M63:M66) -> 1605.9654 | N67: 1472.289
F68: Valor Cuota Trimestral 2 a 4: | H68: =(H63 + H65 + H66)-52 -> 3434.6728 | I68: =(I63 + I65 + I66)-52 -> 2998.5943 | J68: =(J63 + J65 + J66)-52 -> 2655.1655 | K68: =(K63 + K65 + K66)-52 -> 2443.7829 | L68: =(L63 + L65 + L66)-52 -> 1682.7512 | M68: =(M63 + M65 + M66)-52 -> 1553.9654 | N68: 1420.289
F69: Tarifas en US $ - Válidas desde el 1ro. de enero de 2022
F71: Este presupuesto solamente tiene carácter informativo y en ningún momento expresa compromiso legal para suministrarle cobertura de seguro. La emisión de una póliza de seguro Bupa está sujeta a todas las evaluaciones de riesgo por parte de Bupa y a la recepción de todos los pagos de prima requeridos.
A81: RED DE PROVEEDORES
A82: La Red para el producto Essential 1000 ofrece cobertura en Latinoamérica, el Caribe y los Estados Unidos de América. Sin embargo, ni la Compañía, ni USA Medical Services, ni ninguna de sus filiales o subsidiarias pertinentes relacionadas participarán en transacciones con cualquier parte o país donde dichas transacciones estén prohibidas por las leyes de los Estados Unidos de América. Por favor comuníquese con la Compañía para obtener más información sobre esta restricción.

Sheet Essential 500
C11: Cotización de Seguro Médico | H11: Cotización de Seguro Médico Internacional: BUPA ESSENTIAL 500
A13: RESUMEN DE BENEFICIOS | G13: Nombre del asegurado : | H13: =+'INGRESO DE DATOS'!$D$15 -> NOMBRE EL AGENTE
G15: Broker / Agente : | H15: =+'INGRESO DE DATOS'!$D$26 -> NOMBRE DE LA AGENCIA
I17: Número de adultos en la póliza: | J17: =+'INGRESO DE DATOS'!$G$17 -> 1 | K17: Edad de Titular : | L17: =+'INGRESO DE DATOS'!$G$19 -> 68
I19: Número hijos (menos 24 años): | J19: =+'INGRESO DE DATOS'!$J$17 -> 0 | K19: Edad de Cónyuge: | L19: =+'INGRESO DE DATOS'!$J$19 -> 46
I21: Fecha cotización: | J21: =+TODAY() -> 2022-01-03 | K21: Zona de cotización: | L21: ='INGRESO DE DATOS'!G21 -> Guayaquil/Santa Elena
F23: Deducibles | H23: PLAN 1 | I23: PLAN 2 | J23: PLAN 3 | K23: PLAN 4 | L23: PLAN 5 | M23: PLAN 6 | N23: PLAN 7
F24: Dentro del pais de residencia | H24: 250 | I24: 500 | J24: 1000 | K24: 2000 | L24: 5000 | M24: 10000 | N24: 20000
F25: Fuera del pais de residencia | H25: 500 | I25: 1000 | J25: 2000 | K25: 4000 | L25: 5000 | M25: 10000 | N25: 20000
F27: Tarifas Mensuales
F28: Prima de Titular : | H28: =VLOOKUP($L$17,Tablas!$A$76:$G$138,3,TRUE)+(60/12)+50 -> 974.9916667 | I28: =VLOOKUP($L$17,Tablas!$A$76:$G$138,4,TRUE)+(60/12)+50 -> 854.77 | J28: =VLOOKUP($L$17,Tablas!$A$76:$G$138,5,TRUE)+(60/12)+50 -> 784.4566667 | K28: =VLOOKUP($L$17,Tablas!$A$76:$G$138,6,TRUE)+(60/12)+50 -> 725.8916667 | L28: =VLOOKUP($L$17,Tablas!$A$76:$G$138,7,TRUE)+(60/12)+50 -> 538.7133333 | M28: =VLOOKUP($L$17,Tablas!$A$76:$I$138,8,TRUE)+(60/12)+50 -> 493.045 | N28: =VLOOKUP($L$17,Tablas!$A$76:$I$138,9,TRUE)+(60/12)+50 -> 374.59
F29: Prima de Cónyuge | H29: =IF($J$17=1,0,(VLOOKUP($L$19,Tablas!$A$76:$G$138,3,TRUE))) -> 0 | I29: =IF($J$17=1,0,(VLOOKUP($L$19,Tablas!$A$76:$G$138,4,TRUE))) -> 0 | J29: =IF($J$17=1,0,(VLOOKUP($L$19,Tablas!$A$76:$G$138,5,TRUE))) -> 0 | K29: =IF($J$17=1,0,(VLOOKUP($L$19,Tablas!$A$76:$G$138,6,TRUE))) -> 0 | L29: =IF($J$17=1,0,(VLOOKUP($L$19,Tablas!$A$76:$G$138,7,TRUE))) -> 0 | M29: =IF($J$17=1,0,(VLOOKUP($L$19,Tablas!$A$76:$I$138,8,TRUE))) -> 0 | N29: =IF($J$17=1,0,(VLOOKUP($L$19,Tablas!$A$76:$I$138,9,TRUE))) -> 0
F30: Primas Hijos : | H30: =IF($J$19=0,0,(VLOOKUP($J$19,Tablas!$A$139:$G$141,3,TRUE))) -> 0 | I30: =IF($J$19=0,0,(VLOOKUP($J$19,Tablas!$A$139:$G$141,4,TRUE))) -> 0 | J30: =IF($J$19=0,0,(VLOOKUP($J$19,Tablas!$A$139:$G$141,5,TRUE))) -> 0 | K30: =IF($J$19=0,0,(VLOOKUP($J$19,Tablas!$A$139:$G$141,6,TRUE))) -> 0 | L30: =IF($J$19=0,0,(VLOOKUP($J$19,Tablas!$A$139:$G$141,7,TRUE))) -> 0 | M30: =IF($J$19=0,0,(VLOOKUP($J$19,Tablas!$A$139:$I$141,8,TRUE))) -> 0 | N30: =IF($J$19=0,0,(VLOOKUP($J$19,Tablas!$A$139:$I$141,9,TRUE))) -> 0
F31: TOTAL PRIMA NETA : | H31: =SUM(H28:H30) -> 974.9916667 | I31: =SUM(I28:I30) -> 854.77 | J31: =SUM(J28:J30) -> 784.4566667 | K31: =SUM(K28:K30) -> 725.8916667 | L31: =SUM(L28:L30) -> 538.7133333 | M31: =SUM(M28:M30) -> 493.045 | N31: 374.59
F32: Costo Administrativo Anual : | H32: 0 | I32: 0 | J32: 0 | K32: 0 | L32: 0 | M32: 0 | N32: 0
F33: Contrib. 3.5% Super. Bancos : | H33: =+H31*3.5% -> 34.12470833 | I33: =+I31*3.5% -> 29.91695 | J33: 27.45598333 | K33: 25.40620833 | L33: 18.85496667 | M33: 17.256575 | N33: 13.11065
F34: Contrib 0.5% Seg.Soc.Campes.: | H34: =+H31*0.5% -> 4.874958333 | I34: =+I31*0.5% -> 4.27385 | J34: 3.922283333 | K34: 3.629458333 | L34: 2.693566667 | M34: 2.465225 | N34: 1.87295
F35: TOTAL Primer Cuota : | H35: =SUM(H31:H34) -> 1013.991333 | I35: =SUM(I31:I34) -> 888.9608 | J35: =SUM(J31:J34) -> 815.8349333 | K35: =SUM(K31:K34) -> 754.9273333 | L35: =SUM(L31:L34) -> 560.2618667 | M35: =SUM(M31:M34) -> 512.7668 | N35: 389.5736
F36: Valor Cuota Mensual 2 a 12 : | H36: =(H31 + H33 + H34)-52 -> 961.9913333 | I36: =(I31 + I33 + I34)-52 -> 836.9608 | J36: =(J31 + J33 + J34)-52 -> 763.8349333 | K36: =(K31 + K33 + K34)-52 -> 702.9273333 | L36: =(L31 + L33 + L34)-52 -> 508.2618667 | M36: =(M31 + M33 + M34)-52 -> 460.7668 | N36: 337.5736
F38: Tarifas Anuales
F39: Prima de Titular : | H39: =VLOOKUP($L$17,Tablas!$A$6:$G$68,3,TRUE)+(60)+50 -> 10525 | I39: =VLOOKUP($L$17,Tablas!$A$6:$G$68,4,TRUE)+(60)+50 -> 9164 | J39: =VLOOKUP($L$17,Tablas!$A$6:$G$68,5,TRUE)+(60)+50 -> 8368 | K39: =VLOOKUP($L$17,Tablas!$A$6:$G$68,6,TRUE)+(60)+50 -> 7705 | L39: =VLOOKUP($L$17,Tablas!$A$6:$G$68,7,TRUE)+(60)+50 -> 5586 | M39: =VLOOKUP($L$17,Tablas!$A$6:$I$68,8,TRUE)+(60)+50 -> 5069 | N39: =VLOOKUP($L$17,Tablas!$A$6:$I$68,9,TRUE)+(60)+50 -> 3728
F40: Prima de Cónyuge | H40: =IF($J$17=1,0,(VLOOKUP($L$19,Tablas!$A$6:$G$68,3,TRUE))) -> 0 | I40: =IF($J$17=1,0,(VLOOKUP($L$19,Tablas!$A$6:$G$68,4,TRUE))) -> 0 | J40: =IF($J$17=1,0,(VLOOKUP($L$19,Tablas!$A$6:$G$68,5,TRUE))) -> 0 | K40: =IF($J$17=1,0,(VLOOKUP($L$19,Tablas!$A$6:$G$68,6,TRUE))) -> 0 | L40: =IF($J$17=1,0,(VLOOKUP($L$19,Tablas!$A$6:$G$68,7,TRUE))) -> 0 | M40: =IF($J$17=1,0,(VLOOKUP($L$19,Tablas!$A$6:$I$68,8,TRUE))) -> 0 | N40: =IF($J$17=1,0,(VLOOKUP($L$19,Tablas!$A$6:$I$68,9,TRUE))) -> 0
F41: Primas Hijos : | H41: =IF($J$19=0,0,(VLOOKUP($J$19,Tablas!$A$69:$G$71,3,TRUE))) -> 0 | I41: =IF($J$19=0,0,(VLOOKUP($J$19,Tablas!$A$69:$G$71,4,TRUE))) -> 0 | J41: =IF($J$19=0,0,(VLOOKUP($J$19,Tablas!$A$69:$G$71,5,TRUE))) -> 0 | K41: =IF($J$19=0,0,(VLOOKUP($J$19,Tablas!$A$69:$G$71,6,TRUE))) -> 0 | L41: =IF($J$19=0,0,(VLOOKUP($J$19,Tablas!$A$69:$G$71,7,TRUE))) -> 0 | M41: =IF($J$19=0,0,(VLOOKUP($J$19,Tablas!$A$69:$I$71,8,TRUE))) -> 0 | N41: =IF($J$19=0,0,(VLOOKUP($J$19,Tablas!$A$69:$I$71,9,TRUE))) -> 0
F42: TOTAL PRIMA NETA : | H42: =SUM(H39:H41) -> 10525 | I42: =SUM(I39:I41) -> 9164 | J42: 8368 | K42: 7705 | L42: 5586 | M42: =SUM(M39:M41) -> 5069 | N42: =SUM(N39:N41) -> 3728
F43: Costo Administrativo Anual : | H43: 0 | I43: 0 | J43: 0 | K43: 0 | L43: 0 | M43: - | N43: -
F44: Contrib. 3.5% Super. Bancos : | H44: =+H42*3.5% -> 368.375 | I44: =+I42*3.5% -> 320.74 | J44: 292.88 | K44: 269.675 | L44: 195.51 | M44: =+M42*3.5% -> 177.415 | N44: =+N42*3.5% -> 130.48
F45: Contrib 0.5% Seg.Soc.Campes.: | H45: =+H42*0.5% -> 52.625 | I45: =+I42*0.5% -> 45.82 | J45: 41.84 | K45: 38.525 | L45: 27.93 | M45: =+M42*0.5% -> 25.345 | N45: 18.64
F46: GRAN TOTAL ANUAL : | H46: =SUM(H42:H45) -> 10946 | I46: =SUM(I42:I45) -> 9530.56 | J46: =SUM(J42:J45) -> 8702.72 | K46: =SUM(K42:K45) -> 8013.2 | L46: =SUM(L42:L45) -> 5809.44 | M46: =SUM(M42:M45) -> 5271.76 | N46: =SUM(N42:N45) -> 3877.12
F48: Tarifas Semestrales
F49: Prima de Titular : | H49: =VLOOKUP($L$17,Tablas!$A$493:$G$555,3,TRUE)+(60/2)+50 -> 5443.725 | I49: =VLOOKUP($L$17,Tablas!$A$493:$G$555,4,TRUE)+(60/2)+50 -> 4742.81 | J49: =VLOOKUP($L$17,Tablas!$A$493:$G$555,5,TRUE)+(60/2)+50 -> 4332.87 | K49: =VLOOKUP($L$17,Tablas!$A$493:$G$555,6,TRUE)+(60/2)+50 -> 3991.425 | L49: =VLOOKUP($L$17,Tablas!$A$493:$G$555,7,TRUE)+(60/2)+50 -> 2900.14 | M49: =VLOOKUP($L$17,Tablas!$A$493:$I$555,8,TRUE)+(60/2)+50 -> 2633.885 | N49: =VLOOKUP($L$17,Tablas!$A$493:$I$555,9,TRUE)+(60/2)+50 -> 1943.27
F50: Prima de Cónyuge | H50: =IF($J$17=1,0,(VLOOKUP($L$19,Tablas!$A$493:$G$555,3,TRUE))) -> 0 | I50: =IF($J$17=1,0,(VLOOKUP($L$19,Tablas!$A$493:$G$555,4,TRUE))) -> 0 | J50: =IF($J$17=1,0,(VLOOKUP($L$19,Tablas!$A$493:$G$555,5,TRUE))) -> 0 | K50: =IF($J$17=1,0,(VLOOKUP($L$19,Tablas!$A$493:$G$555,6,TRUE))) -> 0 | L50: =IF($J$17=1,0,(VLOOKUP($L$19,Tablas!$A$493:$G$555,7,TRUE))) -> 0 | M50: =IF($J$17=1,0,(VLOOKUP($L$19,Tablas!$A$493:$I$555,8,TRUE))) -> 0 | N50: =IF($J$17=1,0,(VLOOKUP($L$19,Tablas!$A$493:$I$555,9,TRUE))) -> 0
F51: Primas Hijos : | H51: =IF($J$19=0,0,(VLOOKUP($J$19,Tablas!$A$556:$G$558,3,TRUE))) -> 0 | I51: =IF($J$19=0,0,(VLOOKUP($J$19,Tablas!$A$556:$G$558,4,TRUE))) -> 0 | J51: =IF($J$19=0,0,(VLOOKUP($J$19,Tablas!$A$556:$G$558,5,TRUE))) -> 0 | K51: =IF($J$19=0,0,(VLOOKUP($J$19,Tablas!$A$556:$G$558,6,TRUE))) -> 0 | L51: =IF($J$19=0,0,(VLOOKUP($J$19,Tablas!$A$556:$G$558,7,TRUE))) -> 0 | M51: =IF($J$19=0,0,(VLOOKUP($J$19,Tablas!$A$556:$I$558,8,TRUE))) -> 0 | N51: =IF($J$19=0,0,(VLOOKUP($J$19,Tablas!$A$556:$I$558,9,TRUE))) -> 0
F52: TOTAL PRIMA NETA : | H52: =SUM(H49:H51) -> 5443.725 | I52: =SUM(I49:I51) -> 4742.81 | J52: =SUM(J49:J51) -> 4332.87 | K52: =SUM(K49:K51) -> 3991.425 | L52: =SUM(L49:L51) -> 2900.14 | M52: =SUM(M49:M51) -> 2633.885 | N52: 1943.27
F53: Costo Administrativo Anual : | H53: 0 | I53: 0 | J53: 0 | K53: 0 | L53: 0 | M53: 1 | N53: 2
F54: Contrib. 3.5% Super. Bancos : | H54: =+H52*3.5% -> 190.530375 | I54: =+I52*3.5% -> 165.99835 | J54: 151.65045 | K54: 139.699875 | L54: 101.5049 | M54: =+M52*3.5% -> 92.185975 | N54: 68.01445
F55: Contrib 0.5% Seg.Soc.Campes.: | H55: =+H52*0.5% -> 27.218625 | I55: =+I52*0.5% -> 23.71405 | J55: 21.66435 | K55: 19.957125 | L55: 14.5007 | M55: =+M52*0.5% -> 13.169425 | N55: 9.71635
F56: TOTAL Primer Cuota : | H56: =SUM(H52:H55) -> 5661.474 | I56: =SUM(I52:I55) -> 4932.5224 | J56: =SUM(J52:J55) -> 4506.1848 | K56: =SUM(K52:K55) -> 4151.082 | L56: =SUM(L52:L55) -> 3016.1456 | M56: =SUM(M52:M55) -> 2740.2404 | N56: 2023.0008
F57: Valor Segunda Cuota : | H57: =(H52 + H54 + H55)-52 -> 5609.474 | I57: =(I52 + I54 + I55)-52 -> 4880.5224 | J57: =(J52 + J54 + J55)-52 -> 4454.1848 | K57: =(K52 + K54 + K55)-52 -> 4099.082 | L57: =(L52 + L54 + L55)-52 -> 2964.1456 | M57: =(M52 + M54 + M55)-52 -> 2687.2404 | N57: 1969.0008
F59: Tarifas Trimestrales
F60: Prima de Titular : | H60: =VLOOKUP($L$17,Tablas!$A$706:$G$768,3,TRUE)+(60/4)+50 -> 2785.91875 | I60: =VLOOKUP($L$17,Tablas!$A$706:$G$768,4,TRUE)+(60/4)+50 -> 2430.3575 | J60: =VLOOKUP($L$17,Tablas!$A$706:$G$768,5,TRUE)+(60/4)+50 -> 2222.4025 | K60: =VLOOKUP($L$17,Tablas!$A$706:$G$768,6,TRUE)+(60/4)+50 -> 2049.19375 | L60: =VLOOKUP($L$17,Tablas!$A$706:$G$768,7,TRUE)+(60/4)+50 -> 1495.605 | M60: =VLOOKUP($L$17,Tablas!$A$706:$I$768,8,TRUE)+(60/4)+50 -> 1360.53875 | N60: =VLOOKUP($L$17,Tablas!$A$706:$I$768,9,TRUE)+(60/4)+50 -> 1010.2025
F61: Prima de Cónyuge | H61: =IF($J$17=1,0,(VLOOKUP($L$19,Tablas!$A$706:$G$768,3,TRUE))) -> 0 | I61: =IF($J$17=1,0,(VLOOKUP($L$19,Tablas!$A$706:$G$768,4,TRUE))) -> 0 | J61: =IF($J$17=1,0,(VLOOKUP($L$19,Tablas!$A$706:$G$768,5,TRUE))) -> 0 | K61: =IF($J$17=1,0,(VLOOKUP($L$19,Tablas!$A$706:$G$768,6,TRUE))) -> 0 | L61: =IF($J$17=1,0,(VLOOKUP($L$19,Tablas!$A$706:$G$768,7,TRUE))) -> 0 | M61: =IF($J$17=1,0,(VLOOKUP($L$19,Tablas!$A$706:$I$768,8,TRUE))) -> 0 | N61: =IF($J$17=1,0,(VLOOKUP($L$19,Tablas!$A$706:$I$768,9,TRUE))) -> 0
F62: Primas Hijos : | H62: =IF($J$19=0,0,(VLOOKUP($J$19,Tablas!$A$769:$G$771,3,TRUE))) -> 0 | I62: =IF($J$19=0,0,(VLOOKUP($J$19,Tablas!$A$769:$G$771,4,TRUE))) -> 0 | J62: =IF($J$19=0,0,(VLOOKUP($J$19,Tablas!$A$769:$G$771,5,TRUE))) -> 0 | K62: =IF($J$19=0,0,(VLOOKUP($J$19,Tablas!$A$769:$G$771,6,TRUE))) -> 0 | L62: =IF($J$19=0,0,(VLOOKUP($J$19,Tablas!$A$769:$G$771,7,TRUE))) -> 0 | M62: =IF($J$19=0,0,(VLOOKUP($J$19,Tablas!$A$769:$I$771,8,TRUE))) -> 0 | N62: =IF($J$19=0,0,(VLOOKUP($J$19,Tablas!$A$769:$I$771,9,TRUE))) -> 0
F63: TOTAL PRIMA NETA : | H63: =SUM(H60:H62) -> 2785.91875 | I63: =SUM(I60:I62) -> 2430.3575 | J63: =SUM(J60:J62) -> 2222.4025 | K63: =SUM(K60:K62) -> 2049.19375 | L63: =SUM(L60:L62) -> 1495.605 | M63: =SUM(M60:M62) -> 1360.53875 | N63: 1010.2025
F64: Costo Administrativo Anual : | H64: 0 | I64: 0 | J64: 0 | K64: 0 | L64: 0 | M64: 0 | N64: 0
F65: Contrib. 3.5% Super. Bancos : | H65: =+H63*3.5% -> 97.50715625 | I65: =+I63*3.5% -> 85.0625125 | J65: 77.7840875 | K65: 71.72178125 | L65: 52.346175 | M65: =+M63*3.5% -> 47.61885625 | N65: 35.3570875
F66: Contrib 0.5% Seg.Soc.Campes.: | H66: =+H63*0.5% -> 13.92959375 | I66: =+I63*0.5% -> 12.1517875 | J66: 11.1120125 | K66: 10.24596875 | L66: 7.478025 | M66: =+M63*0.5% -> 6.80269375 | N66: 5.0510125
F67: TOTAL Primer Cuota : | H67: =SUM(H63:H66) -> 2897.3555 | I67: =SUM(I63:I66) -> 2527.5718 | J67: =SUM(J63:J66) -> 2311.2986 | K67: =SUM(K63:K66) -> 2131.1615 | L67: =SUM(L63:L66) -> 1555.4292 | M67: =SUM(M63:M66) -> 1414.9603 | N67: 1050.6106
F68: Valor Cuota Trimestral 2 a 4: | H68: =(H63 + H65 + H66)-52 -> 2845.3555 | I68: =(I63 + I65 + I66)-52 -> 2475.5718 | J68: =(J63 + J65 + J66)-52 -> 2259.2986 | K68: =(K63 + K65 + K66)-52 -> 2079.1615 | L68: =(L63 + L65 + L66)-52 -> 1503.4292 | M68: =(M63 + M65 + M66)-52 -> 1362.9603 | N68: 998.6106
F69: Tarifas en US $ - Válidas desde el 1ro. de enero de 2022
F71: Este presupuesto solamente tiene carácter informativo y en ningún momento expresa compromiso legal para suministrarle cobertura de seguro. La emisión de una póliza de seguro Bupa está sujeta a todas las evaluaciones de riesgo por parte de Bupa y a la recepción de todos los pagos de prima requeridos.
A81: RED DE PROVEEDORES
A82: La Red para el producto Essential 500 ofrece cobertura en Ecuador, Latinoamérica y el Caribe. Sin embargo, ni la Compañía, ni USA Medical Services, ni ninguna de sus filiales o subsidiarias pertinentes relacionadas participarán en transacciones con cualquier parte o país donde dichas transacciones estén prohibidas por las leyes de los Estados Unidos de América. Por favor comuníquese con la Compañía para obtener más información sobre esta restricción.

Sheet Essential 100
C11: Cotización de Seguro Médico - Essential 100 | H11: Cotización de Seguro Médico Internacional: BUPA ESSENTIAL 100
A13: RESUMEN DE BENEFICIOS | G13: Nombre del asegurado : | H13: =+'INGRESO DE DATOS'!$D$15 -> NOMBRE EL AGENTE
G15: Broker / Agente : | H15: =+'INGRESO DE DATOS'!$D$26 -> NOMBRE DE LA AGENCIA
I17: Número de adultos en la póliza: | J17: =+'INGRESO DE DATOS'!$G$17 -> 1 | K17: Edad de Titular : | L17: =+'INGRESO DE DATOS'!$G$19 -> 68
I19: Número hijos (menos 24 años): | J19: =+'INGRESO DE DATOS'!$J$17 -> 0 | K19: Edad de Cónyuge: | L19: =+'INGRESO DE DATOS'!$J$19 -> 46
I21: Fecha cotización: | J21: =+TODAY() -> 2022-01-03 | K21: Zona de cotización: | L21: ='INGRESO DE DATOS'!G21 -> Guayaquil/Santa Elena
F23: Deducibles | H23: PLAN 1 | I23: PLAN 2 | J23: PLAN 3 | K23: PLAN 4 | L23: PLAN 5
F24: Dentro del pais de residencia | H24: 100 | I24: 200 | J24: 500 | K24: 1000 | L24: 2000
F25: Fuera del pais de residencia | H25: 100 | I25: 200 | J25: 500 | K25: 1000 | L25: 2000
F27: Tarifas Mensuales
F28: Prima de Titular : | H28: =VLOOKUP($L$17,Tablas!$A$217:$G$279,3,TRUE)+(60/12)+50 -> 1142.03 | I28: =VLOOKUP($L$17,Tablas!$A$217:$G$279,4,TRUE)+(60/12)+50 -> 1119.946667 | J28: =VLOOKUP($L$17,Tablas!$A$217:$G$279,5,TRUE)+(60/12)+50 -> 1058.731667 | K28: =VLOOKUP($L$17,Tablas!$A$217:$G$279,6,TRUE)+(60/12)+50 -> 970.1333333 | L28: =VLOOKUP($L$17,Tablas!$A$217:$G$279,7,TRUE)+(60/12)+50 -> 897.0816667
F29: Prima de Cónyuge | H29: =IF($J$17=1,0,(VLOOKUP($L$19,Tablas!$A$217:$G$279,3,TRUE))) -> 0 | I29: =IF($J$17=1,0,(VLOOKUP($L$19,Tablas!$A$217:$G$279,4,TRUE))) -> 0 | J29: =IF($J$17=1,0,(VLOOKUP($L$19,Tablas!$A$217:$G$279,5,TRUE))) -> 0 | K29: =IF($J$17=1,0,(VLOOKUP($L$19,Tablas!$A$217:$G$279,6,TRUE))) -> 0 | L29: =IF($J$17=1,0,(VLOOKUP($L$19,Tablas!$A$217:$G$279,7,TRUE))) -> 0
F30: Primas Hijos : | H30: =IF($J$19=0,0,(VLOOKUP($J$19,Tablas!$A$280:$G$282,3,TRUE))) -> 0 | I30: =IF($J$19=0,0,(VLOOKUP($J$19,Tablas!$A$280:$G$282,4,TRUE))) -> 0 | J30: =IF($J$19=0,0,(VLOOKUP($J$19,Tablas!$A$280:$G$282,5,TRUE))) -> 0 | K30: =IF($J$19=0,0,(VLOOKUP($J$19,Tablas!$A$280:$G$282,6,TRUE))) -> 0 | L30: =IF($J$19=0,0,(VLOOKUP($J$19,Tablas!$A$280:$G$282,7,TRUE))) -> 0
F31: TOTAL PRIMA NETA : | H31: =SUM(H28:H30) -> 1142.03 | I31: =SUM(I28:I30) -> 1119.946667 | J31: =SUM(J28:J30) -> 1058.731667 | K31: =SUM(K28:K30) -> 970.1333333 | L31: =SUM(L28:L30) -> 897.0816667
F32: Costo Administrativo Anual : | H32: 0 | I32: 0 | J32: 0 | K32: 0 | L32: 0
F33: Contrib. 3.5% Super. Bancos : | H33: =+H31*3.5% -> 39.97105 | I33: =+I31*3.5% -> 39.19813333 | J33: 37.05560833 | K33: 33.95466667 | L33: 31.39785833
F34: Contrib 0.5% Seg.Soc.Campes.: | H34: =+H31*0.5% -> 5.71015 | I34: =+I31*0.5% -> 5.599733333 | J34: 5.293658333 | K34: 4.850666667 | L34: 4.485408333
F35: TOTAL Primer Cuota : | H35: =SUM(H31:H34) -> 1187.7112 | I35: =SUM(I31:I34) -> 1164.744533 | J35: =SUM(J31:J34) -> 1101.080933 | K35: =SUM(K31:K34) -> 1008.938667 | L35: =SUM(L31:L34) -> 932.9649333
F36: Valor Cuota Mensual 2 a 12 : | H36: =(H31 + H33 + H34)-52 -> 1135.7112 | I36: =(I31 + I33 + I34)-52 -> 1112.744533 | J36: =(J31 + J33 + J34)-52 -> 1049.080933 | K36: =(K31 + K33 + K34)-52 -> 956.9386667 | L36: =(L31 + L33 + L34)-52 -> 880.9649333
F38: Tarifas Anuales
F39: Prima de Titular : | H39: =VLOOKUP($L$17,Tablas!$A$147:$G$209,3,TRUE)+(60)+50 -> 12416 | I39: =VLOOKUP($L$17,Tablas!$A$147:$G$209,4,TRUE)+(60)+50 -> 12166 | J39: =VLOOKUP($L$17,Tablas!$A$147:$G$209,5,TRUE)+(60)+50 -> 11473 | K39: =VLOOKUP($L$17,Tablas!$A$147:$G$209,6,TRUE)+(60)+50 -> 10470 | L39: =VLOOKUP($L$17,Tablas!$A$147:$G$209,7,TRUE)+(60)+50 -> 9643
F40: Prima de Cónyuge | H40: =IF($J$17=1,0,(VLOOKUP($L$19,Tablas!$A$147:$G$209,3,TRUE))) -> 0 | I40: =IF($J$17=1,0,(VLOOKUP($L$19,Tablas!$A$147:$G$209,4,TRUE))) -> 0 | J40: =IF($J$17=1,0,(VLOOKUP($L$19,Tablas!$A$147:$G$209,5,TRUE))) -> 0 | K40: =IF($J$17=1,0,(VLOOKUP($L$19,Tablas!$A$147:$G$209,6,TRUE))) -> 0 | L40: =IF($J$17=1,0,(VLOOKUP($L$19,Tablas!$A$147:$G$209,7,TRUE))) -> 0
F41: Primas Hijos : | H41: =IF($J$19=0,0,(VLOOKUP($J$19,Tablas!$A$210:$G$212,3,TRUE))) -> 0 | I41: =IF($J$19=0,0,(VLOOKUP($J$19,Tablas!$A$210:$G$212,4,TRUE))) -> 0 | J41: =IF($J$19=0,0,(VLOOKUP($J$19,Tablas!$A$210:$G$212,5,TRUE))) -> 0 | K41: =IF($J$19=0,0,(VLOOKUP($J$19,Tablas!$A$210:$G$212,6,TRUE))) -> 0 | L41: =IF($J$19=0,0,(VLOOKUP($J$19,Tablas!$A$210:$G$212,7,TRUE))) -> 0
F42: TOTAL PRIMA NETA : | H42: =SUM(H39:H41) -> 12416 | I42: =SUM(I39:I41) -> 12166 | J42: 11473 | K42: 10470 | L42: 9643
F43: Costo Administrativo Anual : | H43: 0 | I43: 0 | J43: 0 | K43: 0 | L43: 0
F44: Contrib. 3.5% Super. Bancos : | H44: =+H42*3.5% -> 434.56 | I44: =+I42*3.5% -> 425.81 | J44: 401.555 | K44: 366.45 | L44: 337.505
F45: Contrib 0.5% Seg.Soc.Campes.: | H45: =+H42*0.5% -> 62.08 | I45: =+I42*0.5% -> 60.83 | J45: 57.365 | K45: 52.35 | L45: 48.215
F46: GRAN TOTAL ANUAL : | H46: =SUM(H42:H45) -> 12912.64 | I46: =SUM(I42:I45) -> 12652.64 | J46: =SUM(J42:J45) -> 11931.92 | K46: =SUM(K42:K45) -> 10888.8 | L46: =SUM(L42:L45) -> 10028.72
F48: Tarifas Semestrales
F49: Prima de Titular : | H49: =VLOOKUP($L$17,Tablas!$A$564:$G$626,3,TRUE)+(60/2)+50 -> 6417.59 | I49: =VLOOKUP($L$17,Tablas!$A$564:$G$626,4,TRUE)+(60/2)+50 -> 6288.84 | J49: =VLOOKUP($L$17,Tablas!$A$564:$G$626,5,TRUE)+(60/2)+50 -> 5931.945 | K49: =VLOOKUP($L$17,Tablas!$A$564:$G$626,6,TRUE)+(60/2)+50 -> 5415.4 | L49: =VLOOKUP($L$17,Tablas!$A$564:$G$626,7,TRUE)+(60/2)+50 -> 4989.495
F50: Prima de Cónyuge | H50: =IF($J$17=1,0,(VLOOKUP($L$19,Tablas!$A$564:$G$626,3,TRUE))) -> 0 | I50: =IF($J$17=1,0,(VLOOKUP($L$19,Tablas!$A$564:$G$626,4,TRUE))) -> 0 | J50: =IF($J$17=1,0,(VLOOKUP($L$19,Tablas!$A$564:$G$626,5,TRUE))) -> 0 | K50: =IF($J$17=1,0,(VLOOKUP($L$19,Tablas!$A$564:$G$626,6,TRUE))) -> 0 | L50: =IF($J$17=1,0,(VLOOKUP($L$19,Tablas!$A$564:$G$626,7,TRUE))) -> 0
F51: Primas Hijos : | H51: =IF($J$19=0,0,(VLOOKUP($J$19,Tablas!$A$627:$G$629,3,TRUE))) -> 0 | I51: =IF($J$19=0,0,(VLOOKUP($J$19,Tablas!$A$627:$G$629,4,TRUE))) -> 0 | J51: =IF($J$19=0,0,(VLOOKUP($J$19,Tablas!$A$627:$G$629,5,TRUE))) -> 0 | K51: =IF($J$19=0,0,(VLOOKUP($J$19,Tablas!$A$627:$G$629,6,TRUE))) -> 0 | L51: =IF($J$19=0,0,(VLOOKUP($J$19,Tablas!$A$627:$G$629,7,TRUE))) -> 0
F52: TOTAL PRIMA NETA : | H52: =SUM(H49:H51) -> 6417.59 | I52: =SUM(I49:I51) -> 6288.84 | J52: =SUM(J49:J51) -> 5931.945 | K52: =SUM(K49:K51) -> 5415.4 | L52: =SUM(L49:L51) -> 4989.495
F53: Costo Administrativo Anual : | H53: 0 | I53: 0 | J53: 0 | K53: 0 | L53: 0
F54: Contrib. 3.5% Super. Bancos : | H54: =+H52*3.5% -> 224.61565 | I54: =+I52*3.5% -> 220.1094 | J54: 207.618075 | K54: 189.539 | L54: 174.632325
F55: Contrib 0.5% Seg.Soc.Campes.: | H55: =+H52*0.5% -> 32.08795 | I55: =+I52*0.5% -> 31.4442 | J55: 29.659725 | K55: 27.077 | L55: 24.947475
F56: TOTAL Primer Cuota : | H56: =SUM(H52:H55) -> 6674.2936 | I56: =SUM(I52:I55) -> 6540.3936 | J56: =SUM(J52:J55) -> 6169.2228 | K56: =SUM(K52:K55) -> 5632.016 | L56: =SUM(L52:L55) -> 5189.0748
F57: Valor Segunda Cuota : | H57: =(H52 + H54 + H55)-52 -> 6622.2936 | I57: =(I52 + I54 + I55)-52 -> 6488.3936 | J57: =(J52 + J54 + J55)-52 -> 6117.2228 | K57: =(K52 + K54 + K55)-52 -> 5580.016 | L57: =(L52 + L54 + L55)-52 -> 5137.0748
F59: Tarifas Trimestrales
F60: Prima de Titular : | H60: =VLOOKUP($L$17,Tablas!$A$777:$G$839,3,TRUE)+(60/4)+50 -> 3279.9425 | I60: =VLOOKUP($L$17,Tablas!$A$777:$G$839,4,TRUE)+(60/4)+50 -> 3214.63 | J60: =VLOOKUP($L$17,Tablas!$A$777:$G$839,5,TRUE)+(60/4)+50 -> 3033.58375 | K60: =VLOOKUP($L$17,Tablas!$A$777:$G$839,6,TRUE)+(60/4)+50 -> 2771.55 | L60: =VLOOKUP($L$17,Tablas!$A$777:$G$839,7,TRUE)+(60/4)+50 -> 2555.49625
F61: Prima de Cónyuge | H61: =IF($J$17=1,0,(VLOOKUP($L$19,Tablas!$A$777:$G$839,3,TRUE))) -> 0 | I61: =IF($J$17=1,0,(VLOOKUP($L$19,Tablas!$A$777:$G$839,4,TRUE))) -> 0 | J61: =IF($J$17=1,0,(VLOOKUP($L$19,Tablas!$A$777:$G$839,5,TRUE))) -> 0 | K61: =IF($J$17=1,0,(VLOOKUP($L$19,Tablas!$A$777:$G$839,6,TRUE))) -> 0 | L61: =IF($J$17=1,0,(VLOOKUP($L$19,Tablas!$A$777:$G$839,7,TRUE))) -> 0
F62: Primas Hijos : | H62: =IF($J$19=0,0,(VLOOKUP($J$19,Tablas!$A$840:$G$842,3,TRUE))) -> 0 | I62: =IF($J$19=0,0,(VLOOKUP($J$19,Tablas!$A$840:$G$842,4,TRUE))) -> 0 | J62: =IF($J$19=0,0,(VLOOKUP($J$19,Tablas!$A$840:$G$842,5,TRUE))) -> 0 | K62: =IF($J$19=0,0,(VLOOKUP($J$19,Tablas!$A$840:$G$842,6,TRUE))) -> 0 | L62: =IF($J$19=0,0,(VLOOKUP($J$19,Tablas!$A$840:$G$842,7,TRUE))) -> 0
F63: TOTAL PRIMA NETA : | H63: =SUM(H60:H62) -> 3279.9425 | I63: =SUM(I60:I62) -> 3214.63 | J63: =SUM(J60:J62) -> 3033.58375 | K63: =SUM(K60:K62) -> 2771.55 | L63: =SUM(L60:L62) -> 2555.49625
F64: Costo Administrativo Anual : | H64: 0 | I64: 0 | J64: 0 | K64: 0 | L64: 0
F65: Contrib. 3.5% Super. Bancos : | H65: =+H63*3.5% -> 114.7979875 | I65: =+I63*3.5% -> 112.51205 | J65: 106.1754313 | K65: 97.00425 | L65: 89.44236875
F66: Contrib 0.5% Seg.Soc.Campes.: | H66: =+H63*0.5% -> 16.3997125 | I66: =+I63*0.5% -> 16.07315 | J66: 15.16791875 | K66: 13.85775 | L66: 12.77748125
F67: TOTAL Primer Cuota : | H67: =SUM(H63:H66) -> 3411.1402 | I67: =SUM(I63:I66) -> 3343.2152 | J67: =SUM(J63:J66) -> 3154.9271 | K67: =SUM(K63:K66) -> 2882.412 | L67: =SUM(L63:L66) -> 2657.7161
F68: Valor Cuota Trimestral 2 a 4: | H68: =(H63 + H65 + H66)-52 -> 3359.1402 | I68: =(I63 + I65 + I66)-52 -> 3291.2152 | J68: =(J63 + J65 + J66)-52 -> 3102.9271 | K68: =(K63 + K65 + K66)-52 -> 2830.412 | L68: =(L63 + L65 + L66)-52 -> 2605.7161
F69: Tarifas en US $ - Válidas desde el 1ro. de enero de 2022
F71: Este presupuesto solamente tiene carácter informativo y en ningún momento expresa compromiso legal para suministrarle cobertura de seguro. La emisión de una póliza de seguro Bupa está sujeta a todas las evaluaciones de riesgo por parte de Bupa y a la recepción de todos los pagos de prima requeridos.
A84: RED DE PROVEEDORES
A85: La Red para el producto Essential 100 ofrece cobertura en Ecuador, Latinoamérica y el Caribe. Sin embargo, ni la Compañía, ni USA Medical Services, ni ninguna de sus filiales o subsidiarias pertinentes relacionadas participarán en transacciones con cualquier parte o país donde dichas transacciones estén prohibidas por las leyes de los Estados Unidos de América. Por favor comuníquese con la Compañía para obtener más información sobre esta restricción.

Sheet Essential 50
F11: Cotización de Seguro Médico Internacional: ESSENTIAL 50
A13: RESUMEN DE BENEFICIOS | G13: Nombre del asegurado : | H13: =+'INGRESO DE DATOS'!$D$15 -> NOMBRE EL AGENTE
G15: Broker / Agente : | H15: =+'INGRESO DE DATOS'!$D$26 -> NOMBRE DE LA AGENCIA
I17: Número de adultos en la póliza: | J17: =+'INGRESO DE DATOS'!$G$17 -> 1 | K17: Edad de Titular : | L17: =+'INGRESO DE DATOS'!$G$19 -> 68
I19: Número hijos (menos 24 años): | J19: =+'INGRESO DE DATOS'!$J$17 -> 0 | K19: Edad de Cónyuge: | L19: =+'INGRESO DE DATOS'!$J$19 -> 46
I21: Fecha cotización: | J21: =+TODAY() -> 2022-01-03 | K21: Zona de cotización: | L21: ='INGRESO DE DATOS'!G21 -> Guayaquil/Santa Elena
F23: Deducibles | H23: PLAN 1 | I23: PLAN 2 | J23: PLAN 3 | K23: PLAN 4 | L23: PLAN 5
F24: Dentro del pais de residencia | H24: 100 | I24: 200 | J24: 500 | K24: 1000 | L24: 2000
F25: Fuera del pais de residencia | H25: 100 | I25: 200 | J25: 500 | K25: 1000 | L25: 2000
F27: Tarifas Mensuales
F28: Prima de Titular : | H28: =VLOOKUP($L$17,Tablas!$A$359:$G$421,3,TRUE)+(60/12)+50 -> 917.6633333 | I28: =VLOOKUP($L$17,Tablas!$A$359:$G$421,4,TRUE)+(60/12)+50 -> 899.9966667 | J28: =VLOOKUP($L$17,Tablas!$A$359:$G$421,5,TRUE)+(60/12)+50 -> 851.4133333 | K28: =VLOOKUP($L$17,Tablas!$A$359:$G$421,6,TRUE)+(60/12)+50 -> 781.5416667 | L28: =VLOOKUP($L$17,Tablas!$A$359:$G$421,7,TRUE)+(60/12)+50 -> 723.33
F29: Prima de Cónyuge | H29: =IF($J$17=1,0,(VLOOKUP($L$19,Tablas!$A$359:$G$421,3,TRUE))) -> 0 | I29: =IF($J$17=1,0,(VLOOKUP($L$19,Tablas!$A$359:$G$421,4,TRUE))) -> 0 | J29: =IF($J$17=1,0,(VLOOKUP($L$19,Tablas!$A$359:$G$421,5,TRUE))) -> 0 | K29: =IF($J$17=1,0,(VLOOKUP($L$19,Tablas!$A$359:$G$421,6,TRUE))) -> 0 | L29: =IF($J$17=1,0,(VLOOKUP($L$19,Tablas!$A$359:$G$421,7,TRUE))) -> 0
F30: Primas Hijos : | H30: =IF($J$19=0,0,(VLOOKUP($J$19,Tablas!$A$422:$G$424,3,TRUE))) -> 0 | I30: =IF($J$19=0,0,(VLOOKUP($J$19,Tablas!$A$422:$G$424,4,TRUE))) -> 0 | J30: =IF($J$19=0,0,(VLOOKUP($J$19,Tablas!$A$422:$G$424,5,TRUE))) -> 0 | K30: =IF($J$19=0,0,(VLOOKUP($J$19,Tablas!$A$422:$G$424,6,TRUE))) -> 0 | L30: =IF($J$19=0,0,(VLOOKUP($J$19,Tablas!$A$422:$G$424,7,TRUE))) -> 0
F31: TOTAL PRIMA NETA : | H31: =SUM(H28:H30) -> 917.6633333 | I31: =SUM(I28:I30) -> 899.9966667 | J31: =SUM(J28:J30) -> 851.4133333 | K31: =SUM(K28:K30) -> 781.5416667 | L31: =SUM(L28:L30) -> 723.33
F32: Costo Administrativo Anual : | H32: 0 | I32: 0 | J32: 0 | K32: 0 | L32: 0
F33: Contrib. 3.5% Super. Bancos : | H33: =+H31*3.5% -> 32.11821667 | I33: =+I31*3.5% -> 31.49988333 | J33: 29.79946667 | K33: 27.35395833 | L33: 25.31655
F34: Contrib 0.5% Seg.Soc.Campes.: | H34: =+H31*0.5% -> 4.588316667 | I34: =+I31*0.5% -> 4.499983333 | J34: 4.257066667 | K34: 3.907708333 | L34: 3.61665
F35: TOTAL Primer Cuota : | H35: =SUM(H31:H34) -> 954.3698667 | I35: =SUM(I31:I34) -> 935.9965333 | J35: =SUM(J31:J34) -> 885.4698667 | K35: =SUM(K31:K34) -> 812.8033333 | L35: =SUM(L31:L34) -> 752.2632
F36: Valor Cuota Mensual 2 a 12 : | H36: =(H31 + H33 + H34)-52 -> 902.3698667 | I36: =(I31 + I33 + I34)-52 -> 883.9965333 | J36: =(J31 + J33 + J34)-52 -> 833.4698667 | K36: =(K31 + K33 + K34)-52 -> 760.8033333 | L36: =(L31 + L33 + L34)-52 -> 700.2632
F38: Tarifas Anuales
F39: Prima de Titular : | H39: =VLOOKUP($L$17,Tablas!$A$289:$G$351,3,TRUE)+(60)+50 -> 9876 | I39: =VLOOKUP($L$17,Tablas!$A$289:$G$351,4,TRUE)+(60)+50 -> 9676 | J39: =VLOOKUP($L$17,Tablas!$A$289:$G$351,5,TRUE)+(60)+50 -> 9126 | K39: =VLOOKUP($L$17,Tablas!$A$289:$G$351,6,TRUE)+(60)+50 -> 8335 | L39: =VLOOKUP($L$17,Tablas!$A$289:$G$351,7,TRUE)+(60)+50 -> 7676
F40: Prima de Cónyuge | H40: =IF($J$17=1,0,(VLOOKUP($L$19,Tablas!$A$289:$G$351,3,TRUE))) -> 0 | I40: =IF($J$17=1,0,(VLOOKUP($L$19,Tablas!$A$289:$G$351,4,TRUE))) -> 0 | J40: =IF($J$17=1,0,(VLOOKUP($L$19,Tablas!$A$289:$G$351,5,TRUE))) -> 0 | K40: =IF($J$17=1,0,(VLOOKUP($L$19,Tablas!$A$289:$G$351,6,TRUE))) -> 0 | L40: =IF($J$17=1,0,(VLOOKUP($L$19,Tablas!$A$289:$G$351,7,TRUE))) -> 0
F41: Primas Hijos : | H41: =IF($J$19=0,0,(VLOOKUP($J$19,Tablas!$A$352:$G$354,3,TRUE))) -> 0 | I41: =IF($J$19=0,0,(VLOOKUP($J$19,Tablas!$A$352:$G$354,4,TRUE))) -> 0 | J41: =IF($J$19=0,0,(VLOOKUP($J$19,Tablas!$A$352:$G$354,5,TRUE))) -> 0 | K41: =IF($J$19=0,0,(VLOOKUP($J$19,Tablas!$A$352:$G$354,6,TRUE))) -> 0 | L41: =IF($J$19=0,0,(VLOOKUP($J$19,Tablas!$A$352:$G$354,7,TRUE))) -> 0
F42: TOTAL PRIMA NETA : | H42: =SUM(H39:H41) -> 9876 | I42: =SUM(I39:I41) -> 9676 | J42: 9126 | K42: 8335 | L42: 7676
F43: Costo Administrativo Anual : | H43: 0 | I43: 0 | J43: 0 | K43: 0 | L43: 0
F44: Contrib. 3.5% Super. Bancos : | H44: =+H42*3.5% -> 345.66 | I44: =+I42*3.5% -> 338.66 | J44: 319.41 | K44: 291.725 | L44: 268.66
F45: Contrib 0.5% Seg.Soc.Campes.: | H45: =+H42*0.5% -> 49.38 | I45: =+I42*0.5% -> 48.38 | J45: 45.63 | K45: 41.675 | L45: 38.38
F46: GRAN TOTAL ANUAL : | H46: =SUM(H42:H45) -> 10271.04 | I46: =SUM(I42:I45) -> 10063.04 | J46: =SUM(J42:J45) -> 9491.04 | K46: =SUM(K42:K45) -> 8668.4 | L46: =SUM(L42:L45) -> 7983.04
F48: Tarifas Semestrales
F49: Prima de Titular : | H49: =VLOOKUP($L$17,Tablas!$A$635:$G$697,3,TRUE)+(60/2)+50 -> 5109.49 | I49: =VLOOKUP($L$17,Tablas!$A$635:$G$697,4,TRUE)+(60/2)+50 -> 5006.49 | J49: =VLOOKUP($L$17,Tablas!$A$635:$G$697,5,TRUE)+(60/2)+50 -> 4723.24 | K49: =VLOOKUP($L$17,Tablas!$A$635:$G$697,6,TRUE)+(60/2)+50 -> 4315.875 | L49: =VLOOKUP($L$17,Tablas!$A$635:$G$697,7,TRUE)+(60/2)+50 -> 3976.49
F50: Prima de Cónyuge | H50: =IF($J$17=1,0,(VLOOKUP($L$19,Tablas!$A$635:$G$697,3,TRUE))) -> 0 | I50: =IF($J$17=1,0,(VLOOKUP($L$19,Tablas!$A$635:$G$697,4,TRUE))) -> 0 | J50: =IF($J$17=1,0,(VLOOKUP($L$19,Tablas!$A$635:$G$697,5,TRUE))) -> 0 | K50: =IF($J$17=1,0,(VLOOKUP($L$19,Tablas!$A$635:$G$697,6,TRUE))) -> 0 | L50: =IF($J$17=1,0,(VLOOKUP($L$19,Tablas!$A$635:$G$697,7,TRUE))) -> 0
F51: Primas Hijos : | H51: =IF($J$19=0,0,(VLOOKUP($J$19,Tablas!$A$698:$G$700,3,TRUE))) -> 0 | I51: =IF($J$19=0,0,(VLOOKUP($J$19,Tablas!$A$698:$G$700,4,TRUE))) -> 0 | J51: =IF($J$19=0,0,(VLOOKUP($J$19,Tablas!$A$698:$G$700,5,TRUE))) -> 0 | K51: =IF($J$19=0,0,(VLOOKUP($J$19,Tablas!$A$698:$G$700,6,TRUE))) -> 0 | L51: =IF($J$19=0,0,(VLOOKUP($J$19,Tablas!$A$698:$G$700,7,TRUE))) -> 0
F52: TOTAL PRIMA NETA : | H52: =SUM(H49:H51) -> 5109.49 | I52: =SUM(I49:I51) -> 5006.49 | J52: =SUM(J49:J51) -> 4723.24 | K52: =SUM(K49:K51) -> 4315.875 | L52: =SUM(L49:L51) -> 3976.49
F53: Costo Administrativo Anual : | H53: 0 | I53: 0 | J53: 0 | K53: 0 | L53: 0
F54: Contrib. 3.5% Super. Bancos : | H54: =+H52*3.5% -> 178.83215 | I54: =+I52*3.5% -> 175.22715 | J54: 165.3134 | K54: 151.055625 | L54: 139.17715
F55: Contrib 0.5% Seg.Soc.Campes.: | H55: =+H52*0.5% -> 25.54745 | I55: =+I52*0.5% -> 25.03245 | J55: 23.6162 | K55: 21.579375 | L55: 19.88245
F56: TOTAL Primer Cuota : | H56: =SUM(H52:H55) -> 5313.8696 | I56: =SUM(I52:I55) -> 5206.7496 | J56: =SUM(J52:J55) -> 4912.1696 | K56: =SUM(K52:K55) -> 4488.51 | L56: =SUM(L52:L55) -> 4135.5496
F57: Valor Segunda Cuota : | H57: =(H52 + H54 + H55)-52 -> 5261.8696 | I57: =(I52 + I54 + I55)-52 -> 5154.7496 | J57: =(J52 + J54 + J55)-52 -> 4860.1696 | K57: =(K52 + K54 + K55)-52 -> 4436.51 | L57: =(L52 + L54 + L55)-52 -> 4083.5496
F59: Tarifas Trimestrales
F60: Prima de Titular : | H60: =VLOOKUP($L$17,Tablas!$A$848:$G$910,3,TRUE)+(60/4)+50 -> 2616.3675 | I60: =VLOOKUP($L$17,Tablas!$A$848:$G$910,4,TRUE)+(60/4)+50 -> 2564.1175 | J60: =VLOOKUP($L$17,Tablas!$A$848:$G$910,5,TRUE)+(60/4)+50 -> 2420.43 | K60: =VLOOKUP($L$17,Tablas!$A$848:$G$910,6,TRUE)+(60/4)+50 -> 2213.78125 | L60: =VLOOKUP($L$17,Tablas!$A$848:$G$910,7,TRUE)+(60/4)+50 -> 2041.6175
F61: Prima de Cónyuge | H61: =IF($J$17=1,0,(VLOOKUP($L$19,Tablas!$A$848:$G$910,3,TRUE))) -> 0 | I61: =IF($J$17=1,0,(VLOOKUP($L$19,Tablas!$A$848:$G$910,4,TRUE))) -> 0 | J61: =IF($J$17=1,0,(VLOOKUP($L$19,Tablas!$A$848:$G$910,5,TRUE))) -> 0 | K61: =IF($J$17=1,0,(VLOOKUP($L$19,Tablas!$A$848:$G$910,6,TRUE))) -> 0 | L61: =IF($J$17=1,0,(VLOOKUP($L$19,Tablas!$A$848:$G$910,7,TRUE))) -> 0
F62: Primas Hijos : | H62: =IF($J$19=0,0,(VLOOKUP($J$19,Tablas!$A$911:$G$913,3,TRUE))) -> 0 | I62: =IF($J$19=0,0,(VLOOKUP($J$19,Tablas!$A$911:$G$913,4,TRUE))) -> 0 | J62: =IF($J$19=0,0,(VLOOKUP($J$19,Tablas!$A$911:$G$913,5,TRUE))) -> 0 | K62: =IF($J$19=0,0,(VLOOKUP($J$19,Tablas!$A$911:$G$913,6,TRUE))) -> 0 | L62: =IF($J$19=0,0,(VLOOKUP($J$19,Tablas!$A$911:$G$913,7,TRUE))) -> 0
F63: TOTAL PRIMA NETA : | H63: =SUM(H60:H62) -> 2616.3675 | I63: =SUM(I60:I62) -> 2564.1175 | J63: =SUM(J60:J62) -> 2420.43 | K63: =SUM(K60:K62) -> 2213.78125 | L63: =SUM(L60:L62) -> 2041.6175
F64: Costo Administrativo Anual : | H64: 0 | I64: 0 | J64: 0 | K64: 0 | L64: 0
F65: Contrib. 3.5% Super. Bancos : | H65: =+H63*3.5% -> 91.5728625 | I65: =+I63*3.5% -> 89.7441125 | J65: 84.71505 | K65: 77.48234375 | L65: 71.4566125
F66: Contrib 0.5% Seg.Soc.Campes.: | H66: =+H63*0.5% -> 13.0818375 | I66: =+I63*0.5% -> 12.8205875 | J66: 12.10215 | K66: 11.06890625 | L66: 10.2080875
F67: TOTAL Primer Cuota : | H67: =SUM(H63:H66) -> 2721.0222 | I67: =SUM(I63:I66) -> 2666.6822 | J67: =SUM(J63:J66) -> 2517.2472 | K67: =SUM(K63:K66) -> 2302.3325 | L67: =SUM(L63:L66) -> 2123.2822
F68: Valor Cuota Trimestral 2 a 4: | H68: =(H63 + H65 + H66)-52 -> 2669.0222 | I68: =(I63 + I65 + I66)-52 -> 2614.6822 | J68: =(J63 + J65 + J66)-52 -> 2465.2472 | K68: =(K63 + K65 + K66)-52 -> 2250.3325 | L68: =(L63 + L65 + L66)-52 -> 2071.2822
F69: Tarifas en US $ - Válidas desde el 1ro. de enero de 2022
F71: Este presupuesto solamente tiene carácter informativo y en ningún momento expresa compromiso legal para suministrarle cobertura de seguro. La emisión de una póliza de seguro Bupa está sujeta a todas las evaluaciones de riesgo por parte de Bupa y a la recepción de todos los pagos de prima requeridos.
A77: RED DE PROVEEDORES
A78: La Red para el producto Essential 50 ofrece cobertura en Ecuador, Latinoamérica y el Caribe. Sin embargo, ni la Compañía, ni USA Medical Services, ni ninguna de sus filiales o subsidiarias pertinentes relacionadas participarán en transacciones con cualquier parte o país donde dichas transacciones estén prohibidas por las leyes de los Estados Unidos de América. Por favor comuníquese con la Compañía para obtener más información sobre esta restricción.

Sheet Resumen tarifas
C12: Cotización de Seguro Médico: Productos Essential
B15: Nombre del asegurado : | C15: =+'INGRESO DE DATOS'!$D$15 -> NOMBRE EL AGENTE
B17: Broker / Agente : | C17: =+'INGRESO DE DATOS'!$D$26 -> NOMBRE DE LA AGENCIA
D19: Número de adultos en la póliza: | E19: =+'INGRESO DE DATOS'!$G$17 -> 1 | G19: Edad de Titular : | H19: =+'INGRESO DE DATOS'!$G$19 -> 68
D21: Número hijos (menos 24 años): | E21: =+'INGRESO DE DATOS'!$J$17 -> 0 | G21: Edad de Cónyuge: | H21: =+'INGRESO DE DATOS'!$J$19 -> 46
D23: Fecha cotización: | E23: =+TODAY() -> 2022-01-03
A25: Tarifas Mensuales | D25: Zona de cotización: | E25: ='INGRESO DE DATOS'!G21 -> Guayaquil/Santa Elena
A27: Essential 1000
A28: Deducibles | C28: PLAN 1 | D28: PLAN 2 | E28: PLAN 3 | F28: PLAN 4 | G28: PLAN 5 | H28: PLAN 6 | I28: PLAN 7
A29: Dentro del pais de residencia | C29: 250 | D29: 500 | E29: 1000 | F29: 2000 | G29: 5000 | H29: 10000 | I29: 20000
A30: Fuera del pais de residencia | C30: 500 | D30: 1000 | E30: 2000 | F30: 4000 | G30: 5000 | H30: 10000 | I30: 20000
C31: Tarifas Mensuales
A32: Primera Cuota | C32: =+'Essential 1000'!H35 -> 1213.250133 | D32: =+'Essential 1000'!I35 -> 1065.804133 | E32: =+'Essential 1000'!J35 -> 949.6846667 | F32: =+'Essential 1000'!K35 -> 878.2124 | G32: =+'Essential 1000'!L35 -> 620.8938667 | H32: =+'Essential 1000'!M35 -> 577.3490667 | I32: =+'Essential 1000'!N35 -> 532.1506667
A33: Valor cuota mensual 2 a 12 | C33: =+'Essential 1000'!H36 -> 1161.250133 | D33: =+'Essential 1000'!I36 -> 1013.804133 | E33: =+'Essential 1000'!J36 -> 897.6846667 | F33: =+'Essential 1000'!K36 -> 826.2124 | G33: =+'Essential 1000'!L36 -> 568.8938667 | H33: =+'Essential 1000'!M36 -> 525.3490667 | I33: =+'Essential 1000'!N36 -> 480.1506667
A35: Essential 500
A36: Deducibles | C36: PLAN 1 | D36: PLAN 2 | E36: PLAN 3 | F36: PLAN 4 | G36: PLAN 5 | H36: PLAN 6 | I36: PLAN 7
A37: Dentro del pais de residencia | C37: 250 | D37: 500 | E37: 1000 | F37: 2000 | G37: 5000 | H37: 10000 | I37: 20000
A38: Fuera del pais de residencia | C38: 500 | D38: 1000 | E38: 2000 | F38: 4000 | G38: 5000 | H38: 10000 | I38: 20000
C39: Tarifas Mensuales
A40: Primera Cuota | C40: =+'Essential 500'!H35 -> 1013.991333 | D40: =+'Essential 500'!I35 -> 888.9608 | E40: =+'Essential 500'!J35 -> 815.8349333 | F40: =+'Essential 500'!K35 -> 754.9273333 | G40: =+'Essential 500'!L35 -> 560.2618667 | H40: =+'Essential 500'!M35 -> 512.7668 | I40: =+'Essential 500'!N35 -> 389.5736
A41: Valor cuota mensual 2 a 12 | C41: =+'Essential 500'!H36 -> 961.9913333 | D41: =+'Essential 500'!I36 -> 836.9608 | E41: =+'Essential 500'!J36 -> 763.8349333 | F41: =+'Essential 500'!K36 -> 702.9273333 | G41: =+'Essential 500'!L36 -> 508.2618667 | H41: =+'Essential 500'!M36 -> 460.7668 | I41: =+'Essential 500'!N36 -> 337.5736
A43: Essential 100 y Essential 50
A44: Deducibles | C44: PLAN 1 | D44: PLAN 2 | E44: PLAN 3 | F44: PLAN 4 | G44: PLAN 5
A45: Dentro del pais de residencia | C45: 100 | D45: 200 | E45: 500 | F45: 1000 | G45: 2000
A46: Fuera del pais de residencia | C46: 100 | D46: 200 | E46: 500 | F46: 1000 | G46: 2000
C47: Tarifas Mensuales
A48: Essential 100: Primera Cuota | C48: =+'Essential 100'!H35 -> 1187.7112 | D48: =+'Essential 100'!I35 -> 1164.744533 | E48: =+'Essential 100'!J35 -> 1101.080933 | F48: =+'Essential 100'!K35 -> 1008.938667 | G48: =+'Essential 100'!L35 -> 932.9649333
A49: Essential 100: Cuota Mensual 2 a 12 | C49: =+'Essential 100'!H36 -> 1135.7112 | D49: =+'Essential 100'!I36 -> 1112.744533 | E49: =+'Essential 100'!J36 -> 1049.080933 | F49: =+'Essential 100'!K36 -> 956.9386667 | G49: =+'Essential 100'!L36 -> 880.9649333
A50: Essential 50: Primera Cuota | C50: =+'Essential 50'!H35 -> 954.3698667 | D50: =+'Essential 50'!I35 -> 935.9965333 | E50: =+'Essential 50'!J35 -> 885.4698667 | F50: =+'Essential 50'!K35 -> 812.8033333 | G50: =+'Essential 50'!L35 -> 752.2632
A51: Essential 50 - Cuota Mensual 2 a 12 | C51: =+'Essential 50'!H36 -> 902.3698667 | D51: =+'Essential 50'!I36 -> 883.9965333 | E51: =+'Essential 50'!J36 -> 833.4698667 | F51: =+'Essential 50'!K36 -> 760.8033333 | G51: =+'Essential 50'!L36 -> 700.2632
A55: Tarifas Anuales
A57: Essential 1000
A58: Deducibles | C58: PLAN 1 | D58: PLAN 2 | E58: PLAN 3 | F58: PLAN 4 | G58: PLAN 5 | H58: PLAN 6 | I58: PLAN 7
A59: Dentro del pais de residencia | C59: 250 | D59: 500 | E59: 1000 | F59: 2000 | G59: 5000 | H59: 10000 | I59: 20000
A60: Fuera del pais de residencia | C60: 500 | D60: 1000 | E60: 2000 | F60: 4000 | G60: 5000 | H60: 10000 | I60: 20000
C61: Tarifas Anuales
A62: Primera Cuota | C62: =+'Essential 1000'!H46 -> 13201.76 | D62: =+'Essential 1000'!I46 -> 11532.56 | E62: =+'Essential 1000'!J46 -> 10218 | F62: =+'Essential 1000'!K46 -> 9408.88 | G62: =+'Essential 1000'!L46 -> 6495.84 | H62: =+'Essential 1000'!M46 -> 6002.88 | I62: =+'Essential 1000'!N46 -> 5491.2
A64: Essential 500
A65: Deducibles | C65: PLAN 1 | D65: PLAN 2 | E65: PLAN 3 | F65: PLAN 4 | G65: PLAN 5 | H65: PLAN 6 | I65: PLAN 7
A66: Dentro del pais de residencia | C66: 250 | D66: 500 | E66: 1000 | F66: 2000 | G66: 5000 | H66: 10000 | I66: 20000
A67: Fuera del pais de residencia | C67: 500 | D67: 1000 | E67: 2000 | F67: 4000 | G67: 5000 | H67: 10000 | I67: 20000
C68: Tarifas Anuales
A69: Essential 500 | C69: =+'Essential 500'!H46 -> 10946 | D69: =+'Essential 500'!I46 -> 9530.56 | E69: =+'Essential 500'!J46 -> 8702.72 | F69: =+'Essential 500'!K46 -> 8013.2 | G69: =+'Essential 500'!L46 -> 5809.44 | H69: =+'Essential 500'!M46 -> 5271.76 | I69: =+'Essential 500'!N46 -> 3877.12
A71: Essential 100 y Essential 50
A72: Deducibles | C72: PLAN 1 | D72: PLAN 2 | E72: PLAN 3 | F72: PLAN 4 | G72: PLAN 5
A73: Dentro del pais de residencia | C73: 100 | D73: 200 | E73: 500 | F73: 1000 | G73: 2000
A74: Fuera del pais de residencia | C74: 100 | D74: 200 | E74: 500 | F74: 1000 | G74: 2000
C75: Tarifas Anuales
A76: Essential 100 | C76: =+'Essential 100'!H46 -> 12912.64 | D76: =+'Essential 100'!I46 -> 12652.64 | E76: =+'Essential 100'!J46 -> 11931.92 | F76: =+'Essential 100'!K46 -> 10888.8 | G76: =+'Essential 100'!L46 -> 10028.72
A77: Essential 50 | C77: =+'Essential 50'!H46 -> 10271.04 | D77: =+'Essential 50'!I46 -> 10063.04 | E77: =+'Essential 50'!J46 -> 9491.04 | F77: =+'Essential 50'!K46 -> 8668.4 | G77: =+'Essential 50'!L46 -> 7983.04
A79: Tarifas Semestrales
A81: Essential 1000
A82: Deducibles | C82: PLAN 1 | D82: PLAN 2 | E82: PLAN 3 | F82: PLAN 4 | G82: PLAN 5 | H82: PLAN 6 | I82: PLAN 7
A83: Dentro del pais de residencia | C83: 250 | D83: 500 | E83: 1000 | F83: 2000 | G83: 5000 | H83: 10000 | I83: 20000
A84: Fuera del pais de residencia | C84: 500 | D84: 1000 | E84: 2000 | F84: 4000 | G84: 5000 | H84: 10000 | I84: 20000
C85: Tarifas Mensuales
A86: Primera Cuota | C86: =+'Essential 1000'!H56 -> 6823.1904 | D86: =+'Essential 1000'!I56 -> 5963.5524 | E86: =+'Essential 1000'!J56 -> 5286.554 | F86: =+'Essential 1000'!K56 -> 4869.8572 | G86: =+'Essential 1000'!L56 -> 3369.6416 | H86: =+'Essential 1000'!M56 -> 3115.7672 | I86: =+'Essential 1000'!N56 -> 2852.252
A87: Segunda Cuota | C87: =+'Essential 1000'!H57 -> 6771.1904 | D87: =+'Essential 1000'!I57 -> 5911.5524 | E87: =+'Essential 1000'!J57 -> 5234.554 | F87: =+'Essential 1000'!K57 -> 4817.8572 | G87: =+'Essential 1000'!L57 -> 3317.6416 | H87: =+'Essential 1000'!M57 -> 3063.7672 | I87: =+'Essential 1000'!N57 -> 2800.252
A89: Essential 500
A90: Deducibles | C90: PLAN 1 | D90: PLAN 2 | E90: PLAN 3 | F90: PLAN 4 | G90: PLAN 5 | H90: PLAN 6 | I90: PLAN 7
A91: Dentro del pais de residencia | C91: 250 | D91: 500 | E91: 1000 | F91: 2000 | G91: 5000 | H91: 10000 | I91: 20000
A92: Fuera del pais de residencia | C92: 500 | D92: 1000 | E92: 2000 | F92: 4000 | G92: 5000 | H92: 10000 | I92: 20000
C93: Tarifas Semestrales
A94: Primera Cuota | C94: =+'Essential 500'!H56 -> 5661.474 | D94: =+'Essential 500'!I56 -> 4932.5224 | E94: =+'Essential 500'!J56 -> 4506.1848 | F94: =+'Essential 500'!K56 -> 4151.082 | G94: =+'Essential 500'!L56 -> 3016.1456 | H94: =+'Essential 500'!M56 -> 2740.2404 | I94: =+'Essential 500'!N56 -> 2023.0008
A95: Segunda Cuota | C95: =+'Essential 500'!H57 -> 5609.474 | D95: =+'Essential 500'!I57 -> 4880.5224 | E95: =+'Essential 500'!J57 -> 4454.1848 | F95: =+'Essential 500'!K57 -> 4099.082 | G95: =+'Essential 500'!L57 -> 2964.1456 | H95: =+'Essential 500'!M57 -> 2687.2404 | I95: =+'Essential 500'!N57 -> 1969.0008
A97: Essential 100 y Essential 50
A98: Deducibles | C98: PLAN 1 | D98: PLAN 2 | E98: PLAN 3 | F98: PLAN 4 | G98: PLAN 5
A99: Dentro del pais de residencia | C99: 100 | D99: 200 | E99: 500 | F99: 1000 | G99: 2000
A100: Fuera del pais de residencia | C100: 100 | D100: 200 | E100: 500 | F100: 1000 | G100: 2000
C101: Tarifas Mensuales
A102: Essential 100 - Primera cuota | C102: =+'Essential 100'!H56 -> 6674.2936 | D102: =+'Essential 100'!I56 -> 6540.3936 | E102: =+'Essential 100'!J56 -> 6169.2228 | F102: =+'Essential 100'!K56 -> 5632.016 | G102: =+'Essential 100'!L56 -> 5189.0748
A103: Essential 100 - Segunda Cuota | C103: =+'Essential 100'!H57 -> 6622.2936 | D103: =+'Essential 100'!I57 -> 6488.3936 | E103: =+'Essential 100'!J57 -> 6117.2228 | F103: =+'Essential 100'!K57 -> 5580.016 | G103: =+'Essential 100'!L57 -> 5137.0748
A104: Essential 50 - Primera Cuota | C104: =+'Essential 50'!H56 -> 5313.8696 | D104: =+'Essential 50'!I56 -> 5206.7496 | E104: =+'Essential 50'!J56 -> 4912.1696 | F104: =+'Essential 50'!K56 -> 4488.51 | G104: =+'Essential 50'!L56 -> 4135.5496
A105: Essential 50 - Seguda Cuota | C105: =+'Essential 50'!H57 -> 5261.8696 | D105: =+'Essential 50'!I57 -> 5154.7496 | E105: =+'Essential 50'!J57 -> 4860.1696 | F105: =+'Essential 50'!K57 -> 4436.51 | G105: =+'Essential 50'!L57 -> 4083.5496
A109: Tarifas Trimestrales
A111: Essential 1000
A112: Deducibles | C112: PLAN 1 | D112: PLAN 2 | E112: PLAN 3 | F112: PLAN 4 | G112: PLAN 5 | H112: PLAN 6 | I112: PLAN 7
A113: Dentro del pais de residencia | C113: 250 | D113: 500 | E113: 1000 | F113: 2000 | G113: 5000 | H113: 10000 | I113: 20000
A114: Fuera del pais de residencia | C114: 500 | D114: 1000 | E114: 2000 | F114: 4000 | G114: 5000 | H114: 10000 | I114: 20000
C115: Tarifas Mensuales
A116: Primera Cuota | C116: =+'Essential 1000'!H67 -> 3486.6728 | D116: =+'Essential 1000'!I67 -> 3050.5943 | E116: =+'Essential 1000'!J67 -> 2707.1655 | F116: =+'Essential 1000'!K67 -> 2495.7829 | G116: =+'Essential 1000'!L67 -> 1734.7512 | H116: =+'Essential 1000'!M67 -> 1605.9654 | I116: =+'Essential 1000'!N67 -> 1472.289
A117: Valor de Cuota Trimestral 2 a 4 | C117: =+'Essential 1000'!H68 -> 3434.6728 | D117: =+'Essential 1000'!I68 -> 2998.5943 | E117: =+'Essential 1000'!J68 -> 2655.1655 | F117: =+'Essential 1000'!K68 -> 2443.7829 | G117: =+'Essential 1000'!L68 -> 1682.7512 | H117: =+'Essential 1000'!M68 -> 1553.9654 | I117: =+'Essential 1000'!N68 -> 1420.289
A119: Essential 500
A120: Deducibles | C120: PLAN 1 | D120: PLAN 2 | E120: PLAN 3 | F120: PLAN 4 | G120: PLAN 5 | H120: PLAN 6 | I120: PLAN 7
A121: Dentro del pais de residencia | C121: 250 | D121: 500 | E121: 1000 | F121: 2000 | G121: 5000 | H121: 10000 | I121: 20000
A122: Fuera del pais de residencia | C122: 500 | D122: 1000 | E122: 2000 | F122: 4000 | G122: 5000 | H122: 10000 | I122: 20000
C123: Tarifas Trimestral
A124: Primera Cuota | C124: =+'Essential 500'!H67 -> 2897.3555 | D124: =+'Essential 500'!I67 -> 2527.5718 | E124: =+'Essential 500'!J67 -> 2311.2986 | F124: =+'Essential 500'!K67 -> 2131.1615 | G124: =+'Essential 500'!L67 -> 1555.4292
A125: Valor de Cuota Trimestral 2 a 4 | C125: =+'Essential 500'!H68 -> 2845.3555 | D125: =+'Essential 500'!I68 -> 2475.5718 | E125: =+'Essential 500'!J68 -> 2259.2986 | F125: =+'Essential 500'!K68 -> 2079.1615 | G125: =+'Essential 500'!L68 -> 1503.4292
A127: Essential 100 y Essential 50
A128: Deducibles | C128: PLAN 1 | D128: PLAN 2 | E128: PLAN 3 | F128: PLAN 4 | G128: PLAN 5
A129: Dentro del pais de residencia | C129: 100 | D129: 200 | E129: 500 | F129: 1000 | G129: 2000
A130: Fuera del pais de residencia | C130: 100 | D130: 200 | E130: 500 | F130: 1000 | G130: 2000
C131: Tarifas Mensuales
A132: Essential 100 - Primera Cuota | C132: =+'Essential 100'!H67 -> 3411.1402 | D132: =+'Essential 100'!I67 -> 3343.2152 | E132: =+'Essential 100'!J67 -> 3154.9271 | F132: =+'Essential 100'!K67 -> 2882.412 | G132: =+'Essential 100'!L67 -> 2657.7161
A133: Essential 100 - Cuota Trimestral 2 a 4 | C133: =+'Essential 100'!H68 -> 3359.1402 | D133: =+'Essential 100'!I68 -> 3291.2152 | E133: =+'Essential 100'!J68 -> 3102.9271 | F133: =+'Essential 100'!K68 -> 2830.412 | G133: =+'Essential 100'!L68 -> 2605.7161
A134: Essential 50 - Primera Cuota | C134: =+'Essential 50'!H67 -> 2721.0222 | D134: =+'Essential 50'!I67 -> 2666.6822 | E134: =+'Essential 50'!J67 -> 2517.2472 | F134: =+'Essential 50'!K67 -> 2302.3325 | G134: =+'Essential 50'!L67 -> 2123.2822
A135: Essential 50 - Cuota trimestral 2 a 4 | C135: =+'Essential 50'!H68 -> 2669.0222 | D135: =+'Essential 50'!I68 -> 2614.6822 | E135: =+'Essential 50'!J68 -> 2465.2472 | F135: =+'Essential 50'!K68 -> 2250.3325 | G135: =+'Essential 50'!L68 -> 2071.2822
A138: Tarifas (Essential 500, 100 y 50 ) en US $ - Válidas desde 1ro. de enero de 2022
A139: Este presupuesto solamente tiene carácter informativo y en ningún momento expresa compromiso legal para suministrarle cobertura de seguro. La emisión de una póliza de seguro Bupa está sujeta a todas las evaluaciones de riesgo por parte de Bupa y a la recepción de todos los pagos de prima requeridos.
D142: Las tarifas resaltadas en gris del PLAN 1 son solo para renovaciones.
A144: Essential Care
A145: Deducibles | C145: PLAN 1 | D145: PLAN 2 | E145: PLAN 3 | F145: PLAN 4 | G145: PLAN 5 | H145: PLAN 6
A146: Deducible en Ecuador | C146: 0 | D146: 1000 | E146: 2000 | F146: 5000 | G146: 10000 | H146: 20000
A147: Deducible fuera de Ecuador | C147: 1000 | D147: 2000 | E147: 3000 | F147: 5000 | G147: 10000 | H147: 20000
A148: Tarifas Anuales
A149: Gran Total | C149: =+'Essential Care'!H42 -> 22731.28 | D149: =+'Essential Care'!I42 -> 18271.76 | E149: =+'Essential Care'!J42 -> 16812.64 | F149: =+'Essential Care'!K42 -> 11418.16 | G149: =+'Essential Care'!L42 -> 9148.88 | H149: =+'Essential Care'!M42 -> 6841.12
A150: Tarifas Semestrales
A151: Primera Cuota | C151: =+'Essential Care'!H57 -> 12084.2384 | D151: =+'Essential Care'!I57 -> 9720.6928 | E151: =+'Essential Care'!J57 -> 8947.3592 | F151: =+'Essential Care'!K57 -> 6088.2848 | G151: =+'Essential Care'!L57 -> 4885.5664 | H151: =+'Essential Care'!M57 -> 3662.4536
A152: Segunda Cuota | C152: =+'Essential Care'!H58 -> 12006.2384 | D152: =+'Essential Care'!I58 -> 9642.6928 | E152: =+'Essential Care'!J58 -> 8869.3592 | F152: =+'Essential Care'!K58 -> 6010.2848 | G152: =+'Essential Care'!L58 -> 4807.5664 | H152: =+'Essential Care'!M58 -> 3584.4536
A155: Tarifas en US $ - Válidas desde el 1ro. de enero de 2022
A157: Este presupuesto solamente tiene carácter informativo y en ningún momento expresa compromiso legal para suministrarle cobertura de seguro. La emisión de una póliza de seguro Bupa está sujeta a todas las evaluaciones de riesgo por parte de Bupa y a la recepción de todos los pagos de prima requeridos.
D160: Las tarifas resaltadas en gris del PLAN 1 son solo para renovaciones.

Sheet Tablas (hidden)
A2: FLEX 500 | K2: FACTOR MENSUAL: | M2: =1.06/12 -> 0.08833333333 | P2: Zonas
A3: TARIFAS ANUALES | K3: FACTOR SEMESTRAL: | M3: =1.03/2 -> 0.515 | P3: Guayaquil/Santa Elena
A4: EDAD | K4: FACTOR TRIMESTRAL: | M4: =1.045/4 -> 0.26125 | P4: Resto de Ecuador
C5: F500-1 | D5: F500-2 | E5: F500-3 | F5: F500-4 | G5: F500-5 | H5: F500-6 | I5: F500-7
A6: 18 | C6: =IF('INGRESO DE DATOS'!$G$21="Guayaquil/Santa Elena",'Tablas Guayaquil'!C6,'Tablas Resto de Ecuador'!C6) -> 2184 | D6: =IF('INGRESO DE DATOS'!$G$21="Guayaquil/Santa Elena",'Tablas Guayaquil'!D6,'Tablas Resto de Ecuador'!D6) -> 1868 | E6: =IF('INGRESO DE DATOS'!$G$21="Guayaquil/Santa Elena",'Tablas Guayaquil'!E6,'Tablas Resto de Ecuador'!E6) -> 1368 | F6: =IF('INGRESO DE DATOS'!$G$21="Guayaquil/Santa Elena",'Tablas Guayaquil'!F6,'Tablas Resto de Ecuador'!F6) -> 943 | G6: =IF('INGRESO DE DATOS'!$G$21="Guayaquil/Santa Elena",'Tablas Guayaquil'!G6,'Tablas Resto de Ecuador'!G6) -> 514 | H6: =IF('INGRESO DE DATOS'!$G$21="Guayaquil/Santa Elena",'Tablas Guayaquil'!H6,'Tablas Resto de Ecuador'!H6) -> 304 | I6: =IF('INGRESO DE DATOS'!$G$21="Guayaquil/Santa Elena",'Tablas Guayaquil'!I6,'Tablas Resto de Ecuador'!I6) -> 175
A7: 19 | C7: =IF('INGRESO DE DATOS'!$G$21="Guayaquil/Santa Elena",'Tablas Guayaquil'!C7,'Tablas Resto de Ecuador'!C7) -> 2220 | D7: =IF('INGRESO DE DATOS'!$G$21="Guayaquil/Santa Elena",'Tablas Guayaquil'!D7,'Tablas Resto de Ecuador'!D7) -> 1868 | E7: =IF('INGRESO DE DATOS'!$G$21="Guayaquil/Santa Elena",'Tablas Guayaquil'!E7,'Tablas Resto de Ecuador'!E7) -> 1368 | F7: =IF('INGRESO DE DATOS'!$G$21="Guayaquil/Santa Elena",'Tablas Guayaquil'!F7,'Tablas Resto de Ecuador'!F7) -> 944 | G7: =IF('INGRESO DE DATOS'!$G$21="Guayaquil/Santa Elena",'Tablas Guayaquil'!G7,'Tablas Resto de Ecuador'!G7) -> 519 | H7: =IF('INGRESO DE DATOS'!$G$21="Guayaquil/Santa Elena",'Tablas Guayaquil'!H7,'Tablas Resto de Ecuador'!H7) -> 309 | I7: =IF('INGRESO DE DATOS'!$G$21="Guayaquil/Santa Elena",'Tablas Guayaquil'!I7,'Tablas Resto de Ecuador'!I7) -> 179
A8: 20 | C8: =IF('INGRESO DE DATOS'!$G$21="Guayaquil/Santa Elena",'Tablas Guayaquil'!C8,'Tablas Resto de Ecuador'!C8) -> 2259 | D8: =IF('INGRESO DE DATOS'!$G$21="Guayaquil/Santa Elena",'Tablas Guayaquil'!D8,'Tablas Resto de Ecuador'!D8) -> 1868 | E8: =IF('INGRESO DE DATOS'!$G$21="Guayaquil/Santa Elena",'Tablas Guayaquil'!E8,'Tablas Resto de Ecuador'!E8) -> 1368 | F8: =IF('INGRESO DE DATOS'!$G$21="Guayaquil/Santa Elena",'Tablas Guayaquil'!F8,'Tablas Resto de Ecuador'!F8) -> 947 | G8: =IF('INGRESO DE DATOS'!$G$21="Guayaquil/Santa Elena",'Tablas Guayaquil'!G8,'Tablas Resto de Ecuador'!G8) -> 525 | H8: =IF('INGRESO DE DATOS'!$G$21="Guayaquil/Santa Elena",'Tablas Guayaquil'!H8,'Tablas Resto de Ecuador'!H8) -> 313 | I8: =IF('INGRESO DE DATOS'!$G$21="Guayaquil/Santa Elena",'Tablas Guayaquil'!I8,'Tablas Resto de Ecuador'!I8) -> 183
A9: 21 | C9: =IF('INGRESO DE DATOS'!$G$21="Guayaquil/Santa Elena",'Tablas Guayaquil'!C9,'Tablas Resto de Ecuador'!C9) -> 2302 | D9: =IF('INGRESO DE DATOS'!$G$21="Guayaquil/Santa Elena",'Tablas Guayaquil'!D9,'Tablas Resto de Ecuador'!D9) -> 1868 | E9: =IF('INGRESO DE DATOS'!$G$21="Guayaquil/Santa Elena",'Tablas Guayaquil'!E9,'Tablas Resto de Ecuador'!E9) -> 1370 | F9: =IF('INGRESO DE DATOS'!$G$21="Guayaquil/Santa Elena",'Tablas Guayaquil'!F9,'Tablas Resto de Ecuador'!F9) -> 953 | G9: =IF('INGRESO DE DATOS'!$G$21="Guayaquil/Santa Elena",'Tablas Guayaquil'!G9,'Tablas Resto de Ecuador'!G9) -> 531 | H9: =IF('INGRESO DE DATOS'!$G$21="Guayaquil/Santa Elena",'Tablas Guayaquil'!H9,'Tablas Resto de Ecuador'!H9) -> 320 | I9: =IF('INGRESO DE DATOS'!$G$21="Guayaquil/Santa Elena",'Tablas Guayaquil'!I9,'Tablas Resto de Ecuador'!I9) -> 188
A10: 22 | C10: =IF('INGRESO DE DATOS'!$G$21="Guayaquil/Santa Elena",'Tablas Guayaquil'!C10,'Tablas Resto de Ecuador'!C10) -> 2339 | D10: =IF('INGRESO DE DATOS'!$G$21="Guayaquil/Santa Elena",'Tablas Guayaquil'!D10,'Tablas Resto de Ecuador'!D10) -> 1868 | E10: =IF('INGRESO DE DATOS'!$G$21="Guayaquil/Santa Elena",'Tablas Guayaquil'!E10,'Tablas Resto de Ecuador'!E10) -> 1374 | F10: =IF('INGRESO DE DATOS'!$G$21="Guayaquil/Santa Elena",'Tablas Guayaquil'!F10,'Tablas Resto de Ecuador'!F10) -> 960 | G10: =IF('INGRESO DE DATOS'!$G$21="Guayaquil/Santa Elena",'Tablas Guayaquil'!G10,'Tablas Resto de Ecuador'!G10) -> 539 | H10: =IF('INGRESO DE DATOS'!$G$21="Guayaquil/Santa Elena",'Tablas Guayaquil'!H10,'Tablas Resto de Ecuador'!H10) -> 326 | I10: =IF('INGRESO DE DATOS'!$G$21="Guayaquil/Santa Elena",'Tablas Guayaquil'!I10,'Tablas Resto de Ecuador'!I10) -> 193
A11: 23 | C11: =IF('INGRESO DE DATOS'!$G$21="Guayaquil/Santa Elena",'Tablas Guayaquil'!C11,'Tablas Resto de Ecuador'!C11) -> 2378 | D11: =IF('INGRESO DE DATOS'!$G$21="Guayaquil/Santa Elena",'Tablas Guayaquil'!D11,'Tablas Resto de Ecuador'!D11) -> 1873 | E11: =IF('INGRESO DE DATOS'!$G$21="Guayaquil/Santa Elena",'Tablas Guayaquil'!E11,'Tablas Resto de Ecuador'!E11) -> 1383 | F11: =IF('INGRESO DE DATOS'!$G$21="Guayaquil/Santa Elena",'Tablas Guayaquil'!F11,'Tablas Resto de Ecuador'!F11) -> 970 | G11: =IF('INGRESO DE DATOS'!$G$21="Guayaquil/Santa Elena",'Tablas Guayaquil'!G11,'Tablas Resto de Ecuador'!G11) -> 548 | H11: =IF('INGRESO DE DATOS'!$G$21="Guayaquil/Santa Elena",'Tablas Guayaquil'!H11,'Tablas Resto de Ecuador'!H11) -> 334 | I11: =IF('INGRESO DE DATOS'!$G$21="Guayaquil/Santa Elena",'Tablas Guayaquil'!I11,'Tablas Resto de Ecuador'!I11) -> 198
A12: 24 | C12: =IF('INGRESO DE DATOS'!$G$21="Guayaquil/Santa Elena",'Tablas Guayaquil'!C12,'Tablas Resto de Ecuador'!C12) -> 2384 | D12: =IF('INGRESO DE DATOS'!$G$21="Guayaquil/Santa Elena",'Tablas Guayaquil'!D12,'Tablas Resto de Ecuador'!D12) -> 1882 | E12: =IF('INGRESO DE DATOS'!$G$21="Guayaquil/Santa Elena",'Tablas Guayaquil'!E12,'Tablas Resto de Ecuador'!E12) -> 1394 | F12: =IF('INGRESO DE DATOS'!$G$21="Guayaquil/Santa Elena",'Tablas Guayaquil'!F12,'Tablas Resto de Ecuador'!F12) -> 983 | G12: =IF('INGRESO DE DATOS'!$G$21="Guayaquil/Santa Elena",'Tablas Guayaquil'!G12,'Tablas Resto de Ecuador'!G12) -> 558 | H12: =IF('INGRESO DE DATOS'!$G$21="Guayaquil/Santa Elena",'Tablas Guayaquil'!H12,'Tablas Resto de Ecuador'!H12) -> 342 | I12: =IF('INGRESO DE DATOS'!$G$21="Guayaquil/Santa Elena",'Tablas Guayaquil'!I12,'Tablas Resto de Ecuador'!I12) -> 205
A13: 25 | C13: =IF('INGRESO DE DATOS'!$G$21="Guayaquil/Santa Elena",'Tablas Guayaquil'!C13,'Tablas Resto de Ecuador'!C13) -> 2395 | D13: =IF('INGRESO DE DATOS'!$G$21="Guayaquil/Santa Elena",'Tablas Guayaquil'!D13,'Tablas Resto de Ecuador'!D13) -> 1895 | E13: =IF('INGRESO DE DATOS'!$G$21="Guayaquil/Santa Elena",'Tablas Guayaquil'!E13,'Tablas Resto de Ecuador'!E13) -> 1409 | F13: =IF('INGRESO DE DATOS'!$G$21="Guayaquil/Santa Elena",'Tablas Guayaquil'!F13,'Tablas Resto de Ecuador'!F13) -> 998 | G13: =IF('INGRESO DE DATOS'!$G$21="Guayaquil/Santa Elena",'Tablas Guayaquil'!G13,'Tablas Resto de Ecuador'!G13) -> 570 | H13: =IF('INGRESO DE DATOS'!$G$21="Guayaquil/Santa Elena",'Tablas Guayaquil'!H13,'Tablas Resto de Ecuador'!H13) -> 351 | I13: =IF('INGRESO DE DATOS'!$G$21="Guayaquil/Santa Elena",'Tablas Guayaquil'!I13,'Tablas Resto de Ecuador'!I13) -> 212
A14: 26 | C14: =IF('INGRESO DE DATOS'!$G$21="Guayaquil/Santa Elena",'Tablas Guayaquil'!C14,'Tablas Resto de Ecuador'!C14) -> 2413 | D14: =IF('INGRESO DE DATOS'!$G$21="Guayaquil/Santa Elena",'Tablas Guayaquil'!D14,'Tablas Resto de Ecuador'!D14) -> 1914 | E14: =IF('INGRESO DE DATOS'!$G$21="Guayaquil/Santa Elena",'Tablas Guayaquil'!E14,'Tablas Resto de Ecuador'!E14) -> 1429 | F14: =IF('INGRESO DE DATOS'!$G$21="Guayaquil/Santa Elena",'Tablas Guayaquil'!F14,'Tablas Resto de Ecuador'!F14) -> 1015 | G14: =IF('INGRESO DE DATOS'!$G$21="Guayaquil/Santa Elena",'Tablas Guayaquil'!G14,'Tablas Resto de Ecuador'!G14) -> 584 | H14: =IF('INGRESO DE DATOS'!$G$21="Guayaquil/Santa Elena",'Tablas Guayaquil'!H14,'Tablas Resto de Ecuador'!H14) -> 362 | I14: =IF('INGRESO DE DATOS'!$G$21="Guayaquil/Santa Elena",'Tablas Guayaquil'!I14,'Tablas Resto de Ecuador'!I14) -> 219
A15: 27 | C15: =IF('INGRESO DE DATOS'!$G$21="Guayaquil/Santa Elena",'Tablas Guayaquil'!C15,'Tablas Resto de Ecuador'!C15) -> 2437 | D15: =IF('INGRESO DE DATOS'!$G$21="Guayaquil/Santa Elena",'Tablas Guayaquil'!D15,'Tablas Resto de Ecuador'!D15) -> 1938 | E15: =IF('INGRESO DE DATOS'!$G$21="Guayaquil/Santa Elena",'Tablas Guayaquil'!E15,'Tablas Resto de Ecuador'!E15) -> 1452 | F15: =IF('INGRESO DE DATOS'!$G$21="Guayaquil/Santa Elena",'Tablas Guayaquil'!F15,'Tablas Resto de Ecuador'!F15) -> 1035 | G15: =IF('INGRESO DE DATOS'!$G$21="Guayaquil/Santa Elena",'Tablas Guayaquil'!G15,'Tablas Resto de Ecuador'!G15) -> 599 | H15: =IF('INGRESO DE DATOS'!$G$21="Guayaquil/Santa Elena",'Tablas Guayaquil'!H15,'Tablas Resto de Ecuador'!H15) -> 373 | I15: =IF('INGRESO DE DATOS'!$G$21="Guayaquil/Santa Elena",'Tablas Guayaquil'!I15,'Tablas Resto de Ecuador'!I15) -> 227
A16: 28 | C16: =IF('INGRESO DE DATOS'!$G$21="Guayaquil/Santa Elena",'Tablas Guayaquil'!C16,'Tablas Resto de Ecuador'!C16) -> 2467 | D16: =IF('INGRESO DE DATOS'!$G$21="Guayaquil/Santa Elena",'Tablas Guayaquil'!D16,'Tablas Resto de Ecuador'!D16) -> 1967 | E16: =IF('INGRESO DE DATOS'!$G$21="Guayaquil/Santa Elena",'Tablas Guayaquil'!E16,'Tablas Resto de Ecuador'!E16) -> 1478 | F16: =IF('INGRESO DE DATOS'!$G$21="Guayaquil/Santa Elena",'Tablas Guayaquil'!F16,'Tablas Resto de Ecuador'!F16) -> 1058 | G16: =IF('INGRESO DE DATOS'!$G$21="Guayaquil/Santa Elena",'Tablas Guayaquil'!G16,'Tablas Resto de Ecuador'!G16) -> 616 | H16: =IF('INGRESO DE DATOS'!$G$21="Guayaquil/Santa Elena",'Tablas Guayaquil'!H16,'Tablas Resto de Ecuador'!H16) -> 386 | I16: =IF('INGRESO DE DATOS'!$G$21="Guayaquil/Santa Elena",'Tablas Guayaquil'!I16,'Tablas Resto de Ecuador'!I16) -> 236
A17: 29 | C17: =IF('INGRESO DE DATOS'!$G$21="Guayaquil/Santa Elena",'Tablas Guayaquil'!C17,'Tablas Resto de Ecuador'!C17) -> 2503 | D17: =IF('INGRESO DE DATOS'!$G$21="Guayaquil/Santa Elena",'Tablas Guayaquil'!D17,'Tablas Resto de Ecuador'!D17) -> 2000 | E17: =IF('INGRESO DE DATOS'!$G$21="Guayaquil/Santa Elena",'Tablas Guayaquil'!E17,'Tablas Resto de Ecuador'!E17) -> 1508 | F17: =IF('INGRESO DE DATOS'!$G$21="Guayaquil/Santa Elena",'Tablas Guayaquil'!F17,'Tablas Resto de Ecuador'!F17) -> 1084 | G17: =IF('INGRESO DE DATOS'!$G$21="Guayaquil/Santa Elena",'Tablas Guayaquil'!G17,'Tablas Resto de Ecuador'!G17) -> 635 | H17: =IF('INGRESO DE DATOS'!$G$21="Guayaquil/Santa Elena",'Tablas Guayaquil'!H17,'Tablas Resto de Ecuador'!H17) -> 400 | I17: =IF('INGRESO DE DATOS'!$G$21="Guayaquil/Santa Elena",'Tablas Guayaquil'!I17,'Tablas Resto de Ecuador'!I17) -> 247
A18: 30 | C18: =IF('INGRESO DE DATOS'!$G$21="Guayaquil/Santa Elena",'Tablas Guayaquil'!C18,'Tablas Resto de Ecuador'!C18) -> 2545 | D18: =IF('INGRESO DE DATOS'!$G$21="Guayaquil/Santa Elena",'Tablas Guayaquil'!D18,'Tablas Resto de Ecuador'!D18) -> 2040 | E18: =IF('INGRESO DE DATOS'!$G$21="Guayaquil/Santa Elena",'Tablas Guayaquil'!E18,'Tablas Resto de Ecuador'!E18) -> 1543 | F18: =IF('INGRESO DE DATOS'!$G$21="Guayaquil/Santa Elena",'Tablas Guayaquil'!F18,'Tablas Resto de Ecuador'!F18) -> 1113 | G18: =IF('INGRESO DE DATOS'!$G$21="Guayaquil/Santa Elena",'Tablas Guayaquil'!G18,'Tablas Resto de Ecuador'!G18) -> 656 | H18: =IF('INGRESO DE DATOS'!$G$21="Guayaquil/Santa Elena",'Tablas Guayaquil'!H18,'Tablas Resto de Ecuador'!H18) -> 414 | I18: =IF('INGRESO DE DATOS'!$G$21="Guayaquil/Santa Elena",'Tablas Guayaquil'!I18,'Tablas Resto de Ecuador'!I18) -> 257
A19: 31 | C19: =IF('INGRESO DE DATOS'!$G$21="Guayaquil/Santa Elena",'Tablas Guayaquil'!C19,'Tablas Resto de Ecuador'!C19) -> 2595 | D19: =IF('INGRESO DE DATOS'!$G$21="Guayaquil/Santa Elena",'Tablas Guayaquil'!D19,'Tablas Resto de Ecuador'!D19) -> 2085 | E19: =IF('INGRESO DE DATOS'!$G$21="Guayaquil/Santa Elena",'Tablas Guayaquil'!E19,'Tablas Resto de Ecuador'!E19) -> 1582 | F19: =IF('INGRESO DE DATOS'!$G$21="Guayaquil/Santa Elena",'Tablas Guayaquil'!F19,'Tablas Resto de Ecuador'!F19) -> 1145 | G19: =IF('INGRESO DE DATOS'!$G$21="Guayaquil/Santa Elena",'Tablas Guayaquil'!G19,'Tablas Resto de Ecuador'!G19) -> 678 | H19: =IF('INGRESO DE DATOS'!$G$21="Guayaquil/Santa Elena",'Tablas Guayaquil'!H19,'Tablas Resto de Ecuador'!H19) -> 431 | I19: =IF('INGRESO DE DATOS'!$G$21="Guayaquil/Santa Elena",'Tablas Guayaquil'!I19,'Tablas Resto de Ecuador'!I19) -> 270
A20: 32 | C20: =IF('INGRESO DE DATOS'!$G$21="Guayaquil/Santa Elena",'Tablas Guayaquil'!C20,'Tablas Resto de Ecuador'!C20) -> 2653 | D20: =IF('INGRESO DE DATOS'!$G$21="Guayaquil/Santa Elena",'Tablas Guayaquil'!D20,'Tablas Resto de Ecuador'!D20) -> 2137 | E20: =IF('INGRESO DE DATOS'!$G$21="Guayaquil/Santa Elena",'Tablas Guayaquil'!E20,'Tablas Resto de Ecuador'!E20) -> 1625 | F20: =IF('INGRESO DE DATOS'!$G$21="Guayaquil/Santa Elena",'Tablas Guayaquil'!F20,'Tablas Resto de Ecuador'!F20) -> 1180 | G20: =IF('INGRESO DE DATOS'!$G$21="Guayaquil/Santa Elena",'Tablas Guayaquil'!G20,'Tablas Resto de Ecuador'!G20) -> 704 | H20: =IF('INGRESO DE DATOS'!$G$21="Guayaquil/Santa Elena",'Tablas Guayaquil'!H20,'Tablas Resto de Ecuador'!H20) -> 449 | I20: =IF('INGRESO DE DATOS'!$G$21="Guayaquil/Santa Elena",'Tablas Guayaquil'!I20,'Tablas Resto de Ecuador'!I20) -> 282
A21: 33 | C21: =IF('INGRESO DE DATOS'!$G$21="Guayaquil/Santa Elena",'Tablas Guayaquil'!C21,'Tablas Resto de Ecuador'!C21) -> 2718 | D21: =IF('INGRESO DE DATOS'!$G$21="Guayaquil/Santa Elena",'Tablas Guayaquil'!D21,'Tablas Resto de Ecuador'!D21) -> 2194 | E21: =IF('INGRESO DE DATOS'!$G$21="Guayaquil/Santa Elena",'Tablas Guayaquil'!E21,'Tablas Resto de Ecuador'!E21) -> 1674 | F21: =IF('INGRESO DE DATOS'!$G$21="Guayaquil/Santa Elena",'Tablas Guayaquil'!F21,'Tablas Resto de Ecuador'!F21) -> 1220 | G21: =IF('INGRESO DE DATOS'!$G$21="Guayaquil/Santa Elena",'Tablas Guayaquil'!G21,'Tablas Resto de Ecuador'!G21) -> 730 | H21: =IF('INGRESO DE DATOS'!$G$21="Guayaquil/Santa Elena",'Tablas Guayaquil'!H21,'Tablas Resto de Ecuador'!H21) -> 469 | I21: =IF('INGRESO DE DATOS'!$G$21="Guayaquil/Santa Elena",'Tablas Guayaquil'!I21,'Tablas Resto de Ecuador'!I21) -> 296
A22: 34 | C22: =IF('INGRESO DE DATOS'!$G$21="Guayaquil/Santa Elena",'Tablas Guayaquil'!C22,'Tablas Resto de Ecuador'!C22) -> 2790 | D22: =IF('INGRESO DE DATOS'!$G$21="Guayaquil/Santa Elena",'Tablas Guayaquil'!D22,'Tablas Resto de Ecuador'!D22) -> 2258 | E22: =IF('INGRESO DE DATOS'!$G$21="Guayaquil/Santa Elena",'Tablas Guayaquil'!E22,'Tablas Resto de Ecuador'!E22) -> 1728 | F22: =IF('INGRESO DE DATOS'!$G$21="Guayaquil/Santa Elena",'Tablas Guayaquil'!F22,'Tablas Resto de Ecuador'!F22) -> 1264 | G22: =IF('INGRESO DE DATOS'!$G$21="Guayaquil/Santa Elena",'Tablas Guayaquil'!G22,'Tablas Resto de Ecuador'!G22) -> 760 | H22: =IF('INGRESO DE DATOS'!$G$21="Guayaquil/Santa Elena",'Tablas Guayaquil'!H22,'Tablas Resto de Ecuador'!H22) -> 489 | I22: =IF('INGRESO DE DATOS'!$G$21="Guayaquil/Santa Elena",'Tablas Guayaquil'!I22,'Tablas Resto de Ecuador'!I22) -> 312
A23: 35 | C23: =IF('INGRESO DE DATOS'!$G$21="Guayaquil/Santa Elena",'Tablas Guayaquil'!C23,'Tablas Resto de Ecuador'!C23) -> 2870 | D23: =IF('INGRESO DE DATOS'!$G$21="Guayaquil/Santa Elena",'Tablas Guayaquil'!D23,'Tablas Resto de Ecuador'!D23) -> 2328 | E23: =IF('INGRESO DE DATOS'!$G$21="Guayaquil/Santa Elena",'Tablas Guayaquil'!E23,'Tablas Resto de Ecuador'!E23) -> 1788 | F23: =IF('INGRESO DE DATOS'!$G$21="Guayaquil/Santa Elena",'Tablas Guayaquil'!F23,'Tablas Resto de Ecuador'!F23) -> 1312 | G23: =IF('INGRESO DE DATOS'!$G$21="Guayaquil/Santa Elena",'Tablas Guayaquil'!G23,'Tablas Resto de Ecuador'!G23) -> 792 | H23: =IF('INGRESO DE DATOS'!$G$21="Guayaquil/Santa Elena",'Tablas Guayaquil'!H23,'Tablas Resto de Ecuador'!H23) -> 513 | I23: =IF('INGRESO DE DATOS'!$G$21="Guayaquil/Santa Elena",'Tablas Guayaquil'!I23,'Tablas Resto de Ecuador'!I23) -> 328
A24: 36 | C24: =IF('INGRESO DE DATOS'!$G$21="Guayaquil/Santa Elena",'Tablas Guayaquil'!C24,'Tablas Resto de Ecuador'!C24) -> 2959 | D24: =IF('INGRESO DE DATOS'!$G$21="Guayaquil/Santa Elena",'Tablas Guayaquil'!D24,'Tablas Resto de Ecuador'!D24) -> 2407 | E24: =IF('INGRESO DE DATOS'!$G$21="Guayaquil/Santa Elena",'Tablas Guayaquil'!E24,'Tablas Resto de Ecuador'!E24) -> 1853 | F24: =IF('INGRESO DE DATOS'!$G$21="Guayaquil/Santa Elena",'Tablas Guayaquil'!F24,'Tablas Resto de Ecuador'!F24) -> 1363 | G24: =IF('INGRESO DE DATOS'!$G$21="Guayaquil/Santa Elena",'Tablas Guayaquil'!G24,'Tablas Resto de Ecuador'!G24) -> 828 | H24: =IF('INGRESO DE DATOS'!$G$21="Guayaquil/Santa Elena",'Tablas Guayaquil'!H24,'Tablas Resto de Ecuador'!H24) -> 539 | I24: =IF('INGRESO DE DATOS'!$G$21="Guayaquil/Santa Elena",'Tablas Guayaquil'!I24,'Tablas Resto de Ecuador'!I24) -> 347
A25: 37 | C25: =IF('INGRESO DE DATOS'!$G$21="Guayaquil/Santa Elena",'Tablas Guayaquil'!C25,'Tablas Resto de Ecuador'!C25) -> 3057 | D25: =IF('INGRESO DE DATOS'!$G$21="Guayaquil/Santa Elena",'Tablas Guayaquil'!D25,'Tablas Resto de Ecuador'!D25) -> 2492 | E25: =IF('INGRESO DE DATOS'!$G$21="Guayaquil/Santa Elena",'Tablas Guayaquil'!E25,'Tablas Resto de Ecuador'!E25) -> 1923 | F25: =IF('INGRESO DE DATOS'!$G$21="Guayaquil/Santa Elena",'Tablas Guayaquil'!F25,'Tablas Resto de Ecuador'!F25) -> 1420 | G25: =IF('INGRESO DE DATOS'!$G$21="Guayaquil/Santa Elena",'Tablas Guayaquil'!G25,'Tablas Resto de Ecuador'!G25) -> 867 | H25: =IF('INGRESO DE DATOS'!$G$21="Guayaquil/Santa Elena",'Tablas Guayaquil'!H25,'Tablas Resto de Ecuador'!H25) -> 566 | I25: =IF('INGRESO DE DATOS'!$G$21="Guayaquil/Santa Elena",'Tablas Guayaquil'!I25,'Tablas Resto de Ecuador'!I25) -> 366
A26: 38 | C26: =IF('INGRESO DE DATOS'!$G$21="Guayaquil/Santa Elena",'Tablas Guayaquil'!C26,'Tablas Resto de Ecuador'!C26) -> 3163 | D26: =IF('INGRESO DE DATOS'!$G$21="Guayaquil/Santa Elena",'Tablas Guayaquil'!D26,'Tablas Resto de Ecuador'!D26) -> 2584 | E26: =IF('INGRESO DE DATOS'!$G$21="Guayaquil/Santa Elena",'Tablas Guayaquil'!E26,'Tablas Resto de Ecuador'!E26) -> 2000 | F26: =IF('INGRESO DE DATOS'!$G$21="Guayaquil/Santa Elena",'Tablas Guayaquil'!F26,'Tablas Resto de Ecuador'!F26) -> 1482 | G26: =IF('INGRESO DE DATOS'!$G$21="Guayaquil/Santa Elena",'Tablas Guayaquil'!G26,'Tablas Resto de Ecuador'!G26) -> 909 | H26: =IF('INGRESO DE DATOS'!$G$21="Guayaquil/Santa Elena",'Tablas Guayaquil'!H26,'Tablas Resto de Ecuador'!H26) -> 596 | I26: =IF('INGRESO DE DATOS'!$G$21="Guayaquil/Santa Elena",'Tablas Guayaquil'!I26,'Tablas Resto de Ecuador'!I26) -> 388
A27: 39 | C27: =IF('INGRESO DE DATOS'!$G$21="Guayaquil/Santa Elena",'Tablas Guayaquil'!C27,'Tablas Resto de Ecuador'!C27) -> 3279 | D27: =IF('INGRESO DE DATOS'!$G$21="Guayaquil/Santa Elena",'Tablas Guayaquil'!D27,'Tablas Resto de Ecuador'!D27) -> 2685 | E27: =IF('INGRESO DE DATOS'!$G$21="Guayaquil/Santa Elena",'Tablas Guayaquil'!E27,'Tablas Resto de Ecuador'!E27) -> 2085 | F27: =IF('INGRESO DE DATOS'!$G$21="Guayaquil/Santa Elena",'Tablas Guayaquil'!F27,'Tablas Resto de Ecuador'!F27) -> 1549 | G27: =IF('INGRESO DE DATOS'!$G$21="Guayaquil/Santa Elena",'Tablas Guayaquil'!G27,'Tablas Resto de Ecuador'!G27) -> 954 | H27: =IF('INGRESO DE DATOS'!$G$21="Guayaquil/Santa Elena",'Tablas Guayaquil'!H27,'Tablas Resto de Ecuador'!H27) -> 628 | I27: =IF('INGRESO DE DATOS'!$G$21="Guayaquil/Santa Elena",'Tablas Guayaquil'!I27,'Tablas Resto de Ecuador'!I27) -> 411
A28: 40 | C28: =IF('INGRESO DE DATOS'!$G$21="Guayaquil/Santa Elena",'Tablas Guayaquil'!C28,'Tablas Resto de Ecuador'!C28) -> 3372 | D28: =IF('INGRESO DE DATOS'!$G$21="Guayaquil/Santa Elena",'Tablas Guayaquil'!D28,'Tablas Resto de Ecuador'!D28) -> 2795 | E28: =IF('INGRESO DE DATOS'!$G$21="Guayaquil/Santa Elena",'Tablas Guayaquil'!E28,'Tablas Resto de Ecuador'!E28) -> 2177 | F28: =IF('INGRESO DE DATOS'!$G$21="Guayaquil/Santa Elena",'Tablas Guayaquil'!F28,'Tablas Resto de Ecuador'!F28) -> 1622 | G28: =IF('INGRESO DE DATOS'!$G$21="Guayaquil/Santa Elena",'Tablas Guayaquil'!G28,'Tablas Resto de Ecuador'!G28) -> 1004 | H28: =IF('INGRESO DE DATOS'!$G$21="Guayaquil/Santa Elena",'Tablas Guayaquil'!H28,'Tablas Resto de Ecuador'!H28) -> 664 | I28: =IF('INGRESO DE DATOS'!$G$21="Guayaquil/Santa Elena",'Tablas Guayaquil'!I28,'Tablas Resto de Ecuador'!I28) -> 437
A29: 41 | C29: =IF('INGRESO DE DATOS'!$G$21="Guayaquil/Santa Elena",'Tablas Guayaquil'!C29,'Tablas Resto de Ecuador'!C29) -> 3447 | D29: =IF('INGRESO DE DATOS'!$G$21="Guayaquil/Santa Elena",'Tablas Guayaquil'!D29,'Tablas Resto de Ecuador'!D29) -> 2914 | E29: =IF('INGRESO DE DATOS'!$G$21="Guayaquil/Santa Elena",'Tablas Guayaquil'!E29,'Tablas Resto de Ecuador'!E29) -> 2275 | F29: =IF('INGRESO DE DATOS'!$G$21="Guayaquil/Santa Elena",'Tablas Guayaquil'!F29,'Tablas Resto de Ecuador'!F29) -> 1700 | G29: =IF('INGRESO DE DATOS'!$G$21="Guayaquil/Santa Elena",'Tablas Guayaquil'!G29,'Tablas Resto de Ecuador'!G29) -> 1056 | H29: =IF('INGRESO DE DATOS'!$G$21="Guayaquil/Santa Elena",'Tablas Guayaquil'!H29,'Tablas Resto de Ecuador'!H29) -> 702 | I29: =IF('INGRESO DE DATOS'!$G$21="Guayaquil/Santa Elena",'Tablas Guayaquil'!I29,'Tablas Resto de Ecuador'!I29) -> 465
A30: 42 | C30: =IF('INGRESO DE DATOS'!$G$21="Guayaquil/Santa Elena",'Tablas Guayaquil'!C30,'Tablas Resto de Ecuador'!C30) -> 3528 | D30: =IF('INGRESO DE DATOS'!$G$21="Guayaquil/Santa Elena",'Tablas Guayaquil'!D30,'Tablas Resto de Ecuador'!D30) -> 3044 | E30: =IF('INGRESO DE DATOS'!$G$21="Guayaquil/Santa Elena",'Tablas Guayaquil'!E30,'Tablas Resto de Ecuador'!E30) -> 2383 | F30: =IF('INGRESO DE DATOS'!$G$21="Guayaquil/Santa Elena",'Tablas Guayaquil'!F30,'Tablas Resto de Ecuador'!F30) -> 1787 | G30: =IF('INGRESO DE DATOS'!$G$21="Guayaquil/Santa Elena",'Tablas Guayaquil'!G30,'Tablas Resto de Ecuador'!G30) -> 1115 | H30: =IF('INGRESO DE DATOS'!$G$21="Guayaquil/Santa Elena",'Tablas Guayaquil'!H30,'Tablas Resto de Ecuador'!H30) -> 743 | I30: =IF('INGRESO DE DATOS'!$G$21="Guayaquil/Santa Elena",'Tablas Guayaquil'!I30,'Tablas Resto de Ecuador'!I30) -> 495
A31: 43 | C31: =IF('INGRESO DE DATOS'!$G$21="Guayaquil/Santa Elena",'Tablas Guayaquil'!C31,'Tablas Resto de Ecuador'!C31) -> 3663 | D31: =IF('INGRESO DE DATOS'!$G$21="Guayaquil/Santa Elena",'Tablas Guayaquil'!D31,'Tablas Resto de Ecuador'!D31) -> 3183 | E31: =IF('INGRESO DE DATOS'!$G$21="Guayaquil/Santa Elena",'Tablas Guayaquil'!E31,'Tablas Resto de Ecuador'!E31) -> 2499 | F31: =IF('INGRESO DE DATOS'!$G$21="Guayaquil/Santa Elena",'Tablas Guayaquil'!F31,'Tablas Resto de Ecuador'!F31) -> 1879 | G31: =IF('INGRESO DE DATOS'!$G$21="Guayaquil/Santa Elena",'Tablas Guayaquil'!G31,'Tablas Resto de Ecuador'!G31) -> 1178 | H31: =IF('INGRESO DE DATOS'!$G$21="Guayaquil/Santa Elena",'Tablas Guayaquil'!H31,'Tablas Resto de Ecuador'!H31) -> 789 | I31: =IF('INGRESO DE DATOS'!$G$21="Guayaquil/Santa Elena",'Tablas Guayaquil'!I31,'Tablas Resto de Ecuador'!I31) -> 528
A32: 44 | C32: =IF('INGRESO DE DATOS'!$G$21="Guayaquil/Santa Elena",'Tablas Guayaquil'!C32,'Tablas Resto de Ecuador'!C32) -> 3804 | D32: =IF('INGRESO DE DATOS'!$G$21="Guayaquil/Santa Elena",'Tablas Guayaquil'!D32,'Tablas Resto de Ecuador'!D32) -> 3309 | E32: =IF('INGRESO DE DATOS'!$G$21="Guayaquil/Santa Elena",'Tablas Guayaquil'!E32,'Tablas Resto de Ecuador'!E32) -> 2624 | F32: =IF('INGRESO DE DATOS'!$G$21="Guayaquil/Santa Elena",'Tablas Guayaquil'!F32,'Tablas Resto de Ecuador'!F32) -> 1979 | G32: =IF('INGRESO DE DATOS'!$G$21="Guayaquil/Santa Elena",'Tablas Guayaquil'!G32,'Tablas Resto de Ecuador'!G32) -> 1246 | H32: =IF('INGRESO DE DATOS'!$G$21="Guayaquil/Santa Elena",'Tablas Guayaquil'!H32,'Tablas Resto de Ecuador'!H32) -> 838 | I32: =IF('INGRESO DE DATOS'!$G$21="Guayaquil/Santa Elena",'Tablas Guayaquil'!I32,'Tablas Resto de Ecuador'!I32) -> 564
A33: 45 | C33: =IF('INGRESO DE DATOS'!$G$21="Guayaquil/Santa Elena",'Tablas Guayaquil'!C33,'Tablas Resto de Ecuador'!C33) -> 3945 | D33: =IF('INGRESO DE DATOS'!$G$21="Guayaquil/Santa Elena",'Tablas Guayaquil'!D33,'Tablas Resto de Ecuador'!D33) -> 3429 | E33: =IF('INGRESO DE DATOS'!$G$21="Guayaquil/Santa Elena",'Tablas Guayaquil'!E33,'Tablas Resto de Ecuador'!E33) -> 2759 | F33: =IF('INGRESO DE DATOS'!$G$21="Guayaquil/Santa Elena",'Tablas Guayaquil'!F33,'Tablas Resto de Ecuador'!F33) -> 2088 | G33: =IF('INGRESO DE DATOS'!$G$21="Guayaquil/Santa Elena",'Tablas Guayaquil'!G33,'Tablas Resto de Ecuador'!G33) -> 1319 | H33: =IF('INGRESO DE DATOS'!$G$21="Guayaquil/Santa Elena",'Tablas Guayaquil'!H33,'Tablas Resto de Ecuador'!H33) -> 891 | I33: =IF('INGRESO DE DATOS'!$G$21="Guayaquil/Santa Elena",'Tablas Guayaquil'!I33,'Tablas Resto de Ecuador'!I33) -> 602
A34: 46 | C34: =IF('INGRESO DE DATOS'!$G$21="Guayaquil/Santa Elena",'Tablas Guayaquil'!C34,'Tablas Resto de Ecuador'!C34) -> 4084 | D34: =IF('INGRESO DE DATOS'!$G$21="Guayaquil/Santa Elena",'Tablas Guayaquil'!D34,'Tablas Resto de Ecuador'!D34) -> 3552 | E34: =IF('INGRESO DE DATOS'!$G$21="Guayaquil/Santa Elena",'Tablas Guayaquil'!E34,'Tablas Resto de Ecuador'!E34) -> 2905 | F34: =IF('INGRESO DE DATOS'!$G$21="Guayaquil/Santa Elena",'Tablas Guayaquil'!F34,'Tablas Resto de Ecuador'!F34) -> 2204 | G34: =IF('INGRESO DE DATOS'!$G$21="Guayaquil/Santa Elena",'Tablas Guayaquil'!G34,'Tablas Resto de Ecuador'!G34) -> 1400 | H34: =IF('INGRESO DE DATOS'!$G$21="Guayaquil/Santa Elena",'Tablas Guayaquil'!H34,'Tablas Resto de Ecuador'!H34) -> 948 | I34: =IF('INGRESO DE DATOS'!$G$21="Guayaquil/Santa Elena",'Tablas Guayaquil'!I34,'Tablas Resto de Ecuador'!I34) -> 644
A35: 47 | C35: =IF('INGRESO DE DATOS'!$G$21="Guayaquil/Santa Elena",'Tablas Guayaquil'!C35,'Tablas Resto de Ecuador'!C35) -> 4227 | D35: =IF('INGRESO DE DATOS'!$G$21="Guayaquil/Santa Elena",'Tablas Guayaquil'!D35,'Tablas Resto de Ecuador'!D35) -> 3674 | E35: =IF('INGRESO DE DATOS'!$G$21="Guayaquil/Santa Elena",'Tablas Guayaquil'!E35,'Tablas Resto de Ecuador'!E35) -> 3062 | F35: =IF('INGRESO DE DATOS'!$G$21="Guayaquil/Santa Elena",'Tablas Guayaquil'!F35,'Tablas Resto de Ecuador'!F35) -> 2330 | G35: =IF('INGRESO DE DATOS'!$G$21="Guayaquil/Santa Elena",'Tablas Guayaquil'!G35,'Tablas Resto de Ecuador'!G35) -> 1485 | H35: =IF('INGRESO DE DATOS'!$G$21="Guayaquil/Santa Elena",'Tablas Guayaquil'!H35,'Tablas Resto de Ecuador'!H35) -> 1010 | I35: =IF('INGRESO DE DATOS'!$G$21="Guayaquil/Santa Elena",'Tablas Guayaquil'!I35,'Tablas Resto de Ecuador'!I35) -> 690
A36: 48 | C36: =IF('INGRESO DE DATOS'!$G$21="Guayaquil/Santa Elena",'Tablas Guayaquil'!C36,'Tablas Resto de Ecuador'!C36) -> 4377 | D36: =IF('INGRESO DE DATOS'!$G$21="Guayaquil/Santa Elena",'Tablas Guayaquil'!D36,'Tablas Resto de Ecuador'!D36) -> 3804 | E36: =IF('INGRESO DE DATOS'!$G$21="Guayaquil/Santa Elena",'Tablas Guayaquil'!E36,'Tablas Resto de Ecuador'!E36) -> 3232 | F36: =IF('INGRESO DE DATOS'!$G$21="Guayaquil/Santa Elena",'Tablas Guayaquil'!F36,'Tablas Resto de Ecuador'!F36) -> 2467 | G36: =IF('INGRESO DE DATOS'!$G$21="Guayaquil/Santa Elena",'Tablas Guayaquil'!G36,'Tablas Resto de Ecuador'!G36) -> 1578 | H36: =IF('INGRESO DE DATOS'!$G$21="Guayaquil/Santa Elena",'Tablas Guayaquil'!H36,'Tablas Resto de Ecuador'!H36) -> 1078 | I36: =IF('INGRESO DE DATOS'!$G$21="Guayaquil/Santa Elena",'Tablas Guayaquil'!I36,'Tablas Resto de Ecuador'!I36) -> 740
A37: 49 | C37: =IF('INGRESO DE DATOS'!$G$21="Guayaquil/Santa Elena",'Tablas Guayaquil'!C37,'Tablas Resto de Ecuador'!C37) -> 4523 | D37: =IF('INGRESO DE DATOS'!$G$21="Guayaquil/Santa Elena",'Tablas Guayaquil'!D37,'Tablas Resto de Ecuador'!D37) -> 3933 | E37: =IF('INGRESO DE DATOS'!$G$21="Guayaquil/Santa Elena",'Tablas Guayaquil'!E37,'Tablas Resto de Ecuador'!E37) -> 3414 | F37: =IF('INGRESO DE DATOS'!$G$21="Guayaquil/Santa Elena",'Tablas Guayaquil'!F37,'Tablas Resto de Ecuador'!F37) -> 2614 | G37: =IF('INGRESO DE DATOS'!$G$21="Guayaquil/Santa Elena",'Tablas Guayaquil'!G37,'Tablas Resto de Ecuador'!G37) -> 1679 | H37: =IF('INGRESO DE DATOS'!$G$21="Guayaquil/Santa Elena",'Tablas Guayaquil'!H37,'Tablas Resto de Ecuador'!H37) -> 1152 | I37: =IF('INGRESO DE DATOS'!$G$21="Guayaquil/Santa Elena",'Tablas Guayaquil'!I37,'Tablas Resto de Ecuador'!I37) -> 794
A38: 50 | C38: =IF('INGRESO DE DATOS'!$G$21="Guayaquil/Santa Elena",'Tablas Guayaquil'!C38,'Tablas Resto de Ecuador'!C38) -> 4670 | D38: =IF('INGRESO DE DATOS'!$G$21="Guayaquil/Santa Elena",'Tablas Guayaquil'!D38,'Tablas Resto de Ecuador'!D38) -> 4063 | E38: =IF('INGRESO DE DATOS'!$G$21="Guayaquil/Santa Elena",'Tablas Guayaquil'!E38,'Tablas Resto de Ecuador'!E38) -> 3624 | F38: =IF('INGRESO DE DATOS'!$G$21="Guayaquil/Santa Elena",'Tablas Guayaquil'!F38,'Tablas Resto de Ecuador'!F38) -> 2784 | G38: =IF('INGRESO DE DATOS'!$G$21="Guayaquil/Santa Elena",'Tablas Guayaquil'!G38,'Tablas Resto de Ecuador'!G38) -> 1797 | H38: =IF('INGRESO DE DATOS'!$G$21="Guayaquil/Santa Elena",'Tablas Guayaquil'!H38,'Tablas Resto de Ecuador'!H38) -> 1237 | I38: =IF('INGRESO DE DATOS'!$G$21="Guayaquil/Santa Elena",'Tablas Guayaquil'!I38,'Tablas Resto de Ecuador'!I38) -> 857
A39: 51 | C39: =IF('INGRESO DE DATOS'!$G$21="Guayaquil/Santa Elena",'Tablas Guayaquil'!C39,'Tablas Resto de Ecuador'!C39) -> 4817 | D39: =IF('INGRESO DE DATOS'!$G$21="Guayaquil/Santa Elena",'Tablas Guayaquil'!D39,'Tablas Resto de Ecuador'!D39) -> 4190 | E39: =IF('INGRESO DE DATOS'!$G$21="Guayaquil/Santa Elena",'Tablas Guayaquil'!E39,'Tablas Resto de Ecuador'!E39) -> 3820 | F39: =IF('INGRESO DE DATOS'!$G$21="Guayaquil/Santa Elena",'Tablas Guayaquil'!F39,'Tablas Resto de Ecuador'!F39) -> 2989 | G39: =IF('INGRESO DE DATOS'!$G$21="Guayaquil/Santa Elena",'Tablas Guayaquil'!G39,'Tablas Resto de Ecuador'!G39) -> 1940 | H39: =IF('INGRESO DE DATOS'!$G$21="Guayaquil/Santa Elena",'Tablas Guayaquil'!H39,'Tablas Resto de Ecuador'!H39) -> 1341 | I39: =IF('INGRESO DE DATOS'!$G$21="Guayaquil/Santa Elena",'Tablas Guayaquil'!I39,'Tablas Resto de Ecuador'!I39) -> 934
A40: 52 | C40: =IF('INGRESO DE DATOS'!$G$21="Guayaquil/Santa Elena",'Tablas Guayaquil'!C40,'Tablas Resto de Ecuador'!C40) -> 4965 | D40: =IF('INGRESO DE DATOS'!$G$21="Guayaquil/Santa Elena",'Tablas Guayaquil'!D40,'Tablas Resto de Ecuador'!D40) -> 4319 | E40: =IF('INGRESO DE DATOS'!$G$21="Guayaquil/Santa Elena",'Tablas Guayaquil'!E40,'Tablas Resto de Ecuador'!E40) -> 3938 | F40: =IF('INGRESO DE DATOS'!$G$21="Guayaquil/Santa Elena",'Tablas Guayaquil'!F40,'Tablas Resto de Ecuador'!F40) -> 3209 | G40: =IF('INGRESO DE DATOS'!$G$21="Guayaquil/Santa Elena",'Tablas Guayaquil'!G40,'Tablas Resto de Ecuador'!G40) -> 2092 | H40: =IF('INGRESO DE DATOS'!$G$21="Guayaquil/Santa Elena",'Tablas Guayaquil'!H40,'Tablas Resto de Ecuador'!H40) -> 1453 | I40: =IF('INGRESO DE DATOS'!$G$21="Guayaquil/Santa Elena",'Tablas Guayaquil'!I40,'Tablas Resto de Ecuador'!I40) -> 1017
A41: 53 | C41: =IF('INGRESO DE DATOS'!$G$21="Guayaquil/Santa Elena",'Tablas Guayaquil'!C41,'Tablas Resto de Ecuador'!C41) -> 5142 | D41: =IF('INGRESO DE DATOS'!$G$21="Guayaquil/Santa Elena",'Tablas Guayaquil'!D41,'Tablas Resto de Ecuador'!D41) -> 4470 | E41: =IF('INGRESO DE DATOS'!$G$21="Guayaquil/Santa Elena",'Tablas Guayaquil'!E41,'Tablas Resto de Ecuador'!E41) -> 4079 | F41: =IF('INGRESO DE DATOS'!$G$21="Guayaquil/Santa Elena",'Tablas Guayaquil'!F41,'Tablas Resto de Ecuador'!F41) -> 3445 | G41: =IF('INGRESO DE DATOS'!$G$21="Guayaquil/Santa Elena",'Tablas Guayaquil'!G41,'Tablas Resto de Ecuador'!G41) -> 2256 | H41: =IF('INGRESO DE DATOS'!$G$21="Guayaquil/Santa Elena",'Tablas Guayaquil'!H41,'Tablas Resto de Ecuador'!H41) -> 1573 | I41: =IF('INGRESO DE DATOS'!$G$21="Guayaquil/Santa Elena",'Tablas Guayaquil'!I41,'Tablas Resto de Ecuador'!I41) -> 1107
A42: 54 | C42: =IF('INGRESO DE DATOS'!$G$21="Guayaquil/Santa Elena",'Tablas Guayaquil'!C42,'Tablas Resto de Ecuador'!C42) -> 5318 | D42: =IF('INGRESO DE DATOS'!$G$21="Guayaquil/Santa Elena",'Tablas Guayaquil'!D42,'Tablas Resto de Ecuador'!D42) -> 4624 | E42: =IF('INGRESO DE DATOS'!$G$21="Guayaquil/Santa Elena",'Tablas Guayaquil'!E42,'Tablas Resto de Ecuador'!E42) -> 4217 | F42: =IF('INGRESO DE DATOS'!$G$21="Guayaquil/Santa Elena",'Tablas Guayaquil'!F42,'Tablas Resto de Ecuador'!F42) -> 3700 | G42: =IF('INGRESO DE DATOS'!$G$21="Guayaquil/Santa Elena",'Tablas Guayaquil'!G42,'Tablas Resto de Ecuador'!G42) -> 2433 | H42: =IF('INGRESO DE DATOS'!$G$21="Guayaquil/Santa Elena",'Tablas Guayaquil'!H42,'Tablas Resto de Ecuador'!H42) -> 1701 | I42: =IF('INGRESO DE DATOS'!$G$21="Guayaquil/Santa Elena",'Tablas Guayaquil'!I42,'Tablas Resto de Ecuador'!I42) -> 1203
A43: 55 | C43: =IF('INGRESO DE DATOS'!$G$21="Guayaquil/Santa Elena",'Tablas Guayaquil'!C43,'Tablas Resto de Ecuador'!C43) -> 5497 | D43: =IF('INGRESO DE DATOS'!$G$21="Guayaquil/Santa Elena",'Tablas Guayaquil'!D43,'Tablas Resto de Ecuador'!D43) -> 4779 | E43: =IF('INGRESO DE DATOS'!$G$21="Guayaquil/Santa Elena",'Tablas Guayaquil'!E43,'Tablas Resto de Ecuador'!E43) -> 4355 | F43: =IF('INGRESO DE DATOS'!$G$21="Guayaquil/Santa Elena",'Tablas Guayaquil'!F43,'Tablas Resto de Ecuador'!F43) -> 3843 | G43: =IF('INGRESO DE DATOS'!$G$21="Guayaquil/Santa Elena",'Tablas Guayaquil'!G43,'Tablas Resto de Ecuador'!G43) -> 2622 | H43: =IF('INGRESO DE DATOS'!$G$21="Guayaquil/Santa Elena",'Tablas Guayaquil'!H43,'Tablas Resto de Ecuador'!H43) -> 1839 | I43: =IF('INGRESO DE DATOS'!$G$21="Guayaquil/Santa Elena",'Tablas Guayaquil'!I43,'Tablas Resto de Ecuador'!I43) -> 1306
A44: 56 | C44: =IF('INGRESO DE DATOS'!$G$21="Guayaquil/Santa Elena",'Tablas Guayaquil'!C44,'Tablas Resto de Ecuador'!C44) -> 5672 | D44: =IF('INGRESO DE DATOS'!$G$21="Guayaquil/Santa Elena",'Tablas Guayaquil'!D44,'Tablas Resto de Ecuador'!D44) -> 4930 | E44: =IF('INGRESO DE DATOS'!$G$21="Guayaquil/Santa Elena",'Tablas Guayaquil'!E44,'Tablas Resto de Ecuador'!E44) -> 4493 | F44: =IF('INGRESO DE DATOS'!$G$21="Guayaquil/Santa Elena",'Tablas Guayaquil'!F44,'Tablas Resto de Ecuador'!F44) -> 3975 | G44: =IF('INGRESO DE DATOS'!$G$21="Guayaquil/Santa Elena",'Tablas Guayaquil'!G44,'Tablas Resto de Ecuador'!G44) -> 2775 | H44: =IF('INGRESO DE DATOS'!$G$21="Guayaquil/Santa Elena",'Tablas Guayaquil'!H44,'Tablas Resto de Ecuador'!H44) -> 1988 | I44: =IF('INGRESO DE DATOS'!$G$21="Guayaquil/Santa Elena",'Tablas Guayaquil'!I44,'Tablas Resto de Ecuador'!I44) -> 1416
A45: 57 | C45: =IF('INGRESO DE DATOS'!$G$21="Guayaquil/Santa Elena",'Tablas Guayaquil'!C45,'Tablas Resto de Ecuador'!C45) -> 5844 | D45: =IF('INGRESO DE DATOS'!$G$21="Guayaquil/Santa Elena",'Tablas Guayaquil'!D45,'Tablas Resto de Ecuador'!D45) -> 5084 | E45: =IF('INGRESO DE DATOS'!$G$21="Guayaquil/Santa Elena",'Tablas Guayaquil'!E45,'Tablas Resto de Ecuador'!E45) -> 4634 | F45: =IF('INGRESO DE DATOS'!$G$21="Guayaquil/Santa Elena",'Tablas Guayaquil'!F45,'Tablas Resto de Ecuador'!F45) -> 4109 | G45: =IF('INGRESO DE DATOS'!$G$21="Guayaquil/Santa Elena",'Tablas Guayaquil'!G45,'Tablas Resto de Ecuador'!G45) -> 2861 | H45: =IF('INGRESO DE DATOS'!$G$21="Guayaquil/Santa Elena",'Tablas Guayaquil'!H45,'Tablas Resto de Ecuador'!H45) -> 2148 | I45: =IF('INGRESO DE DATOS'!$G$21="Guayaquil/Santa Elena",'Tablas Guayaquil'!I45,'Tablas Resto de Ecuador'!I45) -> 1536
A46: 58 | C46: =IF('INGRESO DE DATOS'!$G$21="Guayaquil/Santa Elena",'Tablas Guayaquil'!C46,'Tablas Resto de Ecuador'!C46) -> 6047 | D46: =IF('INGRESO DE DATOS'!$G$21="Guayaquil/Santa Elena",'Tablas Guayaquil'!D46,'Tablas Resto de Ecuador'!D46) -> 5257 | E46: =IF('INGRESO DE DATOS'!$G$21="Guayaquil/Santa Elena",'Tablas Guayaquil'!E46,'Tablas Resto de Ecuador'!E46) -> 4780 | F46: =IF('INGRESO DE DATOS'!$G$21="Guayaquil/Santa Elena",'Tablas Guayaquil'!F46,'Tablas Resto de Ecuador'!F46) -> 4285 | G46: =IF('INGRESO DE DATOS'!$G$21="Guayaquil/Santa Elena",'Tablas Guayaquil'!G46,'Tablas Resto de Ecuador'!G46) -> 2975 | H46: =IF('INGRESO DE DATOS'!$G$21="Guayaquil/Santa Elena",'Tablas Guayaquil'!H46,'Tablas Resto de Ecuador'!H46) -> 2319 | I46: =IF('INGRESO DE DATOS'!$G$21="Guayaquil/Santa Elena",'Tablas Guayaquil'!I46,'Tablas Resto de Ecuador'!I46) -> 1663
A47: 59 | C47: =IF('INGRESO DE DATOS'!$G$21="Guayaquil/Santa Elena",'Tablas Guayaquil'!C47,'Tablas Resto de Ecuador'!C47) -> 6249 | D47: =IF('INGRESO DE DATOS'!$G$21="Guayaquil/Santa Elena",'Tablas Guayaquil'!D47,'Tablas Resto de Ecuador'!D47) -> 5434 | E47: =IF('INGRESO DE DATOS'!$G$21="Guayaquil/Santa Elena",'Tablas Guayaquil'!E47,'Tablas Resto de Ecuador'!E47) -> 4924 | F47: =IF('INGRESO DE DATOS'!$G$21="Guayaquil/Santa Elena",'Tablas Guayaquil'!F47,'Tablas Resto de Ecuador'!F47) -> 4458 | G47: =IF('INGRESO DE DATOS'!$G$21="Guayaquil/Santa Elena",'Tablas Guayaquil'!G47,'Tablas Resto de Ecuador'!G47) -> 3087 | H47: =IF('INGRESO DE DATOS'!$G$21="Guayaquil/Santa Elena",'Tablas Guayaquil'!H47,'Tablas Resto de Ecuador'!H47) -> 2503 | I47: =IF('INGRESO DE DATOS'!$G$21="Guayaquil/Santa Elena",'Tablas Guayaquil'!I47,'Tablas Resto de Ecuador'!I47) -> 1800
A48: 60 | C48: =IF('INGRESO DE DATOS'!$G$21="Guayaquil/Santa Elena",'Tablas Guayaquil'!C48,'Tablas Resto de Ecuador'!C48) -> 6450 | D48: =IF('INGRESO DE DATOS'!$G$21="Guayaquil/Santa Elena",'Tablas Guayaquil'!D48,'Tablas Resto de Ecuador'!D48) -> 5608 | E48: =IF('INGRESO DE DATOS'!$G$21="Guayaquil/Santa Elena",'Tablas Guayaquil'!E48,'Tablas Resto de Ecuador'!E48) -> 5072 | F48: =IF('INGRESO DE DATOS'!$G$21="Guayaquil/Santa Elena",'Tablas Guayaquil'!F48,'Tablas Resto de Ecuador'!F48) -> 4633 | G48: =IF('INGRESO DE DATOS'!$G$21="Guayaquil/Santa Elena",'Tablas Guayaquil'!G48,'Tablas Resto de Ecuador'!G48) -> 3201 | H48: =IF('INGRESO DE DATOS'!$G$21="Guayaquil/Santa Elena",'Tablas Guayaquil'!H48,'Tablas Resto de Ecuador'!H48) -> 2702 | I48: =IF('INGRESO DE DATOS'!$G$21="Guayaquil/Santa Elena",'Tablas Guayaquil'!I48,'Tablas Resto de Ecuador'!I48) -> 1949
A49: 61 | C49: =IF('INGRESO DE DATOS'!$G$21="Guayaquil/Santa Elena",'Tablas Guayaquil'!C49,'Tablas Resto de Ecuador'!C49) -> 6699 | D49: =IF('INGRESO DE DATOS'!$G$21="Guayaquil/Santa Elena",'Tablas Guayaquil'!D49,'Tablas Resto de Ecuador'!D49) -> 5823 | E49: =IF('INGRESO DE DATOS'!$G$21="Guayaquil/Santa Elena",'Tablas Guayaquil'!E49,'Tablas Resto de Ecuador'!E49) -> 5290 | F49: =IF('INGRESO DE DATOS'!$G$21="Guayaquil/Santa Elena",'Tablas Guayaquil'!F49,'Tablas Resto de Ecuador'!F49) -> 4805 | G49: =IF('INGRESO DE DATOS'!$G$21="Guayaquil/Santa Elena",'Tablas Guayaquil'!G49,'Tablas Resto de Ecuador'!G49) -> 3320 | H49: =IF('INGRESO DE DATOS'!$G$21="Guayaquil/Santa Elena",'Tablas Guayaquil'!H49,'Tablas Resto de Ecuador'!H49) -> 2915 | I49: =IF('INGRESO DE DATOS'!$G$21="Guayaquil/Santa Elena",'Tablas Guayaquil'!I49,'Tablas Resto de Ecuador'!I49) -> 2107
A50: 62 | C50: =IF('INGRESO DE DATOS'!$G$21="Guayaquil/Santa Elena",'Tablas Guayaquil'!C50,'Tablas Resto de Ecuador'!C50) -> 6999 | D50: =IF('INGRESO DE DATOS'!$G$21="Guayaquil/Santa Elena",'Tablas Guayaquil'!D50,'Tablas Resto de Ecuador'!D50) -> 6085 | E50: =IF('INGRESO DE DATOS'!$G$21="Guayaquil/Santa Elena",'Tablas Guayaquil'!E50,'Tablas Resto de Ecuador'!E50) -> 5549 | F50: =IF('INGRESO DE DATOS'!$G$21="Guayaquil/Santa Elena",'Tablas Guayaquil'!F50,'Tablas Resto de Ecuador'!F50) -> 5022 | G50: =IF('INGRESO DE DATOS'!$G$21="Guayaquil/Santa Elena",'Tablas Guayaquil'!G50,'Tablas Resto de Ecuador'!G50) -> 3471 | H50: =IF('INGRESO DE DATOS'!$G$21="Guayaquil/Santa Elena",'Tablas Guayaquil'!H50,'Tablas Resto de Ecuador'!H50) -> 3146 | I50: =IF('INGRESO DE DATOS'!$G$21="Guayaquil/Santa Elena",'Tablas Guayaquil'!I50,'Tablas Resto de Ecuador'!I50) -> 2279
A51: 63 | C51: =IF('INGRESO DE DATOS'!$G$21="Guayaquil/Santa Elena",'Tablas Guayaquil'!C51,'Tablas Resto de Ecuador'!C51) -> 7359 | D51: =IF('INGRESO DE DATOS'!$G$21="Guayaquil/Santa Elena",'Tablas Guayaquil'!D51,'Tablas Resto de Ecuador'!D51) -> 6398 | E51: =IF('INGRESO DE DATOS'!$G$21="Guayaquil/Santa Elena",'Tablas Guayaquil'!E51,'Tablas Resto de Ecuador'!E51) -> 5837 | F51: =IF('INGRESO DE DATOS'!$G$21="Guayaquil/Santa Elena",'Tablas Guayaquil'!F51,'Tablas Resto de Ecuador'!F51) -> 5280 | G51: =IF('INGRESO DE DATOS'!$G$21="Guayaquil/Santa Elena",'Tablas Guayaquil'!G51,'Tablas Resto de Ecuador'!G51) -> 3652 | H51: =IF('INGRESO DE DATOS'!$G$21="Guayaquil/Santa Elena",'Tablas Guayaquil'!H51,'Tablas Resto de Ecuador'!H51) -> 3393 | I51: =IF('INGRESO DE DATOS'!$G$21="Guayaquil/Santa Elena",'Tablas Guayaquil'!I51,'Tablas Resto de Ecuador'!I51) -> 2463
A52: 64 | C52: =IF('INGRESO DE DATOS'!$G$21="Guayaquil/Santa Elena",'Tablas Guayaquil'!C52,'Tablas Resto de Ecuador'!C52) -> 7783 | D52: =IF('INGRESO DE DATOS'!$G$21="Guayaquil/Santa Elena",'Tablas Guayaquil'!D52,'Tablas Resto de Ecuador'!D52) -> 6769 | E52: =IF('INGRESO DE DATOS'!$G$21="Guayaquil/Santa Elena",'Tablas Guayaquil'!E52,'Tablas Resto de Ecuador'!E52) -> 6170 | F52: =IF('INGRESO DE DATOS'!$G$21="Guayaquil/Santa Elena",'Tablas Guayaquil'!F52,'Tablas Resto de Ecuador'!F52) -> 5584 | G52: =IF('INGRESO DE DATOS'!$G$21="Guayaquil/Santa Elena",'Tablas Guayaquil'!G52,'Tablas Resto de Ecuador'!G52) -> 4055 | H52: =IF('INGRESO DE DATOS'!$G$21="Guayaquil/Santa Elena",'Tablas Guayaquil'!H52,'Tablas Resto de Ecuador'!H52) -> 3661 | I52: =IF('INGRESO DE DATOS'!$G$21="Guayaquil/Santa Elena",'Tablas Guayaquil'!I52,'Tablas Resto de Ecuador'!I52) -> 2660
A53: 65 | C53: =IF('INGRESO DE DATOS'!$G$21="Guayaquil/Santa Elena",'Tablas Guayaquil'!C53,'Tablas Resto de Ecuador'!C53) -> 8293 | D53: =IF('INGRESO DE DATOS'!$G$21="Guayaquil/Santa Elena",'Tablas Guayaquil'!D53,'Tablas Resto de Ecuador'!D53) -> 7209 | E53: =IF('INGRESO DE DATOS'!$G$21="Guayaquil/Santa Elena",'Tablas Guayaquil'!E53,'Tablas Resto de Ecuador'!E53) -> 6573 | F53: =IF('INGRESO DE DATOS'!$G$21="Guayaquil/Santa Elena",'Tablas Guayaquil'!F53,'Tablas Resto de Ecuador'!F53) -> 6002 | G53: =IF('INGRESO DE DATOS'!$G$21="Guayaquil/Santa Elena",'Tablas Guayaquil'!G53,'Tablas Resto de Ecuador'!G53) -> 4341 | H53: =IF('INGRESO DE DATOS'!$G$21="Guayaquil/Santa Elena",'Tablas Guayaquil'!H53,'Tablas Resto de Ecuador'!H53) -> 3950 | I53: =IF('INGRESO DE DATOS'!$G$21="Guayaquil/Santa Elena",'Tablas Guayaquil'!I53,'Tablas Resto de Ecuador'!I53) -> 2874
A54: 66 | C54: =IF('INGRESO DE DATOS'!$G$21="Guayaquil/Santa Elena",'Tablas Guayaquil'!C54,'Tablas Resto de Ecuador'!C54) -> 8888 | D54: =IF('INGRESO DE DATOS'!$G$21="Guayaquil/Santa Elena",'Tablas Guayaquil'!D54,'Tablas Resto de Ecuador'!D54) -> 7729 | E54: =IF('INGRESO DE DATOS'!$G$21="Guayaquil/Santa Elena",'Tablas Guayaquil'!E54,'Tablas Resto de Ecuador'!E54) -> 7048 | F54: =IF('INGRESO DE DATOS'!$G$21="Guayaquil/Santa Elena",'Tablas Guayaquil'!F54,'Tablas Resto de Ecuador'!F54) -> 6482 | G54: =IF('INGRESO DE DATOS'!$G$21="Guayaquil/Santa Elena",'Tablas Guayaquil'!G54,'Tablas Resto de Ecuador'!G54) -> 4676 | H54: =IF('INGRESO DE DATOS'!$G$21="Guayaquil/Santa Elena",'Tablas Guayaquil'!H54,'Tablas Resto de Ecuador'!H54) -> 4261 | I54: =IF('INGRESO DE DATOS'!$G$21="Guayaquil/Santa Elena",'Tablas Guayaquil'!I54,'Tablas Resto de Ecuador'!I54) -> 3104
A55: 67 | C55: =IF('INGRESO DE DATOS'!$G$21="Guayaquil/Santa Elena",'Tablas Guayaquil'!C55,'Tablas Resto de Ecuador'!C55) -> 9598 | D55: =IF('INGRESO DE DATOS'!$G$21="Guayaquil/Santa Elena",'Tablas Guayaquil'!D55,'Tablas Resto de Ecuador'!D55) -> 8347 | E55: =IF('INGRESO DE DATOS'!$G$21="Guayaquil/Santa Elena",'Tablas Guayaquil'!E55,'Tablas Resto de Ecuador'!E55) -> 7612 | F55: =IF('INGRESO DE DATOS'!$G$21="Guayaquil/Santa Elena",'Tablas Guayaquil'!F55,'Tablas Resto de Ecuador'!F55) -> 7005 | G55: =IF('INGRESO DE DATOS'!$G$21="Guayaquil/Santa Elena",'Tablas Guayaquil'!G55,'Tablas Resto de Ecuador'!G55) -> 5050 | H55: =IF('INGRESO DE DATOS'!$G$21="Guayaquil/Santa Elena",'Tablas Guayaquil'!H55,'Tablas Resto de Ecuador'!H55) -> 4597 | I55: =IF('INGRESO DE DATOS'!$G$21="Guayaquil/Santa Elena",'Tablas Guayaquil'!I55,'Tablas Resto de Ecuador'!I55) -> 3352
A56: 68 | C56: =IF('INGRESO DE DATOS'!$G$21="Guayaquil/Santa Elena",'Tablas Guayaquil'!C56,'Tablas Resto de Ecuador'!C56) -> 10415 | D56: =IF('INGRESO DE DATOS'!$G$21="Guayaquil/Santa Elena",'Tablas Guayaquil'!D56,'Tablas Resto de Ecuador'!D56) -> 9054 | E56: =IF('INGRESO DE DATOS'!$G$21="Guayaquil/Santa Elena",'Tablas Guayaquil'!E56,'Tablas Resto de Ecuador'!E56) -> 8258 | F56: =IF('INGRESO DE DATOS'!$G$21="Guayaquil/Santa Elena",'Tablas Guayaquil'!F56,'Tablas Resto de Ecuador'!F56) -> 7595 | G56: =IF('INGRESO DE DATOS'!$G$21="Guayaquil/Santa Elena",'Tablas Guayaquil'!G56,'Tablas Resto de Ecuador'!G56) -> 5476 | H56: =IF('INGRESO DE DATOS'!$G$21="Guayaquil/Santa Elena",'Tablas Guayaquil'!H56,'Tablas Resto de Ecuador'!H56) -> 4959 | I56: =IF('INGRESO DE DATOS'!$G$21="Guayaquil/Santa Elena",'Tablas Guayaquil'!I56,'Tablas Resto de Ecuador'!I56) -> 3618
A57: 69 | C57: =IF('INGRESO DE DATOS'!$G$21="Guayaquil/Santa Elena",'Tablas Guayaquil'!C57,'Tablas Resto de Ecuador'!C57) -> 11364 | D57: =IF('INGRESO DE DATOS'!$G$21="Guayaquil/Santa Elena",'Tablas Guayaquil'!D57,'Tablas Resto de Ecuador'!D57) -> 9882 | E57: =IF('INGRESO DE DATOS'!$G$21="Guayaquil/Santa Elena",'Tablas Guayaquil'!E57,'Tablas Resto de Ecuador'!E57) -> 9010 | F57: =IF('INGRESO DE DATOS'!$G$21="Guayaquil/Santa Elena",'Tablas Guayaquil'!F57,'Tablas Resto de Ecuador'!F57) -> 8294 | G57: =IF('INGRESO DE DATOS'!$G$21="Guayaquil/Santa Elena",'Tablas Guayaquil'!G57,'Tablas Resto de Ecuador'!G57) -> 5697 | H57: =IF('INGRESO DE DATOS'!$G$21="Guayaquil/Santa Elena",'Tablas Guayaquil'!H57,'Tablas Resto de Ecuador'!H57) -> 5350 | I57: =IF('INGRESO DE DATOS'!$G$21="Guayaquil/Santa Elena",'Tablas Guayaquil'!I57,'Tablas Resto de Ecuador'!I57) -> 3905
A58: 70 | C58: =IF('INGRESO DE DATOS'!$G$21="Guayaquil/Santa Elena",'Tablas Guayaquil'!C58,'Tablas Resto de Ecuador'!C58) -> 12464 | D58: =IF('INGRESO DE DATOS'!$G$21="Guayaquil/Santa Elena",'Tablas Guayaquil'!D58,'Tablas Resto de Ecuador'!D58) -> 10839 | E58: =IF('INGRESO DE DATOS'!$G$21="Guayaquil/Santa Elena",'Tablas Guayaquil'!E58,'Tablas Resto de Ecuador'!E58) -> 9797 | F58: =IF('INGRESO DE DATOS'!$G$21="Guayaquil/Santa Elena",'Tablas Guayaquil'!F58,'Tablas Resto de Ecuador'!F58) -> 9230 | G58: =IF('INGRESO DE DATOS'!$G$21="Guayaquil/Santa Elena",'Tablas Guayaquil'!G58,'Tablas Resto de Ecuador'!G58) -> 6299 | H58: =IF('INGRESO DE DATOS'!$G$21="Guayaquil/Santa Elena",'Tablas Guayaquil'!H58,'Tablas Resto de Ecuador'!H58) -> 5770 | I58: =IF('INGRESO DE DATOS'!$G$21="Guayaquil/Santa Elena",'Tablas Guayaquil'!I58,'Tablas Resto de Ecuador'!I58) -> 4212
A59: 71 | C59: =IF('INGRESO DE DATOS'!$G$21="Guayaquil/Santa Elena",'Tablas Guayaquil'!C59,'Tablas Resto de Ecuador'!C59) -> 13728 | D59: =IF('INGRESO DE DATOS'!$G$21="Guayaquil/Santa Elena",'Tablas Guayaquil'!D59,'Tablas Resto de Ecuador'!D59) -> 11938 | E59: =IF('INGRESO DE DATOS'!$G$21="Guayaquil/Santa Elena",'Tablas Guayaquil'!E59,'Tablas Resto de Ecuador'!E59) -> 10883 | F59: =IF('INGRESO DE DATOS'!$G$21="Guayaquil/Santa Elena",'Tablas Guayaquil'!F59,'Tablas Resto de Ecuador'!F59) -> 10164 | G59: =IF('INGRESO DE DATOS'!$G$21="Guayaquil/Santa Elena",'Tablas Guayaquil'!G59,'Tablas Resto de Ecuador'!G59) -> 6939 | H59: =IF('INGRESO DE DATOS'!$G$21="Guayaquil/Santa Elena",'Tablas Guayaquil'!H59,'Tablas Resto de Ecuador'!H59) -> 6222 | I59: =IF('INGRESO DE DATOS'!$G$21="Guayaquil/Santa Elena",'Tablas Guayaquil'!I59,'Tablas Resto de Ecuador'!I59) -> 4540
A60: 72 | C60: =IF('INGRESO DE DATOS'!$G$21="Guayaquil/Santa Elena",'Tablas Guayaquil'!C60,'Tablas Resto de Ecuador'!C60) -> 15185 | D60: =IF('INGRESO DE DATOS'!$G$21="Guayaquil/Santa Elena",'Tablas Guayaquil'!D60,'Tablas Resto de Ecuador'!D60) -> 13204 | E60: =IF('INGRESO DE DATOS'!$G$21="Guayaquil/Santa Elena",'Tablas Guayaquil'!E60,'Tablas Resto de Ecuador'!E60) -> 12042 | F60: =IF('INGRESO DE DATOS'!$G$21="Guayaquil/Santa Elena",'Tablas Guayaquil'!F60,'Tablas Resto de Ecuador'!F60) -> 11249 | G60: =IF('INGRESO DE DATOS'!$G$21="Guayaquil/Santa Elena",'Tablas Guayaquil'!G60,'Tablas Resto de Ecuador'!G60) -> 7680 | H60: =IF('INGRESO DE DATOS'!$G$21="Guayaquil/Santa Elena",'Tablas Guayaquil'!H60,'Tablas Resto de Ecuador'!H60) -> 6706 | I60: =IF('INGRESO DE DATOS'!$G$21="Guayaquil/Santa Elena",'Tablas Guayaquil'!I60,'Tablas Resto de Ecuador'!I60) -> 4890
A61: 73 | C61: =IF('INGRESO DE DATOS'!$G$21="Guayaquil/Santa Elena",'Tablas Guayaquil'!C61,'Tablas Resto de Ecuador'!C61) -> 16867 | D61: =IF('INGRESO DE DATOS'!$G$21="Guayaquil/Santa Elena",'Tablas Guayaquil'!D61,'Tablas Resto de Ecuador'!D61) -> 14665 | E61: =IF('INGRESO DE DATOS'!$G$21="Guayaquil/Santa Elena",'Tablas Guayaquil'!E61,'Tablas Resto de Ecuador'!E61) -> 13370 | F61: =IF('INGRESO DE DATOS'!$G$21="Guayaquil/Santa Elena",'Tablas Guayaquil'!F61,'Tablas Resto de Ecuador'!F61) -> 12488 | G61: =IF('INGRESO DE DATOS'!$G$21="Guayaquil/Santa Elena",'Tablas Guayaquil'!G61,'Tablas Resto de Ecuador'!G61) -> 8523 | H61: =IF('INGRESO DE DATOS'!$G$21="Guayaquil/Santa Elena",'Tablas Guayaquil'!H61,'Tablas Resto de Ecuador'!H61) -> 7225 | I61: =IF('INGRESO DE DATOS'!$G$21="Guayaquil/Santa Elena",'Tablas Guayaquil'!I61,'Tablas Resto de Ecuador'!I61) -> 5263
A62: 74 | C62: =IF('INGRESO DE DATOS'!$G$21="Guayaquil/Santa Elena",'Tablas Guayaquil'!C62,'Tablas Resto de Ecuador'!C62) -> 18804 | D62: =IF('INGRESO DE DATOS'!$G$21="Guayaquil/Santa Elena",'Tablas Guayaquil'!D62,'Tablas Resto de Ecuador'!D62) -> 16349 | E62: =IF('INGRESO DE DATOS'!$G$21="Guayaquil/Santa Elena",'Tablas Guayaquil'!E62,'Tablas Resto de Ecuador'!E62) -> 14907 | F62: =IF('INGRESO DE DATOS'!$G$21="Guayaquil/Santa Elena",'Tablas Guayaquil'!F62,'Tablas Resto de Ecuador'!F62) -> 13925 | G62: =IF('INGRESO DE DATOS'!$G$21="Guayaquil/Santa Elena",'Tablas Guayaquil'!G62,'Tablas Resto de Ecuador'!G62) -> 9506 | H62: =IF('INGRESO DE DATOS'!$G$21="Guayaquil/Santa Elena",'Tablas Guayaquil'!H62,'Tablas Resto de Ecuador'!H62) -> 7778 | I62: =IF('INGRESO DE DATOS'!$G$21="Guayaquil/Santa Elena",'Tablas Guayaquil'!I62,'Tablas Resto de Ecuador'!I62) -> 5656
A63: 75 | C63: =IF('INGRESO DE DATOS'!$G$21="Guayaquil/Santa Elena",'Tablas Guayaquil'!C63,'Tablas Resto de Ecuador'!C63) -> 21024 | D63: =IF('INGRESO DE DATOS'!$G$21="Guayaquil/Santa Elena",'Tablas Guayaquil'!D63,'Tablas Resto de Ecuador'!D63) -> 18283 | E63: =IF('INGRESO DE DATOS'!$G$21="Guayaquil/Santa Elena",'Tablas Guayaquil'!E63,'Tablas Resto de Ecuador'!E63) -> 16602 | F63: =IF('INGRESO DE DATOS'!$G$21="Guayaquil/Santa Elena",'Tablas Guayaquil'!F63,'Tablas Resto de Ecuador'!F63) -> 15668 | G63: =IF('INGRESO DE DATOS'!$G$21="Guayaquil/Santa Elena",'Tablas Guayaquil'!G63,'Tablas Resto de Ecuador'!G63) -> 10666 | H63: =IF('INGRESO DE DATOS'!$G$21="Guayaquil/Santa Elena",'Tablas Guayaquil'!H63,'Tablas Resto de Ecuador'!H63) -> 8364 | I63: =IF('INGRESO DE DATOS'!$G$21="Guayaquil/Santa Elena",'Tablas Guayaquil'!I63,'Tablas Resto de Ecuador'!I63) -> 6069
A64: 76 | C64: =IF('INGRESO DE DATOS'!$G$21="Guayaquil/Santa Elena",'Tablas Guayaquil'!C64,'Tablas Resto de Ecuador'!C64) -> 23579 | D64: =IF('INGRESO DE DATOS'!$G$21="Guayaquil/Santa Elena",'Tablas Guayaquil'!D64,'Tablas Resto de Ecuador'!D64) -> 20502 | E64: =IF('INGRESO DE DATOS'!$G$21="Guayaquil/Santa Elena",'Tablas Guayaquil'!E64,'Tablas Resto de Ecuador'!E64) -> 18679 | F64: =IF('INGRESO DE DATOS'!$G$21="Guayaquil/Santa Elena",'Tablas Guayaquil'!F64,'Tablas Resto de Ecuador'!F64) -> 17568 | G64: =IF('INGRESO DE DATOS'!$G$21="Guayaquil/Santa Elena",'Tablas Guayaquil'!G64,'Tablas Resto de Ecuador'!G64) -> 11960 | H64: =IF('INGRESO DE DATOS'!$G$21="Guayaquil/Santa Elena",'Tablas Guayaquil'!H64,'Tablas Resto de Ecuador'!H64) -> 8983 | I64: =IF('INGRESO DE DATOS'!$G$21="Guayaquil/Santa Elena",'Tablas Guayaquil'!I64,'Tablas Resto de Ecuador'!I64) -> 6499
A65: 77 | C65: =IF('INGRESO DE DATOS'!$G$21="Guayaquil/Santa Elena",'Tablas Guayaquil'!C65,'Tablas Resto de Ecuador'!C65) -> 26478 | D65: =IF('INGRESO DE DATOS'!$G$21="Guayaquil/Santa Elena",'Tablas Guayaquil'!D65,'Tablas Resto de Ecuador'!D65) -> 23027 | E65: =IF('INGRESO DE DATOS'!$G$21="Guayaquil/Santa Elena",'Tablas Guayaquil'!E65,'Tablas Resto de Ecuador'!E65) -> 20994 | F65: =IF('INGRESO DE DATOS'!$G$21="Guayaquil/Santa Elena",'Tablas Guayaquil'!F65,'Tablas Resto de Ecuador'!F65) -> 19587 | G65: =IF('INGRESO DE DATOS'!$G$21="Guayaquil/Santa Elena",'Tablas Guayaquil'!G65,'Tablas Resto de Ecuador'!G65) -> 13434 | H65: =IF('INGRESO DE DATOS'!$G$21="Guayaquil/Santa Elena",'Tablas Guayaquil'!H65,'Tablas Resto de Ecuador'!H65) -> 9631 | I65: =IF('INGRESO DE DATOS'!$G$21="Guayaquil/Santa Elena",'Tablas Guayaquil'!I65,'Tablas Resto de Ecuador'!I65) -> 6942
A66: 78 | C66: =IF('INGRESO DE DATOS'!$G$21="Guayaquil/Santa Elena",'Tablas Guayaquil'!C66,'Tablas Resto de Ecuador'!C66) -> 29753 | D66: =IF('INGRESO DE DATOS'!$G$21="Guayaquil/Santa Elena",'Tablas Guayaquil'!D66,'Tablas Resto de Ecuador'!D66) -> 25872 | E66: =IF('INGRESO DE DATOS'!$G$21="Guayaquil/Santa Elena",'Tablas Guayaquil'!E66,'Tablas Resto de Ecuador'!E66) -> 23588 | F66: =IF('INGRESO DE DATOS'!$G$21="Guayaquil/Santa Elena",'Tablas Guayaquil'!F66,'Tablas Resto de Ecuador'!F66) -> 21010 | G66: =IF('INGRESO DE DATOS'!$G$21="Guayaquil/Santa Elena",'Tablas Guayaquil'!G66,'Tablas Resto de Ecuador'!G66) -> 14466 | H66: =IF('INGRESO DE DATOS'!$G$21="Guayaquil/Santa Elena",'Tablas Guayaquil'!H66,'Tablas Resto de Ecuador'!H66) -> 10303 | I66: =IF('INGRESO DE DATOS'!$G$21="Guayaquil/Santa Elena",'Tablas Guayaquil'!I66,'Tablas Resto de Ecuador'!I66) -> 7393
A67: 79 | C67: =IF('INGRESO DE DATOS'!$G$21="Guayaquil/Santa Elena",'Tablas Guayaquil'!C67,'Tablas Resto de Ecuador'!C67) -> 33429 | D67: =IF('INGRESO DE DATOS'!$G$21="Guayaquil/Santa Elena",'Tablas Guayaquil'!D67,'Tablas Resto de Ecuador'!D67) -> 29067 | E67: =IF('INGRESO DE DATOS'!$G$21="Guayaquil/Santa Elena",'Tablas Guayaquil'!E67,'Tablas Resto de Ecuador'!E67) -> 26504 | F67: =IF('INGRESO DE DATOS'!$G$21="Guayaquil/Santa Elena",'Tablas Guayaquil'!F67,'Tablas Resto de Ecuador'!F67) -> 22505 | G67: =IF('INGRESO DE DATOS'!$G$21="Guayaquil/Santa Elena",'Tablas Guayaquil'!G67,'Tablas Resto de Ecuador'!G67) -> 15484 | H67: =IF('INGRESO DE DATOS'!$G$21="Guayaquil/Santa Elena",'Tablas Guayaquil'!H67,'Tablas Resto de Ecuador'!H67) -> 10994 | I67: =IF('INGRESO DE DATOS'!$G$21="Guayaquil/Santa Elena",'Tablas Guayaquil'!I67,'Tablas Resto de Ecuador'!I67) -> 7840
A68: 80 | B68: o más | C68: =IF('INGRESO DE DATOS'!$G$21="Guayaquil/Santa Elena",'Tablas Guayaquil'!C68,'Tablas Resto de Ecuador'!C68) -> 37570 | D68: =IF('INGRESO DE DATOS'!$G$21="Guayaquil/Santa Elena",'Tablas Guayaquil'!D68,'Tablas Resto de Ecuador'!D68) -> 32895 | E68: =IF('INGRESO DE DATOS'!$G$21="Guayaquil/Santa Elena",'Tablas Guayaquil'!E68,'Tablas Resto de Ecuador'!E68) -> 29282 | F68: =IF('INGRESO DE DATOS'!$G$21="Guayaquil/Santa Elena",'Tablas Guayaquil'!F68,'Tablas Resto de Ecuador'!F68) -> 24065 | G68: =IF('INGRESO DE DATOS'!$G$21="Guayaquil/Santa Elena",'Tablas Guayaquil'!G68,'Tablas Resto de Ecuador'!G68) -> 16534 | H68: =IF('INGRESO DE DATOS'!$G$21="Guayaquil/Santa Elena",'Tablas Guayaquil'!H68,'Tablas Resto de Ecuador'!H68) -> 11693 | I68: =IF('INGRESO DE DATOS'!$G$21="Guayaquil/Santa Elena",'Tablas Guayaquil'!I68,'Tablas Resto de Ecuador'!I68) -> 8275
A69: 1 | B69: Hijo | C69: =IF('INGRESO DE DATOS'!$G$21="Guayaquil/Santa Elena",'Tablas Guayaquil'!C69,'Tablas Resto de Ecuador'!C69) -> 1442 | D69: =IF('INGRESO DE DATOS'!$G$21="Guayaquil/Santa Elena",'Tablas Guayaquil'!D69,'Tablas Resto de Ecuador'!D69) -> 1253 | E69: =IF('INGRESO DE DATOS'!$G$21="Guayaquil/Santa Elena",'Tablas Guayaquil'!E69,'Tablas Resto de Ecuador'!E69) -> 908 | F69: =IF('INGRESO DE DATOS'!$G$21="Guayaquil/Santa Elena",'Tablas Guayaquil'!F69,'Tablas Resto de Ecuador'!F69) -> 622 | G69: =IF('INGRESO DE DATOS'!$G$21="Guayaquil/Santa Elena",'Tablas Guayaquil'!G69,'Tablas Resto de Ecuador'!G69) -> 340 | H69: =IF('INGRESO DE DATOS'!$G$21="Guayaquil/Santa Elena",'Tablas Guayaquil'!H69,'Tablas Resto de Ecuador'!H69) -> 201 | I69: =IF('INGRESO DE DATOS'!$G$21="Guayaquil/Santa Elena",'Tablas Guayaquil'!I69,'Tablas Resto de Ecuador'!I69) -> 115
A70: 2 | B70: Hijos | C70: =IF('INGRESO DE DATOS'!$G$21="Guayaquil/Santa Elena",'Tablas Guayaquil'!C70,'Tablas Resto de Ecuador'!C70) -> 1704 | D70: =IF('INGRESO DE DATOS'!$G$21="Guayaquil/Santa Elena",'Tablas Guayaquil'!D70,'Tablas Resto de Ecuador'!D70) -> 1480 | E70: =IF('INGRESO DE DATOS'!$G$21="Guayaquil/Santa Elena",'Tablas Guayaquil'!E70,'Tablas Resto de Ecuador'!E70) -> 1073 | F70: =IF('INGRESO DE DATOS'!$G$21="Guayaquil/Santa Elena",'Tablas Guayaquil'!F70,'Tablas Resto de Ecuador'!F70) -> 735 | G70: =IF('INGRESO DE DATOS'!$G$21="Guayaquil/Santa Elena",'Tablas Guayaquil'!G70,'Tablas Resto de Ecuador'!G70) -> 401 | H70: =IF('INGRESO DE DATOS'!$G$21="Guayaquil/Santa Elena",'Tablas Guayaquil'!H70,'Tablas Resto de Ecuador'!H70) -> 237 | I70: =IF('INGRESO DE DATOS'!$G$21="Guayaquil/Santa Elena",'Tablas Guayaquil'!I70,'Tablas Resto de Ecuador'!I70) -> 136
A71: 3 | B71: Hijos o más | C71: =IF('INGRESO DE DATOS'!$G$21="Guayaquil/Santa Elena",'Tablas Guayaquil'!C71,'Tablas Resto de Ecuador'!C71) -> 2359 | D71: =IF('INGRESO DE DATOS'!$G$21="Guayaquil/Santa Elena",'Tablas Guayaquil'!D71,'Tablas Resto de Ecuador'!D71) -> 2050 | E71: =IF('INGRESO DE DATOS'!$G$21="Guayaquil/Santa Elena",'Tablas Guayaquil'!E71,'Tablas Resto de Ecuador'!E71) -> 1485 | F71: =IF('INGRESO DE DATOS'!$G$21="Guayaquil/Santa Elena",'Tablas Guayaquil'!F71,'Tablas Resto de Ecuador'!F71) -> 1018 | G71: =IF('INGRESO DE DATOS'!$G$21="Guayaquil/Santa Elena",'Tablas Guayaquil'!G71,'Tablas Resto de Ecuador'!G71) -> 556 | H71: =IF('INGRESO DE DATOS'!$G$21="Guayaquil/Santa Elena",'Tablas Guayaquil'!H71,'Tablas Resto de Ecuador'!H71) -> 328 | I71: =IF('INGRESO DE DATOS'!$G$21="Guayaquil/Santa Elena",'Tablas Guayaquil'!I71,'Tablas Resto de Ecuador'!I71) -> 189
A73: TARIFAS MENSUALES
A74: EDAD
C75: F500-1 | D75: F500-2 | E75: F500-3 | F75: F500-4 | G75: F500-5
A76: 18 | C76: =IF('INGRESO DE DATOS'!$G$21="Guayaquil/Santa Elena",'Tablas Guayaquil'!C76,'Tablas Resto de Ecuador'!C76) -> 192.92 | D76: =IF('INGRESO DE DATOS'!$G$21="Guayaquil/Santa Elena",'Tablas Guayaquil'!D76,'Tablas Resto de Ecuador'!D76) -> 165.0066667 | E76: =IF('INGRESO DE DATOS'!$G$21="Guayaquil/Santa Elena",'Tablas Guayaquil'!E76,'Tablas Resto de Ecuador'!E76) -> 120.84 | F76: =IF('INGRESO DE DATOS'!$G$21="Guayaquil/Santa Elena",'Tablas Guayaquil'!F76,'Tablas Resto de Ecuador'!F76) -> 83.29833333 | G76: =IF('INGRESO DE DATOS'!$G$21="Guayaquil/Santa Elena",'Tablas Guayaquil'!G76,'Tablas Resto de Ecuador'!G76) -> 45.40333333 | H76: =IF('INGRESO DE DATOS'!$G$21="Guayaquil/Santa Elena",'Tablas Guayaquil'!H76,'Tablas Resto de Ecuador'!H76) -> 26.85333333 | I76: =IF('INGRESO DE DATOS'!$G$21="Guayaquil/Santa Elena",'Tablas Guayaquil'!I76,'Tablas Resto de Ecuador'!I76) -> 15.45833333
A77: 19 | C77: =IF('INGRESO DE DATOS'!$G$21="Guayaquil/Santa Elena",'Tablas Guayaquil'!C77,'Tablas Resto de Ecuador'!C77) -> 196.1 | D77: =IF('INGRESO DE DATOS'!$G$21="Guayaquil/Santa Elena",'Tablas Guayaquil'!D77,'Tablas Resto de Ecuador'!D77) -> 165.0066667 | E77: =IF('INGRESO DE DATOS'!$G$21="Guayaquil/Santa Elena",'Tablas Guayaquil'!E77,'Tablas Resto de Ecuador'!E77) -> 120.84 | F77: =IF('INGRESO DE DATOS'!$G$21="Guayaquil/Santa Elena",'Tablas Guayaquil'!F77,'Tablas Resto de Ecuador'!F77) -> 83.38666667 | G77: =IF('INGRESO DE DATOS'!$G$21="Guayaquil/Santa Elena",'Tablas Guayaquil'!G77,'Tablas Resto de Ecuador'!G77) -> 45.845 | H77: =IF('INGRESO DE DATOS'!$G$21="Guayaquil/Santa Elena",'Tablas Guayaquil'!H77,'Tablas Resto de Ecuador'!H77) -> 27.295 | I77: =IF('INGRESO DE DATOS'!$G$21="Guayaquil/Santa Elena",'Tablas Guayaquil'!I77,'Tablas Resto de Ecuador'!I77) -> 15.81166667
A78: 20 | C78: =IF('INGRESO DE DATOS'!$G$21="Guayaquil/Santa Elena",'Tablas Guayaquil'!C78,'Tablas Resto de Ecuador'!C78) -> 199.545 | D78: =IF('INGRESO DE DATOS'!$G$21="Guayaquil/Santa Elena",'Tablas Guayaquil'!D78,'Tablas Resto de Ecuador'!D78) -> 165.0066667 | E78: =IF('INGRESO DE DATOS'!$G$21="Guayaquil/Santa Elena",'Tablas Guayaquil'!E78,'Tablas Resto de Ecuador'!E78) -> 120.84 | F78: =IF('INGRESO DE DATOS'!$G$21="Guayaquil/Santa Elena",'Tablas Guayaquil'!F78,'Tablas Resto de Ecuador'!F78) -> 83.65166667 | G78: =IF('INGRESO DE DATOS'!$G$21="Guayaquil/Santa Elena",'Tablas Guayaquil'!G78,'Tablas Resto de Ecuador'!G78) -> 46.375 | H78: =IF('INGRESO DE DATOS'!$G$21="Guayaquil/Santa Elena",'Tablas Guayaquil'!H78,'Tablas Resto de Ecuador'!H78) -> 27.64833333 | I78: =IF('INGRESO DE DATOS'!$G$21="Guayaquil/Santa Elena",'Tablas Guayaquil'!I78,'Tablas Resto de Ecuador'!I78) -> 16.165
A79: 21 | C79: =IF('INGRESO DE DATOS'!$G$21="Guayaquil/Santa Elena",'Tablas Guayaquil'!C79,'Tablas Resto de Ecuador'!C79) -> 203.3433333 | D79: =IF('INGRESO DE DATOS'!$G$21="Guayaquil/Santa Elena",'Tablas Guayaquil'!D79,'Tablas Resto de Ecuador'!D79) -> 165.0066667 | E79: =IF('INGRESO DE DATOS'!$G$21="Guayaquil/Santa Elena",'Tablas Guayaquil'!E79,'Tablas Resto de Ecuador'!E79) -> 121.0166667 | F79: =IF('INGRESO DE DATOS'!$G$21="Guayaquil/Santa Elena",'Tablas Guayaquil'!F79,'Tablas Resto de Ecuador'!F79) -> 84.18166667 | G79: =IF('INGRESO DE DATOS'!$G$21="Guayaquil/Santa Elena",'Tablas Guayaquil'!G79,'Tablas Resto de Ecuador'!G79) -> 46.905 | H79: =IF('INGRESO DE DATOS'!$G$21="Guayaquil/Santa Elena",'Tablas Guayaquil'!H79,'Tablas Resto de Ecuador'!H79) -> 28.26666667 | I79: =IF('INGRESO DE DATOS'!$G$21="Guayaquil/Santa Elena",'Tablas Guayaquil'!I79,'Tablas Resto de Ecuador'!I79) -> 16.60666667
A80: 22 | C80: =IF('INGRESO DE DATOS'!$G$21="Guayaquil/Santa Elena",'Tablas Guayaquil'!C80,'Tablas Resto de Ecuador'!C80) -> 206.6116667 | D80: =IF('INGRESO DE DATOS'!$G$21="Guayaquil/Santa Elena",'Tablas Guayaquil'!D80,'Tablas Resto de Ecuador'!D80) -> 165.0066667 | E80: =IF('INGRESO DE DATOS'!$G$21="Guayaquil/Santa Elena",'Tablas Guayaquil'!E80,'Tablas Resto de Ecuador'!E80) -> 121.37 | F80: =IF('INGRESO DE DATOS'!$G$21="Guayaquil/Santa Elena",'Tablas Guayaquil'!F80,'Tablas Resto de Ecuador'!F80) -> 84.8 | G80: =IF('INGRESO DE DATOS'!$G$21="Guayaquil/Santa Elena",'Tablas Guayaquil'!G80,'Tablas Resto de Ecuador'!G80) -> 47.61166667 | H80: =IF('INGRESO DE DATOS'!$G$21="Guayaquil/Santa Elena",'Tablas Guayaquil'!H80,'Tablas Resto de Ecuador'!H80) -> 28.79666667 | I80: =IF('INGRESO DE DATOS'!$G$21="Guayaquil/Santa Elena",'Tablas Guayaquil'!I80,'Tablas Resto de Ecuador'!I80) -> 17.04833333
A81: 23 | C81: =IF('INGRESO DE DATOS'!$G$21="Guayaquil/Santa Elena",'Tablas Guayaquil'!C81,'Tablas Resto de Ecuador'!C81) -> 210.0566667 | D81: =IF('INGRESO DE DATOS'!$G$21="Guayaquil/Santa Elena",'Tablas Guayaquil'!D81,'Tablas Resto de Ecuador'!D81) -> 165.4483333 | E81: =IF('INGRESO DE DATOS'!$G$21="Guayaquil/Santa Elena",'Tablas Guayaquil'!E81,'Tablas Resto de Ecuador'!E81) -> 122.165 | F81: =IF('INGRESO DE DATOS'!$G$21="Guayaquil/Santa Elena",'Tablas Guayaquil'!F81,'Tablas Resto de Ecuador'!F81) -> 85.68333333 | G81: =IF('INGRESO DE DATOS'!$G$21="Guayaquil/Santa Elena",'Tablas Guayaquil'!G81,'Tablas Resto de Ecuador'!G81) -> 48.40666667 | H81: =IF('INGRESO DE DATOS'!$G$21="Guayaquil/Santa Elena",'Tablas Guayaquil'!H81,'Tablas Resto de Ecuador'!H81) -> 29.50333333 | I81: =IF('INGRESO DE DATOS'!$G$21="Guayaquil/Santa Elena",'Tablas Guayaquil'!I81,'Tablas Resto de Ecuador'!I81) -> 17.49
A82: 24 | C82: =IF('INGRESO DE DATOS'!$G$21="Guayaquil/Santa Elena",'Tablas Guayaquil'!C82,'Tablas Resto de Ecuador'!C82) -> 210.5866667 | D82: =IF('INGRESO DE DATOS'!$G$21="Guayaquil/Santa Elena",'Tablas Guayaquil'!D82,'Tablas Resto de Ecuador'!D82) -> 166.2433333 | E82: =IF('INGRESO DE DATOS'!$G$21="Guayaquil/Santa Elena",'Tablas Guayaquil'!E82,'Tablas Resto de Ecuador'!E82) -> 123.1366667 | F82: =IF('INGRESO DE DATOS'!$G$21="Guayaquil/Santa Elena",'Tablas Guayaquil'!F82,'Tablas Resto de Ecuador'!F82) -> 86.83166667 | G82: =IF('INGRESO DE DATOS'!$G$21="Guayaquil/Santa Elena",'Tablas Guayaquil'!G82,'Tablas Resto de Ecuador'!G82) -> 49.29 | H82: =IF('INGRESO DE DATOS'!$G$21="Guayaquil/Santa Elena",'Tablas Guayaquil'!H82,'Tablas Resto de Ecuador'!H82) -> 30.21 | I82: =IF('INGRESO DE DATOS'!$G$21="Guayaquil/Santa Elena",'Tablas Guayaquil'!I82,'Tablas Resto de Ecuador'!I82) -> 18.10833333
A83: 25 | C83: =IF('INGRESO DE DATOS'!$G$21="Guayaquil/Santa Elena",'Tablas Guayaquil'!C83,'Tablas Resto de Ecuador'!C83) -> 211.5583333 | D83: =IF('INGRESO DE DATOS'!$G$21="Guayaquil/Santa Elena",'Tablas Guayaquil'!D83,'Tablas Resto de Ecuador'!D83) -> 167.3916667 | E83: =IF('INGRESO DE DATOS'!$G$21="Guayaquil/Santa Elena",'Tablas Guayaquil'!E83,'Tablas Resto de Ecuador'!E83) -> 124.4616667 | F83: =IF('INGRESO DE DATOS'!$G$21="Guayaquil/Santa Elena",'Tablas Guayaquil'!F83,'Tablas Resto de Ecuador'!F83) -> 88.15666667 | G83: =IF('INGRESO DE DATOS'!$G$21="Guayaquil/Santa Elena",'Tablas Guayaquil'!G83,'Tablas Resto de Ecuador'!G83) -> 50.35 | H83: =IF('INGRESO DE DATOS'!$G$21="Guayaquil/Santa Elena",'Tablas Guayaquil'!H83,'Tablas Resto de Ecuador'!H83) -> 31.005 | I83: =IF('INGRESO DE DATOS'!$G$21="Guayaquil/Santa Elena",'Tablas Guayaquil'!I83,'Tablas Resto de Ecuador'!I83) -> 18.72666667
A84: 26 | C84: =IF('INGRESO DE DATOS'!$G$21="Guayaquil/Santa Elena",'Tablas Guayaquil'!C84,'Tablas Resto de Ecuador'!C84) -> 213.1483333 | D84: =IF('INGRESO DE DATOS'!$G$21="Guayaquil/Santa Elena",'Tablas Guayaquil'!D84,'Tablas Resto de Ecuador'!D84) -> 169.07 | E84: =IF('INGRESO DE DATOS'!$G$21="Guayaquil/Santa Elena",'Tablas Guayaquil'!E84,'Tablas Resto de Ecuador'!E84) -> 126.2283333 | F84: =IF('INGRESO DE DATOS'!$G$21="Guayaquil/Santa Elena",'Tablas Guayaquil'!F84,'Tablas Resto de Ecuador'!F84) -> 89.65833333 | G84: =IF('INGRESO DE DATOS'!$G$21="Guayaquil/Santa Elena",'Tablas Guayaquil'!G84,'Tablas Resto de Ecuador'!G84) -> 51.58666667 | H84: =IF('INGRESO DE DATOS'!$G$21="Guayaquil/Santa Elena",'Tablas Guayaquil'!H84,'Tablas Resto de Ecuador'!H84) -> 31.97666667 | I84: =IF('INGRESO DE DATOS'!$G$21="Guayaquil/Santa Elena",'Tablas Guayaquil'!I84,'Tablas Resto de Ecuador'!I84) -> 19.345
A85: 27 | C85: =IF('INGRESO DE DATOS'!$G$21="Guayaquil/Santa Elena",'Tablas Guayaquil'!C85,'Tablas Resto de Ecuador'!C85) -> 215.2683333 | D85: =IF('INGRESO DE DATOS'!$G$21="Guayaquil/Santa Elena",'Tablas Guayaquil'!D85,'Tablas Resto de Ecuador'!D85) -> 171.19 | E85: =IF('INGRESO DE DATOS'!$G$21="Guayaquil/Santa Elena",'Tablas Guayaquil'!E85,'Tablas Resto de Ecuador'!E85) -> 128.26 | F85: =IF('INGRESO DE DATOS'!$G$21="Guayaquil/Santa Elena",'Tablas Guayaquil'!F85,'Tablas Resto de Ecuador'!F85) -> 91.425 | G85: =IF('INGRESO DE DATOS'!$G$21="Guayaquil/Santa Elena",'Tablas Guayaquil'!G85,'Tablas Resto de Ecuador'!G85) -> 52.91166667 | H85: =IF('INGRESO DE DATOS'!$G$21="Guayaquil/Santa Elena",'Tablas Guayaquil'!H85,'Tablas Resto de Ecuador'!H85) -> 32.94833333 | I85: =IF('INGRESO DE DATOS'!$G$21="Guayaquil/Santa Elena",'Tablas Guayaquil'!I85,'Tablas Resto de Ecuador'!I85) -> 20.05166667
A86: 28 | C86: =IF('INGRESO DE DATOS'!$G$21="Guayaquil/Santa Elena",'Tablas Guayaquil'!C86,'Tablas Resto de Ecuador'!C86) -> 217.9183333 | D86: =IF('INGRESO DE DATOS'!$G$21="Guayaquil/Santa Elena",'Tablas Guayaquil'!D86,'Tablas Resto de Ecuador'!D86) -> 173.7516667 | E86: =IF('INGRESO DE DATOS'!$G$21="Guayaquil/Santa Elena",'Tablas Guayaquil'!E86,'Tablas Resto de Ecuador'!E86) -> 130.5566667 | F86: =IF('INGRESO DE DATOS'!$G$21="Guayaquil/Santa Elena",'Tablas Guayaquil'!F86,'Tablas Resto de Ecuador'!F86) -> 93.45666667 | G86: =IF('INGRESO DE DATOS'!$G$21="Guayaquil/Santa Elena",'Tablas Guayaquil'!G86,'Tablas Resto de Ecuador'!G86) -> 54.41333333 | H86: =IF('INGRESO DE DATOS'!$G$21="Guayaquil/Santa Elena",'Tablas Guayaquil'!H86,'Tablas Resto de Ecuador'!H86) -> 34.09666667 | I86: =IF('INGRESO DE DATOS'!$G$21="Guayaquil/Santa Elena",'Tablas Guayaquil'!I86,'Tablas Resto de Ecuador'!I86) -> 20.84666667
A87: 29 | C87: =IF('INGRESO DE DATOS'!$G$21="Guayaquil/Santa Elena",'Tablas Guayaquil'!C87,'Tablas Resto de Ecuador'!C87) -> 221.0983333 | D87: =IF('INGRESO DE DATOS'!$G$21="Guayaquil/Santa Elena",'Tablas Guayaquil'!D87,'Tablas Resto de Ecuador'!D87) -> 176.6666667 | E87: =IF('INGRESO DE DATOS'!$G$21="Guayaquil/Santa Elena",'Tablas Guayaquil'!E87,'Tablas Resto de Ecuador'!E87) -> 133.2066667 | F87: =IF('INGRESO DE DATOS'!$G$21="Guayaquil/Santa Elena",'Tablas Guayaquil'!F87,'Tablas Resto de Ecuador'!F87) -> 95.75333333 | G87: =IF('INGRESO DE DATOS'!$G$21="Guayaquil/Santa Elena",'Tablas Guayaquil'!G87,'Tablas Resto de Ecuador'!G87) -> 56.09166667 | H87: =IF('INGRESO DE DATOS'!$G$21="Guayaquil/Santa Elena",'Tablas Guayaquil'!H87,'Tablas Resto de Ecuador'!H87) -> 35.33333333 | I87: =IF('INGRESO DE DATOS'!$G$21="Guayaquil/Santa Elena",'Tablas Guayaquil'!I87,'Tablas Resto de Ecuador'!I87) -> 21.81833333
A88: 30 | C88: =IF('INGRESO DE DATOS'!$G$21="Guayaquil/Santa Elena",'Tablas Guayaquil'!C88,'Tablas Resto de Ecuador'!C88) -> 224.8083333 | D88: =IF('INGRESO DE DATOS'!$G$21="Guayaquil/Santa Elena",'Tablas Guayaquil'!D88,'Tablas Resto de Ecuador'!D88) -> 180.2 | E88: =IF('INGRESO DE DATOS'!$G$21="Guayaquil/Santa Elena",'Tablas Guayaquil'!E88,'Tablas Resto de Ecuador'!E88) -> 136.2983333 | F88: =IF('INGRESO DE DATOS'!$G$21="Guayaquil/Santa Elena",'Tablas Guayaquil'!F88,'Tablas Resto de Ecuador'!F88) -> 98.315 | G88: =IF('INGRESO DE DATOS'!$G$21="Guayaquil/Santa Elena",'Tablas Guayaquil'!G88,'Tablas Resto de Ecuador'!G88) -> 57.94666667 | H88: =IF('INGRESO DE DATOS'!$G$21="Guayaquil/Santa Elena",'Tablas Guayaquil'!H88,'Tablas Resto de Ecuador'!H88) -> 36.57 | I88: =IF('INGRESO DE DATOS'!$G$21="Guayaquil/Santa Elena",'Tablas Guayaquil'!I88,'Tablas Resto de Ecuador'!I88) -> 22.70166667
A89: 31 | C89: =IF('INGRESO DE DATOS'!$G$21="Guayaquil/Santa Elena",'Tablas Guayaquil'!C89,'Tablas Resto de Ecuador'!C89) -> 229.225 | D89: =IF('INGRESO DE DATOS'!$G$21="Guayaquil/Santa Elena",'Tablas Guayaquil'!D89,'Tablas Resto de Ecuador'!D89) -> 184.175 | E89: =IF('INGRESO DE DATOS'!$G$21="Guayaquil/Santa Elena",'Tablas Guayaquil'!E89,'Tablas Resto de Ecuador'!E89) -> 139.7433333 | F89: =IF('INGRESO DE DATOS'!$G$21="Guayaquil/Santa Elena",'Tablas Guayaquil'!F89,'Tablas Resto de Ecuador'!F89) -> 101.1416667 | G89: =IF('INGRESO DE DATOS'!$G$21="Guayaquil/Santa Elena",'Tablas Guayaquil'!G89,'Tablas Resto de Ecuador'!G89) -> 59.89 | H89: =IF('INGRESO DE DATOS'!$G$21="Guayaquil/Santa Elena",'Tablas Guayaquil'!H89,'Tablas Resto de Ecuador'!H89) -> 38.07166667 | I89: =IF('INGRESO DE DATOS'!$G$21="Guayaquil/Santa Elena",'Tablas Guayaquil'!I89,'Tablas Resto de Ecuador'!I89) -> 23.85
A90: 32 | C90: =IF('INGRESO DE DATOS'!$G$21="Guayaquil/Santa Elena",'Tablas Guayaquil'!C90,'Tablas Resto de Ecuador'!C90) -> 234.3483333 | D90: =IF('INGRESO DE DATOS'!$G$21="Guayaquil/Santa Elena",'Tablas Guayaquil'!D90,'Tablas Resto de Ecuador'!D90) -> 188.7683333 | E90: =IF('INGRESO DE DATOS'!$G$21="Guayaquil/Santa Elena",'Tablas Guayaquil'!E90,'Tablas Resto de Ecuador'!E90) -> 143.5416667 | F90: =IF('INGRESO DE DATOS'!$G$21="Guayaquil/Santa Elena",'Tablas Guayaquil'!F90,'Tablas Resto de Ecuador'!F90) -> 104.2333333 | G90: =IF('INGRESO DE DATOS'!$G$21="Guayaquil/Santa Elena",'Tablas Guayaquil'!G90,'Tablas Resto de Ecuador'!G90) -> 62.18666667 | H90: =IF('INGRESO DE DATOS'!$G$21="Guayaquil/Santa Elena",'Tablas Guayaquil'!H90,'Tablas Resto de Ecuador'!H90) -> 39.66166667 | I90: =IF('INGRESO DE DATOS'!$G$21="Guayaquil/Santa Elena",'Tablas Guayaquil'!I90,'Tablas Resto de Ecuador'!I90) -> 24.91
A91: 33 | C91: =IF('INGRESO DE DATOS'!$G$21="Guayaquil/Santa Elena",'Tablas Guayaquil'!C91,'Tablas Resto de Ecuador'!C91) -> 240.09 | D91: =IF('INGRESO DE DATOS'!$G$21="Guayaquil/Santa Elena",'Tablas Guayaquil'!D91,'Tablas Resto de Ecuador'!D91) -> 193.8033333 | E91: =IF('INGRESO DE DATOS'!$G$21="Guayaquil/Santa Elena",'Tablas Guayaquil'!E91,'Tablas Resto de Ecuador'!E91) -> 147.87 | F91: =IF('INGRESO DE DATOS'!$G$21="Guayaquil/Santa Elena",'Tablas Guayaquil'!F91,'Tablas Resto de Ecuador'!F91) -> 107.7666667 | G91: =IF('INGRESO DE DATOS'!$G$21="Guayaquil/Santa Elena",'Tablas Guayaquil'!G91,'Tablas Resto de Ecuador'!G91) -> 64.48333333 | H91: =IF('INGRESO DE DATOS'!$G$21="Guayaquil/Santa Elena",'Tablas Guayaquil'!H91,'Tablas Resto de Ecuador'!H91) -> 41.42833333 | I91: =IF('INGRESO DE DATOS'!$G$21="Guayaquil/Santa Elena",'Tablas Guayaquil'!I91,'Tablas Resto de Ecuador'!I91) -> 26.14666667
A92: 34 | C92: =IF('INGRESO DE DATOS'!$G$21="Guayaquil/Santa Elena",'Tablas Guayaquil'!C92,'Tablas Resto de Ecuador'!C92) -> 246.45 | D92: =IF('INGRESO DE DATOS'!$G$21="Guayaquil/Santa Elena",'Tablas Guayaquil'!D92,'Tablas Resto de Ecuador'!D92) -> 199.4566667 | E92: =IF('INGRESO DE DATOS'!$G$21="Guayaquil/Santa Elena",'Tablas Guayaquil'!E92,'Tablas Resto de Ecuador'!E92) -> 152.64 | F92: =IF('INGRESO DE DATOS'!$G$21="Guayaquil/Santa Elena",'Tablas Guayaquil'!F92,'Tablas Resto de Ecuador'!F92) -> 111.6533333 | G92: =IF('INGRESO DE DATOS'!$G$21="Guayaquil/Santa Elena",'Tablas Guayaquil'!G92,'Tablas Resto de Ecuador'!G92) -> 67.13333333 | H92: =IF('INGRESO DE DATOS'!$G$21="Guayaquil/Santa Elena",'Tablas Guayaquil'!H92,'Tablas Resto de Ecuador'!H92) -> 43.195 | I92: =IF('INGRESO DE DATOS'!$G$21="Guayaquil/Santa Elena",'Tablas Guayaquil'!I92,'Tablas Resto de Ecuador'!I92) -> 27.56
A93: 35 | C93: =IF('INGRESO DE DATOS'!$G$21="Guayaquil/Santa Elena",'Tablas Guayaquil'!C93,'Tablas Resto de Ecuador'!C93) -> 253.5166667 | D93: =IF('INGRESO DE DATOS'!$G$21="Guayaquil/Santa Elena",'Tablas Guayaquil'!D93,'Tablas Resto de Ecuador'!D93) -> 205.64 | E93: =IF('INGRESO DE DATOS'!$G$21="Guayaquil/Santa Elena",'Tablas Guayaquil'!E93,'Tablas Resto de Ecuador'!E93) -> 157.94 | F93: =IF('INGRESO DE DATOS'!$G$21="Guayaquil/Santa Elena",'Tablas Guayaquil'!F93,'Tablas Resto de Ecuador'!F93) -> 115.8933333 | G93: =IF('INGRESO DE DATOS'!$G$21="Guayaquil/Santa Elena",'Tablas Guayaquil'!G93,'Tablas Resto de Ecuador'!G93) -> 69.96 | H93: =IF('INGRESO DE DATOS'!$G$21="Guayaquil/Santa Elena",'Tablas Guayaquil'!H93,'Tablas Resto de Ecuador'!H93) -> 45.315 | I93: =IF('INGRESO DE DATOS'!$G$21="Guayaquil/Santa Elena",'Tablas Guayaquil'!I93,'Tablas Resto de Ecuador'!I93) -> 28.97333333
A94: 36 | C94: =IF('INGRESO DE DATOS'!$G$21="Guayaquil/Santa Elena",'Tablas Guayaquil'!C94,'Tablas Resto de Ecuador'!C94) -> 261.3783333 | D94: =IF('INGRESO DE DATOS'!$G$21="Guayaquil/Santa Elena",'Tablas Guayaquil'!D94,'Tablas Resto de Ecuador'!D94) -> 212.6183333 | E94: =IF('INGRESO DE DATOS'!$G$21="Guayaquil/Santa Elena",'Tablas Guayaquil'!E94,'Tablas Resto de Ecuador'!E94) -> 163.6816667 | F94: =IF('INGRESO DE DATOS'!$G$21="Guayaquil/Santa Elena",'Tablas Guayaquil'!F94,'Tablas Resto de Ecuador'!F94) -> 120.3983333 | G94: =IF('INGRESO DE DATOS'!$G$21="Guayaquil/Santa Elena",'Tablas Guayaquil'!G94,'Tablas Resto de Ecuador'!G94) -> 73.14 | H94: =IF('INGRESO DE DATOS'!$G$21="Guayaquil/Santa Elena",'Tablas Guayaquil'!H94,'Tablas Resto de Ecuador'!H94) -> 47.61166667 | I94: =IF('INGRESO DE DATOS'!$G$21="Guayaquil/Santa Elena",'Tablas Guayaquil'!I94,'Tablas Resto de Ecuador'!I94) -> 30.65166667
A95: 37 | C95: =IF('INGRESO DE DATOS'!$G$21="Guayaquil/Santa Elena",'Tablas Guayaquil'!C95,'Tablas Resto de Ecuador'!C95) -> 270.035 | D95: =IF('INGRESO DE DATOS'!$G$21="Guayaquil/Santa Elena",'Tablas Guayaquil'!D95,'Tablas Resto de Ecuador'!D95) -> 220.1266667 | E95: =IF('INGRESO DE DATOS'!$G$21="Guayaquil/Santa Elena",'Tablas Guayaquil'!E95,'Tablas Resto de Ecuador'!E95) -> 169.865 | F95: =IF('INGRESO DE DATOS'!$G$21="Guayaquil/Santa Elena",'Tablas Guayaquil'!F95,'Tablas Resto de Ecuador'!F95) -> 125.4333333 | G95: =IF('INGRESO DE DATOS'!$G$21="Guayaquil/Santa Elena",'Tablas Guayaquil'!G95,'Tablas Resto de Ecuador'!G95) -> 76.585 | H95: =IF('INGRESO DE DATOS'!$G$21="Guayaquil/Santa Elena",'Tablas Guayaquil'!H95,'Tablas Resto de Ecuador'!H95) -> 49.99666667 | I95: =IF('INGRESO DE DATOS'!$G$21="Guayaquil/Santa Elena",'Tablas Guayaquil'!I95,'Tablas Resto de Ecuador'!I95) -> 32.33
A96: 38 | C96: =IF('INGRESO DE DATOS'!$G$21="Guayaquil/Santa Elena",'Tablas Guayaquil'!C96,'Tablas Resto de Ecuador'!C96) -> 279.3983333 | D96: =IF('INGRESO DE DATOS'!$G$21="Guayaquil/Santa Elena",'Tablas Guayaquil'!D96,'Tablas Resto de Ecuador'!D96) -> 228.2533333 | E96: =IF('INGRESO DE DATOS'!$G$21="Guayaquil/Santa Elena",'Tablas Guayaquil'!E96,'Tablas Resto de Ecuador'!E96) -> 176.6666667 | F96: =IF('INGRESO DE DATOS'!$G$21="Guayaquil/Santa Elena",'Tablas Guayaquil'!F96,'Tablas Resto de Ecuador'!F96) -> 130.91 | G96: =IF('INGRESO DE DATOS'!$G$21="Guayaquil/Santa Elena",'Tablas Guayaquil'!G96,'Tablas Resto de Ecuador'!G96) -> 80.295 | H96: =IF('INGRESO DE DATOS'!$G$21="Guayaquil/Santa Elena",'Tablas Guayaquil'!H96,'Tablas Resto de Ecuador'!H96) -> 52.64666667 | I96: =IF('INGRESO DE DATOS'!$G$21="Guayaquil/Santa Elena",'Tablas Guayaquil'!I96,'Tablas Resto de Ecuador'!I96) -> 34.27333333
A97: 39 | C97: =IF('INGRESO DE DATOS'!$G$21="Guayaquil/Santa Elena",'Tablas Guayaquil'!C97,'Tablas Resto de Ecuador'!C97) -> 289.645 | D97: =IF('INGRESO DE DATOS'!$G$21="Guayaquil/Santa Elena",'Tablas Guayaquil'!D97,'Tablas Resto de Ecuador'!D97) -> 237.175 | E97: =IF('INGRESO DE DATOS'!$G$21="Guayaquil/Santa Elena",'Tablas Guayaquil'!E97,'Tablas Resto de Ecuador'!E97) -> 184.175 | F97: =IF('INGRESO DE DATOS'!$G$21="Guayaquil/Santa Elena",'Tablas Guayaquil'!F97,'Tablas Resto de Ecuador'!F97) -> 136.8283333 | G97: =IF('INGRESO DE DATOS'!$G$21="Guayaquil/Santa Elena",'Tablas Guayaquil'!G97,'Tablas Resto de Ecuador'!G97) -> 84.27 | H97: =IF('INGRESO DE DATOS'!$G$21="Guayaquil/Santa Elena",'Tablas Guayaquil'!H97,'Tablas Resto de Ecuador'!H97) -> 55.47333333 | I97: =IF('INGRESO DE DATOS'!$G$21="Guayaquil/Santa Elena",'Tablas Guayaquil'!I97,'Tablas Resto de Ecuador'!I97) -> 36.305
A98: 40 | C98: =IF('INGRESO DE DATOS'!$G$21="Guayaquil/Santa Elena",'Tablas Guayaquil'!C98,'Tablas Resto de Ecuador'!C98) -> 297.86 | D98: =IF('INGRESO DE DATOS'!$G$21="Guayaquil/Santa Elena",'Tablas Guayaquil'!D98,'Tablas Resto de Ecuador'!D98) -> 246.8916667 | E98: =IF('INGRESO DE DATOS'!$G$21="Guayaquil/Santa Elena",'Tablas Guayaquil'!E98,'Tablas Resto de Ecuador'!E98) -> 192.3016667 | F98: =IF('INGRESO DE DATOS'!$G$21="Guayaquil/Santa Elena",'Tablas Guayaquil'!F98,'Tablas Resto de Ecuador'!F98) -> 143.2766667 | G98: =IF('INGRESO DE DATOS'!$G$21="Guayaquil/Santa Elena",'Tablas Guayaquil'!G98,'Tablas Resto de Ecuador'!G98) -> 88.68666667 | H98: =IF('INGRESO DE DATOS'!$G$21="Guayaquil/Santa Elena",'Tablas Guayaquil'!H98,'Tablas Resto de Ecuador'!H98) -> 58.65333333 | I98: =IF('INGRESO DE DATOS'!$G$21="Guayaquil/Santa Elena",'Tablas Guayaquil'!I98,'Tablas Resto de Ecuador'!I98) -> 38.60166667
A99: 41 | C99: =IF('INGRESO DE DATOS'!$G$21="Guayaquil/Santa Elena",'Tablas Guayaquil'!C99,'Tablas Resto de Ecuador'!C99) -> 304.485 | D99: =IF('INGRESO DE DATOS'!$G$21="Guayaquil/Santa Elena",'Tablas Guayaquil'!D99,'Tablas Resto de Ecuador'!D99) -> 257.4033333 | E99: =IF('INGRESO DE DATOS'!$G$21="Guayaquil/Santa Elena",'Tablas Guayaquil'!E99,'Tablas Resto de Ecuador'!E99) -> 200.9583333 | F99: =IF('INGRESO DE DATOS'!$G$21="Guayaquil/Santa Elena",'Tablas Guayaquil'!F99,'Tablas Resto de Ecuador'!F99) -> 150.1666667 | G99: =IF('INGRESO DE DATOS'!$G$21="Guayaquil/Santa Elena",'Tablas Guayaquil'!G99,'Tablas Resto de Ecuador'!G99) -> 93.28 | H99: =IF('INGRESO DE DATOS'!$G$21="Guayaquil/Santa Elena",'Tablas Guayaquil'!H99,'Tablas Resto de Ecuador'!H99) -> 62.01 | I99: =IF('INGRESO DE DATOS'!$G$21="Guayaquil/Santa Elena",'Tablas Guayaquil'!I99,'Tablas Resto de Ecuador'!I99) -> 41.075
A100: 42 | C100: =IF('INGRESO DE DATOS'!$G$21="Guayaquil/Santa Elena",'Tablas Guayaquil'!C100,'Tablas Resto de Ecuador'!C100) -> 311.64 | D100: =IF('INGRESO DE DATOS'!$G$21="Guayaquil/Santa Elena",'Tablas Guayaquil'!D100,'Tablas Resto de Ecuador'!D100) -> 268.8866667 | E100: =IF('INGRESO DE DATOS'!$G$21="Guayaquil/Santa Elena",'Tablas Guayaquil'!E100,'Tablas Resto de Ecuador'!E100) -> 210.4983333 | F100: =IF('INGRESO DE DATOS'!$G$21="Guayaquil/Santa Elena",'Tablas Guayaquil'!F100,'Tablas Resto de Ecuador'!F100) -> 157.8516667 | G100: =IF('INGRESO DE DATOS'!$G$21="Guayaquil/Santa Elena",'Tablas Guayaquil'!G100,'Tablas Resto de Ecuador'!G100) -> 98.49166667 | H100: =IF('INGRESO DE DATOS'!$G$21="Guayaquil/Santa Elena",'Tablas Guayaquil'!H100,'Tablas Resto de Ecuador'!H100) -> 65.63166667 | I100: =IF('INGRESO DE DATOS'!$G$21="Guayaquil/Santa Elena",'Tablas Guayaquil'!I100,'Tablas Resto de Ecuador'!I100) -> 43.725
A101: 43 | C101: =IF('INGRESO DE DATOS'!$G$21="Guayaquil/Santa Elena",'Tablas Guayaquil'!C101,'Tablas Resto de Ecuador'!C101) -> 323.565 | D101: =IF('INGRESO DE DATOS'!$G$21="Guayaquil/Santa Elena",'Tablas Guayaquil'!D101,'Tablas Resto de Ecuador'!D101) -> 281.165 | E101: =IF('INGRESO DE DATOS'!$G$21="Guayaquil/Santa Elena",'Tablas Guayaquil'!E101,'Tablas Resto de Ecuador'!E101) -> 220.745 | F101: =IF('INGRESO DE DATOS'!$G$21="Guayaquil/Santa Elena",'Tablas Guayaquil'!F101,'Tablas Resto de Ecuador'!F101) -> 165.9783333 | G101: =IF('INGRESO DE DATOS'!$G$21="Guayaquil/Santa Elena",'Tablas Guayaquil'!G101,'Tablas Resto de Ecuador'!G101) -> 104.0566667 | H101: =IF('INGRESO DE DATOS'!$G$21="Guayaquil/Santa Elena",'Tablas Guayaquil'!H101,'Tablas Resto de Ecuador'!H101) -> 69.695 | I101: =IF('INGRESO DE DATOS'!$G$21="Guayaquil/Santa Elena",'Tablas Guayaquil'!I101,'Tablas Resto de Ecuador'!I101) -> 46.64
A102: 44 | C102: =IF('INGRESO DE DATOS'!$G$21="Guayaquil/Santa Elena",'Tablas Guayaquil'!C102,'Tablas Resto de Ecuador'!C102) -> 336.02 | D102: =IF('INGRESO DE DATOS'!$G$21="Guayaquil/Santa Elena",'Tablas Guayaquil'!D102,'Tablas Resto de Ecuador'!D102) -> 292.295 | E102: =IF('INGRESO DE DATOS'!$G$21="Guayaquil/Santa Elena",'Tablas Guayaquil'!E102,'Tablas Resto de Ecuador'!E102) -> 231.7866667 | F102: =IF('INGRESO DE DATOS'!$G$21="Guayaquil/Santa Elena",'Tablas Guayaquil'!F102,'Tablas Resto de Ecuador'!F102) -> 174.8116667 | G102: =IF('INGRESO DE DATOS'!$G$21="Guayaquil/Santa Elena",'Tablas Guayaquil'!G102,'Tablas Resto de Ecuador'!G102) -> 110.0633333 | H102: =IF('INGRESO DE DATOS'!$G$21="Guayaquil/Santa Elena",'Tablas Guayaquil'!H102,'Tablas Resto de Ecuador'!H102) -> 74.02333333 | I102: =IF('INGRESO DE DATOS'!$G$21="Guayaquil/Santa Elena",'Tablas Guayaquil'!I102,'Tablas Resto de Ecuador'!I102) -> 49.82
A103: 45 | C103: =IF('INGRESO DE DATOS'!$G$21="Guayaquil/Santa Elena",'Tablas Guayaquil'!C103,'Tablas Resto de Ecuador'!C103) -> 348.475 | D103: =IF('INGRESO DE DATOS'!$G$21="Guayaquil/Santa Elena",'Tablas Guayaquil'!D103,'Tablas Resto de Ecuador'!D103) -> 302.895 | E103: =IF('INGRESO DE DATOS'!$G$21="Guayaquil/Santa Elena",'Tablas Guayaquil'!E103,'Tablas Resto de Ecuador'!E103) -> 243.7116667 | F103: =IF('INGRESO DE DATOS'!$G$21="Guayaquil/Santa Elena",'Tablas Guayaquil'!F103,'Tablas Resto de Ecuador'!F103) -> 184.44 | G103: =IF('INGRESO DE DATOS'!$G$21="Guayaquil/Santa Elena",'Tablas Guayaquil'!G103,'Tablas Resto de Ecuador'!G103) -> 116.5116667 | H103: =IF('INGRESO DE DATOS'!$G$21="Guayaquil/Santa Elena",'Tablas Guayaquil'!H103,'Tablas Resto de Ecuador'!H103) -> 78.705 | I103: =IF('INGRESO DE DATOS'!$G$21="Guayaquil/Santa Elena",'Tablas Guayaquil'!I103,'Tablas Resto de Ecuador'!I103) -> 53.17666667
A104: 46 | C104: =IF('INGRESO DE DATOS'!$G$21="Guayaquil/Santa Elena",'Tablas Guayaquil'!C104,'Tablas Resto de Ecuador'!C104) -> 360.7533333 | D104: =IF('INGRESO DE DATOS'!$G$21="Guayaquil/Santa Elena",'Tablas Guayaquil'!D104,'Tablas Resto de Ecuador'!D104) -> 313.76 | E104: =IF('INGRESO DE DATOS'!$G$21="Guayaquil/Santa Elena",'Tablas Guayaquil'!E104,'Tablas Resto de Ecuador'!E104) -> 256.6083333 | F104: =IF('INGRESO DE DATOS'!$G$21="Guayaquil/Santa Elena",'Tablas Guayaquil'!F104,'Tablas Resto de Ecuador'!F104) -> 194.6866667 | G104: =IF('INGRESO DE DATOS'!$G$21="Guayaquil/Santa Elena",'Tablas Guayaquil'!G104,'Tablas Resto de Ecuador'!G104) -> 123.6666667 | H104: =IF('INGRESO DE DATOS'!$G$21="Guayaquil/Santa Elena",'Tablas Guayaquil'!H104,'Tablas Resto de Ecuador'!H104) -> 83.74 | I104: =IF('INGRESO DE DATOS'!$G$21="Guayaquil/Santa Elena",'Tablas Guayaquil'!I104,'Tablas Resto de Ecuador'!I104) -> 56.88666667
A105: 47 | C105: =IF('INGRESO DE DATOS'!$G$21="Guayaquil/Santa Elena",'Tablas Guayaquil'!C105,'Tablas Resto de Ecuador'!C105) -> 373.385 | D105: =IF('INGRESO DE DATOS'!$G$21="Guayaquil/Santa Elena",'Tablas Guayaquil'!D105,'Tablas Resto de Ecuador'!D105) -> 324.5366667 | E105: =IF('INGRESO DE DATOS'!$G$21="Guayaquil/Santa Elena",'Tablas Guayaquil'!E105,'Tablas Resto de Ecuador'!E105) -> 270.4766667 | F105: =IF('INGRESO DE DATOS'!$G$21="Guayaquil/Santa Elena",'Tablas Guayaquil'!F105,'Tablas Resto de Ecuador'!F105) -> 205.8166667 | G105: =IF('INGRESO DE DATOS'!$G$21="Guayaquil/Santa Elena",'Tablas Guayaquil'!G105,'Tablas Resto de Ecuador'!G105) -> 131.175 | H105: =IF('INGRESO DE DATOS'!$G$21="Guayaquil/Santa Elena",'Tablas Guayaquil'!H105,'Tablas Resto de Ecuador'!H105) -> 89.21666667 | I105: =IF('INGRESO DE DATOS'!$G$21="Guayaquil/Santa Elena",'Tablas Guayaquil'!I105,'Tablas Resto de Ecuador'!I105) -> 60.95
A106: 48 | C106: =IF('INGRESO DE DATOS'!$G$21="Guayaquil/Santa Elena",'Tablas Guayaquil'!C106,'Tablas Resto de Ecuador'!C106) -> 386.635 | D106: =IF('INGRESO DE DATOS'!$G$21="Guayaquil/Santa Elena",'Tablas Guayaquil'!D106,'Tablas Resto de Ecuador'!D106) -> 336.02 | E106: =IF('INGRESO DE DATOS'!$G$21="Guayaquil/Santa Elena",'Tablas Guayaquil'!E106,'Tablas Resto de Ecuador'!E106) -> 285.4933333 | F106: =IF('INGRESO DE DATOS'!$G$21="Guayaquil/Santa Elena",'Tablas Guayaquil'!F106,'Tablas Resto de Ecuador'!F106) -> 217.9183333 | G106: =IF('INGRESO DE DATOS'!$G$21="Guayaquil/Santa Elena",'Tablas Guayaquil'!G106,'Tablas Resto de Ecuador'!G106) -> 139.39 | H106: =IF('INGRESO DE DATOS'!$G$21="Guayaquil/Santa Elena",'Tablas Guayaquil'!H106,'Tablas Resto de Ecuador'!H106) -> 95.22333333 | I106: =IF('INGRESO DE DATOS'!$G$21="Guayaquil/Santa Elena",'Tablas Guayaquil'!I106,'Tablas Resto de Ecuador'!I106) -> 65.36666667
A107: 49 | C107: =IF('INGRESO DE DATOS'!$G$21="Guayaquil/Santa Elena",'Tablas Guayaquil'!C107,'Tablas Resto de Ecuador'!C107) -> 399.5316667 | D107: =IF('INGRESO DE DATOS'!$G$21="Guayaquil/Santa Elena",'Tablas Guayaquil'!D107,'Tablas Resto de Ecuador'!D107) -> 347.415 | E107: =IF('INGRESO DE DATOS'!$G$21="Guayaquil/Santa Elena",'Tablas Guayaquil'!E107,'Tablas Resto de Ecuador'!E107) -> 301.57 | F107: =IF('INGRESO DE DATOS'!$G$21="Guayaquil/Santa Elena",'Tablas Guayaquil'!F107,'Tablas Resto de Ecuador'!F107) -> 230.9033333 | G107: =IF('INGRESO DE DATOS'!$G$21="Guayaquil/Santa Elena",'Tablas Guayaquil'!G107,'Tablas Resto de Ecuador'!G107) -> 148.3116667 | H107: =IF('INGRESO DE DATOS'!$G$21="Guayaquil/Santa Elena",'Tablas Guayaquil'!H107,'Tablas Resto de Ecuador'!H107) -> 101.76 | I107: =IF('INGRESO DE DATOS'!$G$21="Guayaquil/Santa Elena",'Tablas Guayaquil'!I107,'Tablas Resto de Ecuador'!I107) -> 70.13666667
A108: 50 | C108: =IF('INGRESO DE DATOS'!$G$21="Guayaquil/Santa Elena",'Tablas Guayaquil'!C108,'Tablas Resto de Ecuador'!C108) -> 412.5166667 | D108: =IF('INGRESO DE DATOS'!$G$21="Guayaquil/Santa Elena",'Tablas Guayaquil'!D108,'Tablas Resto de Ecuador'!D108) -> 358.8983333 | E108: =IF('INGRESO DE DATOS'!$G$21="Guayaquil/Santa Elena",'Tablas Guayaquil'!E108,'Tablas Resto de Ecuador'!E108) -> 320.12 | F108: =IF('INGRESO DE DATOS'!$G$21="Guayaquil/Santa Elena",'Tablas Guayaquil'!F108,'Tablas Resto de Ecuador'!F108) -> 245.92 | G108: =IF('INGRESO DE DATOS'!$G$21="Guayaquil/Santa Elena",'Tablas Guayaquil'!G108,'Tablas Resto de Ecuador'!G108) -> 158.735 | H108: =IF('INGRESO DE DATOS'!$G$21="Guayaquil/Santa Elena",'Tablas Guayaquil'!H108,'Tablas Resto de Ecuador'!H108) -> 109.2683333 | I108: =IF('INGRESO DE DATOS'!$G$21="Guayaquil/Santa Elena",'Tablas Guayaquil'!I108,'Tablas Resto de Ecuador'!I108) -> 75.70166667
A109: 51 | C109: =IF('INGRESO DE DATOS'!$G$21="Guayaquil/Santa Elena",'Tablas Guayaquil'!C109,'Tablas Resto de Ecuador'!C109) -> 425.5016667 | D109: =IF('INGRESO DE DATOS'!$G$21="Guayaquil/Santa Elena",'Tablas Guayaquil'!D109,'Tablas Resto de Ecuador'!D109) -> 370.1166667 | E109: =IF('INGRESO DE DATOS'!$G$21="Guayaquil/Santa Elena",'Tablas Guayaquil'!E109,'Tablas Resto de Ecuador'!E109) -> 337.4333333 | F109: =IF('INGRESO DE DATOS'!$G$21="Guayaquil/Santa Elena",'Tablas Guayaquil'!F109,'Tablas Resto de Ecuador'!F109) -> 264.0283333 | G109: =IF('INGRESO DE DATOS'!$G$21="Guayaquil/Santa Elena",'Tablas Guayaquil'!G109,'Tablas Resto de Ecuador'!G109) -> 171.3666667 | H109: =IF('INGRESO DE DATOS'!$G$21="Guayaquil/Santa Elena",'Tablas Guayaquil'!H109,'Tablas Resto de Ecuador'!H109) -> 118.455 | I109: =IF('INGRESO DE DATOS'!$G$21="Guayaquil/Santa Elena",'Tablas Guayaquil'!I109,'Tablas Resto de Ecuador'!I109) -> 82.50333333
A110: 52 | C110: =IF('INGRESO DE DATOS'!$G$21="Guayaquil/Santa Elena",'Tablas Guayaquil'!C110,'Tablas Resto de Ecuador'!C110) -> 438.575 | D110: =IF('INGRESO DE DATOS'!$G$21="Guayaquil/Santa Elena",'Tablas Guayaquil'!D110,'Tablas Resto de Ecuador'!D110) -> 381.5116667 | E110: =IF('INGRESO DE DATOS'!$G$21="Guayaquil/Santa Elena",'Tablas Guayaquil'!E110,'Tablas Resto de Ecuador'!E110) -> 347.8566667 | F110: =IF('INGRESO DE DATOS'!$G$21="Guayaquil/Santa Elena",'Tablas Guayaquil'!F110,'Tablas Resto de Ecuador'!F110) -> 283.4616667 | G110: =IF('INGRESO DE DATOS'!$G$21="Guayaquil/Santa Elena",'Tablas Guayaquil'!G110,'Tablas Resto de Ecuador'!G110) -> 184.7933333 | H110: =IF('INGRESO DE DATOS'!$G$21="Guayaquil/Santa Elena",'Tablas Guayaquil'!H110,'Tablas Resto de Ecuador'!H110) -> 128.3483333 | I110: =IF('INGRESO DE DATOS'!$G$21="Guayaquil/Santa Elena",'Tablas Guayaquil'!I110,'Tablas Resto de Ecuador'!I110) -> 89.835
A111: 53 | C111: =IF('INGRESO DE DATOS'!$G$21="Guayaquil/Santa Elena",'Tablas Guayaquil'!C111,'Tablas Resto de Ecuador'!C111) -> 454.21 | D111: =IF('INGRESO DE DATOS'!$G$21="Guayaquil/Santa Elena",'Tablas Guayaquil'!D111,'Tablas Resto de Ecuador'!D111) -> 394.85 | E111: =IF('INGRESO DE DATOS'!$G$21="Guayaquil/Santa Elena",'Tablas Guayaquil'!E111,'Tablas Resto de Ecuador'!E111) -> 360.3116667 | F111: =IF('INGRESO DE DATOS'!$G$21="Guayaquil/Santa Elena",'Tablas Guayaquil'!F111,'Tablas Resto de Ecuador'!F111) -> 304.3083333 | G111: =IF('INGRESO DE DATOS'!$G$21="Guayaquil/Santa Elena",'Tablas Guayaquil'!G111,'Tablas Resto de Ecuador'!G111) -> 199.28 | H111: =IF('INGRESO DE DATOS'!$G$21="Guayaquil/Santa Elena",'Tablas Guayaquil'!H111,'Tablas Resto de Ecuador'!H111) -> 138.9483333 | I111: =IF('INGRESO DE DATOS'!$G$21="Guayaquil/Santa Elena",'Tablas Guayaquil'!I111,'Tablas Resto de Ecuador'!I111) -> 97.785
A112: 54 | C112: =IF('INGRESO DE DATOS'!$G$21="Guayaquil/Santa Elena",'Tablas Guayaquil'!C112,'Tablas Resto de Ecuador'!C112) -> 469.7566667 | D112: =IF('INGRESO DE DATOS'!$G$21="Guayaquil/Santa Elena",'Tablas Guayaquil'!D112,'Tablas Resto de Ecuador'!D112) -> 408.4533333 | E112: =IF('INGRESO DE DATOS'!$G$21="Guayaquil/Santa Elena",'Tablas Guayaquil'!E112,'Tablas Resto de Ecuador'!E112) -> 372.5016667 | F112: =IF('INGRESO DE DATOS'!$G$21="Guayaquil/Santa Elena",'Tablas Guayaquil'!F112,'Tablas Resto de Ecuador'!F112) -> 326.8333333 | G112: =IF('INGRESO DE DATOS'!$G$21="Guayaquil/Santa Elena",'Tablas Guayaquil'!G112,'Tablas Resto de Ecuador'!G112) -> 214.915 | H112: =IF('INGRESO DE DATOS'!$G$21="Guayaquil/Santa Elena",'Tablas Guayaquil'!H112,'Tablas Resto de Ecuador'!H112) -> 150.255 | I112: =IF('INGRESO DE DATOS'!$G$21="Guayaquil/Santa Elena",'Tablas Guayaquil'!I112,'Tablas Resto de Ecuador'!I112) -> 106.265
A113: 55 | C113: =IF('INGRESO DE DATOS'!$G$21="Guayaquil/Santa Elena",'Tablas Guayaquil'!C113,'Tablas Resto de Ecuador'!C113) -> 485.5683333 | D113: =IF('INGRESO DE DATOS'!$G$21="Guayaquil/Santa Elena",'Tablas Guayaquil'!D113,'Tablas Resto de Ecuador'!D113) -> 422.145 | E113: =IF('INGRESO DE DATOS'!$G$21="Guayaquil/Santa Elena",'Tablas Guayaquil'!E113,'Tablas Resto de Ecuador'!E113) -> 384.6916667 | F113: =IF('INGRESO DE DATOS'!$G$21="Guayaquil/Santa Elena",'Tablas Guayaquil'!F113,'Tablas Resto de Ecuador'!F113) -> 339.465 | G113: =IF('INGRESO DE DATOS'!$G$21="Guayaquil/Santa Elena",'Tablas Guayaquil'!G113,'Tablas Resto de Ecuador'!G113) -> 231.61 | H113: =IF('INGRESO DE DATOS'!$G$21="Guayaquil/Santa Elena",'Tablas Guayaquil'!H113,'Tablas Resto de Ecuador'!H113) -> 162.445 | I113: =IF('INGRESO DE DATOS'!$G$21="Guayaquil/Santa Elena",'Tablas Guayaquil'!I113,'Tablas Resto de Ecuador'!I113) -> 115.3633333
A114: 56 | C114: =IF('INGRESO DE DATOS'!$G$21="Guayaquil/Santa Elena",'Tablas Guayaquil'!C114,'Tablas Resto de Ecuador'!C114) -> 501.0266667 | D114: =IF('INGRESO DE DATOS'!$G$21="Guayaquil/Santa Elena",'Tablas Guayaquil'!D114,'Tablas Resto de Ecuador'!D114) -> 435.4833333 | E114: =IF('INGRESO DE DATOS'!$G$21="Guayaquil/Santa Elena",'Tablas Guayaquil'!E114,'Tablas Resto de Ecuador'!E114) -> 396.8816667 | F114: =IF('INGRESO DE DATOS'!$G$21="Guayaquil/Santa Elena",'Tablas Guayaquil'!F114,'Tablas Resto de Ecuador'!F114) -> 351.125 | G114: =IF('INGRESO DE DATOS'!$G$21="Guayaquil/Santa Elena",'Tablas Guayaquil'!G114,'Tablas Resto de Ecuador'!G114) -> 245.125 | H114: =IF('INGRESO DE DATOS'!$G$21="Guayaquil/Santa Elena",'Tablas Guayaquil'!H114,'Tablas Resto de Ecuador'!H114) -> 175.6066667 | I114: =IF('INGRESO DE DATOS'!$G$21="Guayaquil/Santa Elena",'Tablas Guayaquil'!I114,'Tablas Resto de Ecuador'!I114) -> 125.08
A115: 57 | C115: =IF('INGRESO DE DATOS'!$G$21="Guayaquil/Santa Elena",'Tablas Guayaquil'!C115,'Tablas Resto de Ecuador'!C115) -> 516.22 | D115: =IF('INGRESO DE DATOS'!$G$21="Guayaquil/Santa Elena",'Tablas Guayaquil'!D115,'Tablas Resto de Ecuador'!D115) -> 449.0866667 | E115: =IF('INGRESO DE DATOS'!$G$21="Guayaquil/Santa Elena",'Tablas Guayaquil'!E115,'Tablas Resto de Ecuador'!E115) -> 409.3366667 | F115: =IF('INGRESO DE DATOS'!$G$21="Guayaquil/Santa Elena",'Tablas Guayaquil'!F115,'Tablas Resto de Ecuador'!F115) -> 362.9616667 | G115: =IF('INGRESO DE DATOS'!$G$21="Guayaquil/Santa Elena",'Tablas Guayaquil'!G115,'Tablas Resto de Ecuador'!G115) -> 252.7216667 | H115: =IF('INGRESO DE DATOS'!$G$21="Guayaquil/Santa Elena",'Tablas Guayaquil'!H115,'Tablas Resto de Ecuador'!H115) -> 189.74 | I115: =IF('INGRESO DE DATOS'!$G$21="Guayaquil/Santa Elena",'Tablas Guayaquil'!I115,'Tablas Resto de Ecuador'!I115) -> 135.68
A116: 58 | C116: =IF('INGRESO DE DATOS'!$G$21="Guayaquil/Santa Elena",'Tablas Guayaquil'!C116,'Tablas Resto de Ecuador'!C116) -> 534.1516667 | D116: =IF('INGRESO DE DATOS'!$G$21="Guayaquil/Santa Elena",'Tablas Guayaquil'!D116,'Tablas Resto de Ecuador'!D116) -> 464.3683333 | E116: =IF('INGRESO DE DATOS'!$G$21="Guayaquil/Santa Elena",'Tablas Guayaquil'!E116,'Tablas Resto de Ecuador'!E116) -> 422.2333333 | F116: =IF('INGRESO DE DATOS'!$G$21="Guayaquil/Santa Elena",'Tablas Guayaquil'!F116,'Tablas Resto de Ecuador'!F116) -> 378.5083333 | G116: =IF('INGRESO DE DATOS'!$G$21="Guayaquil/Santa Elena",'Tablas Guayaquil'!G116,'Tablas Resto de Ecuador'!G116) -> 262.7916667 | H116: =IF('INGRESO DE DATOS'!$G$21="Guayaquil/Santa Elena",'Tablas Guayaquil'!H116,'Tablas Resto de Ecuador'!H116) -> 204.845 | I116: =IF('INGRESO DE DATOS'!$G$21="Guayaquil/Santa Elena",'Tablas Guayaquil'!I116,'Tablas Resto de Ecuador'!I116) -> 146.8983333
A117: 59 | C117: =IF('INGRESO DE DATOS'!$G$21="Guayaquil/Santa Elena",'Tablas Guayaquil'!C117,'Tablas Resto de Ecuador'!C117) -> 551.995 | D117: =IF('INGRESO DE DATOS'!$G$21="Guayaquil/Santa Elena",'Tablas Guayaquil'!D117,'Tablas Resto de Ecuador'!D117) -> 480.0033333 | E117: =IF('INGRESO DE DATOS'!$G$21="Guayaquil/Santa Elena",'Tablas Guayaquil'!E117,'Tablas Resto de Ecuador'!E117) -> 434.9533333 | F117: =IF('INGRESO DE DATOS'!$G$21="Guayaquil/Santa Elena",'Tablas Guayaquil'!F117,'Tablas Resto de Ecuador'!F117) -> 393.79 | G117: =IF('INGRESO DE DATOS'!$G$21="Guayaquil/Santa Elena",'Tablas Guayaquil'!G117,'Tablas Resto de Ecuador'!G117) -> 272.685 | H117: =IF('INGRESO DE DATOS'!$G$21="Guayaquil/Santa Elena",'Tablas Guayaquil'!H117,'Tablas Resto de Ecuador'!H117) -> 221.0983333 | I117: =IF('INGRESO DE DATOS'!$G$21="Guayaquil/Santa Elena",'Tablas Guayaquil'!I117,'Tablas Resto de Ecuador'!I117) -> 159
A118: 60 | C118: =IF('INGRESO DE DATOS'!$G$21="Guayaquil/Santa Elena",'Tablas Guayaquil'!C118,'Tablas Resto de Ecuador'!C118) -> 569.75 | D118: =IF('INGRESO DE DATOS'!$G$21="Guayaquil/Santa Elena",'Tablas Guayaquil'!D118,'Tablas Resto de Ecuador'!D118) -> 495.3733333 | E118: =IF('INGRESO DE DATOS'!$G$21="Guayaquil/Santa Elena",'Tablas Guayaquil'!E118,'Tablas Resto de Ecuador'!E118) -> 448.0266667 | F118: =IF('INGRESO DE DATOS'!$G$21="Guayaquil/Santa Elena",'Tablas Guayaquil'!F118,'Tablas Resto de Ecuador'!F118) -> 409.2483333 | G118: =IF('INGRESO DE DATOS'!$G$21="Guayaquil/Santa Elena",'Tablas Guayaquil'!G118,'Tablas Resto de Ecuador'!G118) -> 282.755 | H118: =IF('INGRESO DE DATOS'!$G$21="Guayaquil/Santa Elena",'Tablas Guayaquil'!H118,'Tablas Resto de Ecuador'!H118) -> 238.6766667 | I118: =IF('INGRESO DE DATOS'!$G$21="Guayaquil/Santa Elena",'Tablas Guayaquil'!I118,'Tablas Resto de Ecuador'!I118) -> 172.1616667
A119: 61 | C119: =IF('INGRESO DE DATOS'!$G$21="Guayaquil/Santa Elena",'Tablas Guayaquil'!C119,'Tablas Resto de Ecuador'!C119) -> 591.745 | D119: =IF('INGRESO DE DATOS'!$G$21="Guayaquil/Santa Elena",'Tablas Guayaquil'!D119,'Tablas Resto de Ecuador'!D119) -> 514.365 | E119: =IF('INGRESO DE DATOS'!$G$21="Guayaquil/Santa Elena",'Tablas Guayaquil'!E119,'Tablas Resto de Ecuador'!E119) -> 467.2833333 | F119: =IF('INGRESO DE DATOS'!$G$21="Guayaquil/Santa Elena",'Tablas Guayaquil'!F119,'Tablas Resto de Ecuador'!F119) -> 424.4416667 | G119: =IF('INGRESO DE DATOS'!$G$21="Guayaquil/Santa Elena",'Tablas Guayaquil'!G119,'Tablas Resto de Ecuador'!G119) -> 293.2666667 | H119: =IF('INGRESO DE DATOS'!$G$21="Guayaquil/Santa Elena",'Tablas Guayaquil'!H119,'Tablas Resto de Ecuador'!H119) -> 257.4916667 | I119: =IF('INGRESO DE DATOS'!$G$21="Guayaquil/Santa Elena",'Tablas Guayaquil'!I119,'Tablas Resto de Ecuador'!I119) -> 186.1183333
A120: 62 | C120: =IF('INGRESO DE DATOS'!$G$21="Guayaquil/Santa Elena",'Tablas Guayaquil'!C120,'Tablas Resto de Ecuador'!C120) -> 618.245 | D120: =IF('INGRESO DE DATOS'!$G$21="Guayaquil/Santa Elena",'Tablas Guayaquil'!D120,'Tablas Resto de Ecuador'!D120) -> 537.5083333 | E120: =IF('INGRESO DE DATOS'!$G$21="Guayaquil/Santa Elena",'Tablas Guayaquil'!E120,'Tablas Resto de Ecuador'!E120) -> 490.1616667 | F120: =IF('INGRESO DE DATOS'!$G$21="Guayaquil/Santa Elena",'Tablas Guayaquil'!F120,'Tablas Resto de Ecuador'!F120) -> 443.61 | G120: =IF('INGRESO DE DATOS'!$G$21="Guayaquil/Santa Elena",'Tablas Guayaquil'!G120,'Tablas Resto de Ecuador'!G120) -> 306.605 | H120: =IF('INGRESO DE DATOS'!$G$21="Guayaquil/Santa Elena",'Tablas Guayaquil'!H120,'Tablas Resto de Ecuador'!H120) -> 277.8966667 | I120: =IF('INGRESO DE DATOS'!$G$21="Guayaquil/Santa Elena",'Tablas Guayaquil'!I120,'Tablas Resto de Ecuador'!I120) -> 201.3116667
A121: 63 | C121: =IF('INGRESO DE DATOS'!$G$21="Guayaquil/Santa Elena",'Tablas Guayaquil'!C121,'Tablas Resto de Ecuador'!C121) -> 650.045 | D121: =IF('INGRESO DE DATOS'!$G$21="Guayaquil/Santa Elena",'Tablas Guayaquil'!D121,'Tablas Resto de Ecuador'!D121) -> 565.1566667 | E121: =IF('INGRESO DE DATOS'!$G$21="Guayaquil/Santa Elena",'Tablas Guayaquil'!E121,'Tablas Resto de Ecuador'!E121) -> 515.6016667 | F121: =IF('INGRESO DE DATOS'!$G$21="Guayaquil/Santa Elena",'Tablas Guayaquil'!F121,'Tablas Resto de Ecuador'!F121) -> 466.4 | G121: =IF('INGRESO DE DATOS'!$G$21="Guayaquil/Santa Elena",'Tablas Guayaquil'!G121,'Tablas Resto de Ecuador'!G121) -> 322.5933333 | H121: =IF('INGRESO DE DATOS'!$G$21="Guayaquil/Santa Elena",'Tablas Guayaquil'!H121,'Tablas Resto de Ecuador'!H121) -> 299.715 | I121: =IF('INGRESO DE DATOS'!$G$21="Guayaquil/Santa Elena",'Tablas Guayaquil'!I121,'Tablas Resto de Ecuador'!I121) -> 217.565
A122: 64 | C122: =IF('INGRESO DE DATOS'!$G$21="Guayaquil/Santa Elena",'Tablas Guayaquil'!C122,'Tablas Resto de Ecuador'!C122) -> 687.4983333 | D122: =IF('INGRESO DE DATOS'!$G$21="Guayaquil/Santa Elena",'Tablas Guayaquil'!D122,'Tablas Resto de Ecuador'!D122) -> 597.9283333 | E122: =IF('INGRESO DE DATOS'!$G$21="Guayaquil/Santa Elena",'Tablas Guayaquil'!E122,'Tablas Resto de Ecuador'!E122) -> 545.0166667 | F122: =IF('INGRESO DE DATOS'!$G$21="Guayaquil/Santa Elena",'Tablas Guayaquil'!F122,'Tablas Resto de Ecuador'!F122) -> 493.2533333 | G122: =IF('INGRESO DE DATOS'!$G$21="Guayaquil/Santa Elena",'Tablas Guayaquil'!G122,'Tablas Resto de Ecuador'!G122) -> 358.1916667 | H122: =IF('INGRESO DE DATOS'!$G$21="Guayaquil/Santa Elena",'Tablas Guayaquil'!H122,'Tablas Resto de Ecuador'!H122) -> 323.3883333 | I122: =IF('INGRESO DE DATOS'!$G$21="Guayaquil/Santa Elena",'Tablas Guayaquil'!I122,'Tablas Resto de Ecuador'!I122) -> 234.9666667
A123: 65 | C123: =IF('INGRESO DE DATOS'!$G$21="Guayaquil/Santa Elena",'Tablas Guayaquil'!C123,'Tablas Resto de Ecuador'!C123) -> 732.5483333 | D123: =IF('INGRESO DE DATOS'!$G$21="Guayaquil/Santa Elena",'Tablas Guayaquil'!D123,'Tablas Resto de Ecuador'!D123) -> 636.795 | E123: =IF('INGRESO DE DATOS'!$G$21="Guayaquil/Santa Elena",'Tablas Guayaquil'!E123,'Tablas Resto de Ecuador'!E123) -> 580.615 | F123: =IF('INGRESO DE DATOS'!$G$21="Guayaquil/Santa Elena",'Tablas Guayaquil'!F123,'Tablas Resto de Ecuador'!F123) -> 530.1766667 | G123: =IF('INGRESO DE DATOS'!$G$21="Guayaquil/Santa Elena",'Tablas Guayaquil'!G123,'Tablas Resto de Ecuador'!G123) -> 383.455 | H123: =IF('INGRESO DE DATOS'!$G$21="Guayaquil/Santa Elena",'Tablas Guayaquil'!H123,'Tablas Resto de Ecuador'!H123) -> 348.9166667 | I123: =IF('INGRESO DE DATOS'!$G$21="Guayaquil/Santa Elena",'Tablas Guayaquil'!I123,'Tablas Resto de Ecuador'!I123) -> 253.87
A124: 66 | C124: =IF('INGRESO DE DATOS'!$G$21="Guayaquil/Santa Elena",'Tablas Guayaquil'!C124,'Tablas Resto de Ecuador'!C124) -> 785.1066667 | D124: =IF('INGRESO DE DATOS'!$G$21="Guayaquil/Santa Elena",'Tablas Guayaquil'!D124,'Tablas Resto de Ecuador'!D124) -> 682.7283333 | E124: =IF('INGRESO DE DATOS'!$G$21="Guayaquil/Santa Elena",'Tablas Guayaquil'!E124,'Tablas Resto de Ecuador'!E124) -> 622.5733333 | F124: =IF('INGRESO DE DATOS'!$G$21="Guayaquil/Santa Elena",'Tablas Guayaquil'!F124,'Tablas Resto de Ecuador'!F124) -> 572.5766667 | G124: =IF('INGRESO DE DATOS'!$G$21="Guayaquil/Santa Elena",'Tablas Guayaquil'!G124,'Tablas Resto de Ecuador'!G124) -> 413.0466667 | H124: =IF('INGRESO DE DATOS'!$G$21="Guayaquil/Santa Elena",'Tablas Guayaquil'!H124,'Tablas Resto de Ecuador'!H124) -> 376.3883333 | I124: =IF('INGRESO DE DATOS'!$G$21="Guayaquil/Santa Elena",'Tablas Guayaquil'!I124,'Tablas Resto de Ecuador'!I124) -> 274.1866667
A125: 67 | C125: =IF('INGRESO DE DATOS'!$G$21="Guayaquil/Santa Elena",'Tablas Guayaquil'!C125,'Tablas Resto de Ecuador'!C125) -> 847.8233333 | D125: =IF('INGRESO DE DATOS'!$G$21="Guayaquil/Santa Elena",'Tablas Guayaquil'!D125,'Tablas Resto de Ecuador'!D125) -> 737.3183333 | E125: =IF('INGRESO DE DATOS'!$G$21="Guayaquil/Santa Elena",'Tablas Guayaquil'!E125,'Tablas Resto de Ecuador'!E125) -> 672.3933333 | F125: =IF('INGRESO DE DATOS'!$G$21="Guayaquil/Santa Elena",'Tablas Guayaquil'!F125,'Tablas Resto de Ecuador'!F125) -> 618.775 | G125: =IF('INGRESO DE DATOS'!$G$21="Guayaquil/Santa Elena",'Tablas Guayaquil'!G125,'Tablas Resto de Ecuador'!G125) -> 446.0833333 | H125: =IF('INGRESO DE DATOS'!$G$21="Guayaquil/Santa Elena",'Tablas Guayaquil'!H125,'Tablas Resto de Ecuador'!H125) -> 406.0683333 | I125: =IF('INGRESO DE DATOS'!$G$21="Guayaquil/Santa Elena",'Tablas Guayaquil'!I125,'Tablas Resto de Ecuador'!I125) -> 296.0933333
A126: 68 | C126: =IF('INGRESO DE DATOS'!$G$21="Guayaquil/Santa Elena",'Tablas Guayaquil'!C126,'Tablas Resto de Ecuador'!C126) -> 919.9916667 | D126: =IF('INGRESO DE DATOS'!$G$21="Guayaquil/Santa Elena",'Tablas Guayaquil'!D126,'Tablas Resto de Ecuador'!D126) -> 799.77 | E126: =IF('INGRESO DE DATOS'!$G$21="Guayaquil/Santa Elena",'Tablas Guayaquil'!E126,'Tablas Resto de Ecuador'!E126) -> 729.4566667 | F126: =IF('INGRESO DE DATOS'!$G$21="Guayaquil/Santa Elena",'Tablas Guayaquil'!F126,'Tablas Resto de Ecuador'!F126) -> 670.8916667 | G126: =IF('INGRESO DE DATOS'!$G$21="Guayaquil/Santa Elena",'Tablas Guayaquil'!G126,'Tablas Resto de Ecuador'!G126) -> 483.7133333 | H126: =IF('INGRESO DE DATOS'!$G$21="Guayaquil/Santa Elena",'Tablas Guayaquil'!H126,'Tablas Resto de Ecuador'!H126) -> 438.045 | I126: =IF('INGRESO DE DATOS'!$G$21="Guayaquil/Santa Elena",'Tablas Guayaquil'!I126,'Tablas Resto de Ecuador'!I126) -> 319.59
A127: 69 | C127: =IF('INGRESO DE DATOS'!$G$21="Guayaquil/Santa Elena",'Tablas Guayaquil'!C127,'Tablas Resto de Ecuador'!C127) -> 1003.82 | D127: =IF('INGRESO DE DATOS'!$G$21="Guayaquil/Santa Elena",'Tablas Guayaquil'!D127,'Tablas Resto de Ecuador'!D127) -> 872.91 | E127: =IF('INGRESO DE DATOS'!$G$21="Guayaquil/Santa Elena",'Tablas Guayaquil'!E127,'Tablas Resto de Ecuador'!E127) -> 795.8833333 | F127: =IF('INGRESO DE DATOS'!$G$21="Guayaquil/Santa Elena",'Tablas Guayaquil'!F127,'Tablas Resto de Ecuador'!F127) -> 732.6366667 | G127: =IF('INGRESO DE DATOS'!$G$21="Guayaquil/Santa Elena",'Tablas Guayaquil'!G127,'Tablas Resto de Ecuador'!G127) -> 503.235 | H127: =IF('INGRESO DE DATOS'!$G$21="Guayaquil/Santa Elena",'Tablas Guayaquil'!H127,'Tablas Resto de Ecuador'!H127) -> 472.5833333 | I127: =IF('INGRESO DE DATOS'!$G$21="Guayaquil/Santa Elena",'Tablas Guayaquil'!I127,'Tablas Resto de Ecuador'!I127) -> 344.9416667
A128: 70 | C128: =IF('INGRESO DE DATOS'!$G$21="Guayaquil/Santa Elena",'Tablas Guayaquil'!C128,'Tablas Resto de Ecuador'!C128) -> 1100.986667 | D128: =IF('INGRESO DE DATOS'!$G$21="Guayaquil/Santa Elena",'Tablas Guayaquil'!D128,'Tablas Resto de Ecuador'!D128) -> 957.445 | E128: =IF('INGRESO DE DATOS'!$G$21="Guayaquil/Santa Elena",'Tablas Guayaquil'!E128,'Tablas Resto de Ecuador'!E128) -> 865.4016667 | F128: =IF('INGRESO DE DATOS'!$G$21="Guayaquil/Santa Elena",'Tablas Guayaquil'!F128,'Tablas Resto de Ecuador'!F128) -> 815.3166667 | G128: =IF('INGRESO DE DATOS'!$G$21="Guayaquil/Santa Elena",'Tablas Guayaquil'!G128,'Tablas Resto de Ecuador'!G128) -> 556.4116667 | H128: =IF('INGRESO DE DATOS'!$G$21="Guayaquil/Santa Elena",'Tablas Guayaquil'!H128,'Tablas Resto de Ecuador'!H128) -> 509.6833333 | I128: =IF('INGRESO DE DATOS'!$G$21="Guayaquil/Santa Elena",'Tablas Guayaquil'!I128,'Tablas Resto de Ecuador'!I128) -> 372.06
A129: 71 | C129: =IF('INGRESO DE DATOS'!$G$21="Guayaquil/Santa Elena",'Tablas Guayaquil'!C129,'Tablas Resto de Ecuador'!C129) -> 1212.64 | D129: =IF('INGRESO DE DATOS'!$G$21="Guayaquil/Santa Elena",'Tablas Guayaquil'!D129,'Tablas Resto de Ecuador'!D129) -> 1054.523333 | E129: =IF('INGRESO DE DATOS'!$G$21="Guayaquil/Santa Elena",'Tablas Guayaquil'!E129,'Tablas Resto de Ecuador'!E129) -> 961.3316667 | F129: =IF('INGRESO DE DATOS'!$G$21="Guayaquil/Santa Elena",'Tablas Guayaquil'!F129,'Tablas Resto de Ecuador'!F129) -> 897.82 | G129: =IF('INGRESO DE DATOS'!$G$21="Guayaquil/Santa Elena",'Tablas Guayaquil'!G129,'Tablas Resto de Ecuador'!G129) -> 612.945 | H129: =IF('INGRESO DE DATOS'!$G$21="Guayaquil/Santa Elena",'Tablas Guayaquil'!H129,'Tablas Resto de Ecuador'!H129) -> 549.61 | I129: =IF('INGRESO DE DATOS'!$G$21="Guayaquil/Santa Elena",'Tablas Guayaquil'!I129,'Tablas Resto de Ecuador'!I129) -> 401.0333333
A130: 72 | C130: =IF('INGRESO DE DATOS'!$G$21="Guayaquil/Santa Elena",'Tablas Guayaquil'!C130,'Tablas Resto de Ecuador'!C130) -> 1341.341667 | D130: =IF('INGRESO DE DATOS'!$G$21="Guayaquil/Santa Elena",'Tablas Guayaquil'!D130,'Tablas Resto de Ecuador'!D130) -> 1166.353333 | E130: =IF('INGRESO DE DATOS'!$G$21="Guayaquil/Santa Elena",'Tablas Guayaquil'!E130,'Tablas Resto de Ecuador'!E130) -> 1063.71 | F130: =IF('INGRESO DE DATOS'!$G$21="Guayaquil/Santa Elena",'Tablas Guayaquil'!F130,'Tablas Resto de Ecuador'!F130) -> 993.6616667 | G130: =IF('INGRESO DE DATOS'!$G$21="Guayaquil/Santa Elena",'Tablas Guayaquil'!G130,'Tablas Resto de Ecuador'!G130) -> 678.4 | H130: =IF('INGRESO DE DATOS'!$G$21="Guayaquil/Santa Elena",'Tablas Guayaquil'!H130,'Tablas Resto de Ecuador'!H130) -> 592.3633333 | I130: =IF('INGRESO DE DATOS'!$G$21="Guayaquil/Santa Elena",'Tablas Guayaquil'!I130,'Tablas Resto de Ecuador'!I130) -> 431.95
A131: 73 | C131: =IF('INGRESO DE DATOS'!$G$21="Guayaquil/Santa Elena",'Tablas Guayaquil'!C131,'Tablas Resto de Ecuador'!C131) -> 1489.918333 | D131: =IF('INGRESO DE DATOS'!$G$21="Guayaquil/Santa Elena",'Tablas Guayaquil'!D131,'Tablas Resto de Ecuador'!D131) -> 1295.408333 | E131: =IF('INGRESO DE DATOS'!$G$21="Guayaquil/Santa Elena",'Tablas Guayaquil'!E131,'Tablas Resto de Ecuador'!E131) -> 1181.016667 | F131: =IF('INGRESO DE DATOS'!$G$21="Guayaquil/Santa Elena",'Tablas Guayaquil'!F131,'Tablas Resto de Ecuador'!F131) -> 1103.106667 | G131: =IF('INGRESO DE DATOS'!$G$21="Guayaquil/Santa Elena",'Tablas Guayaquil'!G131,'Tablas Resto de Ecuador'!G131) -> 752.865 | H131: =IF('INGRESO DE DATOS'!$G$21="Guayaquil/Santa Elena",'Tablas Guayaquil'!H131,'Tablas Resto de Ecuador'!H131) -> 638.2083333 | I131: =IF('INGRESO DE DATOS'!$G$21="Guayaquil/Santa Elena",'Tablas Guayaquil'!I131,'Tablas Resto de Ecuador'!I131) -> 464.8983333
A132: 74 | C132: =IF('INGRESO DE DATOS'!$G$21="Guayaquil/Santa Elena",'Tablas Guayaquil'!C132,'Tablas Resto de Ecuador'!C132) -> 1661.02 | D132: =IF('INGRESO DE DATOS'!$G$21="Guayaquil/Santa Elena",'Tablas Guayaquil'!D132,'Tablas Resto de Ecuador'!D132) -> 1444.161667 | E132: =IF('INGRESO DE DATOS'!$G$21="Guayaquil/Santa Elena",'Tablas Guayaquil'!E132,'Tablas Resto de Ecuador'!E132) -> 1316.785 | F132: =IF('INGRESO DE DATOS'!$G$21="Guayaquil/Santa Elena",'Tablas Guayaquil'!F132,'Tablas Resto de Ecuador'!F132) -> 1230.041667 | G132: =IF('INGRESO DE DATOS'!$G$21="Guayaquil/Santa Elena",'Tablas Guayaquil'!G132,'Tablas Resto de Ecuador'!G132) -> 839.6966667 | H132: =IF('INGRESO DE DATOS'!$G$21="Guayaquil/Santa Elena",'Tablas Guayaquil'!H132,'Tablas Resto de Ecuador'!H132) -> 687.0566667 | I132: =IF('INGRESO DE DATOS'!$G$21="Guayaquil/Santa Elena",'Tablas Guayaquil'!I132,'Tablas Resto de Ecuador'!I132) -> 499.6133333
A133: 75 | C133: =IF('INGRESO DE DATOS'!$G$21="Guayaquil/Santa Elena",'Tablas Guayaquil'!C133,'Tablas Resto de Ecuador'!C133) -> 1857.12 | D133: =IF('INGRESO DE DATOS'!$G$21="Guayaquil/Santa Elena",'Tablas Guayaquil'!D133,'Tablas Resto de Ecuador'!D133) -> 1614.998333 | E133: =IF('INGRESO DE DATOS'!$G$21="Guayaquil/Santa Elena",'Tablas Guayaquil'!E133,'Tablas Resto de Ecuador'!E133) -> 1466.51 | F133: =IF('INGRESO DE DATOS'!$G$21="Guayaquil/Santa Elena",'Tablas Guayaquil'!F133,'Tablas Resto de Ecuador'!F133) -> 1384.006667 | G133: =IF('INGRESO DE DATOS'!$G$21="Guayaquil/Santa Elena",'Tablas Guayaquil'!G133,'Tablas Resto de Ecuador'!G133) -> 942.1633333 | H133: =IF('INGRESO DE DATOS'!$G$21="Guayaquil/Santa Elena",'Tablas Guayaquil'!H133,'Tablas Resto de Ecuador'!H133) -> 738.82 | I133: =IF('INGRESO DE DATOS'!$G$21="Guayaquil/Santa Elena",'Tablas Guayaquil'!I133,'Tablas Resto de Ecuador'!I133) -> 536.095
A134: 76 | C134: =IF('INGRESO DE DATOS'!$G$21="Guayaquil/Santa Elena",'Tablas Guayaquil'!C134,'Tablas Resto de Ecuador'!C134) -> 2082.811667 | D134: =IF('INGRESO DE DATOS'!$G$21="Guayaquil/Santa Elena",'Tablas Guayaquil'!D134,'Tablas Resto de Ecuador'!D134) -> 1811.01 | E134: =IF('INGRESO DE DATOS'!$G$21="Guayaquil/Santa Elena",'Tablas Guayaquil'!E134,'Tablas Resto de Ecuador'!E134) -> 1649.978333 | F134: =IF('INGRESO DE DATOS'!$G$21="Guayaquil/Santa Elena",'Tablas Guayaquil'!F134,'Tablas Resto de Ecuador'!F134) -> 1551.84 | G134: =IF('INGRESO DE DATOS'!$G$21="Guayaquil/Santa Elena",'Tablas Guayaquil'!G134,'Tablas Resto de Ecuador'!G134) -> 1056.466667 | H134: =IF('INGRESO DE DATOS'!$G$21="Guayaquil/Santa Elena",'Tablas Guayaquil'!H134,'Tablas Resto de Ecuador'!H134) -> 793.4983333 | I134: =IF('INGRESO DE DATOS'!$G$21="Guayaquil/Santa Elena",'Tablas Guayaquil'!I134,'Tablas Resto de Ecuador'!I134) -> 574.0783333
A135: 77 | C135: =IF('INGRESO DE DATOS'!$G$21="Guayaquil/Santa Elena",'Tablas Guayaquil'!C135,'Tablas Resto de Ecuador'!C135) -> 2338.89 | D135: =IF('INGRESO DE DATOS'!$G$21="Guayaquil/Santa Elena",'Tablas Guayaquil'!D135,'Tablas Resto de Ecuador'!D135) -> 2034.051667 | E135: =IF('INGRESO DE DATOS'!$G$21="Guayaquil/Santa Elena",'Tablas Guayaquil'!E135,'Tablas Resto de Ecuador'!E135) -> 1854.47 | F135: =IF('INGRESO DE DATOS'!$G$21="Guayaquil/Santa Elena",'Tablas Guayaquil'!F135,'Tablas Resto de Ecuador'!F135) -> 1730.185 | G135: =IF('INGRESO DE DATOS'!$G$21="Guayaquil/Santa Elena",'Tablas Guayaquil'!G135,'Tablas Resto de Ecuador'!G135) -> 1186.67 | H135: =IF('INGRESO DE DATOS'!$G$21="Guayaquil/Santa Elena",'Tablas Guayaquil'!H135,'Tablas Resto de Ecuador'!H135) -> 850.7383333 | I135: =IF('INGRESO DE DATOS'!$G$21="Guayaquil/Santa Elena",'Tablas Guayaquil'!I135,'Tablas Resto de Ecuador'!I135) -> 613.21
A136: 78 | C136: =IF('INGRESO DE DATOS'!$G$21="Guayaquil/Santa Elena",'Tablas Guayaquil'!C136,'Tablas Resto de Ecuador'!C136) -> 2628.181667 | D136: =IF('INGRESO DE DATOS'!$G$21="Guayaquil/Santa Elena",'Tablas Guayaquil'!D136,'Tablas Resto de Ecuador'!D136) -> 2285.36 | E136: =IF('INGRESO DE DATOS'!$G$21="Guayaquil/Santa Elena",'Tablas Guayaquil'!E136,'Tablas Resto de Ecuador'!E136) -> 2083.606667 | F136: =IF('INGRESO DE DATOS'!$G$21="Guayaquil/Santa Elena",'Tablas Guayaquil'!F136,'Tablas Resto de Ecuador'!F136) -> 1855.883333 | G136: =IF('INGRESO DE DATOS'!$G$21="Guayaquil/Santa Elena",'Tablas Guayaquil'!G136,'Tablas Resto de Ecuador'!G136) -> 1277.83 | H136: =IF('INGRESO DE DATOS'!$G$21="Guayaquil/Santa Elena",'Tablas Guayaquil'!H136,'Tablas Resto de Ecuador'!H136) -> 910.0983333 | I136: =IF('INGRESO DE DATOS'!$G$21="Guayaquil/Santa Elena",'Tablas Guayaquil'!I136,'Tablas Resto de Ecuador'!I136) -> 653.0483333
A137: 79 | C137: =IF('INGRESO DE DATOS'!$G$21="Guayaquil/Santa Elena",'Tablas Guayaquil'!C137,'Tablas Resto de Ecuador'!C137) -> 2952.895 | D137: =IF('INGRESO DE DATOS'!$G$21="Guayaquil/Santa Elena",'Tablas Guayaquil'!D137,'Tablas Resto de Ecuador'!D137) -> 2567.585 | E137: =IF('INGRESO DE DATOS'!$G$21="Guayaquil/Santa Elena",'Tablas Guayaquil'!E137,'Tablas Resto de Ecuador'!E137) -> 2341.186667 | F137: =IF('INGRESO DE DATOS'!$G$21="Guayaquil/Santa Elena",'Tablas Guayaquil'!F137,'Tablas Resto de Ecuador'!F137) -> 1987.941667 | G137: =IF('INGRESO DE DATOS'!$G$21="Guayaquil/Santa Elena",'Tablas Guayaquil'!G137,'Tablas Resto de Ecuador'!G137) -> 1367.753333 | H137: =IF('INGRESO DE DATOS'!$G$21="Guayaquil/Santa Elena",'Tablas Guayaquil'!H137,'Tablas Resto de Ecuador'!H137) -> 971.1366667 | I137: =IF('INGRESO DE DATOS'!$G$21="Guayaquil/Santa Elena",'Tablas Guayaquil'!I137,'Tablas Resto de Ecuador'!I137) -> 692.5333333
A138: 80 | B138: o más | C138: =IF('INGRESO DE DATOS'!$G$21="Guayaquil/Santa Elena",'Tablas Guayaquil'!C138,'Tablas Resto de Ecuador'!C138) -> 3318.683333 | D138: =IF('INGRESO DE DATOS'!$G$21="Guayaquil/Santa Elena",'Tablas Guayaquil'!D138,'Tablas Resto de Ecuador'!D138) -> 2905.725 | E138: =IF('INGRESO DE DATOS'!$G$21="Guayaquil/Santa Elena",'Tablas Guayaquil'!E138,'Tablas Resto de Ecuador'!E138) -> 2586.576667 | F138: =IF('INGRESO DE DATOS'!$G$21="Guayaquil/Santa Elena",'Tablas Guayaquil'!F138,'Tablas Resto de Ecuador'!F138) -> 2125.741667 | G138: =IF('INGRESO DE DATOS'!$G$21="Guayaquil/Santa Elena",'Tablas Guayaquil'!G138,'Tablas Resto de Ecuador'!G138) -> 1460.503333 | H138: =IF('INGRESO DE DATOS'!$G$21="Guayaquil/Santa Elena",'Tablas Guayaquil'!H138,'Tablas Resto de Ecuador'!H138) -> 1032.881667 | I138: =IF('INGRESO DE DATOS'!$G$21="Guayaquil/Santa Elena",'Tablas Guayaquil'!I138,'Tablas Resto de Ecuador'!I138) -> 730.9583333
A139: 1 | B139: Hijo | C139: =IF('INGRESO DE DATOS'!$G$21="Guayaquil/Santa Elena",'Tablas Guayaquil'!C139,'Tablas Resto de Ecuador'!C139) -> 127.3766667 | D139: =IF('INGRESO DE DATOS'!$G$21="Guayaquil/Santa Elena",'Tablas Guayaquil'!D139,'Tablas Resto de Ecuador'!D139) -> 110.6816667 | E139: =IF('INGRESO DE DATOS'!$G$21="Guayaquil/Santa Elena",'Tablas Guayaquil'!E139,'Tablas Resto de Ecuador'!E139) -> 80.20666667 | F139: =IF('INGRESO DE DATOS'!$G$21="Guayaquil/Santa Elena",'Tablas Guayaquil'!F139,'Tablas Resto de Ecuador'!F139) -> 54.94333333 | G139: =IF('INGRESO DE DATOS'!$G$21="Guayaquil/Santa Elena",'Tablas Guayaquil'!G139,'Tablas Resto de Ecuador'!G139) -> 30.03333333 | H139: =IF('INGRESO DE DATOS'!$G$21="Guayaquil/Santa Elena",'Tablas Guayaquil'!H139,'Tablas Resto de Ecuador'!H139) -> 17.755 | I139: =IF('INGRESO DE DATOS'!$G$21="Guayaquil/Santa Elena",'Tablas Guayaquil'!I139,'Tablas Resto de Ecuador'!I139) -> 10.15833333
A140: 2 | B140: Hijos | C140: =IF('INGRESO DE DATOS'!$G$21="Guayaquil/Santa Elena",'Tablas Guayaquil'!C140,'Tablas Resto de Ecuador'!C140) -> 150.52 | D140: =IF('INGRESO DE DATOS'!$G$21="Guayaquil/Santa Elena",'Tablas Guayaquil'!D140,'Tablas Resto de Ecuador'!D140) -> 130.7333333 | E140: =IF('INGRESO DE DATOS'!$G$21="Guayaquil/Santa Elena",'Tablas Guayaquil'!E140,'Tablas Resto de Ecuador'!E140) -> 94.78166667 | F140: =IF('INGRESO DE DATOS'!$G$21="Guayaquil/Santa Elena",'Tablas Guayaquil'!F140,'Tablas Resto de Ecuador'!F140) -> 64.925 | G140: =IF('INGRESO DE DATOS'!$G$21="Guayaquil/Santa Elena",'Tablas Guayaquil'!G140,'Tablas Resto de Ecuador'!G140) -> 35.42166667 | H140: =IF('INGRESO DE DATOS'!$G$21="Guayaquil/Santa Elena",'Tablas Guayaquil'!H140,'Tablas Resto de Ecuador'!H140) -> 20.935 | I140: =IF('INGRESO DE DATOS'!$G$21="Guayaquil/Santa Elena",'Tablas Guayaquil'!I140,'Tablas Resto de Ecuador'!I140) -> 12.01333333
A141: 3 | B141: Hijos o más | C141: =IF('INGRESO DE DATOS'!$G$21="Guayaquil/Santa Elena",'Tablas Guayaquil'!C141,'Tablas Resto de Ecuador'!C141) -> 208.3783333 | D141: =IF('INGRESO DE DATOS'!$G$21="Guayaquil/Santa Elena",'Tablas Guayaquil'!D141,'Tablas Resto de Ecuador'!D141) -> 181.0833333 | E141: =IF('INGRESO DE DATOS'!$G$21="Guayaquil/Santa Elena",'Tablas Guayaquil'!E141,'Tablas Resto de Ecuador'!E141) -> 131.175 | F141: =IF('INGRESO DE DATOS'!$G$21="Guayaquil/Santa Elena",'Tablas Guayaquil'!F141,'Tablas Resto de Ecuador'!F141) -> 89.92333333 | G141: =IF('INGRESO DE DATOS'!$G$21="Guayaquil/Santa Elena",'Tablas Guayaquil'!G141,'Tablas Resto de Ecuador'!G141) -> 49.11333333 | H141: =IF('INGRESO DE DATOS'!$G$21="Guayaquil/Santa Elena",'Tablas Guayaquil'!H141,'Tablas Resto de Ecuador'!H141) -> 28.97333333 | I141: =IF('INGRESO DE DATOS'!$G$21="Guayaquil/Santa Elena",'Tablas Guayaquil'!I141,'Tablas Resto de Ecuador'!I141) -> 16.695
A143: FLEX 100
A144: TARIFAS ANUALES
A145: EDAD
C146: F100-1 | D146: F100-2 | E146: F100-3 | F146: F100-4 | G146: F100-5
A147: 18 | C147: =IF('INGRESO DE DATOS'!$G$21="Guayaquil/Santa Elena",'Tablas Guayaquil'!C147,'Tablas Resto de Ecuador'!C147) -> 2583 | D147: =IF('INGRESO DE DATOS'!$G$21="Guayaquil/Santa Elena",'Tablas Guayaquil'!D147,'Tablas Resto de Ecuador'!D147) -> 2530 | E147: =IF('INGRESO DE DATOS'!$G$21="Guayaquil/Santa Elena",'Tablas Guayaquil'!E147,'Tablas Resto de Ecuador'!E147) -> 2390 | F147: =IF('INGRESO DE DATOS'!$G$21="Guayaquil/Santa Elena",'Tablas Guayaquil'!F147,'Tablas Resto de Ecuador'!F147) -> 2180 | G147: =IF('INGRESO DE DATOS'!$G$21="Guayaquil/Santa Elena",'Tablas Guayaquil'!G147,'Tablas Resto de Ecuador'!G147) -> 1687
A148: 19 | C148: =IF('INGRESO DE DATOS'!$G$21="Guayaquil/Santa Elena",'Tablas Guayaquil'!C148,'Tablas Resto de Ecuador'!C148) -> 2631 | D148: =IF('INGRESO DE DATOS'!$G$21="Guayaquil/Santa Elena",'Tablas Guayaquil'!D148,'Tablas Resto de Ecuador'!D148) -> 2579 | E148: =IF('INGRESO DE DATOS'!$G$21="Guayaquil/Santa Elena",'Tablas Guayaquil'!E148,'Tablas Resto de Ecuador'!E148) -> 2432 | F148: =IF('INGRESO DE DATOS'!$G$21="Guayaquil/Santa Elena",'Tablas Guayaquil'!F148,'Tablas Resto de Ecuador'!F148) -> 2219 | G148: =IF('INGRESO DE DATOS'!$G$21="Guayaquil/Santa Elena",'Tablas Guayaquil'!G148,'Tablas Resto de Ecuador'!G148) -> 1721
A149: 20 | C149: =IF('INGRESO DE DATOS'!$G$21="Guayaquil/Santa Elena",'Tablas Guayaquil'!C149,'Tablas Resto de Ecuador'!C149) -> 2675 | D149: =IF('INGRESO DE DATOS'!$G$21="Guayaquil/Santa Elena",'Tablas Guayaquil'!D149,'Tablas Resto de Ecuador'!D149) -> 2616 | E149: =IF('INGRESO DE DATOS'!$G$21="Guayaquil/Santa Elena",'Tablas Guayaquil'!E149,'Tablas Resto de Ecuador'!E149) -> 2471 | F149: =IF('INGRESO DE DATOS'!$G$21="Guayaquil/Santa Elena",'Tablas Guayaquil'!F149,'Tablas Resto de Ecuador'!F149) -> 2251 | G149: =IF('INGRESO DE DATOS'!$G$21="Guayaquil/Santa Elena",'Tablas Guayaquil'!G149,'Tablas Resto de Ecuador'!G149) -> 1754
A150: 21 | C150: =IF('INGRESO DE DATOS'!$G$21="Guayaquil/Santa Elena",'Tablas Guayaquil'!C150,'Tablas Resto de Ecuador'!C150) -> 2720 | D150: =IF('INGRESO DE DATOS'!$G$21="Guayaquil/Santa Elena",'Tablas Guayaquil'!D150,'Tablas Resto de Ecuador'!D150) -> 2665 | E150: =IF('INGRESO DE DATOS'!$G$21="Guayaquil/Santa Elena",'Tablas Guayaquil'!E150,'Tablas Resto de Ecuador'!E150) -> 2510 | F150: =IF('INGRESO DE DATOS'!$G$21="Guayaquil/Santa Elena",'Tablas Guayaquil'!F150,'Tablas Resto de Ecuador'!F150) -> 2288 | G150: =IF('INGRESO DE DATOS'!$G$21="Guayaquil/Santa Elena",'Tablas Guayaquil'!G150,'Tablas Resto de Ecuador'!G150) -> 1792
A151: 22 | C151: =IF('INGRESO DE DATOS'!$G$21="Guayaquil/Santa Elena",'Tablas Guayaquil'!C151,'Tablas Resto de Ecuador'!C151) -> 2762 | D151: =IF('INGRESO DE DATOS'!$G$21="Guayaquil/Santa Elena",'Tablas Guayaquil'!D151,'Tablas Resto de Ecuador'!D151) -> 2716 | E151: =IF('INGRESO DE DATOS'!$G$21="Guayaquil/Santa Elena",'Tablas Guayaquil'!E151,'Tablas Resto de Ecuador'!E151) -> 2553 | F151: =IF('INGRESO DE DATOS'!$G$21="Guayaquil/Santa Elena",'Tablas Guayaquil'!F151,'Tablas Resto de Ecuador'!F151) -> 2332 | G151: =IF('INGRESO DE DATOS'!$G$21="Guayaquil/Santa Elena",'Tablas Guayaquil'!G151,'Tablas Resto de Ecuador'!G151) -> 1832
A152: 23 | C152: =IF('INGRESO DE DATOS'!$G$21="Guayaquil/Santa Elena",'Tablas Guayaquil'!C152,'Tablas Resto de Ecuador'!C152) -> 2814 | D152: =IF('INGRESO DE DATOS'!$G$21="Guayaquil/Santa Elena",'Tablas Guayaquil'!D152,'Tablas Resto de Ecuador'!D152) -> 2756 | E152: =IF('INGRESO DE DATOS'!$G$21="Guayaquil/Santa Elena",'Tablas Guayaquil'!E152,'Tablas Resto de Ecuador'!E152) -> 2598 | F152: =IF('INGRESO DE DATOS'!$G$21="Guayaquil/Santa Elena",'Tablas Guayaquil'!F152,'Tablas Resto de Ecuador'!F152) -> 2366 | G152: =IF('INGRESO DE DATOS'!$G$21="Guayaquil/Santa Elena",'Tablas Guayaquil'!G152,'Tablas Resto de Ecuador'!G152) -> 1869
A153: 24 | C153: =IF('INGRESO DE DATOS'!$G$21="Guayaquil/Santa Elena",'Tablas Guayaquil'!C153,'Tablas Resto de Ecuador'!C153) -> 2861 | D153: =IF('INGRESO DE DATOS'!$G$21="Guayaquil/Santa Elena",'Tablas Guayaquil'!D153,'Tablas Resto de Ecuador'!D153) -> 2802 | E153: =IF('INGRESO DE DATOS'!$G$21="Guayaquil/Santa Elena",'Tablas Guayaquil'!E153,'Tablas Resto de Ecuador'!E153) -> 2642 | F153: =IF('INGRESO DE DATOS'!$G$21="Guayaquil/Santa Elena",'Tablas Guayaquil'!F153,'Tablas Resto de Ecuador'!F153) -> 2408 | G153: =IF('INGRESO DE DATOS'!$G$21="Guayaquil/Santa Elena",'Tablas Guayaquil'!G153,'Tablas Resto de Ecuador'!G153) -> 1906
A154: 25 | C154: =IF('INGRESO DE DATOS'!$G$21="Guayaquil/Santa Elena",'Tablas Guayaquil'!C154,'Tablas Resto de Ecuador'!C154) -> 2904 | D154: =IF('INGRESO DE DATOS'!$G$21="Guayaquil/Santa Elena",'Tablas Guayaquil'!D154,'Tablas Resto de Ecuador'!D154) -> 2846 | E154: =IF('INGRESO DE DATOS'!$G$21="Guayaquil/Santa Elena",'Tablas Guayaquil'!E154,'Tablas Resto de Ecuador'!E154) -> 2677 | F154: =IF('INGRESO DE DATOS'!$G$21="Guayaquil/Santa Elena",'Tablas Guayaquil'!F154,'Tablas Resto de Ecuador'!F154) -> 2450 | G154: =IF('INGRESO DE DATOS'!$G$21="Guayaquil/Santa Elena",'Tablas Guayaquil'!G154,'Tablas Resto de Ecuador'!G154) -> 1951
A155: 26 | C155: =IF('INGRESO DE DATOS'!$G$21="Guayaquil/Santa Elena",'Tablas Guayaquil'!C155,'Tablas Resto de Ecuador'!C155) -> 2951 | D155: =IF('INGRESO DE DATOS'!$G$21="Guayaquil/Santa Elena",'Tablas Guayaquil'!D155,'Tablas Resto de Ecuador'!D155) -> 2893 | E155: =IF('INGRESO DE DATOS'!$G$21="Guayaquil/Santa Elena",'Tablas Guayaquil'!E155,'Tablas Resto de Ecuador'!E155) -> 2725 | F155: =IF('INGRESO DE DATOS'!$G$21="Guayaquil/Santa Elena",'Tablas Guayaquil'!F155,'Tablas Resto de Ecuador'!F155) -> 2484 | G155: =IF('INGRESO DE DATOS'!$G$21="Guayaquil/Santa Elena",'Tablas Guayaquil'!G155,'Tablas Resto de Ecuador'!G155) -> 1984
A156: 27 | C156: =IF('INGRESO DE DATOS'!$G$21="Guayaquil/Santa Elena",'Tablas Guayaquil'!C156,'Tablas Resto de Ecuador'!C156) -> 2993 | D156: =IF('INGRESO DE DATOS'!$G$21="Guayaquil/Santa Elena",'Tablas Guayaquil'!D156,'Tablas Resto de Ecuador'!D156) -> 2935 | E156: =IF('INGRESO DE DATOS'!$G$21="Guayaquil/Santa Elena",'Tablas Guayaquil'!E156,'Tablas Resto de Ecuador'!E156) -> 2762 | F156: =IF('INGRESO DE DATOS'!$G$21="Guayaquil/Santa Elena",'Tablas Guayaquil'!F156,'Tablas Resto de Ecuador'!F156) -> 2524 | G156: =IF('INGRESO DE DATOS'!$G$21="Guayaquil/Santa Elena",'Tablas Guayaquil'!G156,'Tablas Resto de Ecuador'!G156) -> 2023
A157: 28 | C157: =IF('INGRESO DE DATOS'!$G$21="Guayaquil/Santa Elena",'Tablas Guayaquil'!C157,'Tablas Resto de Ecuador'!C157) -> 3049 | D157: =IF('INGRESO DE DATOS'!$G$21="Guayaquil/Santa Elena",'Tablas Guayaquil'!D157,'Tablas Resto de Ecuador'!D157) -> 2990 | E157: =IF('INGRESO DE DATOS'!$G$21="Guayaquil/Santa Elena",'Tablas Guayaquil'!E157,'Tablas Resto de Ecuador'!E157) -> 2817 | F157: =IF('INGRESO DE DATOS'!$G$21="Guayaquil/Santa Elena",'Tablas Guayaquil'!F157,'Tablas Resto de Ecuador'!F157) -> 2569 | G157: =IF('INGRESO DE DATOS'!$G$21="Guayaquil/Santa Elena",'Tablas Guayaquil'!G157,'Tablas Resto de Ecuador'!G157) -> 2072
A158: 29 | C158: =IF('INGRESO DE DATOS'!$G$21="Guayaquil/Santa Elena",'Tablas Guayaquil'!C158,'Tablas Resto de Ecuador'!C158) -> 3104 | D158: =IF('INGRESO DE DATOS'!$G$21="Guayaquil/Santa Elena",'Tablas Guayaquil'!D158,'Tablas Resto de Ecuador'!D158) -> 3042 | E158: =IF('INGRESO DE DATOS'!$G$21="Guayaquil/Santa Elena",'Tablas Guayaquil'!E158,'Tablas Resto de Ecuador'!E158) -> 2867 | F158: =IF('INGRESO DE DATOS'!$G$21="Guayaquil/Santa Elena",'Tablas Guayaquil'!F158,'Tablas Resto de Ecuador'!F158) -> 2612 | G158: =IF('INGRESO DE DATOS'!$G$21="Guayaquil/Santa Elena",'Tablas Guayaquil'!G158,'Tablas Resto de Ecuador'!G158) -> 2125
A159: 30 | C159: =IF('INGRESO DE DATOS'!$G$21="Guayaquil/Santa Elena",'Tablas Guayaquil'!C159,'Tablas Resto de Ecuador'!C159) -> 3160 | D159: =IF('INGRESO DE DATOS'!$G$21="Guayaquil/Santa Elena",'Tablas Guayaquil'!D159,'Tablas Resto de Ecuador'!D159) -> 3094 | E159: =IF('INGRESO DE DATOS'!$G$21="Guayaquil/Santa Elena",'Tablas Guayaquil'!E159,'Tablas Resto de Ecuador'!E159) -> 2916 | F159: =IF('INGRESO DE DATOS'!$G$21="Guayaquil/Santa Elena",'Tablas Guayaquil'!F159,'Tablas Resto de Ecuador'!F159) -> 2661 | G159: =IF('INGRESO DE DATOS'!$G$21="Guayaquil/Santa Elena",'Tablas Guayaquil'!G159,'Tablas Resto de Ecuador'!G159) -> 2171
A160: 31 | C160: =IF('INGRESO DE DATOS'!$G$21="Guayaquil/Santa Elena",'Tablas Guayaquil'!C160,'Tablas Resto de Ecuador'!C160) -> 3210 | D160: =IF('INGRESO DE DATOS'!$G$21="Guayaquil/Santa Elena",'Tablas Guayaquil'!D160,'Tablas Resto de Ecuador'!D160) -> 3145 | E160: =IF('INGRESO DE DATOS'!$G$21="Guayaquil/Santa Elena",'Tablas Guayaquil'!E160,'Tablas Resto de Ecuador'!E160) -> 2962 | F160: =IF('INGRESO DE DATOS'!$G$21="Guayaquil/Santa Elena",'Tablas Guayaquil'!F160,'Tablas Resto de Ecuador'!F160) -> 2704 | G160: =IF('INGRESO DE DATOS'!$G$21="Guayaquil/Santa Elena",'Tablas Guayaquil'!G160,'Tablas Resto de Ecuador'!G160) -> 2219
A161: 32 | C161: =IF('INGRESO DE DATOS'!$G$21="Guayaquil/Santa Elena",'Tablas Guayaquil'!C161,'Tablas Resto de Ecuador'!C161) -> 3267 | D161: =IF('INGRESO DE DATOS'!$G$21="Guayaquil/Santa Elena",'Tablas Guayaquil'!D161,'Tablas Resto de Ecuador'!D161) -> 3198 | E161: =IF('INGRESO DE DATOS'!$G$21="Guayaquil/Santa Elena",'Tablas Guayaquil'!E161,'Tablas Resto de Ecuador'!E161) -> 3017 | F161: =IF('INGRESO DE DATOS'!$G$21="Guayaquil/Santa Elena",'Tablas Guayaquil'!F161,'Tablas Resto de Ecuador'!F161) -> 2750 | G161: =IF('INGRESO DE DATOS'!$G$21="Guayaquil/Santa Elena",'Tablas Guayaquil'!G161,'Tablas Resto de Ecuador'!G161) -> 2264
A162: 33 | C162: =IF('INGRESO DE DATOS'!$G$21="Guayaquil/Santa Elena",'Tablas Guayaquil'!C162,'Tablas Resto de Ecuador'!C162) -> 3354 | D162: =IF('INGRESO DE DATOS'!$G$21="Guayaquil/Santa Elena",'Tablas Guayaquil'!D162,'Tablas Resto de Ecuador'!D162) -> 3286 | E162: =IF('INGRESO DE DATOS'!$G$21="Guayaquil/Santa Elena",'Tablas Guayaquil'!E162,'Tablas Resto de Ecuador'!E162) -> 3098 | F162: =IF('INGRESO DE DATOS'!$G$21="Guayaquil/Santa Elena",'Tablas Guayaquil'!F162,'Tablas Resto de Ecuador'!F162) -> 2821 | G162: =IF('INGRESO DE DATOS'!$G$21="Guayaquil/Santa Elena",'Tablas Guayaquil'!G162,'Tablas Resto de Ecuador'!G162) -> 2335
A163: 34 | C163: =IF('INGRESO DE DATOS'!$G$21="Guayaquil/Santa Elena",'Tablas Guayaquil'!C163,'Tablas Resto de Ecuador'!C163) -> 3443 | D163: =IF('INGRESO DE DATOS'!$G$21="Guayaquil/Santa Elena",'Tablas Guayaquil'!D163,'Tablas Resto de Ecuador'!D163) -> 3375 | E163: =IF('INGRESO DE DATOS'!$G$21="Guayaquil/Santa Elena",'Tablas Guayaquil'!E163,'Tablas Resto de Ecuador'!E163) -> 3179 | F163: =IF('INGRESO DE DATOS'!$G$21="Guayaquil/Santa Elena",'Tablas Guayaquil'!F163,'Tablas Resto de Ecuador'!F163) -> 2899 | G163: =IF('INGRESO DE DATOS'!$G$21="Guayaquil/Santa Elena",'Tablas Guayaquil'!G163,'Tablas Resto de Ecuador'!G163) -> 2403
A164: 35 | C164: =IF('INGRESO DE DATOS'!$G$21="Guayaquil/Santa Elena",'Tablas Guayaquil'!C164,'Tablas Resto de Ecuador'!C164) -> 3532 | D164: =IF('INGRESO DE DATOS'!$G$21="Guayaquil/Santa Elena",'Tablas Guayaquil'!D164,'Tablas Resto de Ecuador'!D164) -> 3462 | E164: =IF('INGRESO DE DATOS'!$G$21="Guayaquil/Santa Elena",'Tablas Guayaquil'!E164,'Tablas Resto de Ecuador'!E164) -> 3265 | F164: =IF('INGRESO DE DATOS'!$G$21="Guayaquil/Santa Elena",'Tablas Guayaquil'!F164,'Tablas Resto de Ecuador'!F164) -> 2975 | G164: =IF('INGRESO DE DATOS'!$G$21="Guayaquil/Santa Elena",'Tablas Guayaquil'!G164,'Tablas Resto de Ecuador'!G164) -> 2471
A165: 36 | C165: =IF('INGRESO DE DATOS'!$G$21="Guayaquil/Santa Elena",'Tablas Guayaquil'!C165,'Tablas Resto de Ecuador'!C165) -> 3620 | D165: =IF('INGRESO DE DATOS'!$G$21="Guayaquil/Santa Elena",'Tablas Guayaquil'!D165,'Tablas Resto de Ecuador'!D165) -> 3550 | E165: =IF('INGRESO DE DATOS'!$G$21="Guayaquil/Santa Elena",'Tablas Guayaquil'!E165,'Tablas Resto de Ecuador'!E165) -> 3346 | F165: =IF('INGRESO DE DATOS'!$G$21="Guayaquil/Santa Elena",'Tablas Guayaquil'!F165,'Tablas Resto de Ecuador'!F165) -> 3049 | G165: =IF('INGRESO DE DATOS'!$G$21="Guayaquil/Santa Elena",'Tablas Guayaquil'!G165,'Tablas Resto de Ecuador'!G165) -> 2545
A166: 37 | C166: =IF('INGRESO DE DATOS'!$G$21="Guayaquil/Santa Elena",'Tablas Guayaquil'!C166,'Tablas Resto de Ecuador'!C166) -> 3708 | D166: =IF('INGRESO DE DATOS'!$G$21="Guayaquil/Santa Elena",'Tablas Guayaquil'!D166,'Tablas Resto de Ecuador'!D166) -> 3638 | E166: =IF('INGRESO DE DATOS'!$G$21="Guayaquil/Santa Elena",'Tablas Guayaquil'!E166,'Tablas Resto de Ecuador'!E166) -> 3428 | F166: =IF('INGRESO DE DATOS'!$G$21="Guayaquil/Santa Elena",'Tablas Guayaquil'!F166,'Tablas Resto de Ecuador'!F166) -> 3128 | G166: =IF('INGRESO DE DATOS'!$G$21="Guayaquil/Santa Elena",'Tablas Guayaquil'!G166,'Tablas Resto de Ecuador'!G166) -> 2610
A167: 38 | C167: =IF('INGRESO DE DATOS'!$G$21="Guayaquil/Santa Elena",'Tablas Guayaquil'!C167,'Tablas Resto de Ecuador'!C167) -> 3801 | D167: =IF('INGRESO DE DATOS'!$G$21="Guayaquil/Santa Elena",'Tablas Guayaquil'!D167,'Tablas Resto de Ecuador'!D167) -> 3727 | E167: =IF('INGRESO DE DATOS'!$G$21="Guayaquil/Santa Elena",'Tablas Guayaquil'!E167,'Tablas Resto de Ecuador'!E167) -> 3515 | F167: =IF('INGRESO DE DATOS'!$G$21="Guayaquil/Santa Elena",'Tablas Guayaquil'!F167,'Tablas Resto de Ecuador'!F167) -> 3202 | G167: =IF('INGRESO DE DATOS'!$G$21="Guayaquil/Santa Elena",'Tablas Guayaquil'!G167,'Tablas Resto de Ecuador'!G167) -> 2686
A168: 39 | C168: =IF('INGRESO DE DATOS'!$G$21="Guayaquil/Santa Elena",'Tablas Guayaquil'!C168,'Tablas Resto de Ecuador'!C168) -> 3894 | D168: =IF('INGRESO DE DATOS'!$G$21="Guayaquil/Santa Elena",'Tablas Guayaquil'!D168,'Tablas Resto de Ecuador'!D168) -> 3813 | E168: =IF('INGRESO DE DATOS'!$G$21="Guayaquil/Santa Elena",'Tablas Guayaquil'!E168,'Tablas Resto de Ecuador'!E168) -> 3595 | F168: =IF('INGRESO DE DATOS'!$G$21="Guayaquil/Santa Elena",'Tablas Guayaquil'!F168,'Tablas Resto de Ecuador'!F168) -> 3282 | G168: =IF('INGRESO DE DATOS'!$G$21="Guayaquil/Santa Elena",'Tablas Guayaquil'!G168,'Tablas Resto de Ecuador'!G168) -> 2757
A169: 40 | C169: =IF('INGRESO DE DATOS'!$G$21="Guayaquil/Santa Elena",'Tablas Guayaquil'!C169,'Tablas Resto de Ecuador'!C169) -> 3986 | D169: =IF('INGRESO DE DATOS'!$G$21="Guayaquil/Santa Elena",'Tablas Guayaquil'!D169,'Tablas Resto de Ecuador'!D169) -> 3905 | E169: =IF('INGRESO DE DATOS'!$G$21="Guayaquil/Santa Elena",'Tablas Guayaquil'!E169,'Tablas Resto de Ecuador'!E169) -> 3680 | F169: =IF('INGRESO DE DATOS'!$G$21="Guayaquil/Santa Elena",'Tablas Guayaquil'!F169,'Tablas Resto de Ecuador'!F169) -> 3354 | G169: =IF('INGRESO DE DATOS'!$G$21="Guayaquil/Santa Elena",'Tablas Guayaquil'!G169,'Tablas Resto de Ecuador'!G169) -> 2834
A170: 41 | C170: =IF('INGRESO DE DATOS'!$G$21="Guayaquil/Santa Elena",'Tablas Guayaquil'!C170,'Tablas Resto de Ecuador'!C170) -> 4079 | D170: =IF('INGRESO DE DATOS'!$G$21="Guayaquil/Santa Elena",'Tablas Guayaquil'!D170,'Tablas Resto de Ecuador'!D170) -> 3997 | E170: =IF('INGRESO DE DATOS'!$G$21="Guayaquil/Santa Elena",'Tablas Guayaquil'!E170,'Tablas Resto de Ecuador'!E170) -> 3765 | F170: =IF('INGRESO DE DATOS'!$G$21="Guayaquil/Santa Elena",'Tablas Guayaquil'!F170,'Tablas Resto de Ecuador'!F170) -> 3431 | G170: =IF('INGRESO DE DATOS'!$G$21="Guayaquil/Santa Elena",'Tablas Guayaquil'!G170,'Tablas Resto de Ecuador'!G170) -> 2905
A171: 42 | C171: =IF('INGRESO DE DATOS'!$G$21="Guayaquil/Santa Elena",'Tablas Guayaquil'!C171,'Tablas Resto de Ecuador'!C171) -> 4168 | D171: =IF('INGRESO DE DATOS'!$G$21="Guayaquil/Santa Elena",'Tablas Guayaquil'!D171,'Tablas Resto de Ecuador'!D171) -> 4084 | E171: =IF('INGRESO DE DATOS'!$G$21="Guayaquil/Santa Elena",'Tablas Guayaquil'!E171,'Tablas Resto de Ecuador'!E171) -> 3849 | F171: =IF('INGRESO DE DATOS'!$G$21="Guayaquil/Santa Elena",'Tablas Guayaquil'!F171,'Tablas Resto de Ecuador'!F171) -> 3506 | G171: =IF('INGRESO DE DATOS'!$G$21="Guayaquil/Santa Elena",'Tablas Guayaquil'!G171,'Tablas Resto de Ecuador'!G171) -> 2986
A172: 43 | C172: =IF('INGRESO DE DATOS'!$G$21="Guayaquil/Santa Elena",'Tablas Guayaquil'!C172,'Tablas Resto de Ecuador'!C172) -> 4332 | D172: =IF('INGRESO DE DATOS'!$G$21="Guayaquil/Santa Elena",'Tablas Guayaquil'!D172,'Tablas Resto de Ecuador'!D172) -> 4246 | E172: =IF('INGRESO DE DATOS'!$G$21="Guayaquil/Santa Elena",'Tablas Guayaquil'!E172,'Tablas Resto de Ecuador'!E172) -> 4000 | F172: =IF('INGRESO DE DATOS'!$G$21="Guayaquil/Santa Elena",'Tablas Guayaquil'!F172,'Tablas Resto de Ecuador'!F172) -> 3650 | G172: =IF('INGRESO DE DATOS'!$G$21="Guayaquil/Santa Elena",'Tablas Guayaquil'!G172,'Tablas Resto de Ecuador'!G172) -> 3109
A173: 44 | C173: =IF('INGRESO DE DATOS'!$G$21="Guayaquil/Santa Elena",'Tablas Guayaquil'!C173,'Tablas Resto de Ecuador'!C173) -> 4500 | D173: =IF('INGRESO DE DATOS'!$G$21="Guayaquil/Santa Elena",'Tablas Guayaquil'!D173,'Tablas Resto de Ecuador'!D173) -> 4409 | E173: =IF('INGRESO DE DATOS'!$G$21="Guayaquil/Santa Elena",'Tablas Guayaquil'!E173,'Tablas Resto de Ecuador'!E173) -> 4153 | F173: =IF('INGRESO DE DATOS'!$G$21="Guayaquil/Santa Elena",'Tablas Guayaquil'!F173,'Tablas Resto de Ecuador'!F173) -> 3790 | G173: =IF('INGRESO DE DATOS'!$G$21="Guayaquil/Santa Elena",'Tablas Guayaquil'!G173,'Tablas Resto de Ecuador'!G173) -> 3246
A174: 45 | C174: =IF('INGRESO DE DATOS'!$G$21="Guayaquil/Santa Elena",'Tablas Guayaquil'!C174,'Tablas Resto de Ecuador'!C174) -> 4669 | D174: =IF('INGRESO DE DATOS'!$G$21="Guayaquil/Santa Elena",'Tablas Guayaquil'!D174,'Tablas Resto de Ecuador'!D174) -> 4568 | E174: =IF('INGRESO DE DATOS'!$G$21="Guayaquil/Santa Elena",'Tablas Guayaquil'!E174,'Tablas Resto de Ecuador'!E174) -> 4306 | F174: =IF('INGRESO DE DATOS'!$G$21="Guayaquil/Santa Elena",'Tablas Guayaquil'!F174,'Tablas Resto de Ecuador'!F174) -> 3928 | G174: =IF('INGRESO DE DATOS'!$G$21="Guayaquil/Santa Elena",'Tablas Guayaquil'!G174,'Tablas Resto de Ecuador'!G174) -> 3376
A175: 46 | C175: =IF('INGRESO DE DATOS'!$G$21="Guayaquil/Santa Elena",'Tablas Guayaquil'!C175,'Tablas Resto de Ecuador'!C175) -> 4826 | D175: =IF('INGRESO DE DATOS'!$G$21="Guayaquil/Santa Elena",'Tablas Guayaquil'!D175,'Tablas Resto de Ecuador'!D175) -> 4735 | E175: =IF('INGRESO DE DATOS'!$G$21="Guayaquil/Santa Elena",'Tablas Guayaquil'!E175,'Tablas Resto de Ecuador'!E175) -> 4460 | F175: =IF('INGRESO DE DATOS'!$G$21="Guayaquil/Santa Elena",'Tablas Guayaquil'!F175,'Tablas Resto de Ecuador'!F175) -> 4069 | G175: =IF('INGRESO DE DATOS'!$G$21="Guayaquil/Santa Elena",'Tablas Guayaquil'!G175,'Tablas Resto de Ecuador'!G175) -> 3502
A176: 47 | C176: =IF('INGRESO DE DATOS'!$G$21="Guayaquil/Santa Elena",'Tablas Guayaquil'!C176,'Tablas Resto de Ecuador'!C176) -> 4996 | D176: =IF('INGRESO DE DATOS'!$G$21="Guayaquil/Santa Elena",'Tablas Guayaquil'!D176,'Tablas Resto de Ecuador'!D176) -> 4894 | E176: =IF('INGRESO DE DATOS'!$G$21="Guayaquil/Santa Elena",'Tablas Guayaquil'!E176,'Tablas Resto de Ecuador'!E176) -> 4615 | F176: =IF('INGRESO DE DATOS'!$G$21="Guayaquil/Santa Elena",'Tablas Guayaquil'!F176,'Tablas Resto de Ecuador'!F176) -> 4208 | G176: =IF('INGRESO DE DATOS'!$G$21="Guayaquil/Santa Elena",'Tablas Guayaquil'!G176,'Tablas Resto de Ecuador'!G176) -> 3638
A177: 48 | C177: =IF('INGRESO DE DATOS'!$G$21="Guayaquil/Santa Elena",'Tablas Guayaquil'!C177,'Tablas Resto de Ecuador'!C177) -> 5172 | D177: =IF('INGRESO DE DATOS'!$G$21="Guayaquil/Santa Elena",'Tablas Guayaquil'!D177,'Tablas Resto de Ecuador'!D177) -> 5065 | E177: =IF('INGRESO DE DATOS'!$G$21="Guayaquil/Santa Elena",'Tablas Guayaquil'!E177,'Tablas Resto de Ecuador'!E177) -> 4775 | F177: =IF('INGRESO DE DATOS'!$G$21="Guayaquil/Santa Elena",'Tablas Guayaquil'!F177,'Tablas Resto de Ecuador'!F177) -> 4356 | G177: =IF('INGRESO DE DATOS'!$G$21="Guayaquil/Santa Elena",'Tablas Guayaquil'!G177,'Tablas Resto de Ecuador'!G177) -> 3769
A178: 49 | C178: =IF('INGRESO DE DATOS'!$G$21="Guayaquil/Santa Elena",'Tablas Guayaquil'!C178,'Tablas Resto de Ecuador'!C178) -> 5345 | D178: =IF('INGRESO DE DATOS'!$G$21="Guayaquil/Santa Elena",'Tablas Guayaquil'!D178,'Tablas Resto de Ecuador'!D178) -> 5239 | E178: =IF('INGRESO DE DATOS'!$G$21="Guayaquil/Santa Elena",'Tablas Guayaquil'!E178,'Tablas Resto de Ecuador'!E178) -> 4937 | F178: =IF('INGRESO DE DATOS'!$G$21="Guayaquil/Santa Elena",'Tablas Guayaquil'!F178,'Tablas Resto de Ecuador'!F178) -> 4501 | G178: =IF('INGRESO DE DATOS'!$G$21="Guayaquil/Santa Elena",'Tablas Guayaquil'!G178,'Tablas Resto de Ecuador'!G178) -> 3910
A179: 50 | C179: =IF('INGRESO DE DATOS'!$G$21="Guayaquil/Santa Elena",'Tablas Guayaquil'!C179,'Tablas Resto de Ecuador'!C179) -> 5519 | D179: =IF('INGRESO DE DATOS'!$G$21="Guayaquil/Santa Elena",'Tablas Guayaquil'!D179,'Tablas Resto de Ecuador'!D179) -> 5413 | E179: =IF('INGRESO DE DATOS'!$G$21="Guayaquil/Santa Elena",'Tablas Guayaquil'!E179,'Tablas Resto de Ecuador'!E179) -> 5100 | F179: =IF('INGRESO DE DATOS'!$G$21="Guayaquil/Santa Elena",'Tablas Guayaquil'!F179,'Tablas Resto de Ecuador'!F179) -> 4649 | G179: =IF('INGRESO DE DATOS'!$G$21="Guayaquil/Santa Elena",'Tablas Guayaquil'!G179,'Tablas Resto de Ecuador'!G179) -> 4049
A180: 51 | C180: =IF('INGRESO DE DATOS'!$G$21="Guayaquil/Santa Elena",'Tablas Guayaquil'!C180,'Tablas Resto de Ecuador'!C180) -> 5693 | D180: =IF('INGRESO DE DATOS'!$G$21="Guayaquil/Santa Elena",'Tablas Guayaquil'!D180,'Tablas Resto de Ecuador'!D180) -> 5585 | E180: =IF('INGRESO DE DATOS'!$G$21="Guayaquil/Santa Elena",'Tablas Guayaquil'!E180,'Tablas Resto de Ecuador'!E180) -> 5260 | F180: =IF('INGRESO DE DATOS'!$G$21="Guayaquil/Santa Elena",'Tablas Guayaquil'!F180,'Tablas Resto de Ecuador'!F180) -> 4798 | G180: =IF('INGRESO DE DATOS'!$G$21="Guayaquil/Santa Elena",'Tablas Guayaquil'!G180,'Tablas Resto de Ecuador'!G180) -> 4186
A181: 52 | C181: =IF('INGRESO DE DATOS'!$G$21="Guayaquil/Santa Elena",'Tablas Guayaquil'!C181,'Tablas Resto de Ecuador'!C181) -> 5870 | D181: =IF('INGRESO DE DATOS'!$G$21="Guayaquil/Santa Elena",'Tablas Guayaquil'!D181,'Tablas Resto de Ecuador'!D181) -> 5750 | E181: =IF('INGRESO DE DATOS'!$G$21="Guayaquil/Santa Elena",'Tablas Guayaquil'!E181,'Tablas Resto de Ecuador'!E181) -> 5423 | F181: =IF('INGRESO DE DATOS'!$G$21="Guayaquil/Santa Elena",'Tablas Guayaquil'!F181,'Tablas Resto de Ecuador'!F181) -> 4946 | G181: =IF('INGRESO DE DATOS'!$G$21="Guayaquil/Santa Elena",'Tablas Guayaquil'!G181,'Tablas Resto de Ecuador'!G181) -> 4323
A182: 53 | C182: =IF('INGRESO DE DATOS'!$G$21="Guayaquil/Santa Elena",'Tablas Guayaquil'!C182,'Tablas Resto de Ecuador'!C182) -> 6076 | D182: =IF('INGRESO DE DATOS'!$G$21="Guayaquil/Santa Elena",'Tablas Guayaquil'!D182,'Tablas Resto de Ecuador'!D182) -> 5959 | E182: =IF('INGRESO DE DATOS'!$G$21="Guayaquil/Santa Elena",'Tablas Guayaquil'!E182,'Tablas Resto de Ecuador'!E182) -> 5615 | F182: =IF('INGRESO DE DATOS'!$G$21="Guayaquil/Santa Elena",'Tablas Guayaquil'!F182,'Tablas Resto de Ecuador'!F182) -> 5119 | G182: =IF('INGRESO DE DATOS'!$G$21="Guayaquil/Santa Elena",'Tablas Guayaquil'!G182,'Tablas Resto de Ecuador'!G182) -> 4494
A183: 54 | C183: =IF('INGRESO DE DATOS'!$G$21="Guayaquil/Santa Elena",'Tablas Guayaquil'!C183,'Tablas Resto de Ecuador'!C183) -> 6285 | D183: =IF('INGRESO DE DATOS'!$G$21="Guayaquil/Santa Elena",'Tablas Guayaquil'!D183,'Tablas Resto de Ecuador'!D183) -> 6163 | E183: =IF('INGRESO DE DATOS'!$G$21="Guayaquil/Santa Elena",'Tablas Guayaquil'!E183,'Tablas Resto de Ecuador'!E183) -> 5807 | F183: =IF('INGRESO DE DATOS'!$G$21="Guayaquil/Santa Elena",'Tablas Guayaquil'!F183,'Tablas Resto de Ecuador'!F183) -> 5297 | G183: =IF('INGRESO DE DATOS'!$G$21="Guayaquil/Santa Elena",'Tablas Guayaquil'!G183,'Tablas Resto de Ecuador'!G183) -> 4657
A184: 55 | C184: =IF('INGRESO DE DATOS'!$G$21="Guayaquil/Santa Elena",'Tablas Guayaquil'!C184,'Tablas Resto de Ecuador'!C184) -> 6490 | D184: =IF('INGRESO DE DATOS'!$G$21="Guayaquil/Santa Elena",'Tablas Guayaquil'!D184,'Tablas Resto de Ecuador'!D184) -> 6366 | E184: =IF('INGRESO DE DATOS'!$G$21="Guayaquil/Santa Elena",'Tablas Guayaquil'!E184,'Tablas Resto de Ecuador'!E184) -> 6001 | F184: =IF('INGRESO DE DATOS'!$G$21="Guayaquil/Santa Elena",'Tablas Guayaquil'!F184,'Tablas Resto de Ecuador'!F184) -> 5471 | G184: =IF('INGRESO DE DATOS'!$G$21="Guayaquil/Santa Elena",'Tablas Guayaquil'!G184,'Tablas Resto de Ecuador'!G184) -> 4824
A185: 56 | C185: =IF('INGRESO DE DATOS'!$G$21="Guayaquil/Santa Elena",'Tablas Guayaquil'!C185,'Tablas Resto de Ecuador'!C185) -> 6701 | D185: =IF('INGRESO DE DATOS'!$G$21="Guayaquil/Santa Elena",'Tablas Guayaquil'!D185,'Tablas Resto de Ecuador'!D185) -> 6568 | E185: =IF('INGRESO DE DATOS'!$G$21="Guayaquil/Santa Elena",'Tablas Guayaquil'!E185,'Tablas Resto de Ecuador'!E185) -> 6192 | F185: =IF('INGRESO DE DATOS'!$G$21="Guayaquil/Santa Elena",'Tablas Guayaquil'!F185,'Tablas Resto de Ecuador'!F185) -> 5648 | G185: =IF('INGRESO DE DATOS'!$G$21="Guayaquil/Santa Elena",'Tablas Guayaquil'!G185,'Tablas Resto de Ecuador'!G185) -> 4993
A186: 57 | C186: =IF('INGRESO DE DATOS'!$G$21="Guayaquil/Santa Elena",'Tablas Guayaquil'!C186,'Tablas Resto de Ecuador'!C186) -> 6908 | D186: =IF('INGRESO DE DATOS'!$G$21="Guayaquil/Santa Elena",'Tablas Guayaquil'!D186,'Tablas Resto de Ecuador'!D186) -> 6772 | E186: =IF('INGRESO DE DATOS'!$G$21="Guayaquil/Santa Elena",'Tablas Guayaquil'!E186,'Tablas Resto de Ecuador'!E186) -> 6378 | F186: =IF('INGRESO DE DATOS'!$G$21="Guayaquil/Santa Elena",'Tablas Guayaquil'!F186,'Tablas Resto de Ecuador'!F186) -> 5815 | G186: =IF('INGRESO DE DATOS'!$G$21="Guayaquil/Santa Elena",'Tablas Guayaquil'!G186,'Tablas Resto de Ecuador'!G186) -> 5160
A187: 58 | C187: =IF('INGRESO DE DATOS'!$G$21="Guayaquil/Santa Elena",'Tablas Guayaquil'!C187,'Tablas Resto de Ecuador'!C187) -> 7146 | D187: =IF('INGRESO DE DATOS'!$G$21="Guayaquil/Santa Elena",'Tablas Guayaquil'!D187,'Tablas Resto de Ecuador'!D187) -> 7008 | E187: =IF('INGRESO DE DATOS'!$G$21="Guayaquil/Santa Elena",'Tablas Guayaquil'!E187,'Tablas Resto de Ecuador'!E187) -> 6579 | F187: =IF('INGRESO DE DATOS'!$G$21="Guayaquil/Santa Elena",'Tablas Guayaquil'!F187,'Tablas Resto de Ecuador'!F187) -> 6019 | G187: =IF('INGRESO DE DATOS'!$G$21="Guayaquil/Santa Elena",'Tablas Guayaquil'!G187,'Tablas Resto de Ecuador'!G187) -> 5378
A188: 59 | C188: =IF('INGRESO DE DATOS'!$G$21="Guayaquil/Santa Elena",'Tablas Guayaquil'!C188,'Tablas Resto de Ecuador'!C188) -> 7382 | D188: =IF('INGRESO DE DATOS'!$G$21="Guayaquil/Santa Elena",'Tablas Guayaquil'!D188,'Tablas Resto de Ecuador'!D188) -> 7237 | E188: =IF('INGRESO DE DATOS'!$G$21="Guayaquil/Santa Elena",'Tablas Guayaquil'!E188,'Tablas Resto de Ecuador'!E188) -> 6782 | F188: =IF('INGRESO DE DATOS'!$G$21="Guayaquil/Santa Elena",'Tablas Guayaquil'!F188,'Tablas Resto de Ecuador'!F188) -> 6220 | G188: =IF('INGRESO DE DATOS'!$G$21="Guayaquil/Santa Elena",'Tablas Guayaquil'!G188,'Tablas Resto de Ecuador'!G188) -> 5597
A189: 60 | C189: =IF('INGRESO DE DATOS'!$G$21="Guayaquil/Santa Elena",'Tablas Guayaquil'!C189,'Tablas Resto de Ecuador'!C189) -> 7626 | D189: =IF('INGRESO DE DATOS'!$G$21="Guayaquil/Santa Elena",'Tablas Guayaquil'!D189,'Tablas Resto de Ecuador'!D189) -> 7467 | E189: =IF('INGRESO DE DATOS'!$G$21="Guayaquil/Santa Elena",'Tablas Guayaquil'!E189,'Tablas Resto de Ecuador'!E189) -> 6982 | F189: =IF('INGRESO DE DATOS'!$G$21="Guayaquil/Santa Elena",'Tablas Guayaquil'!F189,'Tablas Resto de Ecuador'!F189) -> 6423 | G189: =IF('INGRESO DE DATOS'!$G$21="Guayaquil/Santa Elena",'Tablas Guayaquil'!G189,'Tablas Resto de Ecuador'!G189) -> 5815
A190: 61 | C190: =IF('INGRESO DE DATOS'!$G$21="Guayaquil/Santa Elena",'Tablas Guayaquil'!C190,'Tablas Resto de Ecuador'!C190) -> 7914 | D190: =IF('INGRESO DE DATOS'!$G$21="Guayaquil/Santa Elena",'Tablas Guayaquil'!D190,'Tablas Resto de Ecuador'!D190) -> 7755 | E190: =IF('INGRESO DE DATOS'!$G$21="Guayaquil/Santa Elena",'Tablas Guayaquil'!E190,'Tablas Resto de Ecuador'!E190) -> 7285 | F190: =IF('INGRESO DE DATOS'!$G$21="Guayaquil/Santa Elena",'Tablas Guayaquil'!F190,'Tablas Resto de Ecuador'!F190) -> 6664 | G190: =IF('INGRESO DE DATOS'!$G$21="Guayaquil/Santa Elena",'Tablas Guayaquil'!G190,'Tablas Resto de Ecuador'!G190) -> 6033
A191: 62 | C191: =IF('INGRESO DE DATOS'!$G$21="Guayaquil/Santa Elena",'Tablas Guayaquil'!C191,'Tablas Resto de Ecuador'!C191) -> 8268 | D191: =IF('INGRESO DE DATOS'!$G$21="Guayaquil/Santa Elena",'Tablas Guayaquil'!D191,'Tablas Resto de Ecuador'!D191) -> 8108 | E191: =IF('INGRESO DE DATOS'!$G$21="Guayaquil/Santa Elena",'Tablas Guayaquil'!E191,'Tablas Resto de Ecuador'!E191) -> 7640 | F191: =IF('INGRESO DE DATOS'!$G$21="Guayaquil/Santa Elena",'Tablas Guayaquil'!F191,'Tablas Resto de Ecuador'!F191) -> 6967 | G191: =IF('INGRESO DE DATOS'!$G$21="Guayaquil/Santa Elena",'Tablas Guayaquil'!G191,'Tablas Resto de Ecuador'!G191) -> 6307
A192: 63 | C192: =IF('INGRESO DE DATOS'!$G$21="Guayaquil/Santa Elena",'Tablas Guayaquil'!C192,'Tablas Resto de Ecuador'!C192) -> 8697 | D192: =IF('INGRESO DE DATOS'!$G$21="Guayaquil/Santa Elena",'Tablas Guayaquil'!D192,'Tablas Resto de Ecuador'!D192) -> 8521 | E192: =IF('INGRESO DE DATOS'!$G$21="Guayaquil/Santa Elena",'Tablas Guayaquil'!E192,'Tablas Resto de Ecuador'!E192) -> 8031 | F192: =IF('INGRESO DE DATOS'!$G$21="Guayaquil/Santa Elena",'Tablas Guayaquil'!F192,'Tablas Resto de Ecuador'!F192) -> 7320 | G192: =IF('INGRESO DE DATOS'!$G$21="Guayaquil/Santa Elena",'Tablas Guayaquil'!G192,'Tablas Resto de Ecuador'!G192) -> 6630
A193: 64 | C193: =IF('INGRESO DE DATOS'!$G$21="Guayaquil/Santa Elena",'Tablas Guayaquil'!C193,'Tablas Resto de Ecuador'!C193) -> 9200 | D193: =IF('INGRESO DE DATOS'!$G$21="Guayaquil/Santa Elena",'Tablas Guayaquil'!D193,'Tablas Resto de Ecuador'!D193) -> 9012 | E193: =IF('INGRESO DE DATOS'!$G$21="Guayaquil/Santa Elena",'Tablas Guayaquil'!E193,'Tablas Resto de Ecuador'!E193) -> 8497 | F193: =IF('INGRESO DE DATOS'!$G$21="Guayaquil/Santa Elena",'Tablas Guayaquil'!F193,'Tablas Resto de Ecuador'!F193) -> 7746 | G193: =IF('INGRESO DE DATOS'!$G$21="Guayaquil/Santa Elena",'Tablas Guayaquil'!G193,'Tablas Resto de Ecuador'!G193) -> 7011
A194: 65 | C194: =IF('INGRESO DE DATOS'!$G$21="Guayaquil/Santa Elena",'Tablas Guayaquil'!C194,'Tablas Resto de Ecuador'!C194) -> 9799 | D194: =IF('INGRESO DE DATOS'!$G$21="Guayaquil/Santa Elena",'Tablas Guayaquil'!D194,'Tablas Resto de Ecuador'!D194) -> 9599 | E194: =IF('INGRESO DE DATOS'!$G$21="Guayaquil/Santa Elena",'Tablas Guayaquil'!E194,'Tablas Resto de Ecuador'!E194) -> 9053 | F194: =IF('INGRESO DE DATOS'!$G$21="Guayaquil/Santa Elena",'Tablas Guayaquil'!F194,'Tablas Resto de Ecuador'!F194) -> 8253 | G194: =IF('INGRESO DE DATOS'!$G$21="Guayaquil/Santa Elena",'Tablas Guayaquil'!G194,'Tablas Resto de Ecuador'!G194) -> 7531
A195: 66 | C195: =IF('INGRESO DE DATOS'!$G$21="Guayaquil/Santa Elena",'Tablas Guayaquil'!C195,'Tablas Resto de Ecuador'!C195) -> 10503 | D195: =IF('INGRESO DE DATOS'!$G$21="Guayaquil/Santa Elena",'Tablas Guayaquil'!D195,'Tablas Resto de Ecuador'!D195) -> 10293 | E195: =IF('INGRESO DE DATOS'!$G$21="Guayaquil/Santa Elena",'Tablas Guayaquil'!E195,'Tablas Resto de Ecuador'!E195) -> 9701 | F195: =IF('INGRESO DE DATOS'!$G$21="Guayaquil/Santa Elena",'Tablas Guayaquil'!F195,'Tablas Resto de Ecuador'!F195) -> 8848 | G195: =IF('INGRESO DE DATOS'!$G$21="Guayaquil/Santa Elena",'Tablas Guayaquil'!G195,'Tablas Resto de Ecuador'!G195) -> 8137
A196: 67 | C196: =IF('INGRESO DE DATOS'!$G$21="Guayaquil/Santa Elena",'Tablas Guayaquil'!C196,'Tablas Resto de Ecuador'!C196) -> 11340 | D196: =IF('INGRESO DE DATOS'!$G$21="Guayaquil/Santa Elena",'Tablas Guayaquil'!D196,'Tablas Resto de Ecuador'!D196) -> 11119 | E196: =IF('INGRESO DE DATOS'!$G$21="Guayaquil/Santa Elena",'Tablas Guayaquil'!E196,'Tablas Resto de Ecuador'!E196) -> 10477 | F196: =IF('INGRESO DE DATOS'!$G$21="Guayaquil/Santa Elena",'Tablas Guayaquil'!F196,'Tablas Resto de Ecuador'!F196) -> 9554 | G196: =IF('INGRESO DE DATOS'!$G$21="Guayaquil/Santa Elena",'Tablas Guayaquil'!G196,'Tablas Resto de Ecuador'!G196) -> 8790
A197: 68 | C197: =IF('INGRESO DE DATOS'!$G$21="Guayaquil/Santa Elena",'Tablas Guayaquil'!C197,'Tablas Resto de Ecuador'!C197) -> 12306 | D197: =IF('INGRESO DE DATOS'!$G$21="Guayaquil/Santa Elena",'Tablas Guayaquil'!D197,'Tablas Resto de Ecuador'!D197) -> 12056 | E197: =IF('INGRESO DE DATOS'!$G$21="Guayaquil/Santa Elena",'Tablas Guayaquil'!E197,'Tablas Resto de Ecuador'!E197) -> 11363 | F197: =IF('INGRESO DE DATOS'!$G$21="Guayaquil/Santa Elena",'Tablas Guayaquil'!F197,'Tablas Resto de Ecuador'!F197) -> 10360 | G197: =IF('INGRESO DE DATOS'!$G$21="Guayaquil/Santa Elena",'Tablas Guayaquil'!G197,'Tablas Resto de Ecuador'!G197) -> 9533
A198: 69 | C198: =IF('INGRESO DE DATOS'!$G$21="Guayaquil/Santa Elena",'Tablas Guayaquil'!C198,'Tablas Resto de Ecuador'!C198) -> 13429 | D198: =IF('INGRESO DE DATOS'!$G$21="Guayaquil/Santa Elena",'Tablas Guayaquil'!D198,'Tablas Resto de Ecuador'!D198) -> 13163 | E198: =IF('INGRESO DE DATOS'!$G$21="Guayaquil/Santa Elena",'Tablas Guayaquil'!E198,'Tablas Resto de Ecuador'!E198) -> 12402 | F198: =IF('INGRESO DE DATOS'!$G$21="Guayaquil/Santa Elena",'Tablas Guayaquil'!F198,'Tablas Resto de Ecuador'!F198) -> 11307 | G198: =IF('INGRESO DE DATOS'!$G$21="Guayaquil/Santa Elena",'Tablas Guayaquil'!G198,'Tablas Resto de Ecuador'!G198) -> 10414
A199: 70 | C199: =IF('INGRESO DE DATOS'!$G$21="Guayaquil/Santa Elena",'Tablas Guayaquil'!C199,'Tablas Resto de Ecuador'!C199) -> 14732 | D199: =IF('INGRESO DE DATOS'!$G$21="Guayaquil/Santa Elena",'Tablas Guayaquil'!D199,'Tablas Resto de Ecuador'!D199) -> 14432 | E199: =IF('INGRESO DE DATOS'!$G$21="Guayaquil/Santa Elena",'Tablas Guayaquil'!E199,'Tablas Resto de Ecuador'!E199) -> 13490 | F199: =IF('INGRESO DE DATOS'!$G$21="Guayaquil/Santa Elena",'Tablas Guayaquil'!F199,'Tablas Resto de Ecuador'!F199) -> 12403 | G199: =IF('INGRESO DE DATOS'!$G$21="Guayaquil/Santa Elena",'Tablas Guayaquil'!G199,'Tablas Resto de Ecuador'!G199) -> 11584
A200: 71 | C200: =IF('INGRESO DE DATOS'!$G$21="Guayaquil/Santa Elena",'Tablas Guayaquil'!C200,'Tablas Resto de Ecuador'!C200) -> 16217 | D200: =IF('INGRESO DE DATOS'!$G$21="Guayaquil/Santa Elena",'Tablas Guayaquil'!D200,'Tablas Resto de Ecuador'!D200) -> 15894 | E200: =IF('INGRESO DE DATOS'!$G$21="Guayaquil/Santa Elena",'Tablas Guayaquil'!E200,'Tablas Resto de Ecuador'!E200) -> 14980 | F200: =IF('INGRESO DE DATOS'!$G$21="Guayaquil/Santa Elena",'Tablas Guayaquil'!F200,'Tablas Resto de Ecuador'!F200) -> 13657 | G200: =IF('INGRESO DE DATOS'!$G$21="Guayaquil/Santa Elena",'Tablas Guayaquil'!G200,'Tablas Resto de Ecuador'!G200) -> 12755
A201: 72 | C201: =IF('INGRESO DE DATOS'!$G$21="Guayaquil/Santa Elena",'Tablas Guayaquil'!C201,'Tablas Resto de Ecuador'!C201) -> 17946 | D201: =IF('INGRESO DE DATOS'!$G$21="Guayaquil/Santa Elena",'Tablas Guayaquil'!D201,'Tablas Resto de Ecuador'!D201) -> 17583 | E201: =IF('INGRESO DE DATOS'!$G$21="Guayaquil/Santa Elena",'Tablas Guayaquil'!E201,'Tablas Resto de Ecuador'!E201) -> 16575 | F201: =IF('INGRESO DE DATOS'!$G$21="Guayaquil/Santa Elena",'Tablas Guayaquil'!F201,'Tablas Resto de Ecuador'!F201) -> 15113 | G201: =IF('INGRESO DE DATOS'!$G$21="Guayaquil/Santa Elena",'Tablas Guayaquil'!G201,'Tablas Resto de Ecuador'!G201) -> 14120
A202: 73 | C202: =IF('INGRESO DE DATOS'!$G$21="Guayaquil/Santa Elena",'Tablas Guayaquil'!C202,'Tablas Resto de Ecuador'!C202) -> 19931 | D202: =IF('INGRESO DE DATOS'!$G$21="Guayaquil/Santa Elena",'Tablas Guayaquil'!D202,'Tablas Resto de Ecuador'!D202) -> 19528 | E202: =IF('INGRESO DE DATOS'!$G$21="Guayaquil/Santa Elena",'Tablas Guayaquil'!E202,'Tablas Resto de Ecuador'!E202) -> 18409 | F202: =IF('INGRESO DE DATOS'!$G$21="Guayaquil/Santa Elena",'Tablas Guayaquil'!F202,'Tablas Resto de Ecuador'!F202) -> 16784 | G202: =IF('INGRESO DE DATOS'!$G$21="Guayaquil/Santa Elena",'Tablas Guayaquil'!G202,'Tablas Resto de Ecuador'!G202) -> 15673
A203: 74 | C203: =IF('INGRESO DE DATOS'!$G$21="Guayaquil/Santa Elena",'Tablas Guayaquil'!C203,'Tablas Resto de Ecuador'!C203) -> 22223 | D203: =IF('INGRESO DE DATOS'!$G$21="Guayaquil/Santa Elena",'Tablas Guayaquil'!D203,'Tablas Resto de Ecuador'!D203) -> 21777 | E203: =IF('INGRESO DE DATOS'!$G$21="Guayaquil/Santa Elena",'Tablas Guayaquil'!E203,'Tablas Resto de Ecuador'!E203) -> 20520 | F203: =IF('INGRESO DE DATOS'!$G$21="Guayaquil/Santa Elena",'Tablas Guayaquil'!F203,'Tablas Resto de Ecuador'!F203) -> 18709 | G203: =IF('INGRESO DE DATOS'!$G$21="Guayaquil/Santa Elena",'Tablas Guayaquil'!G203,'Tablas Resto de Ecuador'!G203) -> 17478
... 978 more rows

Sheet Tablas Guayaquil (hidden)
A2: FLEX 500 | K2: FACTOR MENSUAL: | M2: =1.06/12 -> 0.08833333333
A3: TARIFAS ANUALES | K3: FACTOR SEMESTRAL: | M3: =1.03/2 -> 0.515
A4: EDAD | K4: FACTOR TRIMESTRAL: | M4: =1.045/4 -> 0.26125
C5: F500-1 | D5: F500-2 | E5: F500-3 | F5: F500-4 | G5: F500-5 | H5: F500-6 | I5: F500-7
A6: 18 | C6: 2184 | D6: 1868 | E6: 1368 | F6: 943 | G6: 514 | H6: 304 | I6: 175
A7: 19 | C7: 2220 | D7: 1868 | E7: 1368 | F7: 944 | G7: 519 | H7: 309 | I7: 179
A8: 20 | C8: 2259 | D8: 1868 | E8: 1368 | F8: 947 | G8: 525 | H8: 313 | I8: 183
A9: 21 | C9: 2302 | D9: 1868 | E9: 1370 | F9: 953 | G9: 531 | H9: 320 | I9: 188
A10: 22 | C10: 2339 | D10: 1868 | E10: 1374 | F10: 960 | G10: 539 | H10: 326 | I10: 193
A11: 23 | C11: 2378 | D11: 1873 | E11: 1383 | F11: 970 | G11: 548 | H11: 334 | I11: 198
A12: 24 | C12: 2384 | D12: 1882 | E12: 1394 | F12: 983 | G12: 558 | H12: 342 | I12: 205
A13: 25 | C13: 2395 | D13: 1895 | E13: 1409 | F13: 998 | G13: 570 | H13: 351 | I13: 212
A14: 26 | C14: 2413 | D14: 1914 | E14: 1429 | F14: 1015 | G14: 584 | H14: 362 | I14: 219
A15: 27 | C15: 2437 | D15: 1938 | E15: 1452 | F15: 1035 | G15: 599 | H15: 373 | I15: 227
A16: 28 | C16: 2467 | D16: 1967 | E16: 1478 | F16: 1058 | G16: 616 | H16: 386 | I16: 236
A17: 29 | C17: 2503 | D17: 2000 | E17: 1508 | F17: 1084 | G17: 635 | H17: 400 | I17: 247
A18: 30 | C18: 2545 | D18: 2040 | E18: 1543 | F18: 1113 | G18: 656 | H18: 414 | I18: 257
A19: 31 | C19: 2595 | D19: 2085 | E19: 1582 | F19: 1145 | G19: 678 | H19: 431 | I19: 270
A20: 32 | C20: 2653 | D20: 2137 | E20: 1625 | F20: 1180 | G20: 704 | H20: 449 | I20: 282
A21: 33 | C21: 2718 | D21: 2194 | E21: 1674 | F21: 1220 | G21: 730 | H21: 469 | I21: 296
A22: 34 | C22: 2790 | D22: 2258 | E22: 1728 | F22: 1264 | G22: 760 | H22: 489 | I22: 312
A23: 35 | C23: 2870 | D23: 2328 | E23: 1788 | F23: 1312 | G23: 792 | H23: 513 | I23: 328
A24: 36 | C24: 2959 | D24: 2407 | E24: 1853 | F24: 1363 | G24: 828 | H24: 539 | I24: 347
A25: 37 | C25: 3057 | D25: 2492 | E25: 1923 | F25: 1420 | G25: 867 | H25: 566 | I25: 366
A26: 38 | C26: 3163 | D26: 2584 | E26: 2000 | F26: 1482 | G26: 909 | H26: 596 | I26: 388
A27: 39 | C27: 3279 | D27: 2685 | E27: 2085 | F27: 1549 | G27: 954 | H27: 628 | I27: 411
A28: 40 | C28: 3372 | D28: 2795 | E28: 2177 | F28: 1622 | G28: 1004 | H28: 664 | I28: 437
A29: 41 | C29: 3447 | D29: 2914 | E29: 2275 | F29: 1700 | G29: 1056 | H29: 702 | I29: 465
A30: 42 | C30: 3528 | D30: 3044 | E30: 2383 | F30: 1787 | G30: 1115 | H30: 743 | I30: 495
A31: 43 | C31: 3663 | D31: 3183 | E31: 2499 | F31: 1879 | G31: 1178 | H31: 789 | I31: 528
A32: 44 | C32: 3804 | D32: 3309 | E32: 2624 | F32: 1979 | G32: 1246 | H32: 838 | I32: 564
A33: 45 | C33: 3945 | D33: 3429 | E33: 2759 | F33: 2088 | G33: 1319 | H33: 891 | I33: 602
A34: 46 | C34: 4084 | D34: 3552 | E34: 2905 | F34: 2204 | G34: 1400 | H34: 948 | I34: 644
A35: 47 | C35: 4227 | D35: 3674 | E35: 3062 | F35: 2330 | G35: 1485 | H35: 1010 | I35: 690
A36: 48 | C36: 4377 | D36: 3804 | E36: 3232 | F36: 2467 | G36: 1578 | H36: 1078 | I36: 740
A37: 49 | C37: 4523 | D37: 3933 | E37: 3414 | F37: 2614 | G37: 1679 | H37: 1152 | I37: 794
A38: 50 | C38: 4670 | D38: 4063 | E38: 3624 | F38: 2784 | G38: 1797 | H38: 1237 | I38: 857
A39: 51 | C39: 4817 | D39: 4190 | E39: 3820 | F39: 2989 | G39: 1940 | H39: 1341 | I39: 934
A40: 52 | C40: 4965 | D40: 4319 | E40: 3938 | F40: 3209 | G40: 2092 | H40: 1453 | I40: 1017
A41: 53 | C41: 5142 | D41: 4470 | E41: 4079 | F41: 3445 | G41: 2256 | H41: 1573 | I41: 1107
A42: 54 | C42: 5318 | D42: 4624 | E42: 4217 | F42: 3700 | G42: 2433 | H42: 1701 | I42: 1203
A43: 55 | C43: 5497 | D43: 4779 | E43: 4355 | F43: 3843 | G43: 2622 | H43: 1839 | I43: 1306
A44: 56 | C44: 5672 | D44: 4930 | E44: 4493 | F44: 3975 | G44: 2775 | H44: 1988 | I44: 1416
A45: 57 | C45: 5844 | D45: 5084 | E45: 4634 | F45: 4109 | G45: 2861 | H45: 2148 | I45: 1536
A46: 58 | C46: 6047 | D46: 5257 | E46: 4780 | F46: 4285 | G46: 2975 | H46: 2319 | I46: 1663
A47: 59 | C47: 6249 | D47: 5434 | E47: 4924 | F47: 4458 | G47: 3087 | H47: 2503 | I47: 1800
A48: 60 | C48: 6450 | D48: 5608 | E48: 5072 | F48: 4633 | G48: 3201 | H48: 2702 | I48: 1949
A49: 61 | C49: 6699 | D49: 5823 | E49: 5290 | F49: 4805 | G49: 3320 | H49: 2915 | I49: 2107
A50: 62 | C50: 6999 | D50: 6085 | E50: 5549 | F50: 5022 | G50: 3471 | H50: 3146 | I50: 2279
A51: 63 | C51: 7359 | D51: 6398 | E51: 5837 | F51: 5280 | G51: 3652 | H51: 3393 | I51: 2463
A52: 64 | C52: 7783 | D52: 6769 | E52: 6170 | F52: 5584 | G52: 4055 | H52: 3661 | I52: 2660
A53: 65 | C53: 8293 | D53: 7209 | E53: 6573 | F53: 6002 | G53: 4341 | H53: 3950 | I53: 2874
A54: 66 | C54: 8888 | D54: 7729 | E54: 7048 | F54: 6482 | G54: 4676 | H54: 4261 | I54: 3104
A55: 67 | C55: 9598 | D55: 8347 | E55: 7612 | F55: 7005 | G55: 5050 | H55: 4597 | I55: 3352
A56: 68 | C56: 10415 | D56: 9054 | E56: 8258 | F56: 7595 | G56: 5476 | H56: 4959 | I56: 3618
A57: 69 | C57: 11364 | D57: 9882 | E57: 9010 | F57: 8294 | G57: 5697 | H57: 5350 | I57: 3905
A58: 70 | C58: 12464 | D58: 10839 | E58: 9797 | F58: 9230 | G58: 6299 | H58: 5770 | I58: 4212
A59: 71 | C59: 13728 | D59: 11938 | E59: 10883 | F59: 10164 | G59: 6939 | H59: 6222 | I59: 4540
A60: 72 | C60: 15185 | D60: 13204 | E60: 12042 | F60: 11249 | G60: 7680 | H60: 6706 | I60: 4890
A61: 73 | C61: 16867 | D61: 14665 | E61: 13370 | F61: 12488 | G61: 8523 | H61: 7225 | I61: 5263
A62: 74 | C62: 18804 | D62: 16349 | E62: 14907 | F62: 13925 | G62: 9506 | H62: 7778 | I62: 5656
A63: 75 | C63: 21024 | D63: 18283 | E63: 16602 | F63: 15668 | G63: 10666 | H63: 8364 | I63: 6069
A64: 76 | C64: 23579 | D64: 20502 | E64: 18679 | F64: 17568 | G64: 11960 | H64: 8983 | I64: 6499
A65: 77 | C65: 26478 | D65: 23027 | E65: 20994 | F65: 19587 | G65: 13434 | H65: 9631 | I65: 6942
A66: 78 | C66: 29753 | D66: 25872 | E66: 23588 | F66: 21010 | G66: 14466 | H66: 10303 | I66: 7393
A67: 79 | C67: 33429 | D67: 29067 | E67: 26504 | F67: 22505 | G67: 15484 | H67: 10994 | I67: 7840
A68: 80 | B68: o más | C68: 37570 | D68: 32895 | E68: 29282 | F68: 24065 | G68: 16534 | H68: 11693 | I68: 8275
A69: 1 | B69: Hijo | C69: 1442 | D69: 1253 | E69: 908 | F69: 622 | G69: 340 | H69: 201 | I69: 115
A70: 2 | B70: Hijos | C70: 1704 | D70: 1480 | E70: 1073 | F70: 735 | G70: 401 | H70: 237 | I70: 136
A71: 3 | B71: Hijos o más | C71: 2359 | D71: 2050 | E71: 1485 | F71: 1018 | G71: 556 | H71: 328 | I71: 189
A73: TARIFAS MENSUALES
A74: EDAD
C75: F500-1 | D75: F500-2 | E75: F500-3 | F75: F500-4 | G75: F500-5
A76: 18 | C76: =+C6*$M$2 -> 192.92 | D76: =+D6*$M$2 -> 165.0066667 | E76: 120.84 | F76: 83.29833333 | G76: 45.40333333 | H76: 26.85333333 | I76: 15.45833333
A77: 19 | C77: =+C7*$M$2 -> 196.1 | D77: 165.0066667 | E77: 120.84 | F77: 83.38666667 | G77: 45.845 | H77: 27.295 | I77: 15.81166667
A78: 20 | C78: 199.545 | D78: 165.0066667 | E78: 120.84 | F78: 83.65166667 | G78: 46.375 | H78: 27.64833333 | I78: 16.165
A79: 21 | C79: 203.3433333 | D79: 165.0066667 | E79: 121.0166667 | F79: 84.18166667 | G79: 46.905 | H79: 28.26666667 | I79: 16.60666667
A80: 22 | C80: 206.6116667 | D80: 165.0066667 | E80: 121.37 | F80: 84.8 | G80: 47.61166667 | H80: 28.79666667 | I80: 17.04833333
A81: 23 | C81: 210.0566667 | D81: 165.4483333 | E81: 122.165 | F81: 85.68333333 | G81: 48.40666667 | H81: 29.50333333 | I81: 17.49
A82: 24 | C82: 210.5866667 | D82: 166.2433333 | E82: 123.1366667 | F82: 86.83166667 | G82: 49.29 | H82: 30.21 | I82: 18.10833333
A83: 25 | C83: 211.5583333 | D83: 167.3916667 | E83: 124.4616667 | F83: 88.15666667 | G83: 50.35 | H83: 31.005 | I83: 18.72666667
A84: 26 | C84: 213.1483333 | D84: 169.07 | E84: 126.2283333 | F84: 89.65833333 | G84: 51.58666667 | H84: 31.97666667 | I84: 19.345
A85: 27 | C85: 215.2683333 | D85: 171.19 | E85: 128.26 | F85: 91.425 | G85: 52.91166667 | H85: 32.94833333 | I85: 20.05166667
A86: 28 | C86: 217.9183333 | D86: 173.7516667 | E86: 130.5566667 | F86: 93.45666667 | G86: 54.41333333 | H86: 34.09666667 | I86: 20.84666667
A87: 29 | C87: 221.0983333 | D87: 176.6666667 | E87: 133.2066667 | F87: 95.75333333 | G87: 56.09166667 | H87: 35.33333333 | I87: 21.81833333
A88: 30 | C88: 224.8083333 | D88: 180.2 | E88: 136.2983333 | F88: 98.315 | G88: 57.94666667 | H88: 36.57 | I88: 22.70166667
A89: 31 | C89: 229.225 | D89: 184.175 | E89: 139.7433333 | F89: 101.1416667 | G89: 59.89 | H89: 38.07166667 | I89: 23.85
A90: 32 | C90: 234.3483333 | D90: 188.7683333 | E90: 143.5416667 | F90: 104.2333333 | G90: 62.18666667 | H90: 39.66166667 | I90: 24.91
A91: 33 | C91: 240.09 | D91: 193.8033333 | E91: 147.87 | F91: 107.7666667 | G91: 64.48333333 | H91: 41.42833333 | I91: 26.14666667
A92: 34 | C92: 246.45 | D92: 199.4566667 | E92: 152.64 | F92: 111.6533333 | G92: 67.13333333 | H92: 43.195 | I92: 27.56
A93: 35 | C93: =+C23*$M$2 -> 253.5166667 | D93: 205.64 | E93: 157.94 | F93: 115.8933333 | G93: 69.96 | H93: 45.315 | I93: 28.97333333
A94: 36 | C94: 261.3783333 | D94: 212.6183333 | E94: 163.6816667 | F94: 120.3983333 | G94: 73.14 | H94: 47.61166667 | I94: 30.65166667
A95: 37 | C95: 270.035 | D95: 220.1266667 | E95: 169.865 | F95: 125.4333333 | G95: 76.585 | H95: 49.99666667 | I95: 32.33
A96: 38 | C96: 279.3983333 | D96: 228.2533333 | E96: 176.6666667 | F96: 130.91 | G96: 80.295 | H96: 52.64666667 | I96: 34.27333333
A97: 39 | C97: 289.645 | D97: 237.175 | E97: 184.175 | F97: 136.8283333 | G97: 84.27 | H97: 55.47333333 | I97: 36.305
A98: 40 | C98: 297.86 | D98: 246.8916667 | E98: 192.3016667 | F98: 143.2766667 | G98: 88.68666667 | H98: 58.65333333 | I98: 38.60166667
A99: 41 | C99: 304.485 | D99: 257.4033333 | E99: 200.9583333 | F99: 150.1666667 | G99: 93.28 | H99: 62.01 | I99: 41.075
A100: 42 | C100: 311.64 | D100: 268.8866667 | E100: 210.4983333 | F100: 157.8516667 | G100: 98.49166667 | H100: 65.63166667 | I100: 43.725
A101: 43 | C101: 323.565 | D101: 281.165 | E101: 220.745 | F101: 165.9783333 | G101: 104.0566667 | H101: 69.695 | I101: 46.64
A102: 44 | C102: 336.02 | D102: 292.295 | E102: 231.7866667 | F102: 174.8116667 | G102: 110.0633333 | H102: 74.02333333 | I102: 49.82
A103: 45 | C103: 348.475 | D103: 302.895 | E103: 243.7116667 | F103: 184.44 | G103: 116.5116667 | H103: 78.705 | I103: 53.17666667
A104: 46 | C104: 360.7533333 | D104: 313.76 | E104: 256.6083333 | F104: 194.6866667 | G104: 123.6666667 | H104: 83.74 | I104: 56.88666667
A105: 47 | C105: 373.385 | D105: 324.5366667 | E105: 270.4766667 | F105: 205.8166667 | G105: 131.175 | H105: 89.21666667 | I105: 60.95
A106: 48 | C106: 386.635 | D106: 336.02 | E106: 285.4933333 | F106: 217.9183333 | G106: 139.39 | H106: 95.22333333 | I106: 65.36666667
A107: 49 | C107: 399.5316667 | D107: 347.415 | E107: 301.57 | F107: 230.9033333 | G107: 148.3116667 | H107: 101.76 | I107: 70.13666667
A108: 50 | C108: 412.5166667 | D108: 358.8983333 | E108: 320.12 | F108: 245.92 | G108: 158.735 | H108: 109.2683333 | I108: 75.70166667
A109: 51 | C109: =+C39*$M$2 -> 425.5016667 | D109: 370.1166667 | E109: 337.4333333 | F109: 264.0283333 | G109: 171.3666667 | H109: 118.455 | I109: 82.50333333
A110: 52 | C110: 438.575 | D110: 381.5116667 | E110: 347.8566667 | F110: 283.4616667 | G110: 184.7933333 | H110: 128.3483333 | I110: 89.835
A111: 53 | C111: 454.21 | D111: 394.85 | E111: 360.3116667 | F111: 304.3083333 | G111: 199.28 | H111: 138.9483333 | I111: 97.785
A112: 54 | C112: 469.7566667 | D112: 408.4533333 | E112: 372.5016667 | F112: 326.8333333 | G112: 214.915 | H112: 150.255 | I112: 106.265
A113: 55 | C113: 485.5683333 | D113: 422.145 | E113: 384.6916667 | F113: 339.465 | G113: 231.61 | H113: 162.445 | I113: 115.3633333
A114: 56 | C114: 501.0266667 | D114: 435.4833333 | E114: 396.8816667 | F114: 351.125 | G114: 245.125 | H114: 175.6066667 | I114: 125.08
A115: 57 | C115: 516.22 | D115: 449.0866667 | E115: 409.3366667 | F115: 362.9616667 | G115: 252.7216667 | H115: 189.74 | I115: 135.68
A116: 58 | C116: 534.1516667 | D116: 464.3683333 | E116: 422.2333333 | F116: 378.5083333 | G116: 262.7916667 | H116: 204.845 | I116: 146.8983333
A117: 59 | C117: 551.995 | D117: 480.0033333 | E117: 434.9533333 | F117: 393.79 | G117: 272.685 | H117: 221.0983333 | I117: 159
A118: 60 | C118: 569.75 | D118: 495.3733333 | E118: 448.0266667 | F118: 409.2483333 | G118: 282.755 | H118: 238.6766667 | I118: 172.1616667
A119: 61 | C119: 591.745 | D119: 514.365 | E119: 467.2833333 | F119: 424.4416667 | G119: 293.2666667 | H119: 257.4916667 | I119: 186.1183333
A120: 62 | C120: 618.245 | D120: 537.5083333 | E120: 490.1616667 | F120: 443.61 | G120: 306.605 | H120: 277.8966667 | I120: 201.3116667
A121: 63 | C121: 650.045 | D121: 565.1566667 | E121: 515.6016667 | F121: 466.4 | G121: 322.5933333 | H121: 299.715 | I121: 217.565
A122: 64 | C122: 687.4983333 | D122: 597.9283333 | E122: 545.0166667 | F122: 493.2533333 | G122: 358.1916667 | H122: 323.3883333 | I122: 234.9666667
A123: 65 | C123: 732.5483333 | D123: 636.795 | E123: 580.615 | F123: 530.1766667 | G123: 383.455 | H123: 348.9166667 | I123: 253.87
A124: 66 | C124: 785.1066667 | D124: 682.7283333 | E124: 622.5733333 | F124: 572.5766667 | G124: 413.0466667 | H124: 376.3883333 | I124: 274.1866667
A125: 67 | C125: =+C55*$M$2 -> 847.8233333 | D125: 737.3183333 | E125: 672.3933333 | F125: 618.775 | G125: 446.0833333 | H125: 406.0683333 | I125: 296.0933333
A126: 68 | C126: 919.9916667 | D126: 799.77 | E126: 729.4566667 | F126: 670.8916667 | G126: 483.7133333 | H126: 438.045 | I126: 319.59
A127: 69 | C127: 1003.82 | D127: 872.91 | E127: 795.8833333 | F127: 732.6366667 | G127: 503.235 | H127: 472.5833333 | I127: 344.9416667
A128: 70 | C128: 1100.986667 | D128: 957.445 | E128: 865.4016667 | F128: 815.3166667 | G128: 556.4116667 | H128: 509.6833333 | I128: 372.06
A129: 71 | C129: 1212.64 | D129: 1054.523333 | E129: 961.3316667 | F129: 897.82 | G129: 612.945 | H129: 549.61 | I129: 401.0333333
A130: 72 | C130: 1341.341667 | D130: 1166.353333 | E130: 1063.71 | F130: 993.6616667 | G130: 678.4 | H130: 592.3633333 | I130: 431.95
A131: 73 | C131: 1489.918333 | D131: 1295.408333 | E131: 1181.016667 | F131: 1103.106667 | G131: 752.865 | H131: 638.2083333 | I131: 464.8983333
A132: 74 | C132: 1661.02 | D132: 1444.161667 | E132: 1316.785 | F132: 1230.041667 | G132: 839.6966667 | H132: 687.0566667 | I132: 499.6133333
A133: 75 | C133: 1857.12 | D133: 1614.998333 | E133: 1466.51 | F133: 1384.006667 | G133: 942.1633333 | H133: 738.82 | I133: 536.095
A134: 76 | C134: 2082.811667 | D134: 1811.01 | E134: 1649.978333 | F134: 1551.84 | G134: 1056.466667 | H134: 793.4983333 | I134: 574.0783333
A135: 77 | C135: 2338.89 | D135: 2034.051667 | E135: 1854.47 | F135: 1730.185 | G135: 1186.67 | H135: 850.7383333 | I135: 613.21
A136: 78 | C136: 2628.181667 | D136: 2285.36 | E136: 2083.606667 | F136: 1855.883333 | G136: 1277.83 | H136: 910.0983333 | I136: 653.0483333
A137: 79 | C137: 2952.895 | D137: 2567.585 | E137: 2341.186667 | F137: 1987.941667 | G137: 1367.753333 | H137: 971.1366667 | I137: 692.5333333
A138: 80 | B138: o más | C138: 3318.683333 | D138: 2905.725 | E138: 2586.576667 | F138: 2125.741667 | G138: 1460.503333 | H138: 1032.881667 | I138: 730.9583333
A139: 1 | B139: Hijo | C139: 127.3766667 | D139: 110.6816667 | E139: 80.20666667 | F139: 54.94333333 | G139: 30.03333333 | H139: 17.755 | I139: 10.15833333
A140: 2 | B140: Hijos | C140: 150.52 | D140: 130.7333333 | E140: 94.78166667 | F140: 64.925 | G140: 35.42166667 | H140: 20.935 | I140: 12.01333333
A141: 3 | B141: Hijos o más | C141: =+C71*$M$2 -> 208.3783333 | D141: 181.0833333 | E141: 131.175 | F141: 89.92333333 | G141: 49.11333333 | H141: 28.97333333 | I141: 16.695
A143: FLEX 100
A144: TARIFAS ANUALES
A145: EDAD
C146: F100-1 | D146: F100-2 | E146: F100-3 | F146: F100-4 | G146: F100-5
A147: 18 | C147: 2583 | D147: 2530 | E147: 2390 | F147: 2180 | G147: 1687
A148: 19 | C148: 2631 | D148: 2579 | E148: 2432 | F148: 2219 | G148: 1721
A149: 20 | C149: 2675 | D149: 2616 | E149: 2471 | F149: 2251 | G149: 1754
A150: 21 | C150: 2720 | D150: 2665 | E150: 2510 | F150: 2288 | G150: 1792
A151: 22 | C151: 2762 | D151: 2716 | E151: 2553 | F151: 2332 | G151: 1832
A152: 23 | C152: 2814 | D152: 2756 | E152: 2598 | F152: 2366 | G152: 1869
A153: 24 | C153: 2861 | D153: 2802 | E153: 2642 | F153: 2408 | G153: 1906
A154: 25 | C154: 2904 | D154: 2846 | E154: 2677 | F154: 2450 | G154: 1951
A155: 26 | C155: 2951 | D155: 2893 | E155: 2725 | F155: 2484 | G155: 1984
A156: 27 | C156: 2993 | D156: 2935 | E156: 2762 | F156: 2524 | G156: 2023
A157: 28 | C157: 3049 | D157: 2990 | E157: 2817 | F157: 2569 | G157: 2072
A158: 29 | C158: 3104 | D158: 3042 | E158: 2867 | F158: 2612 | G158: 2125
A159: 30 | C159: 3160 | D159: 3094 | E159: 2916 | F159: 2661 | G159: 2171
A160: 31 | C160: 3210 | D160: 3145 | E160: 2962 | F160: 2704 | G160: 2219
A161: 32 | C161: 3267 | D161: 3198 | E161: 3017 | F161: 2750 | G161: 2264
A162: 33 | C162: 3354 | D162: 3286 | E162: 3098 | F162: 2821 | G162: 2335
A163: 34 | C163: 3443 | D163: 3375 | E163: 3179 | F163: 2899 | G163: 2403
A164: 35 | C164: 3532 | D164: 3462 | E164: 3265 | F164: 2975 | G164: 2471
A165: 36 | C165: 3620 | D165: 3550 | E165: 3346 | F165: 3049 | G165: 2545
A166: 37 | C166: 3708 | D166: 3638 | E166: 3428 | F166: 3128 | G166: 2610
A167: 38 | C167: 3801 | D167: 3727 | E167: 3515 | F167: 3202 | G167: 2686
A168: 39 | C168: 3894 | D168: 3813 | E168: 3595 | F168: 3282 | G168: 2757
A169: 40 | C169: 3986 | D169: 3905 | E169: 3680 | F169: 3354 | G169: 2834
A170: 41 | C170: 4079 | D170: 3997 | E170: 3765 | F170: 3431 | G170: 2905
A171: 42 | C171: 4168 | D171: 4084 | E171: 3849 | F171: 3506 | G171: 2986
A172: 43 | C172: 4332 | D172: 4246 | E172: 4000 | F172: 3650 | G172: 3109
A173: 44 | C173: 4500 | D173: 4409 | E173: 4153 | F173: 3790 | G173: 3246
A174: 45 | C174: 4669 | D174: 4568 | E174: 4306 | F174: 3928 | G174: 3376
A175: 46 | C175: 4826 | D175: 4735 | E175: 4460 | F175: 4069 | G175: 3502
A176: 47 | C176: 4996 | D176: 4894 | E176: 4615 | F176: 4208 | G176: 3638
A177: 48 | C177: 5172 | D177: 5065 | E177: 4775 | F177: 4356 | G177: 3769
A178: 49 | C178: 5345 | D178: 5239 | E178: 4937 | F178: 4501 | G178: 3910
A179: 50 | C179: 5519 | D179: 5413 | E179: 5100 | F179: 4649 | G179: 4049
A180: 51 | C180: 5693 | D180: 5585 | E180: 5260 | F180: 4798 | G180: 4186
A181: 52 | C181: 5870 | D181: 5750 | E181: 5423 | F181: 4946 | G181: 4323
A182: 53 | C182: 6076 | D182: 5959 | E182: 5615 | F182: 5119 | G182: 4494
A183: 54 | C183: 6285 | D183: 6163 | E183: 5807 | F183: 5297 | G183: 4657
A184: 55 | C184: 6490 | D184: 6366 | E184: 6001 | F184: 5471 | G184: 4824
A185: 56 | C185: 6701 | D185: 6568 | E185: 6192 | F185: 5648 | G185: 4993
A186: 57 | C186: 6908 | D186: 6772 | E186: 6378 | F186: 5815 | G186: 5160
A187: 58 | C187: 7146 | D187: 7008 | E187: 6579 | F187: 6019 | G187: 5378
A188: 59 | C188: 7382 | D188: 7237 | E188: 6782 | F188: 6220 | G188: 5597
A189: 60 | C189: 7626 | D189: 7467 | E189: 6982 | F189: 6423 | G189: 5815
A190: 61 | C190: 7914 | D190: 7755 | E190: 7285 | F190: 6664 | G190: 6033
A191: 62 | C191: 8268 | D191: 8108 | E191: 7640 | F191: 6967 | G191: 6307
A192: 63 | C192: 8697 | D192: 8521 | E192: 8031 | F192: 7320 | G192: 6630
A193: 64 | C193: 9200 | D193: 9012 | E193: 8497 | F193: 7746 | G193: 7011
A194: 65 | C194: 9799 | D194: 9599 | E194: 9053 | F194: 8253 | G194: 7531
A195: 66 | C195: 10503 | D195: 10293 | E195: 9701 | F195: 8848 | G195: 8137
A196: 67 | C196: 11340 | D196: 11119 | E196: 10477 | F196: 9554 | G196: 8790
A197: 68 | C197: 12306 | D197: 12056 | E197: 11363 | F197: 10360 | G197: 9533
A198: 69 | C198: 13429 | D198: 13163 | E198: 12402 | F198: 11307 | G198: 10414
A199: 70 | C199: 14732 | D199: 14432 | E199: 13490 | F199: 12403 | G199: 11584
A200: 71 | C200: 16217 | D200: 15894 | E200: 14980 | F200: 13657 | G200: 12755
A201: 72 | C201: 17946 | D201: 17583 | E201: 16575 | F201: 15113 | G201: 14120
A202: 73 | C202: 19931 | D202: 19528 | E202: 18409 | F202: 16784 | G202: 15673
A203: 74 | C203: 22223 | D203: 21777 | E203: 20520 | F203: 18709 | G203: 17478
... 978 more rows

Sheet Tablas Resto de Ecuador (hidden)
A2: FLEX 500 | K2: FACTOR MENSUAL: | M2: =1.06/12 -> 0.08833333333
A3: TARIFAS ANUALES | K3: FACTOR SEMESTRAL: | M3: =1.03/2 -> 0.515
A4: EDAD | K4: FACTOR TRIMESTRAL: | M4: =1.045/4 -> 0.26125
C5: F500-1 | D5: F500-2 | E5: F500-3 | F5: F500-4 | G5: F500-5 | H5: F500-6 | I5: F500-7
A6: 18 | C6: 2010 | D6: 1719 | E6: 1259 | F6: 868 | G6: 471 | H6: 278 | I6: 160
A7: 19 | C7: 2043 | D7: 1719 | E7: 1259 | F7: 869 | G7: 476 | H7: 282 | I7: 163
A8: 20 | C8: 2079 | D8: 1719 | E8: 1259 | F8: 871 | G8: 481 | H8: 286 | I8: 167
A9: 21 | C9: 2118 | D9: 1719 | E9: 1261 | F9: 877 | G9: 487 | H9: 292 | I9: 172
A10: 22 | C10: 2152 | D10: 1719 | E10: 1264 | F10: 884 | G10: 494 | H10: 298 | I10: 176
A11: 23 | C11: 2188 | D11: 1723 | E11: 1272 | F11: 893 | G11: 502 | H11: 305 | I11: 181
A12: 24 | C12: 2194 | D12: 1731 | E12: 1283 | F12: 904 | G12: 512 | H12: 312 | I12: 187
A13: 25 | C13: 2204 | D13: 1744 | E13: 1297 | F13: 918 | G13: 523 | H13: 321 | I13: 194
A14: 26 | C14: 2220 | D14: 1761 | E14: 1315 | F14: 934 | G14: 535 | H14: 330 | I14: 200
A15: 27 | C15: 2242 | D15: 1783 | E15: 1336 | F15: 953 | G15: 549 | H15: 341 | I15: 207
A16: 28 | C16: 2269 | D16: 1809 | E16: 1360 | F16: 973 | G16: 565 | H16: 352 | I16: 216
A17: 29 | C17: 2303 | D17: 1840 | E17: 1387 | F17: 998 | G17: 582 | H17: 365 | I17: 225
A18: 30 | C18: 2342 | D18: 1877 | E18: 1420 | F18: 1024 | G18: 601 | H18: 378 | I18: 235
A19: 31 | C19: 2388 | D19: 1919 | E19: 1455 | F19: 1054 | G19: 622 | H19: 393 | I19: 246
A20: 32 | C20: 2441 | D20: 1966 | E20: 1495 | F20: 1086 | G20: 645 | H20: 410 | I20: 258
A21: 33 | C21: 2501 | D21: 2019 | E21: 1540 | F21: 1123 | G21: 669 | H21: 428 | I21: 270
A22: 34 | C22: 2567 | D22: 2077 | E22: 1590 | F22: 1163 | G22: 697 | H22: 447 | I22: 285
A23: 35 | C23: 2641 | D23: 2142 | E23: 1645 | F23: 1207 | G23: 726 | H23: 469 | I23: 300
A24: 36 | C24: 2723 | D24: 2214 | E24: 1705 | F24: 1254 | G24: 759 | H24: 492 | I24: 317
A25: 37 | C25: 2812 | D25: 2292 | E25: 1769 | F25: 1307 | G25: 795 | H25: 517 | I25: 334
A26: 38 | C26: 2910 | D26: 2378 | E26: 1840 | F26: 1363 | G26: 833 | H26: 544 | I26: 354
A27: 39 | C27: 3017 | D27: 2471 | E27: 1919 | F27: 1425 | G27: 875 | H27: 574 | I27: 375
A28: 40 | C28: 3102 | D28: 2572 | E28: 2003 | F28: 1492 | G28: 920 | H28: 606 | I28: 399
A29: 41 | C29: 3171 | D29: 2681 | E29: 2093 | F29: 1564 | G29: 968 | H29: 641 | I29: 425
A30: 42 | C30: 3246 | D30: 2801 | E30: 2192 | F30: 1644 | G30: 1022 | H30: 679 | I30: 452
A31: 43 | C31: 3370 | D31: 2928 | E31: 2299 | F31: 1729 | G31: 1080 | H31: 721 | I31: 482
A32: 44 | C32: 3500 | D32: 3045 | E32: 2414 | F32: 1821 | G32: 1142 | H32: 765 | I32: 515
A33: 45 | C33: 3630 | D33: 3155 | E33: 2539 | F33: 1921 | G33: 1209 | H33: 813 | I33: 550
A34: 46 | C34: 3758 | D34: 3268 | E34: 2673 | F34: 2028 | G34: 1283 | H34: 866 | I34: 588
A35: 47 | C35: 3889 | D35: 3380 | E35: 2817 | F35: 2144 | G35: 1361 | H35: 922 | I35: 630
A36: 48 | C36: 4027 | D36: 3500 | E36: 2973 | F36: 2269 | G36: 1447 | H36: 984 | I36: 676
A37: 49 | C37: 4161 | D37: 3618 | E37: 3141 | F37: 2405 | G37: 1539 | H37: 1052 | I37: 725
A38: 50 | C38: 4297 | D38: 3738 | E38: 3334 | F38: 2562 | G38: 1647 | H38: 1129 | I38: 783
A39: 51 | C39: 4431 | D39: 3855 | E39: 3515 | F39: 2750 | G39: 1778 | H39: 1225 | I39: 853
A40: 52 | C40: 4568 | D40: 3974 | E40: 3623 | F40: 2953 | G40: 1918 | H40: 1327 | I40: 929
A41: 53 | C41: 4730 | D41: 4113 | E41: 3753 | F41: 3170 | G41: 2068 | H41: 1436 | I41: 1011
A42: 54 | C42: 4893 | D42: 4254 | E42: 3879 | F42: 3404 | G42: 2230 | H42: 1553 | I42: 1099
A43: 55 | C43: 5057 | D43: 4397 | E43: 4007 | F43: 3536 | G43: 2404 | H43: 1679 | I43: 1192
A44: 56 | C44: 5218 | D44: 4536 | E44: 4134 | F44: 3657 | G44: 2544 | H44: 1815 | I44: 1293
A45: 57 | C45: 5377 | D45: 4678 | E45: 4264 | F45: 3781 | G45: 2623 | H45: 1961 | I45: 1402
A46: 58 | C46: 5563 | D46: 4836 | E46: 4398 | F46: 3943 | G46: 2727 | H46: 2117 | I46: 1519
A47: 59 | C47: 5749 | D47: 5000 | E47: 4530 | F47: 4101 | G47: 2830 | H47: 2285 | I47: 1644
A48: 60 | C48: 5934 | D48: 5159 | E48: 4666 | F48: 4262 | G48: 2934 | H48: 2467 | I48: 1779
A49: 61 | C49: 6163 | D49: 5357 | E49: 4867 | F49: 4421 | G49: 3043 | H49: 2661 | I49: 1924
A50: 62 | C50: 6439 | D50: 5599 | E50: 5105 | F50: 4620 | G50: 3182 | H50: 2872 | I50: 2081
A51: 63 | C51: 6771 | D51: 5886 | E51: 5370 | F51: 4858 | G51: 3348 | H51: 3098 | I51: 2249
A52: 64 | C52: 7160 | D52: 6228 | E52: 5677 | F52: 5138 | G52: 3717 | H52: 3343 | I52: 2429
A53: 65 | C53: 7630 | D53: 6633 | E53: 6047 | F53: 5522 | G53: 3979 | H53: 3606 | I53: 2624
A54: 66 | C54: 8177 | D54: 7111 | E54: 6484 | F54: 5963 | G54: 4286 | H54: 3891 | I54: 2834
A55: 67 | C55: 8830 | D55: 7679 | E55: 7003 | F55: 6445 | G55: 4629 | H55: 4197 | I55: 3060
A56: 68 | C56: 9582 | D56: 8330 | E56: 7597 | F56: 6988 | G56: 5020 | H56: 4528 | I56: 3304
A57: 69 | C57: 10455 | D57: 9091 | E57: 8290 | F57: 7631 | G57: 5222 | H57: 4885 | I57: 3565
A58: 70 | C58: 11467 | D58: 9972 | E58: 9013 | F58: 8492 | G58: 5774 | H58: 5268 | I58: 3846
A59: 71 | C59: 12630 | D59: 10983 | E59: 10012 | F59: 9351 | G59: 6361 | H59: 5681 | I59: 4145
A60: 72 | C60: 13971 | D60: 12148 | E60: 11078 | F60: 10349 | G60: 7040 | H60: 6123 | I60: 4465
A61: 73 | C61: 15517 | D61: 13492 | E61: 12301 | F61: 11489 | G61: 7813 | H61: 6597 | I61: 4805
A62: 74 | C62: 17300 | D62: 15041 | E62: 13714 | F62: 12811 | G62: 8714 | H62: 7102 | I62: 5164
A63: 75 | C63: 19342 | D63: 16820 | E63: 15274 | F63: 14415 | G63: 9777 | H63: 7637 | I63: 5541
A64: 76 | C64: 21693 | D64: 18862 | E64: 17185 | F64: 16163 | G64: 10963 | H64: 8202 | I64: 5934
A65: 77 | C65: 24360 | D65: 21185 | E65: 19315 | F65: 18020 | G65: 12315 | H65: 8793 | I65: 6338
A66: 78 | C66: 27373 | D66: 23802 | E66: 21701 | F66: 19330 | G66: 13261 | H66: 9407 | I66: 6750
A67: 79 | C67: 30755 | D67: 26741 | E67: 24384 | F67: 20705 | G67: 14194 | H67: 10038 | I67: 7158
A68: 80 | B68: o más | C68: 34565 | D68: 30264 | E68: 26939 | F68: 22140 | G68: 15156 | H68: 10676 | I68: 7555
A69: 1 | B69: Hijo | C69: 1326 | D69: 1153 | E69: 835 | F69: 572 | G69: 312 | H69: 183 | I69: 105
A70: 2 | B70: Hijos | C70: 1568 | D70: 1362 | E70: 987 | F70: 677 | G70: 368 | H70: 217 | I70: 124
A71: 3 | B71: Hijos o más | C71: 2171 | D71: 1886 | E71: 1367 | F71: 937 | G71: 510 | H71: 300 | I71: 173
A73: TARIFAS MENSUALES
A74: EDAD
C75: F500-1 | D75: F500-2 | E75: F500-3 | F75: F500-4 | G75: F500-5
A76: 18 | C76: =+C6*$M$2 -> 177.55 | D76: =+D6*$M$2 -> 151.845 | E76: 111.2116667 | F76: 76.67333333 | G76: 41.605 | H76: 24.55666667 | I76: 14.13333333
A77: 19 | C77: =+C7*$M$2 -> 180.465 | D77: 151.845 | E77: 111.2116667 | F77: 76.76166667 | G77: 42.04666667 | H77: 24.91 | I77: 14.39833333
A78: 20 | C78: 183.645 | D78: 151.845 | E78: 111.2116667 | F78: 76.93833333 | G78: 42.48833333 | H78: 25.26333333 | I78: 14.75166667
A79: 21 | C79: 187.09 | D79: 151.845 | E79: 111.3883333 | F79: 77.46833333 | G79: 43.01833333 | H79: 25.79333333 | I79: 15.19333333
A80: 22 | C80: 190.0933333 | D80: 151.845 | E80: 111.6533333 | F80: 78.08666667 | G80: 43.63666667 | H80: 26.32333333 | I80: 15.54666667
A81: 23 | C81: 193.2733333 | D81: 152.1983333 | E81: 112.36 | F81: 78.88166667 | G81: 44.34333333 | H81: 26.94166667 | I81: 15.98833333
A82: 24 | C82: 193.8033333 | D82: 152.905 | E82: 113.3316667 | F82: 79.85333333 | G82: 45.22666667 | H82: 27.56 | I82: 16.51833333
A83: 25 | C83: 194.6866667 | D83: 154.0533333 | E83: 114.5683333 | F83: 81.09 | G83: 46.19833333 | H83: 28.355 | I83: 17.13666667
A84: 26 | C84: 196.1 | D84: 155.555 | E84: 116.1583333 | F84: 82.50333333 | G84: 47.25833333 | H84: 29.15 | I84: 17.66666667
A85: 27 | C85: 198.0433333 | D85: 157.4983333 | E85: 118.0133333 | F85: 84.18166667 | G85: 48.495 | H85: 30.12166667 | I85: 18.285
A86: 28 | C86: 200.4283333 | D86: 159.795 | E86: 120.1333333 | F86: 85.94833333 | G86: 49.90833333 | H86: 31.09333333 | I86: 19.08
A87: 29 | C87: 203.4316667 | D87: 162.5333333 | E87: 122.5183333 | F87: 88.15666667 | G87: 51.41 | H87: 32.24166667 | I87: 19.875
A88: 30 | C88: 206.8766667 | D88: 165.8016667 | E88: 125.4333333 | F88: 90.45333333 | G88: 53.08833333 | H88: 33.39 | I88: 20.75833333
A89: 31 | C89: 210.94 | D89: 169.5116667 | E89: 128.525 | F89: 93.10333333 | G89: 54.94333333 | H89: 34.715 | I89: 21.73
A90: 32 | C90: 215.6216667 | D90: 173.6633333 | E90: 132.0583333 | F90: 95.93 | G90: 56.975 | H90: 36.21666667 | I90: 22.79
A91: 33 | C91: 220.9216667 | D91: 178.345 | E91: 136.0333333 | F91: 99.19833333 | G91: 59.095 | H91: 37.80666667 | I91: 23.85
A92: 34 | C92: 226.7516667 | D92: 183.4683333 | E92: 140.45 | F92: 102.7316667 | G92: 61.56833333 | H92: 39.485 | I92: 25.175
A93: 35 | C93: =+C23*$M$2 -> 233.2883333 | D93: 189.21 | E93: 145.3083333 | F93: 106.6183333 | G93: 64.13 | H93: 41.42833333 | I93: 26.5
A94: 36 | C94: 240.5316667 | D94: 195.57 | E94: 150.6083333 | F94: 110.77 | G94: 67.045 | H94: 43.46 | I94: 28.00166667
A95: 37 | C95: 248.3933333 | D95: 202.46 | E95: 156.2616667 | F95: 115.4516667 | G95: 70.225 | H95: 45.66833333 | I95: 29.50333333
A96: 38 | C96: 257.05 | D96: 210.0566667 | E96: 162.5333333 | F96: 120.3983333 | G96: 73.58166667 | H96: 48.05333333 | I96: 31.27
A97: 39 | C97: 266.5016667 | D97: 218.2716667 | E97: 169.5116667 | F97: 125.875 | G97: 77.29166667 | H97: 50.70333333 | I97: 33.125
A98: 40 | C98: 274.01 | D98: 227.1933333 | E98: 176.9316667 | F98: 131.7933333 | G98: 81.26666667 | H98: 53.53 | I98: 35.245
A99: 41 | C99: 280.105 | D99: 236.8216667 | E99: 184.8816667 | F99: 138.1533333 | G99: 85.50666667 | H99: 56.62166667 | I99: 37.54166667
A100: 42 | C100: 286.73 | D100: 247.4216667 | E100: 193.6266667 | F100: 145.22 | G100: 90.27666667 | H100: 59.97833333 | I100: 39.92666667
A101: 43 | C101: 297.6833333 | D101: 258.64 | E101: 203.0783333 | F101: 152.7283333 | G101: 95.4 | H101: 63.68833333 | I101: 42.57666667
A102: 44 | C102: 309.1666667 | D102: 268.975 | E102: 213.2366667 | F102: 160.855 | G102: 100.8766667 | H102: 67.575 | I102: 45.49166667
A103: 45 | C103: 320.65 | D103: 278.6916667 | E103: 224.2783333 | F103: 169.6883333 | G103: 106.795 | H103: 71.815 | I103: 48.58333333
A104: 46 | C104: 331.9566667 | D104: 288.6733333 | E104: 236.115 | F104: 179.14 | G104: 113.3316667 | H104: 76.49666667 | I104: 51.94
A105: 47 | C105: 343.5283333 | D105: 298.5666667 | E105: 248.835 | F105: 189.3866667 | G105: 120.2216667 | H105: 81.44333333 | I105: 55.65
A106: 48 | C106: 355.7183333 | D106: 309.1666667 | E106: 262.615 | F106: 200.4283333 | G106: 127.8183333 | H106: 86.92 | I106: 59.71333333
A107: 49 | C107: 367.555 | D107: 319.59 | E107: 277.455 | F107: 212.4416667 | G107: 135.945 | H107: 92.92666667 | I107: 64.04166667
A108: 50 | C108: 379.5683333 | D108: 330.19 | E108: 294.5033333 | F108: 226.31 | G108: 145.485 | H108: 99.72833333 | I108: 69.165
A109: 51 | C109: =+C39*$M$2 -> 391.405 | D109: 340.525 | E109: 310.4916667 | F109: 242.9166667 | G109: 157.0566667 | H109: 108.2083333 | I109: 75.34833333
A110: 52 | C110: 403.5066667 | D110: 351.0366667 | E110: 320.0316667 | F110: 260.8483333 | G110: 169.4233333 | H110: 117.2183333 | I110: 82.06166667
A111: 53 | C111: 417.8166667 | D111: 363.315 | E111: 331.515 | F111: 280.0166667 | G111: 182.6733333 | H111: 126.8466667 | I111: 89.305
A112: 54 | C112: 432.215 | D112: 375.77 | E112: 342.645 | F112: 300.6866667 | G112: 196.9833333 | H112: 137.1816667 | I112: 97.07833333
A113: 55 | C113: 446.7016667 | D113: 388.4016667 | E113: 353.9516667 | F113: 312.3466667 | G113: 212.3533333 | H113: 148.3116667 | I113: 105.2933333
A114: 56 | C114: 460.9233333 | D114: 400.68 | E114: 365.17 | F114: 323.035 | G114: 224.72 | H114: 160.325 | I114: 114.215
A115: 57 | C115: 474.9683333 | D115: 413.2233333 | E115: 376.6533333 | F115: 333.9883333 | G115: 231.6983333 | H115: 173.2216667 | I115: 123.8433333
A116: 58 | C116: 491.3983333 | D116: 427.18 | E116: 388.49 | F116: 348.2983333 | G116: 240.885 | H116: 187.0016667 | I116: 134.1783333
A117: 59 | C117: 507.8283333 | D117: 441.6666667 | E117: 400.15 | F117: 362.255 | G117: 249.9833333 | H117: 201.8416667 | I117: 145.22
A118: 60 | C118: 524.17 | D118: 455.7116667 | E118: 412.1633333 | F118: 376.4766667 | G118: 259.17 | H118: 217.9183333 | I118: 157.145
A119: 61 | C119: 544.3983333 | D119: 473.2016667 | E119: 429.9183333 | F119: 390.5216667 | G119: 268.7983333 | H119: 235.055 | I119: 169.9533333
A120: 62 | C120: 568.7783333 | D120: 494.5783333 | E120: 450.9416667 | F120: 408.1 | G120: 281.0766667 | H120: 253.6933333 | I120: 183.8216667
A121: 63 | C121: 598.105 | D121: 519.93 | E121: 474.35 | F121: 429.1233333 | G121: 295.74 | H121: 273.6566667 | I121: 198.6616667
A122: 64 | C122: 632.4666667 | D122: 550.14 | E122: 501.4683333 | F122: 453.8566667 | G122: 328.335 | H122: 295.2983333 | I122: 214.5616667
A123: 65 | C123: 673.9833333 | D123: 585.915 | E123: 534.1516667 | F123: 487.7766667 | G123: 351.4783333 | H123: 318.53 | I123: 231.7866667
A124: 66 | C124: 722.3016667 | D124: 628.1383333 | E124: 572.7533333 | F124: 526.7316667 | G124: 378.5966667 | H124: 343.705 | I124: 250.3366667
A125: 67 | C125: =+C55*$M$2 -> 779.9833333 | D125: 678.3116667 | E125: 618.5983333 | F125: 569.3083333 | G125: 408.895 | H125: 370.735 | I125: 270.3
A126: 68 | C126: 846.41 | D126: 735.8166667 | E126: 671.0683333 | F126: 617.2733333 | G126: 443.4333333 | H126: 399.9733333 | I126: 291.8533333
A127: 69 | C127: 923.525 | D127: 803.0383333 | E127: 732.2833333 | F127: 674.0716667 | G127: 461.2766667 | H127: 431.5083333 | I127: 314.9083333
A128: 70 | C128: 1012.918333 | D128: 880.86 | E128: 796.1483333 | F128: 750.1266667 | G128: 510.0366667 | H128: 465.34 | I128: 339.73
A129: 71 | C129: 1115.65 | D129: 970.165 | E129: 884.3933333 | F129: 826.005 | G129: 561.8883333 | H129: 501.8216667 | I129: 366.1416667
A130: 72 | C130: 1234.105 | D130: 1073.073333 | E130: 978.5566667 | F130: 914.1616667 | G130: 621.8666667 | H130: 540.865 | I130: 394.4083333
A131: 73 | C131: 1370.668333 | D131: 1191.793333 | E131: 1086.588333 | F131: 1014.861667 | G131: 690.1483333 | H131: 582.735 | I131: 424.4416667
A132: 74 | C132: 1528.166667 | D132: 1328.621667 | E132: 1211.403333 | F132: 1131.638333 | G132: 769.7366667 | H132: 627.3433333 | I132: 456.1533333
A133: 75 | C133: 1708.543333 | D133: 1485.766667 | E133: 1349.203333 | F133: 1273.325 | G133: 863.635 | H133: 674.6016667 | I133: 489.455
A134: 76 | C134: 1916.215 | D134: 1666.143333 | E134: 1518.008333 | F134: 1427.731667 | G134: 968.3983333 | H134: 724.51 | I134: 524.17
A135: 77 | C135: 2151.8 | D135: 1871.341667 | E135: 1706.158333 | F135: 1591.766667 | G135: 1087.825 | H135: 776.715 | I135: 559.8566667
A136: 78 | C136: 2417.948333 | D136: 2102.51 | E136: 1916.921667 | F136: 1707.483333 | G136: 1171.388333 | H136: 830.9516667 | I136: 596.25
A137: 79 | C137: 2716.691667 | D137: 2362.121667 | E137: 2153.92 | F137: 1828.941667 | G137: 1253.803333 | H137: 886.69 | I137: 632.29
A138: 80 | B138: o más | C138: 3053.241667 | D138: 2673.32 | E138: 2379.611667 | F138: 1955.7 | G138: 1338.78 | H138: 943.0466667 | I138: 667.3583333
A139: 1 | B139: Hijo | C139: 117.13 | D139: 101.8483333 | E139: 73.75833333 | F139: 50.52666667 | G139: 27.56 | H139: 16.165 | I139: 9.275
A140: 2 | B140: Hijos | C140: 138.5066667 | D140: 120.31 | E140: 87.185 | F140: 59.80166667 | G140: 32.50666667 | H140: 19.16833333 | I140: 10.95333333
A141: 3 | B141: Hijos o más | C141: =+C71*$M$2 -> 191.7716667 | D141: 166.5966667 | E141: 120.7516667 | F141: 82.76833333 | G141: 45.05 | H141: 26.5 | I141: 15.28166667
A143: FLEX 100
A144: TARIFAS ANUALES
A145: EDAD
C146: F100-1 | D146: F100-2 | E146: F100-3 | F146: F100-4 | G146: F100-5
A147: 18 | C147: 2394 | D147: 2345 | E147: 2215 | F147: 2021 | G147: 1564
A148: 19 | C148: 2439 | D148: 2391 | E148: 2255 | F148: 2057 | G148: 1596
A149: 20 | C149: 2480 | D149: 2425 | E149: 2290 | F149: 2087 | G149: 1626
A150: 21 | C150: 2521 | D150: 2471 | E150: 2327 | F150: 2121 | G150: 1662
A151: 22 | C151: 2561 | D151: 2518 | E151: 2367 | F151: 2162 | G151: 1698
A152: 23 | C152: 2609 | D152: 2554 | E152: 2408 | F152: 2194 | G152: 1733
A153: 24 | C153: 2652 | D153: 2598 | E153: 2449 | F153: 2232 | G153: 1767
A154: 25 | C154: 2692 | D154: 2638 | E154: 2482 | F154: 2271 | G154: 1809
A155: 26 | C155: 2736 | D155: 2681 | E155: 2527 | F155: 2303 | G155: 1839
A156: 27 | C156: 2774 | D156: 2721 | E156: 2561 | F156: 2340 | G156: 1875
A157: 28 | C157: 2826 | D157: 2772 | E157: 2612 | F157: 2382 | G157: 1921
A158: 29 | C158: 2877 | D158: 2820 | E158: 2657 | F158: 2421 | G158: 1970
A159: 30 | C159: 2929 | D159: 2868 | E159: 2703 | F159: 2467 | G159: 2012
A160: 31 | C160: 2976 | D160: 2915 | E160: 2746 | F160: 2506 | G160: 2057
A161: 32 | C161: 3028 | D161: 2965 | E161: 2797 | F161: 2549 | G161: 2099
A162: 33 | C162: 3109 | D162: 3046 | E162: 2872 | F162: 2615 | G162: 2165
A163: 34 | C163: 3192 | D163: 3129 | E163: 2947 | F163: 2688 | G163: 2228
A164: 35 | C164: 3275 | D164: 3210 | E164: 3027 | F164: 2758 | G164: 2290
A165: 36 | C165: 3356 | D165: 3291 | E165: 3102 | F165: 2826 | G165: 2359
A166: 37 | C166: 3437 | D166: 3372 | E166: 3178 | F166: 2900 | G166: 2420
A167: 38 | C167: 3523 | D167: 3455 | E167: 3258 | F167: 2968 | G167: 2490
A168: 39 | C168: 3610 | D168: 3535 | E168: 3333 | F168: 3042 | G168: 2556
A169: 40 | C169: 3695 | D169: 3620 | E169: 3412 | F169: 3109 | G169: 2627
A170: 41 | C170: 3781 | D170: 3705 | E170: 3490 | F170: 3181 | G170: 2693
A171: 42 | C171: 3864 | D171: 3786 | E171: 3568 | F171: 3250 | G171: 2768
A172: 43 | C172: 4016 | D172: 3936 | E172: 3708 | F172: 3384 | G172: 2882
A173: 44 | C173: 4171 | D173: 4087 | E173: 3850 | F173: 3513 | G173: 3009
A174: 45 | C174: 4329 | D174: 4235 | E174: 3992 | F174: 3642 | G174: 3130
A175: 46 | C175: 4473 | D175: 4390 | E175: 4134 | F175: 3772 | G175: 3247
A176: 47 | C176: 4631 | D176: 4537 | E176: 4278 | F176: 3901 | G176: 3372
A177: 48 | C177: 4795 | D177: 4696 | E177: 4426 | F177: 4038 | G177: 3494
A178: 49 | C178: 4955 | D178: 4857 | E178: 4576 | F178: 4172 | G178: 3625
A179: 50 | C179: 5116 | D179: 5018 | E179: 4727 | F179: 4310 | G179: 3753
A180: 51 | C180: 5277 | D180: 5177 | E180: 4876 | F180: 4448 | G180: 3880
A181: 52 | C181: 5441 | D181: 5331 | E181: 5027 | F181: 4585 | G181: 4007
A182: 53 | C182: 5633 | D182: 5524 | E182: 5205 | F182: 4745 | G182: 4166
A183: 54 | C183: 5826 | D183: 5713 | E183: 5383 | F183: 4910 | G183: 4317
A184: 55 | C184: 6016 | D184: 5901 | E184: 5563 | F184: 5072 | G184: 4472
A185: 56 | C185: 6212 | D185: 6089 | E185: 5740 | F185: 5235 | G185: 4628
A186: 57 | C186: 6404 | D186: 6278 | E186: 5912 | F186: 5390 | G186: 4783
A187: 58 | C187: 6625 | D187: 6497 | E187: 6099 | F187: 5580 | G187: 4985
A188: 59 | C188: 6843 | D188: 6709 | E188: 6287 | F188: 5766 | G188: 5188
A189: 60 | C189: 7069 | D189: 6922 | E189: 6472 | F189: 5954 | G189: 5390
A190: 61 | C190: 7336 | D190: 7189 | E190: 6753 | F190: 6178 | G190: 5592
A191: 62 | C191: 7665 | D191: 7516 | E191: 7082 | F191: 6458 | G191: 5846
A192: 63 | C192: 8062 | D192: 7899 | E192: 7445 | F192: 6786 | G192: 6146
A193: 64 | C193: 8529 | D193: 8355 | E193: 7877 | F193: 7181 | G193: 6499
A194: 65 | C194: 9084 | D194: 8898 | E194: 8393 | F194: 7651 | G194: 6982
A195: 66 | C195: 9736 | D195: 9542 | E195: 8993 | F195: 8202 | G195: 7543
A196: 67 | C196: 10512 | D196: 10308 | E196: 9712 | F196: 8856 | G196: 8149
A197: 68 | C197: 11408 | D197: 11176 | E197: 10534 | F197: 9604 | G197: 8837
A198: 69 | C198: 12449 | D198: 12203 | E198: 11497 | F198: 10482 | G198: 9654
A199: 70 | C199: 13657 | D199: 13379 | E199: 12505 | F199: 11498 | G199: 10738
A200: 71 | C200: 15033 | D200: 14734 | E200: 13887 | F200: 12660 | G200: 11824
A201: 72 | C201: 16636 | D201: 16300 | E201: 15365 | F201: 14010 | G201: 13089
A202: 73 | C202: 18476 | D202: 18103 | E202: 17065 | F202: 15559 | G202: 14529
A203: 74 | C203: 20601 | D203: 20187 | E203: 19023 | F203: 17344 | G203: 16202
... 978 more rows

Sheet Tablas-Care (hidden)
A2: DIAMOND (WORLDWIDE) | J2: FACTOR SEMESTRAL : | L2: 0.53
A3: TARIFAS ANUALES | J3: FACTOR TRIMESTRAL: | L3: 0.275
A4: EDAD | J4: FACTOR MENSUAL: | L4: 0.09333333
C5: DW1 | D5: DW2 | E5: DW3 | F5: DW4 | G5: DW5 | H5: DW6
A6: 18 | B6: - 24
A7: 25 | B7: - 29
A8: 30 | B8: - 34
A9: 35 | B9: - 39
A10: 40 | B10: - 44
A11: 45 | B11: - 49
A12: 50 | B12: - 54
A13: 55 | B13: - 59
A14: 60
A15: 61
A16: 62
A17: 63
A18: 64
A19: 65
A20: 66
A21: 67
A22: 68
A23: 69
A24: 70
A25: 71
A26: 72
A27: 73
A28: 74
A29: 75 | B29: o más
A30: 1 | B30: Hijo
A31: 2 | B31: Hijos
A32: 3 | B32: Hijos o más
A33: 1 | B33: Rider Comp. Maternidad | C33: 0 | D33: 0 | E33: 0
A34: 1 | B34: Transplante de organos | C34: 0 | D34: 0 | E34: 0 | F34: 0 | G34: 0 | H34: 0
A36: TARIFAS SEMESTRALES
A37: EDAD
C38: DW1 | D38: DW2 | E38: DW3 | F38: DW4 | G38: DW5 | H38: DW6
A39: 18 | B39: - 24 | C39: =+C6*$L$2 -> 0 | D39: 0 | E39: 0 | F39: 0 | G39: 0 | H39: 0
A40: 25 | B40: - 29 | C40: 0 | D40: 0 | E40: 0 | F40: 0 | G40: 0 | H40: 0
A41: 30 | B41: - 34 | C41: 0 | D41: 0 | E41: 0 | F41: 0 | G41: 0 | H41: 0
A42: 35 | B42: - 39 | C42: 0 | D42: 0 | E42: 0 | F42: 0 | G42: 0 | H42: 0
A43: 40 | B43: - 44 | C43: 0 | D43: 0 | E43: 0 | F43: 0 | G43: 0 | H43: 0
A44: 45 | B44: - 49 | C44: 0 | D44: 0 | E44: 0 | F44: 0 | G44: 0 | H44: 0
A45: 50 | B45: - 54 | C45: 0 | D45: 0 | E45: 0 | F45: 0 | G45: 0 | H45: 0
A46: 55 | B46: - 59 | C46: 0 | D46: 0 | E46: 0 | F46: 0 | G46: 0 | H46: 0
A47: 60 | C47: 0 | D47: 0 | E47: 0 | F47: 0 | G47: 0 | H47: 0
A48: 61 | C48: 0 | D48: 0 | E48: 0 | F48: 0 | G48: 0 | H48: 0
A49: 62 | C49: 0 | D49: 0 | E49: 0 | F49: 0 | G49: 0 | H49: 0
A50: 63 | C50: 0 | D50: 0 | E50: 0 | F50: 0 | G50: 0 | H50: 0
A51: 64 | C51: 0 | D51: 0 | E51: 0 | F51: 0 | G51: 0 | H51: 0
A52: 65 | C52: 0 | D52: 0 | E52: 0 | F52: 0 | G52: 0 | H52: 0
A53: 66 | C53: 0 | D53: 0 | E53: 0 | F53: 0 | G53: 0 | H53: 0
A54: 67 | C54: 0 | D54: 0 | E54: 0 | F54: 0 | G54: 0 | H54: 0
A55: 68 | C55: =+C22*$L$2 -> 0 | D55: 0 | E55: 0 | F55: 0 | G55: 0 | H55: 0
A56: 69 | C56: 0 | D56: 0 | E56: 0 | F56: 0 | G56: 0 | H56: 0
A57: 70 | C57: 0 | D57: 0 | E57: 0 | F57: 0 | G57: 0 | H57: 0
A58: 71 | C58: 0 | D58: 0 | E58: 0 | F58: 0 | G58: 0 | H58: 0
A59: 72 | C59: 0 | D59: 0 | E59: 0 | F59: 0 | G59: 0 | H59: 0
A60: 73 | C60: 0 | D60: 0 | E60: 0 | F60: 0 | G60: 0 | H60: 0
A61: 74 | C61: 0 | D61: 0 | E61: 0 | F61: 0 | G61: 0 | H61: 0
A62: 75 | B62: o más | C62: 0 | D62: 0 | E62: 0 | F62: 0 | G62: 0 | H62: 0
A63: 1 | B63: Hijo | C63: 0 | D63: 0 | E63: 0 | F63: 0 | G63: 0 | H63: 0
A64: 2 | B64: Hijos | C64: 0 | D64: 0 | E64: 0 | F64: 0 | G64: 0 | H64: 0
A65: 3 | B65: Hijos o más | C65: 0 | D65: 0 | E65: 0 | F65: 0 | G65: 0 | H65: 0
A66: 1 | B66: Rider Comp. Maternidad | C66: 0 | D66: 0 | E66: 0 | F66: 0 | G66: 0 | H66: 0
A67: 1 | B67: Transplante de organos | C67: 0 | D67: 0 | E67: 0 | F67: 0 | G67: 0 | H67: 0
A69: DIAMOND (LATINAMERICA ONLY)
A70: TARIFAS ANUALES
A71: EDAD
C72: DL1 | D72: DL2 | E72: DL3 | F72: DL4 | G72: DL5 | H72: DL6
A73: 18 | B73: - 24
A74: 25 | B74: - 29
A75: 30 | B75: - 34
A76: 35 | B76: - 39
A77: 40 | B77: - 44
A78: 45 | B78: - 49
A79: 50 | B79: - 54
A80: 55 | B80: - 59
A81: 60
A82: 61
A83: 62
A84: 63
A85: 64
A86: 65
A87: 66
A88: 67
A89: 68
A90: 69
A91: 70
A92: 71
A93: 72
A94: 73
A95: 74
A96: 75 | B96: o más
A97: 1 | B97: Hijo
A98: 2 | B98: Hijos
A99: 3 | B99: Hijos o más
A100: 1 | B100: Rider Comp. Maternidad
A101: 1 | B101: Transplante de organos | C101: 0 | D101: 0 | E101: 0 | F101: 0 | G101: 0 | H101: 0
A103: TARIFAS SEMESTRALES
A104: EDAD
C105: DL1 | D105: DL2 | E105: DL3 | F105: DL4 | G105: DL5 | H105: DL6
A106: 18 | B106: - 24 | C106: =+C73*$L$2 -> 0 | D106: 0 | E106: 0 | F106: 0 | G106: 0 | H106: 0
A107: 25 | B107: - 29 | C107: 0 | D107: 0 | E107: 0 | F107: 0 | G107: 0 | H107: 0
A108: 30 | B108: - 34 | C108: 0 | D108: 0 | E108: 0 | F108: 0 | G108: 0 | H108: 0
A109: 35 | B109: - 39 | C109: 0 | D109: 0 | E109: 0 | F109: 0 | G109: 0 | H109: 0
A110: 40 | B110: - 44 | C110: 0 | D110: 0 | E110: 0 | F110: 0 | G110: 0 | H110: 0
A111: 45 | B111: - 49 | C111: 0 | D111: 0 | E111: 0 | F111: 0 | G111: 0 | H111: 0
A112: 50 | B112: - 54 | C112: 0 | D112: 0 | E112: 0 | F112: 0 | G112: 0 | H112: 0
A113: 55 | B113: - 59 | C113: 0 | D113: 0 | E113: 0 | F113: 0 | G113: 0 | H113: 0
A114: 60 | C114: 0 | D114: 0 | E114: 0 | F114: 0 | G114: 0 | H114: 0
A115: 61 | C115: 0 | D115: 0 | E115: 0 | F115: 0 | G115: 0 | H115: 0
A116: 62 | C116: 0 | D116: 0 | E116: 0 | F116: 0 | G116: 0 | H116: 0
A117: 63 | C117: 0 | D117: 0 | E117: 0 | F117: 0 | G117: 0 | H117: 0
A118: 64 | C118: 0 | D118: 0 | E118: 0 | F118: 0 | G118: 0 | H118: 0
A119: 65 | C119: 0 | D119: 0 | E119: 0 | F119: 0 | G119: 0 | H119: 0
A120: 66 | C120: 0 | D120: 0 | E120: 0 | F120: 0 | G120: 0 | H120: 0
A121: 67 | C121: 0 | D121: 0 | E121: 0 | F121: 0 | G121: 0 | H121: 0
A122: 68 | C122: =+C89*$L$2 -> 0 | D122: 0 | E122: 0 | F122: 0 | G122: 0 | H122: 0
A123: 69 | C123: 0 | D123: 0 | E123: 0 | F123: 0 | G123: 0 | H123: 0
A124: 70 | C124: 0 | D124: 0 | E124: 0 | F124: 0 | G124: 0 | H124: 0
A125: 71 | C125: 0 | D125: 0 | E125: 0 | F125: 0 | G125: 0 | H125: 0
A126: 72 | C126: 0 | D126: 0 | E126: 0 | F126: 0 | G126: 0 | H126: 0
A127: 73 | C127: 0 | D127: 0 | E127: 0 | F127: 0 | G127: 0 | H127: 0
A128: 74 | C128: 0 | D128: 0 | E128: 0 | F128: 0 | G128: 0 | H128: 0
A129: 75 | B129: o más | C129: 0 | D129: 0 | E129: 0 | F129: 0 | G129: 0 | H129: 0
A130: 1 | B130: Hijo | C130: 0 | D130: 0 | E130: 0 | F130: 0 | G130: 0 | H130: 0
A131: 2 | B131: Hijos | C131: 0 | D131: 0 | E131: 0 | F131: 0 | G131: 0 | H131: 0
A132: 3 | B132: Hijos o más | C132: 0 | D132: 0 | E132: 0 | F132: 0 | G132: 0 | H132: 0
A133: 1 | B133: Rider Comp. Maternidad | C133: 0 | D133: 0 | E133: 0 | F133: 0 | G133: 0 | H133: 0
A134: 1 | B134: Transplante de organos | C134: 0 | D134: 0 | E134: 0 | F134: 0 | G134: 0 | H134: 0
A136: COMPLETE (WORLDWIDE)
A137: TARIFAS ANUALES
A138: EDAD
C139: CW1 | D139: CW2 | E139: CW3 | F139: CW4 | G139: CW5 | H139: CW6
A140: 18 | B140: - 24
A141: 25 | B141: - 29
A142: 30 | B142: - 34
A143: 35 | B143: - 39
A144: 40 | B144: - 44
A145: 45 | B145: - 49
A146: 50 | B146: - 54
A147: 55 | B147: - 59
A148: 60
A149: 61
A150: 62
A151: 63
A152: 64
A153: 65
A154: 66
A155: 67
A156: 68
A157: 69
A158: 70
A159: 71
A160: 72
A161: 73
A162: 74
A163: 75 | B163: o más
A164: 1 | B164: Hijo
A165: 2 | B165: Hijos
A166: 3 | B166: Hijos o más
A167: 1 | B167: Rider Comp. Maternidad
A168: 1 | B168: Transplante de organos | C168: 0 | D168: 0 | E168: 0 | F168: 0 | G168: 0 | H168: 0
A170: TARIFAS SEMESTRALES
A171: EDAD
C172: CW1 | D172: CW2 | E172: CW3 | F172: CW4 | G172: CW5 | H172: CW6
A173: 18 | B173: - 24 | C173: =+C140*$L$2 -> 0 | D173: 0 | E173: 0 | F173: 0 | G173: 0 | H173: 0
A174: 25 | B174: - 29 | C174: 0 | D174: 0 | E174: 0 | F174: 0 | G174: 0 | H174: 0
A175: 30 | B175: - 34 | C175: 0 | D175: 0 | E175: 0 | F175: 0 | G175: 0 | H175: 0
A176: 35 | B176: - 39 | C176: 0 | D176: 0 | E176: 0 | F176: 0 | G176: 0 | H176: 0
A177: 40 | B177: - 44 | C177: 0 | D177: 0 | E177: 0 | F177: 0 | G177: 0 | H177: 0
A178: 45 | B178: - 49 | C178: 0 | D178: 0 | E178: 0 | F178: 0 | G178: 0 | H178: 0
A179: 50 | B179: - 54 | C179: 0 | D179: 0 | E179: 0 | F179: 0 | G179: 0 | H179: 0
A180: 55 | B180: - 59 | C180: 0 | D180: 0 | E180: 0 | F180: 0 | G180: 0 | H180: 0
A181: 60 | C181: 0 | D181: 0 | E181: 0 | F181: 0 | G181: 0 | H181: 0
A182: 61 | C182: 0 | D182: 0 | E182: 0 | F182: 0 | G182: 0 | H182: 0
A183: 62 | C183: 0 | D183: 0 | E183: 0 | F183: 0 | G183: 0 | H183: 0
A184: 63 | C184: 0 | D184: 0 | E184: 0 | F184: 0 | G184: 0 | H184: 0
A185: 64 | C185: 0 | D185: 0 | E185: 0 | F185: 0 | G185: 0 | H185: 0
A186: 65 | C186: 0 | D186: 0 | E186: 0 | F186: 0 | G186: 0 | H186: 0
A187: 66 | C187: 0 | D187: 0 | E187: 0 | F187: 0 | G187: 0 | H187: 0
A188: 67 | C188: 0 | D188: 0 | E188: 0 | F188: 0 | G188: 0 | H188: 0
A189: 68 | C189: =+C156*$L$2 -> 0 | D189: 0 | E189: 0 | F189: 0 | G189: 0 | H189: 0
A190: 69 | C190: 0 | D190: 0 | E190: 0 | F190: 0 | G190: 0 | H190: 0
A191: 70 | C191: 0 | D191: 0 | E191: 0 | F191: 0 | G191: 0 | H191: 0
A192: 71 | C192: 0 | D192: 0 | E192: 0 | F192: 0 | G192: 0 | H192: 0
A193: 72 | C193: 0 | D193: 0 | E193: 0 | F193: 0 | G193: 0 | H193: 0
A194: 73 | C194: 0 | D194: 0 | E194: 0 | F194: 0 | G194: 0 | H194: 0
A195: 74 | C195: 0 | D195: 0 | E195: 0 | F195: 0 | G195: 0 | H195: 0
A196: 75 | B196: o más | C196: 0 | D196: 0 | E196: 0 | F196: 0 | G196: 0 | H196: 0
A197: 1 | B197: Hijo | C197: 0 | D197: 0 | E197: 0 | F197: 0 | G197: 0 | H197: 0
A198: 2 | B198: Hijos | C198: 0 | D198: 0 | E198: 0 | F198: 0 | G198: 0 | H198: 0
A199: 3 | B199: Hijos o más | C199: 0 | D199: 0 | E199: 0 | F199: 0 | G199: 0 | H199: 0
A200: 1 | B200: Rider Comp. Maternidad | C200: 0 | D200: 0 | E200: 0 | F200: 0 | G200: 0 | H200: 0
A201: 1 | B201: Transplante de organos | C201: 0 | D201: 0 | E201: 0 | F201: 0 | G201: 0 | H201: 0
A203: COMPLETE (LATINAMERICA ONLY)
A204: TARIFAS ANUALES
A205: EDAD
C206: CL1 | D206: CL2 | E206: CL3 | F206: CL4 | G206: CL5 | H206: CL6
A207: 18 | B207: - 24
... 399 more rows
